Workbook

Sheet Menu
G2: Site | H2: =+Offsets!G3 -> Piercy End - North
G3: Location | H3: =+Offsets!H3 -> Kirkbymoorside
G4: Site No | H4: =Offsets!I3 -> 2
G5: Directions | H5: =+Offsets!J3&" "&+Offsets!K3 -> NB SB
G6: Start | H6: =+Offsets!L3 -> 2022-05-11

Sheet Data (hidden)
A2: 1 | C2: =+Offsets!J5 -> NB | AL2: Speed | AP2: =+Offsets!K5 -> SB | BY2: Speed | CA2: Combined | DL2: Speed | DN2: =+C2 -> NB | EA2: =+AP2 -> SB | EN2: Combined | FA2: =+DN2 -> NB | FH2: =+EA2 -> SB | FO2: Combined | FV2: Weekday Average
C3: Vehicle Classification | O3: Vehicle Speed Bins | AP3: Vehicle Classification | BB3: Vehicle Speed Bins | CC3: Vehicle Classification | CO3: Vehicle Speed Bins | DN3: C1 | DV3: C9 | DW3: C10 | DX3: C11 | DY3: C12 | DZ3: Total | EA3: C1 | EB3: C2 | EC3: C3 | ED3: C4 | EE3: C5 | EF3: C6 | EG3: C7 | EH3: C8 | EI3: C9 | EJ3: C10 | EK3: C11 | EL3: C12 | EM3: Total | EN3: C1 | EO3: C2 | EP3: C3 | EQ3: C4 | ER3: C5 | ES3: C6 | ET3: C7 | EU3: C8 | EV3: C9 | EW3: C10 | EX3: C11 | EY3: C12 | EZ3: Total | FV3: =FA2 -> NB | FW3: =FH2 -> SB | FX3: =FO2 -> Combined
C4: 1 | D4: 2 | E4: 3 | F4: 4 | G4: 5 | H4: 6 | I4: 7 | J4: 8 | K4: 9 | L4: 10 | M4: 11 | N4: 12 | O4: 510 | P4: 1015 | Q4: 1520 | R4: 2025 | S4: 2530 | T4: 3035 | U4: 3540 | V4: 4045 | W4: 4550 | X4: 5055 | Y4: 5560 | Z4: 6065 | AA4: 6570 | AB4: 7075 | AC4: 7580 | AD4: 8085 | AE4: 8590 | AF4: 9095 | AG4: 95100 | AH4: 100105 | AI4: 105110 | AJ4: 110115 | AK4: 115+ | AL4: Ave | AM4: 85%ile | AP4: 1 | AQ4: 2 | AR4: 3 | AS4: 4 | AT4: 5 | AU4: 6 | AV4: 7 | AW4: 8 | AX4: 9 | AY4: 10 | AZ4: 11 | BA4: 12 | BB4: 510 | BC4: 1015 | BD4: 1520 | BE4: 2025 | BF4: 2530 | BG4: 3035 | BH4: 3540 | BI4: 4045 | BJ4: 4550 | BK4: 5055 | BL4: 5560 | BM4: 6065 | BN4: 6570 | BO4: 7075 | BP4: 7580 | BQ4: 8085 | BR4: 8590 | BS4: 9095 | BT4: 95100 | BU4: 100105 | BV4: 105110 | BW4: 110115 | BX4: 115+ | BY4: Ave | BZ4: 85%ile | CC4: 1 | CD4: 2 | CE4: 3 | CF4: 4 | CG4: 5 | CH4: 6 | CI4: 7 | CJ4: 8 | CK4: 9 | CL4: 10 | CM4: 11 | CN4: 12 | CO4: 510 | CP4: 1015 | CQ4: 1520 | CR4: 2025 | CS4: 2530 | CT4: 3035 | CU4: 3540 | CV4: 4045 | CW4: 4550 | CX4: 5055 | CY4: 5560 | CZ4: 6065 | DA4: 6570 | DB4: 7075 | DC4: 7580 | DD4: 8085 | DE4: 8590 | DF4: 9095 | DG4: 95100 | DH4: 100105 | DI4: 105110 | DJ4: 110115 | DK4: 115+ | DL4: Ave | DM4: 85%ile | DO4: C2 | DP4: C3 | DQ4: C4 | DR4: C5 | DS4: C6 | DT4: C7 | DU4: C8 | FA4: Mon | FB4: Tue | FC4: Wed | FD4: Thu | FE4: Fri | FF4: Sat | FG4: Sun | FH4: Mon | FI4: Tue | FJ4: Wed | FK4: Thu | FL4: Fri | FM4: Sat | FN4: Sun | FO4: Mon | FP4: Tue | FQ4: Wed | FR4: Thu | FS4: Fri | FT4: Sat | FU4: Sun
A5: Mon | B5: 0 | C5: 0 | D5: 0 | E5: 0 | F5: 2 | G5: 0 | H5: 0 | I5: 0 | J5: 0 | K5: 0 | L5: 0 | M5: 0 | N5: 0 | O5: 0 | P5: 0 | Q5: 0 | R5: 0 | S5: 2 | T5: 0 | U5: 0 | V5: 0 | W5: 0 | X5: 0 | Y5: 0 | Z5: 0 | AA5: 0 | AB5: 0 | AC5: 0 | AD5: 0 | AE5: 0 | AF5: 0 | AG5: 0 | AH5: 0 | AI5: 0 | AJ5: 0 | AK5: 0 | AL5: 26.96 | AM5: - | AN5: Mon | AO5: 0 | AP5: 0 | AQ5: 0 | AR5: 0 | AS5: 1 | AT5: 0 | AU5: 0 | AV5: 0 | AW5: 0 | AX5: 0 | AY5: 0 | AZ5: 0 | BA5: 0 | BB5: 0 | BC5: 0 | BD5: 0 | BE5: 1 | BF5: 0 | BG5: 0 | BH5: 0 | BI5: 0 | BJ5: 0 | BK5: 0 | BL5: 0 | BM5: 0 | BN5: 0 | BO5: 0 | BP5: 0 | BQ5: 0 | BR5: 0 | BS5: 0 | BT5: 0 | BU5: 0 | BV5: 0 | BW5: 0 | BX5: 0 | BY5: 20.21 | BZ5: - | CA5: Mon | CB5: 0 | CC5: 0 | CD5: 0 | CE5: 0 | CF5: 3 | CG5: 0 | CH5: 0 | CI5: 0 | CJ5: 0 | CK5: 0 | CL5: 0 | CM5: 0 | CN5: 0 | CO5: 0 | CP5: 0 | CQ5: 0 | CR5: 1 | CS5: 2 | CT5: 0 | CU5: 0 | CV5: 0 | CW5: 0 | CX5: 0 | CY5: 0 | CZ5: 0 | DA5: 0 | DB5: 0 | DC5: 0 | DD5: 0 | DE5: 0 | DF5: 0 | DG5: 0 | DH5: 0 | DI5: 0 | DJ5: 0 | DK5: 0 | DL5: 24.71 | DM5: - | DN5: =SUM(C5) -> 0 | DO5: =SUM(D5) -> 0 | DP5: =SUM(E5) -> 0 | DQ5: =SUM(F5) -> 2 | DR5: =SUM(G5) -> 0 | DS5: =SUM(H5) -> 0 | DT5: =SUM(I5) -> 0 | DU5: =SUM(J5) -> 0 | DV5: =SUM(K5) -> 0 | DW5: =SUM(L5) -> 0 | DX5: =SUM(M5) -> 0 | DY5: =SUM(N5) -> 0 | DZ5: =SUM(C5:N5) -> 2 | EA5: =SUM(AP5) -> 0 | EB5: =SUM(AQ5) -> 0 | EC5: =SUM(AR5) -> 0 | ED5: =SUM(AS5) -> 1 | EE5: =SUM(AT5) -> 0 | EF5: =SUM(AU5) -> 0 | EG5: =SUM(AV5) -> 0 | EH5: =SUM(AW5) -> 0 | EI5: =SUM(AX5) -> 0 | EJ5: =SUM(AY5) -> 0 | EK5: =SUM(AZ5) -> 0 | EL5: =SUM(BA5) -> 0 | EM5: =SUM(AP5:BA5) -> 1 | EN5: =SUM(DN5+EA5) -> 0 | EO5: =SUM(DO5+EB5) -> 0 | EP5: =SUM(DP5+EC5) -> 0 | EQ5: =SUM(DQ5+ED5) -> 3 | ER5: =SUM(DR5+EE5) -> 0 | ES5: =SUM(DS5+EF5) -> 0 | ET5: =SUM(DT5+EG5) -> 0 | EU5: =SUM(DU5+EH5) -> 0 | EV5: =SUM(DV5+EI5) -> 0 | EW5: =SUM(DW5+EJ5) -> 0 | EX5: =SUM(DX5+EK5) -> 0 | EY5: =SUM(DY5+EL5) -> 0 | EZ5: =SUM(DZ5+EM5) -> 3 | FA5: =+DZ5 -> 2 | FB5: =+DZ29 -> 2 | FC5: =+DZ53 -> 3 | FD5: =+DZ77 -> 0 | FE5: =+DZ101 -> 4 | FF5: =+DZ125 -> 1 | FG5: =+DZ149 -> 8 | FH5: =+EM5 -> 1 | FI5: =+EM29 -> 1 | FJ5: =+EM53 -> 1 | FK5: =+EM77 -> 2 | FL5: =+EM101 -> 3 | FM5: =+EM125 -> 1 | FN5: =+EM149 -> 9 | FO5: =SUM(FA5+FH5) -> 3 | FP5: =SUM(FB5+FI5) -> 3 | FQ5: =SUM(FC5+FJ5) -> 4 | FR5: =SUM(FD5+FK5) -> 2 | FS5: =SUM(FE5+FL5) -> 7 | FT5: =SUM(FF5+FM5) -> 2 | FU5: =SUM(FG5+FN5) -> 17 | FV5: =ROUND(AVERAGE(FA5:FE5),0) -> 2 | FW5: =ROUND(AVERAGE(FH5:FL5),0) -> 2 | FX5: =ROUND(AVERAGE(FO5:FS5),0) -> 4
A6: =+A5 -> Mon | B6: 100 | C6: 0 | D6: 0 | E6: 1 | F6: 0 | G6: 0 | H6: 0 | I6: 0 | J6: 0 | K6: 0 | L6: 0 | M6: 0 | N6: 0 | O6: 0 | P6: 0 | Q6: 0 | R6: 0 | S6: 0 | T6: 1 | U6: 0 | V6: 0 | W6: 0 | X6: 0 | Y6: 0 | Z6: 0 | AA6: 0 | AB6: 0 | AC6: 0 | AD6: 0 | AE6: 0 | AF6: 0 | AG6: 0 | AH6: 0 | AI6: 0 | AJ6: 0 | AK6: 0 | AL6: 34.26 | AM6: - | AN6: Mon | AO6: 100 | AP6: 0 | AQ6: 0 | AR6: 0 | AS6: 0 | AT6: 0 | AU6: 0 | AV6: 0 | AW6: 0 | AX6: 0 | AY6: 0 | AZ6: 0 | BA6: 0 | BB6: 0 | BC6: 0 | BD6: 0 | BE6: 0 | BF6: 0 | BG6: 0 | BH6: 0 | BI6: 0 | BJ6: 0 | BK6: 0 | BL6: 0 | BM6: 0 | BN6: 0 | BO6: 0 | BP6: 0 | BQ6: 0 | BR6: 0 | BS6: 0 | BT6: 0 | BU6: 0 | BV6: 0 | BW6: 0 | BX6: 0 | BY6: - | BZ6: - | CA6: Mon | CB6: 100 | CC6: 0 | CD6: 0 | CE6: 1 | CF6: 0 | CG6: 0 | CH6: 0 | CI6: 0 | CJ6: 0 | CK6: 0 | CL6: 0 | CM6: 0 | CN6: 0 | CO6: 0 | CP6: 0 | CQ6: 0 | CR6: 0 | CS6: 0 | CT6: 1 | CU6: 0 | CV6: 0 | CW6: 0 | CX6: 0 | CY6: 0 | CZ6: 0 | DA6: 0 | DB6: 0 | DC6: 0 | DD6: 0 | DE6: 0 | DF6: 0 | DG6: 0 | DH6: 0 | DI6: 0 | DJ6: 0 | DK6: 0 | DL6: 34.26 | DM6: - | DN6: 0 | DO6: 0 | DP6: 1 | DQ6: 0 | DR6: 0 | DS6: 0 | DT6: 0 | DU6: 0 | DV6: 0 | DW6: 0 | DX6: 0 | DY6: 0 | DZ6: 1 | EA6: 0 | EB6: 0 | EC6: 0 | ED6: 0 | EE6: 0 | EF6: 0 | EG6: 0 | EH6: 0 | EI6: 0 | EJ6: 0 | EK6: 0 | EL6: 0 | EM6: 0 | EN6: 0 | EO6: 0 | EP6: 1 | EQ6: 0 | ER6: 0 | ES6: 0 | ET6: 0 | EU6: 0 | EV6: 0 | EW6: 0 | EX6: 0 | EY6: 0 | EZ6: 1 | FA6: 1 | FB6: 0 | FC6: 0 | FD6: 2 | FE6: 0 | FF6: 0 | FG6: 7 | FH6: 0 | FI6: 0 | FJ6: 1 | FK6: 0 | FL6: 1 | FM6: 0 | FN6: 6 | FO6: =SUM(FA6+FH6) -> 1 | FP6: 0 | FQ6: 1 | FR6: 2 | FS6: 1 | FT6: 0 | FU6: 13 | FV6: =ROUND(AVERAGE(FA6:FE6),0) -> 1 | FW6: =ROUND(AVERAGE(FH6:FL6),0) -> 0 | FX6: =ROUND(AVERAGE(FO6:FS6),0) -> 1
A7: =+A6 -> Mon | B7: 200 | C7: 0 | D7: 0 | E7: 0 | F7: 1 | G7: 0 | H7: 0 | I7: 0 | J7: 0 | K7: 0 | L7: 0 | M7: 0 | N7: 0 | O7: 0 | P7: 0 | Q7: 0 | R7: 1 | S7: 0 | T7: 0 | U7: 0 | V7: 0 | W7: 0 | X7: 0 | Y7: 0 | Z7: 0 | AA7: 0 | AB7: 0 | AC7: 0 | AD7: 0 | AE7: 0 | AF7: 0 | AG7: 0 | AH7: 0 | AI7: 0 | AJ7: 0 | AK7: 0 | AL7: 22.15 | AM7: - | AN7: Mon | AO7: 200 | AP7: 0 | AQ7: 0 | AR7: 0 | AS7: 1 | AT7: 0 | AU7: 0 | AV7: 0 | AW7: 0 | AX7: 0 | AY7: 0 | AZ7: 0 | BA7: 0 | BB7: 0 | BC7: 0 | BD7: 0 | BE7: 1 | BF7: 0 | BG7: 0 | BH7: 0 | BI7: 0 | BJ7: 0 | BK7: 0 | BL7: 0 | BM7: 0 | BN7: 0 | BO7: 0 | BP7: 0 | BQ7: 0 | BR7: 0 | BS7: 0 | BT7: 0 | BU7: 0 | BV7: 0 | BW7: 0 | BX7: 0 | BY7: 22.2 | BZ7: - | CA7: Mon | CB7: 200 | CC7: 0 | CD7: 0 | CE7: 0 | CF7: 2 | CG7: 0 | CH7: 0 | CI7: 0 | CJ7: 0 | CK7: 0 | CL7: 0 | CM7: 0 | CN7: 0 | CO7: 0 | CP7: 0 | CQ7: 0 | CR7: 2 | CS7: 0 | CT7: 0 | CU7: 0 | CV7: 0 | CW7: 0 | CX7: 0 | CY7: 0 | CZ7: 0 | DA7: 0 | DB7: 0 | DC7: 0 | DD7: 0 | DE7: 0 | DF7: 0 | DG7: 0 | DH7: 0 | DI7: 0 | DJ7: 0 | DK7: 0 | DL7: 22.18 | DM7: - | DN7: 0 | DO7: 0 | DP7: 0 | DQ7: 1 | DR7: 0 | DS7: 0 | DT7: 0 | DU7: 0 | DV7: 0 | DW7: 0 | DX7: 0 | DY7: 0 | DZ7: 1 | EA7: 0 | EB7: 0 | EC7: 0 | ED7: 1 | EE7: 0 | EF7: 0 | EG7: 0 | EH7: 0 | EI7: 0 | EJ7: 0 | EK7: 0 | EL7: 0 | EM7: 1 | EN7: 0 | EO7: 0 | EP7: 0 | EQ7: 2 | ER7: 0 | ES7: 0 | ET7: 0 | EU7: 0 | EV7: 0 | EW7: 0 | EX7: 0 | EY7: 0 | EZ7: 2 | FA7: 1 | FB7: 0 | FC7: 1 | FD7: 0 | FE7: 0 | FF7: 0 | FG7: 0 | FH7: 1 | FI7: 0 | FJ7: 2 | FK7: 2 | FL7: 0 | FM7: 0 | FN7: 2 | FO7: 2 | FP7: 0 | FQ7: 3 | FR7: 2 | FS7: 0 | FT7: 0 | FU7: 2 | FV7: 0 | FW7: 1 | FX7: 1
A8: Mon | B8: 300 | C8: 0 | D8: 0 | E8: 1 | F8: 0 | G8: 1 | H8: 0 | I8: 0 | J8: 0 | K8: 0 | L8: 0 | M8: 0 | N8: 0 | O8: 0 | P8: 0 | Q8: 0 | R8: 1 | S8: 0 | T8: 1 | U8: 0 | V8: 0 | W8: 0 | X8: 0 | Y8: 0 | Z8: 0 | AA8: 0 | AB8: 0 | AC8: 0 | AD8: 0 | AE8: 0 | AF8: 0 | AG8: 0 | AH8: 0 | AI8: 0 | AJ8: 0 | AK8: 0 | AL8: 27.44 | AM8: - | AN8: Mon | AO8: 300 | AP8: 0 | AQ8: 0 | AR8: 0 | AS8: 1 | AT8: 1 | AU8: 0 | AV8: 0 | AW8: 0 | AX8: 0 | AY8: 0 | AZ8: 0 | BA8: 0 | BB8: 0 | BC8: 0 | BD8: 0 | BE8: 2 | BF8: 0 | BG8: 0 | BH8: 0 | BI8: 0 | BJ8: 0 | BK8: 0 | BL8: 0 | BM8: 0 | BN8: 0 | BO8: 0 | BP8: 0 | BQ8: 0 | BR8: 0 | BS8: 0 | BT8: 0 | BU8: 0 | BV8: 0 | BW8: 0 | BX8: 0 | BY8: 22.85 | BZ8: - | CA8: Mon | CB8: 300 | CC8: 0 | CD8: 0 | CE8: 1 | CF8: 1 | CG8: 2 | CH8: 0 | CI8: 0 | CJ8: 0 | CK8: 0 | CL8: 0 | CM8: 0 | CN8: 0 | CO8: 0 | CP8: 0 | CQ8: 0 | CR8: 3 | CS8: 0 | CT8: 1 | CU8: 0 | CV8: 0 | CW8: 0 | CX8: 0 | CY8: 0 | CZ8: 0 | DA8: 0 | DB8: 0 | DC8: 0 | DD8: 0 | DE8: 0 | DF8: 0 | DG8: 0 | DH8: 0 | DI8: 0 | DJ8: 0 | DK8: 0 | DL8: 25.14 | DM8: - | DN8: 0 | DO8: 0 | DP8: 1 | DQ8: 0 | DR8: 1 | DS8: 0 | DT8: 0 | DU8: 0 | DV8: 0 | DW8: 0 | DX8: 0 | DY8: 0 | DZ8: 2 | EA8: 0 | EB8: 0 | EC8: 0 | ED8: 1 | EE8: 1 | EF8: 0 | EG8: 0 | EH8: 0 | EI8: 0 | EJ8: 0 | EK8: 0 | EL8: 0 | EM8: 2 | EN8: 0 | EO8: 0 | EP8: 1 | EQ8: 1 | ER8: 2 | ES8: 0 | ET8: 0 | EU8: 0 | EV8: 0 | EW8: 0 | EX8: 0 | EY8: 0 | EZ8: 4 | FA8: 2 | FB8: 1 | FC8: 0 | FD8: 1 | FE8: 1 | FF8: 1 | FG8: 0 | FH8: 2 | FI8: 0 | FJ8: 0 | FK8: 0 | FL8: 1 | FM8: 1 | FN8: 0 | FO8: 4 | FP8: 1 | FQ8: 0 | FR8: 1 | FS8: 2 | FT8: 2 | FU8: 0 | FV8: 1 | FW8: 1 | FX8: 2
A9: Mon | B9: 400 | C9: 0 | D9: 0 | E9: 1 | F9: 1 | G9: 1 | H9: 0 | I9: 0 | J9: 0 | K9: 0 | L9: 0 | M9: 0 | N9: 0 | O9: 0 | P9: 0 | Q9: 1 | R9: 1 | S9: 1 | T9: 0 | U9: 0 | V9: 0 | W9: 0 | X9: 0 | Y9: 0 | Z9: 0 | AA9: 0 | AB9: 0 | AC9: 0 | AD9: 0 | AE9: 0 | AF9: 0 | AG9: 0 | AH9: 0 | AI9: 0 | AJ9: 0 | AK9: 0 | AL9: 22.89 | AM9: - | AN9: Mon | AO9: 400 | AP9: 0 | AQ9: 0 | AR9: 1 | AS9: 2 | AT9: 1 | AU9: 0 | AV9: 0 | AW9: 0 | AX9: 0 | AY9: 0 | AZ9: 0 | BA9: 0 | BB9: 0 | BC9: 0 | BD9: 1 | BE9: 2 | BF9: 1 | BG9: 0 | BH9: 0 | BI9: 0 | BJ9: 0 | BK9: 0 | BL9: 0 | BM9: 0 | BN9: 0 | BO9: 0 | BP9: 0 | BQ9: 0 | BR9: 0 | BS9: 0 | BT9: 0 | BU9: 0 | BV9: 0 | BW9: 0 | BX9: 0 | BY9: 22.1 | BZ9: - | CA9: Mon | CB9: 400 | CC9: 0 | CD9: 0 | CE9: 2 | CF9: 3 | CG9: 2 | CH9: 0 | CI9: 0 | CJ9: 0 | CK9: 0 | CL9: 0 | CM9: 0 | CN9: 0 | CO9: 0 | CP9: 0 | CQ9: 2 | CR9: 3 | CS9: 2 | CT9: 0 | CU9: 0 | CV9: 0 | CW9: 0 | CX9: 0 | CY9: 0 | CZ9: 0 | DA9: 0 | DB9: 0 | DC9: 0 | DD9: 0 | DE9: 0 | DF9: 0 | DG9: 0 | DH9: 0 | DI9: 0 | DJ9: 0 | DK9: 0 | DL9: 22.44 | DM9: - | DN9: 0 | DO9: 0 | DP9: 1 | DQ9: 1 | DR9: 1 | DS9: 0 | DT9: 0 | DU9: 0 | DV9: 0 | DW9: 0 | DX9: 0 | DY9: 0 | DZ9: 3 | EA9: 0 | EB9: 0 | EC9: 1 | ED9: 2 | EE9: 1 | EF9: 0 | EG9: 0 | EH9: 0 | EI9: 0 | EJ9: 0 | EK9: 0 | EL9: 0 | EM9: 4 | EN9: 0 | EO9: 0 | EP9: 2 | EQ9: 3 | ER9: 2 | ES9: 0 | ET9: 0 | EU9: 0 | EV9: 0 | EW9: 0 | EX9: 0 | EY9: 0 | EZ9: 7 | FA9: 3 | FB9: 4 | FC9: 2 | FD9: 3 | FE9: 4 | FF9: 1 | FG9: 1 | FH9: 4 | FI9: 3 | FJ9: 3 | FK9: 0 | FL9: 3 | FM9: 2 | FN9: 1 | FO9: 7 | FP9: 7 | FQ9: 5 | FR9: 3 | FS9: 7 | FT9: 3 | FU9: 2 | FV9: 3 | FW9: 3 | FX9: 6
A10: Mon | B10: 500 | C10: 0 | D10: 0 | E10: 5 | F10: 11 | G10: 0 | H10: 0 | I10: 0 | J10: 0 | K10: 0 | L10: 0 | M10: 0 | N10: 0 | O10: 0 | P10: 0 | Q10: 4 | R10: 7 | S10: 3 | T10: 2 | U10: 0 | V10: 0 | W10: 0 | X10: 0 | Y10: 0 | Z10: 0 | AA10: 0 | AB10: 0 | AC10: 0 | AD10: 0 | AE10: 0 | AF10: 0 | AG10: 0 | AH10: 0 | AI10: 0 | AJ10: 0 | AK10: 0 | AL10: 24.04 | AM10: 28.34 | AN10: Mon | AO10: 500 | AP10: 0 | AQ10: 0 | AR10: 3 | AS10: 1 | AT10: 0 | AU10: 0 | AV10: 0 | AW10: 0 | AX10: 0 | AY10: 0 | AZ10: 0 | BA10: 0 | BB10: 0 | BC10: 1 | BD10: 1 | BE10: 2 | BF10: 0 | BG10: 0 | BH10: 0 | BI10: 0 | BJ10: 0 | BK10: 0 | BL10: 0 | BM10: 0 | BN10: 0 | BO10: 0 | BP10: 0 | BQ10: 0 | BR10: 0 | BS10: 0 | BT10: 0 | BU10: 0 | BV10: 0 | BW10: 0 | BX10: 0 | BY10: 19.55 | BZ10: - | CA10: Mon | CB10: 500 | CC10: 0 | CD10: 0 | CE10: 8 | CF10: 12 | CG10: 0 | CH10: 0 | CI10: 0 | CJ10: 0 | CK10: 0 | CL10: 0 | CM10: 0 | CN10: 0 | CO10: 0 | CP10: 1 | CQ10: 5 | CR10: 9 | CS10: 3 | CT10: 2 | CU10: 0 | CV10: 0 | CW10: 0 | CX10: 0 | CY10: 0 | CZ10: 0 | DA10: 0 | DB10: 0 | DC10: 0 | DD10: 0 | DE10: 0 | DF10: 0 | DG10: 0 | DH10: 0 | DI10: 0 | DJ10: 0 | DK10: 0 | DL10: 23.14 | DM10: 28.12 | DN10: 0 | DO10: 0 | DP10: 5 | DQ10: 11 | DR10: 0 | DS10: 0 | DT10: 0 | DU10: 0 | DV10: 0 | DW10: 0 | DX10: 0 | DY10: 0 | DZ10: 16 | EA10: 0 | EB10: 0 | EC10: 3 | ED10: 1 | EE10: 0 | EF10: 0 | EG10: 0 | EH10: 0 | EI10: 0 | EJ10: 0 | EK10: 0 | EL10: 0 | EM10: 4 | EN10: 0 | EO10: 0 | EP10: 8 | EQ10: 12 | ER10: 0 | ES10: 0 | ET10: 0 | EU10: 0 | EV10: 0 | EW10: 0 | EX10: 0 | EY10: 0 | EZ10: 20 | FA10: 16 | FB10: 15 | FC10: 16 | FD10: 12 | FE10: 13 | FF10: 7 | FG10: 2 | FH10: 4 | FI10: 8 | FJ10: 5 | FK10: 6 | FL10: 5 | FM10: 1 | FN10: 1 | FO10: 20 | FP10: 23 | FQ10: 21 | FR10: 18 | FS10: 18 | FT10: 8 | FU10: 3 | FV10: 14 | FW10: 6 | FX10: 20
A11: Mon | B11: 600 | C11: 0 | D11: 0 | E11: 19 | F11: 18 | G11: 1 | H11: 1 | I11: 0 | J11: 1 | K11: 0 | L11: 0 | M11: 0 | N11: 0 | O11: 0 | P11: 2 | Q11: 8 | R11: 18 | S11: 11 | T11: 1 | U11: 0 | V11: 0 | W11: 0 | X11: 0 | Y11: 0 | Z11: 0 | AA11: 0 | AB11: 0 | AC11: 0 | AD11: 0 | AE11: 0 | AF11: 0 | AG11: 0 | AH11: 0 | AI11: 0 | AJ11: 0 | AK11: 0 | AL11: 22.55 | AM11: 26.97 | AN11: Mon | AO11: 600 | AP11: 0 | AQ11: 0 | AR11: 4 | AS11: 6 | AT11: 0 | AU11: 1 | AV11: 0 | AW11: 0 | AX11: 0 | AY11: 0 | AZ11: 0 | BA11: 0 | BB11: 0 | BC11: 2 | BD11: 3 | BE11: 4 | BF11: 2 | BG11: 0 | BH11: 0 | BI11: 0 | BJ11: 0 | BK11: 0 | BL11: 0 | BM11: 0 | BN11: 0 | BO11: 0 | BP11: 0 | BQ11: 0 | BR11: 0 | BS11: 0 | BT11: 0 | BU11: 0 | BV11: 0 | BW11: 0 | BX11: 0 | BY11: 20.07 | BZ11: 24.04 | CA11: Mon | CB11: 600 | CC11: 0 | CD11: 0 | CE11: 23 | CF11: 24 | CG11: 1 | CH11: 2 | CI11: 0 | CJ11: 1 | CK11: 0 | CL11: 0 | CM11: 0 | CN11: 0 | CO11: 0 | CP11: 4 | CQ11: 11 | CR11: 22 | CS11: 13 | CT11: 1 | CU11: 0 | CV11: 0 | CW11: 0 | CX11: 0 | CY11: 0 | CZ11: 0 | DA11: 0 | DB11: 0 | DC11: 0 | DD11: 0 | DE11: 0 | DF11: 0 | DG11: 0 | DH11: 0 | DI11: 0 | DJ11: 0 | DK11: 0 | DL11: 22.02 | DM11: 26.67 | DN11: 0 | DO11: 0 | DP11: 19 | DQ11: 18 | DR11: 1 | DS11: 1 | DT11: 0 | DU11: 1 | DV11: 0 | DW11: 0 | DX11: 0 | DY11: 0 | DZ11: 40 | EA11: 0 | EB11: 0 | EC11: 4 | ED11: 6 | EE11: 0 | EF11: 1 | EG11: 0 | EH11: 0 | EI11: 0 | EJ11: 0 | EK11: 0 | EL11: 0 | EM11: 11 | EN11: 0 | EO11: 0 | EP11: 23 | EQ11: 24 | ER11: 1 | ES11: 2 | ET11: 0 | EU11: 1 | EV11: 0 | EW11: 0 | EX11: 0 | EY11: 0 | EZ11: 51 | FA11: 40 | FB11: 48 | FC11: 42 | FD11: 52 | FE11: 37 | FF11: 27 | FG11: 8 | FH11: 11 | FI11: 14 | FJ11: 14 | FK11: 19 | FL11: 14 | FM11: 10 | FN11: 6 | FO11: 51 | FP11: 62 | FQ11: 56 | FR11: 71 | FS11: 51 | FT11: 37 | FU11: 14 | FV11: 44 | FW11: 14 | FX11: 58
A12: Mon | B12: 700 | C12: 0 | D12: 0 | E12: 42 | F12: 82 | G12: 4 | H12: 1 | I12: 0 | J12: 0 | K12: 0 | L12: 0 | M12: 1 | N12: 0 | O12: 0 | P12: 5 | Q12: 26 | R12: 62 | S12: 30 | T12: 7 | U12: 0 | V12: 0 | W12: 0 | X12: 0 | Y12: 0 | Z12: 0 | AA12: 0 | AB12: 0 | AC12: 0 | AD12: 0 | AE12: 0 | AF12: 0 | AG12: 0 | AH12: 0 | AI12: 0 | AJ12: 0 | AK12: 0 | AL12: 22.9 | AM12: 27.09 | AN12: Mon | AO12: 700 | AP12: 0 | AQ12: 0 | AR12: 25 | AS12: 28 | AT12: 5 | AU12: 0 | AV12: 1 | AW12: 0 | AX12: 0 | AY12: 0 | AZ12: 1 | BA12: 0 | BB12: 1 | BC12: 5 | BD12: 21 | BE12: 30 | BF12: 2 | BG12: 1 | BH12: 0 | BI12: 0 | BJ12: 0 | BK12: 0 | BL12: 0 | BM12: 0 | BN12: 0 | BO12: 0 | BP12: 0 | BQ12: 0 | BR12: 0 | BS12: 0 | BT12: 0 | BU12: 0 | BV12: 0 | BW12: 0 | BX12: 0 | BY12: 19.79 | BZ12: 23.26 | CA12: Mon | CB12: 700 | CC12: 0 | CD12: 0 | CE12: 67 | CF12: 110 | CG12: 9 | CH12: 1 | CI12: 1 | CJ12: 0 | CK12: 0 | CL12: 0 | CM12: 2 | CN12: 0 | CO12: 1 | CP12: 10 | CQ12: 47 | CR12: 92 | CS12: 32 | CT12: 8 | CU12: 0 | CV12: 0 | CW12: 0 | CX12: 0 | CY12: 0 | CZ12: 0 | DA12: 0 | DB12: 0 | DC12: 0 | DD12: 0 | DE12: 0 | DF12: 0 | DG12: 0 | DH12: 0 | DI12: 0 | DJ12: 0 | DK12: 0 | DL12: 21.92 | DM12: 26.23 | DN12: 0 | DO12: 0 | DP12: 42 | DQ12: 82 | DR12: 4 | DS12: 1 | DT12: 0 | DU12: 0 | DV12: 0 | DW12: 0 | DX12: 1 | DY12: 0 | DZ12: 130 | EA12: 0 | EB12: 0 | EC12: 25 | ED12: 28 | EE12: 5 | EF12: 0 | EG12: 1 | EH12: 0 | EI12: 0 | EJ12: 0 | EK12: 1 | EL12: 0 | EM12: 60 | EN12: 0 | EO12: 0 | EP12: 67 | EQ12: 110 | ER12: 9 | ES12: 1 | ET12: 1 | EU12: 0 | EV12: 0 | EW12: 0 | EX12: 2 | EY12: 0 | EZ12: 190 | FA12: 130 | FB12: 136 | FC12: 120 | FD12: 125 | FE12: 121 | FF12: 51 | FG12: 31 | FH12: 60 | FI12: 85 | FJ12: 72 | FK12: 77 | FL12: 60 | FM12: 44 | FN12: 26 | FO12: 190 | FP12: 221 | FQ12: 192 | FR12: 202 | FS12: 181 | FT12: 95 | FU12: 57 | FV12: 126 | FW12: 71 | FX12: 197
A13: Mon | B13: 800 | C13: 0 | D13: 4 | E13: 56 | F13: 94 | G13: 7 | H13: 0 | I13: 0 | J13: 2 | K13: 0 | L13: 0 | M13: 1 | N13: 0 | O13: 1 | P13: 13 | Q13: 51 | R13: 83 | S13: 16 | T13: 0 | U13: 0 | V13: 0 | W13: 0 | X13: 0 | Y13: 0 | Z13: 0 | AA13: 0 | AB13: 0 | AC13: 0 | AD13: 0 | AE13: 0 | AF13: 0 | AG13: 0 | AH13: 0 | AI13: 0 | AJ13: 0 | AK13: 0 | AL13: 20.4 | AM13: 24.14 | AN13: Mon | AO13: 800 | AP13: 3 | AQ13: 1 | AR13: 41 | AS13: 58 | AT13: 6 | AU13: 0 | AV13: 0 | AW13: 0 | AX13: 0 | AY13: 0 | AZ13: 1 | BA13: 0 | BB13: 2 | BC13: 25 | BD13: 46 | BE13: 35 | BF13: 1 | BG13: 1 | BH13: 0 | BI13: 0 | BJ13: 0 | BK13: 0 | BL13: 0 | BM13: 0 | BN13: 0 | BO13: 0 | BP13: 0 | BQ13: 0 | BR13: 0 | BS13: 0 | BT13: 0 | BU13: 0 | BV13: 0 | BW13: 0 | BX13: 0 | BY13: 18.12 | BZ13: 22.27 | CA13: Mon | CB13: 800 | CC13: 3 | CD13: 5 | CE13: 97 | CF13: 152 | CG13: 13 | CH13: 0 | CI13: 0 | CJ13: 2 | CK13: 0 | CL13: 0 | CM13: 2 | CN13: 0 | CO13: 3 | CP13: 38 | CQ13: 97 | CR13: 118 | CS13: 17 | CT13: 1 | CU13: 0 | CV13: 0 | CW13: 0 | CX13: 0 | CY13: 0 | CZ13: 0 | DA13: 0 | DB13: 0 | DC13: 0 | DD13: 0 | DE13: 0 | DF13: 0 | DG13: 0 | DH13: 0 | DI13: 0 | DJ13: 0 | DK13: 0 | DL13: 19.49 | DM13: 23.47 | DN13: 0 | DO13: 4 | DP13: 56 | DQ13: 94 | DR13: 7 | DS13: 0 | DT13: 0 | DU13: 2 | DV13: 0 | DW13: 0 | DX13: 1 | DY13: 0 | DZ13: 164 | EA13: 3 | EB13: 1 | EC13: 41 | ED13: 58 | EE13: 6 | EF13: 0 | EG13: 0 | EH13: 0 | EI13: 0 | EJ13: 0 | EK13: 1 | EL13: 0 | EM13: 110 | EN13: 3 | EO13: 5 | EP13: 97 | EQ13: 152 | ER13: 13 | ES13: 0 | ET13: 0 | EU13: 2 | EV13: 0 | EW13: 0 | EX13: 2 | EY13: 0 | EZ13: 274 | FA13: 164 | FB13: 176 | FC13: 161 | FD13: 177 | FE13: 145 | FF13: 117 | FG13: 68 | FH13: 110 | FI13: 122 | FJ13: 145 | FK13: 166 | FL13: 119 | FM13: 98 | FN13: 30 | FO13: 274 | FP13: 298 | FQ13: 306 | FR13: 343 | FS13: 264 | FT13: 215 | FU13: 98 | FV13: 165 | FW13: 132 | FX13: 297
A14: Mon | B14: 900 | C14: 0 | D14: 1 | E14: 50 | F14: 94 | G14: 6 | H14: 0 | I14: 0 | J14: 1 | K14: 0 | L14: 0 | M14: 1 | N14: 0 | O14: 4 | P14: 20 | Q14: 67 | R14: 52 | S14: 9 | T14: 1 | U14: 0 | V14: 0 | W14: 0 | X14: 0 | Y14: 0 | Z14: 0 | AA14: 0 | AB14: 0 | AC14: 0 | AD14: 0 | AE14: 0 | AF14: 0 | AG14: 0 | AH14: 0 | AI14: 0 | AJ14: 0 | AK14: 0 | AL14: 18.95 | AM14: 22.27 | AN14: Mon | AO14: 900 | AP14: 1 | AQ14: 0 | AR14: 58 | AS14: 73 | AT14: 10 | AU14: 0 | AV14: 0 | AW14: 0 | AX14: 0 | AY14: 0 | AZ14: 0 | BA14: 0 | BB14: 4 | BC14: 30 | BD14: 65 | BE14: 42 | BF14: 1 | BG14: 0 | BH14: 0 | BI14: 0 | BJ14: 0 | BK14: 0 | BL14: 0 | BM14: 0 | BN14: 0 | BO14: 0 | BP14: 0 | BQ14: 0 | BR14: 0 | BS14: 0 | BT14: 0 | BU14: 0 | BV14: 0 | BW14: 0 | BX14: 0 | BY14: 17.9 | BZ14: 22.14 | CA14: Mon | CB14: 900 | CC14: 1 | CD14: 1 | CE14: 108 | CF14: 167 | CG14: 16 | CH14: 0 | CI14: 0 | CJ14: 1 | CK14: 0 | CL14: 0 | CM14: 1 | CN14: 0 | CO14: 8 | CP14: 50 | CQ14: 132 | CR14: 94 | CS14: 10 | CT14: 1 | CU14: 0 | CV14: 0 | CW14: 0 | CX14: 0 | CY14: 0 | CZ14: 0 | DA14: 0 | DB14: 0 | DC14: 0 | DD14: 0 | DE14: 0 | DF14: 0 | DG14: 0 | DH14: 0 | DI14: 0 | DJ14: 0 | DK14: 0 | DL14: 18.44 | DM14: 22.21 | DN14: 0 | DO14: 1 | DP14: 50 | DQ14: 94 | DR14: 6 | DS14: 0 | DT14: 0 | DU14: 1 | DV14: 0 | DW14: 0 | DX14: 1 | DY14: 0 | DZ14: 153 | EA14: 1 | EB14: 0 | EC14: 58 | ED14: 73 | EE14: 10 | EF14: 0 | EG14: 0 | EH14: 0 | EI14: 0 | EJ14: 0 | EK14: 0 | EL14: 0 | EM14: 142 | EN14: 1 | EO14: 1 | EP14: 108 | EQ14: 167 | ER14: 16 | ES14: 0 | ET14: 0 | EU14: 1 | EV14: 0 | EW14: 0 | EX14: 1 | EY14: 0 | EZ14: 295 | FA14: 153 | FB14: 166 | FC14: 165 | FD14: 162 | FE14: 171 | FF14: 183 | FG14: 97 | FH14: 142 | FI14: 150 | FJ14: 125 | FK14: 139 | FL14: 158 | FM14: 148 | FN14: 76 | FO14: 295 | FP14: 316 | FQ14: 290 | FR14: 301 | FS14: 329 | FT14: 331 | FU14: 173 | FV14: 163 | FW14: 143 | FX14: 306
A15: Mon | B15: 1000 | C15: 1 | D15: 0 | E15: 43 | F15: 74 | G15: 14 | H15: 1 | I15: 0 | J15: 0 | K15: 0 | L15: 0 | M15: 1 | N15: 0 | O15: 0 | P15: 17 | Q15: 60 | R15: 50 | S15: 7 | T15: 0 | U15: 0 | V15: 0 | W15: 0 | X15: 0 | Y15: 0 | Z15: 0 | AA15: 0 | AB15: 0 | AC15: 0 | AD15: 0 | AE15: 0 | AF15: 0 | AG15: 0 | AH15: 0 | AI15: 0 | AJ15: 0 | AK15: 0 | AL15: 19.25 | AM15: 22.72 | AN15: Mon | AO15: 1000 | AP15: 0 | AQ15: 0 | AR15: 47 | AS15: 62 | AT15: 4 | AU15: 3 | AV15: 0 | AW15: 2 | AX15: 0 | AY15: 0 | AZ15: 0 | BA15: 0 | BB15: 2 | BC15: 27 | BD15: 51 | BE15: 34 | BF15: 4 | BG15: 0 | BH15: 0 | BI15: 0 | BJ15: 0 | BK15: 0 | BL15: 0 | BM15: 0 | BN15: 0 | BO15: 0 | BP15: 0 | BQ15: 0 | BR15: 0 | BS15: 0 | BT15: 0 | BU15: 0 | BV15: 0 | BW15: 0 | BX15: 0 | BY15: 17.97 | BZ15: 21.99 | CA15: Mon | CB15: 1000 | CC15: 1 | CD15: 0 | CE15: 90 | CF15: 136 | CG15: 18 | CH15: 4 | CI15: 0 | CJ15: 2 | CK15: 0 | CL15: 0 | CM15: 1 | CN15: 0 | CO15: 2 | CP15: 44 | CQ15: 111 | CR15: 84 | CS15: 11 | CT15: 0 | CU15: 0 | CV15: 0 | CW15: 0 | CX15: 0 | CY15: 0 | CZ15: 0 | DA15: 0 | DB15: 0 | DC15: 0 | DD15: 0 | DE15: 0 | DF15: 0 | DG15: 0 | DH15: 0 | DI15: 0 | DJ15: 0 | DK15: 0 | DL15: 18.65 | DM15: 22.16 | DN15: 1 | DO15: 0 | DP15: 43 | DQ15: 74 | DR15: 14 | DS15: 1 | DT15: 0 | DU15: 0 | DV15: 0 | DW15: 0 | DX15: 1 | DY15: 0 | DZ15: 134 | EA15: 0 | EB15: 0 | EC15: 47 | ED15: 62 | EE15: 4 | EF15: 3 | EG15: 0 | EH15: 2 | EI15: 0 | EJ15: 0 | EK15: 0 | EL15: 0 | EM15: 118 | EN15: 1 | EO15: 0 | EP15: 90 | EQ15: 136 | ER15: 18 | ES15: 4 | ET15: 0 | EU15: 2 | EV15: 0 | EW15: 0 | EX15: 1 | EY15: 0 | EZ15: 252 | FA15: 134 | FB15: 158 | FC15: 164 | FD15: 157 | FE15: 183 | FF15: 211 | FG15: 143 | FH15: 118 | FI15: 127 | FJ15: 164 | FK15: 136 | FL15: 138 | FM15: 244 | FN15: 108 | FO15: 252 | FP15: 285 | FQ15: 328 | FR15: 293 | FS15: 321 | FT15: 455 | FU15: 251 | FV15: 159 | FW15: 137 | FX15: 296
A16: Mon | B16: 1100 | C16: 1 | D16: 1 | E16: 69 | F16: 102 | G16: 3 | H16: 1 | I16: 0 | J16: 0 | K16: 0 | L16: 0 | M16: 1 | N16: 1 | O16: 5 | P16: 43 | Q16: 80 | R16: 43 | S16: 8 | T16: 0 | U16: 0 | V16: 0 | W16: 0 | X16: 0 | Y16: 0 | Z16: 0 | AA16: 0 | AB16: 0 | AC16: 0 | AD16: 0 | AE16: 0 | AF16: 0 | AG16: 0 | AH16: 0 | AI16: 0 | AJ16: 0 | AK16: 0 | AL16: 17.82 | AM16: 21.97 | AN16: Mon | AO16: 1100 | AP16: 0 | AQ16: 0 | AR16: 63 | AS16: 60 | AT16: 5 | AU16: 0 | AV16: 0 | AW16: 0 | AX16: 0 | AY16: 0 | AZ16: 1 | BA16: 1 | BB16: 1 | BC16: 38 | BD16: 63 | BE16: 25 | BF16: 3 | BG16: 0 | BH16: 0 | BI16: 0 | BJ16: 0 | BK16: 0 | BL16: 0 | BM16: 0 | BN16: 0 | BO16: 0 | BP16: 0 | BQ16: 0 | BR16: 0 | BS16: 0 | BT16: 0 | BU16: 0 | BV16: 0 | BW16: 0 | BX16: 0 | BY16: 17.06 | BZ16: 21.08 | CA16: Mon | CB16: 1100 | CC16: 1 | CD16: 1 | CE16: 132 | CF16: 162 | CG16: 8 | CH16: 1 | CI16: 0 | CJ16: 0 | CK16: 0 | CL16: 0 | CM16: 2 | CN16: 2 | CO16: 6 | CP16: 81 | CQ16: 143 | CR16: 68 | CS16: 11 | CT16: 0 | CU16: 0 | CV16: 0 | CW16: 0 | CX16: 0 | CY16: 0 | CZ16: 0 | DA16: 0 | DB16: 0 | DC16: 0 | DD16: 0 | DE16: 0 | DF16: 0 | DG16: 0 | DH16: 0 | DI16: 0 | DJ16: 0 | DK16: 0 | DL16: 17.5 | DM16: 21.65 | DN16: 1 | DO16: 1 | DP16: 69 | DQ16: 102 | DR16: 3 | DS16: 1 | DT16: 0 | DU16: 0 | DV16: 0 | DW16: 0 | DX16: 1 | DY16: 1 | DZ16: 179 | EA16: 0 | EB16: 0 | EC16: 63 | ED16: 60 | EE16: 5 | EF16: 0 | EG16: 0 | EH16: 0 | EI16: 0 | EJ16: 0 | EK16: 1 | EL16: 1 | EM16: 130 | EN16: 1 | EO16: 1 | EP16: 132 | EQ16: 162 | ER16: 8 | ES16: 1 | ET16: 0 | EU16: 0 | EV16: 0 | EW16: 0 | EX16: 2 | EY16: 2 | EZ16: 309 | FA16: 179 | FB16: 153 | FC16: 153 | FD16: 153 | FE16: 172 | FF16: 204 | FG16: 161 | FH16: 130 | FI16: 150 | FJ16: 145 | FK16: 152 | FL16: 162 | FM16: 186 | FN16: 102 | FO16: 309 | FP16: 303 | FQ16: 298 | FR16: 305 | FS16: 334 | FT16: 390 | FU16: 263 | FV16: 162 | FW16: 148 | FX16: 310
A17: Mon | B17: 1200 | C17: 1 | D17: 0 | E17: 72 | F17: 97 | G17: 6 | H17: 0 | I17: 0 | J17: 0 | K17: 0 | L17: 1 | M17: 2 | N17: 0 | O17: 1 | P17: 29 | Q17: 93 | R17: 46 | S17: 10 | T17: 0 | U17: 0 | V17: 0 | W17: 0 | X17: 0 | Y17: 0 | Z17: 0 | AA17: 0 | AB17: 0 | AC17: 0 | AD17: 0 | AE17: 0 | AF17: 0 | AG17: 0 | AH17: 0 | AI17: 0 | AJ17: 0 | AK17: 0 | AL17: 18.49 | AM17: 22.21 | AN17: Mon | AO17: 1200 | AP17: 0 | AQ17: 0 | AR17: 71 | AS17: 69 | AT17: 7 | AU17: 0 | AV17: 0 | AW17: 0 | AX17: 0 | AY17: 0 | AZ17: 0 | BA17: 0 | BB17: 5 | BC17: 29 | BD17: 74 | BE17: 38 | BF17: 1 | BG17: 0 | BH17: 0 | BI17: 0 | BJ17: 0 | BK17: 0 | BL17: 0 | BM17: 0 | BN17: 0 | BO17: 0 | BP17: 0 | BQ17: 0 | BR17: 0 | BS17: 0 | BT17: 0 | BU17: 0 | BV17: 0 | BW17: 0 | BX17: 0 | BY17: 17.44 | BZ17: 21.09 | CA17: Mon | CB17: 1200 | CC17: 1 | CD17: 0 | CE17: 143 | CF17: 166 | CG17: 13 | CH17: 0 | CI17: 0 | CJ17: 0 | CK17: 0 | CL17: 1 | CM17: 2 | CN17: 0 | CO17: 6 | CP17: 58 | CQ17: 167 | CR17: 84 | CS17: 11 | CT17: 0 | CU17: 0 | CV17: 0 | CW17: 0 | CX17: 0 | CY17: 0 | CZ17: 0 | DA17: 0 | DB17: 0 | DC17: 0 | DD17: 0 | DE17: 0 | DF17: 0 | DG17: 0 | DH17: 0 | DI17: 0 | DJ17: 0 | DK17: 0 | DL17: 18.02 | DM17: 21.72 | DN17: 1 | DO17: 0 | DP17: 72 | DQ17: 97 | DR17: 6 | DS17: 0 | DT17: 0 | DU17: 0 | DV17: 0 | DW17: 1 | DX17: 2 | DY17: 0 | DZ17: 179 | EA17: 0 | EB17: 0 | EC17: 71 | ED17: 69 | EE17: 7 | EF17: 0 | EG17: 0 | EH17: 0 | EI17: 0 | EJ17: 0 | EK17: 0 | EL17: 0 | EM17: 147 | EN17: 1 | EO17: 0 | EP17: 143 | EQ17: 166 | ER17: 13 | ES17: 0 | ET17: 0 | EU17: 0 | EV17: 0 | EW17: 1 | EX17: 2 | EY17: 0 | EZ17: 326 | FA17: 179 | FB17: 130 | FC17: 183 | FD17: 173 | FE17: 162 | FF17: 194 | FG17: 142 | FH17: 147 | FI17: 150 | FJ17: 146 | FK17: 147 | FL17: 170 | FM17: 158 | FN17: 118 | FO17: 326 | FP17: 280 | FQ17: 329 | FR17: 320 | FS17: 332 | FT17: 352 | FU17: 260 | FV17: 165 | FW17: 152 | FX17: 317
A18: Mon | B18: 1300 | C18: 0 | D18: 0 | E18: 56 | F18: 85 | G18: 6 | H18: 0 | I18: 0 | J18: 0 | K18: 0 | L18: 0 | M18: 1 | N18: 0 | O18: 0 | P18: 13 | Q18: 63 | R18: 65 | S18: 7 | T18: 0 | U18: 0 | V18: 0 | W18: 0 | X18: 0 | Y18: 0 | Z18: 0 | AA18: 0 | AB18: 0 | AC18: 0 | AD18: 0 | AE18: 0 | AF18: 0 | AG18: 0 | AH18: 0 | AI18: 0 | AJ18: 0 | AK18: 0 | AL18: 19.42 | AM18: 22.4 | AN18: Mon | AO18: 1300 | AP18: 1 | AQ18: 0 | AR18: 64 | AS18: 50 | AT18: 5 | AU18: 0 | AV18: 0 | AW18: 0 | AX18: 0 | AY18: 0 | AZ18: 0 | BA18: 0 | BB18: 2 | BC18: 28 | BD18: 53 | BE18: 32 | BF18: 5 | BG18: 0 | BH18: 0 | BI18: 0 | BJ18: 0 | BK18: 0 | BL18: 0 | BM18: 0 | BN18: 0 | BO18: 0 | BP18: 0 | BQ18: 0 | BR18: 0 | BS18: 0 | BT18: 0 | BU18: 0 | BV18: 0 | BW18: 0 | BX18: 0 | BY18: 17.79 | BZ18: 21.73 | CA18: Mon | CB18: 1300 | CC18: 1 | CD18: 0 | CE18: 120 | CF18: 135 | CG18: 11 | CH18: 0 | CI18: 0 | CJ18: 0 | CK18: 0 | CL18: 0 | CM18: 1 | CN18: 0 | CO18: 2 | CP18: 41 | CQ18: 116 | CR18: 97 | CS18: 12 | CT18: 0 | CU18: 0 | CV18: 0 | CW18: 0 | CX18: 0 | CY18: 0 | CZ18: 0 | DA18: 0 | DB18: 0 | DC18: 0 | DD18: 0 | DE18: 0 | DF18: 0 | DG18: 0 | DH18: 0 | DI18: 0 | DJ18: 0 | DK18: 0 | DL18: 18.69 | DM18: 22.18 | DN18: 0 | DO18: 0 | DP18: 56 | DQ18: 85 | DR18: 6 | DS18: 0 | DT18: 0 | DU18: 0 | DV18: 0 | DW18: 0 | DX18: 1 | DY18: 0 | DZ18: 148 | EA18: 1 | EB18: 0 | EC18: 64 | ED18: 50 | EE18: 5 | EF18: 0 | EG18: 0 | EH18: 0 | EI18: 0 | EJ18: 0 | EK18: 0 | EL18: 0 | EM18: 120 | EN18: 1 | EO18: 0 | EP18: 120 | EQ18: 135 | ER18: 11 | ES18: 0 | ET18: 0 | EU18: 0 | EV18: 0 | EW18: 0 | EX18: 1 | EY18: 0 | EZ18: 268 | FA18: 148 | FB18: 145 | FC18: 150 | FD18: 151 | FE18: 175 | FF18: 153 | FG18: 118 | FH18: 120 | FI18: 135 | FJ18: 132 | FK18: 115 | FL18: 146 | FM18: 137 | FN18: 99 | FO18: 268 | FP18: 280 | FQ18: 282 | FR18: 266 | FS18: 321 | FT18: 290 | FU18: 217 | FV18: 154 | FW18: 130 | FX18: 283
A19: Mon | B19: 1400 | C19: 0 | D19: 1 | E19: 44 | F19: 94 | G19: 5 | H19: 0 | I19: 0 | J19: 2 | K19: 0 | L19: 0 | M19: 1 | N19: 1 | O19: 0 | P19: 26 | Q19: 67 | R19: 43 | S19: 12 | T19: 0 | U19: 0 | V19: 0 | W19: 0 | X19: 0 | Y19: 0 | Z19: 0 | AA19: 0 | AB19: 0 | AC19: 0 | AD19: 0 | AE19: 0 | AF19: 0 | AG19: 0 | AH19: 0 | AI19: 0 | AJ19: 0 | AK19: 0 | AL19: 18.81 | AM19: 22.8 | AN19: Mon | AO19: 1400 | AP19: 0 | AQ19: 2 | AR19: 67 | AS19: 73 | AT19: 2 | AU19: 1 | AV19: 0 | AW19: 1 | AX19: 0 | AY19: 0 | AZ19: 0 | BA19: 0 | BB19: 6 | BC19: 27 | BD19: 65 | BE19: 42 | BF19: 6 | BG19: 0 | BH19: 0 | BI19: 0 | BJ19: 0 | BK19: 0 | BL19: 0 | BM19: 0 | BN19: 0 | BO19: 0 | BP19: 0 | BQ19: 0 | BR19: 0 | BS19: 0 | BT19: 0 | BU19: 0 | BV19: 0 | BW19: 0 | BX19: 0 | BY19: 17.92 | BZ19: 21.95 | CA19: Mon | CB19: 1400 | CC19: 0 | CD19: 3 | CE19: 111 | CF19: 167 | CG19: 7 | CH19: 1 | CI19: 0 | CJ19: 3 | CK19: 0 | CL19: 0 | CM19: 1 | CN19: 1 | CO19: 6 | CP19: 53 | CQ19: 132 | CR19: 85 | CS19: 18 | CT19: 0 | CU19: 0 | CV19: 0 | CW19: 0 | CX19: 0 | CY19: 0 | CZ19: 0 | DA19: 0 | DB19: 0 | DC19: 0 | DD19: 0 | DE19: 0 | DF19: 0 | DG19: 0 | DH19: 0 | DI19: 0 | DJ19: 0 | DK19: 0 | DL19: 18.37 | DM19: 22.54 | DN19: 0 | DO19: 1 | DP19: 44 | DQ19: 94 | DR19: 5 | DS19: 0 | DT19: 0 | DU19: 2 | DV19: 0 | DW19: 0 | DX19: 1 | DY19: 1 | DZ19: 148 | EA19: 0 | EB19: 2 | EC19: 67 | ED19: 73 | EE19: 2 | EF19: 1 | EG19: 0 | EH19: 1 | EI19: 0 | EJ19: 0 | EK19: 0 | EL19: 0 | EM19: 146 | EN19: 0 | EO19: 3 | EP19: 111 | EQ19: 167 | ER19: 7 | ES19: 1 | ET19: 0 | EU19: 3 | EV19: 0 | EW19: 0 | EX19: 1 | EY19: 1 | EZ19: 294 | FA19: 148 | FB19: 147 | FC19: 154 | FD19: 140 | FE19: 151 | FF19: 158 | FG19: 107 | FH19: 146 | FI19: 126 | FJ19: 133 | FK19: 107 | FL19: 176 | FM19: 151 | FN19: 98 | FO19: 294 | FP19: 273 | FQ19: 287 | FR19: 247 | FS19: 327 | FT19: 309 | FU19: 205 | FV19: 148 | FW19: 138 | FX19: 286
A20: Mon | B20: 1500 | C20: 0 | D20: 0 | E20: 55 | F20: 110 | G20: 6 | H20: 1 | I20: 0 | J20: 1 | K20: 0 | L20: 0 | M20: 1 | N20: 0 | O20: 0 | P20: 20 | Q20: 90 | R20: 57 | S20: 7 | T20: 0 | U20: 0 | V20: 0 | W20: 0 | X20: 0 | Y20: 0 | Z20: 0 | AA20: 0 | AB20: 0 | AC20: 0 | AD20: 0 | AE20: 0 | AF20: 0 | AG20: 0 | AH20: 0 | AI20: 0 | AJ20: 0 | AK20: 0 | AL20: 18.97 | AM20: 22.78 | AN20: Mon | AO20: 1500 | AP20: 1 | AQ20: 0 | AR20: 70 | AS20: 76 | AT20: 3 | AU20: 0 | AV20: 0 | AW20: 1 | AX20: 0 | AY20: 0 | AZ20: 0 | BA20: 0 | BB20: 2 | BC20: 26 | BD20: 78 | BE20: 42 | BF20: 3 | BG20: 0 | BH20: 0 | BI20: 0 | BJ20: 0 | BK20: 0 | BL20: 0 | BM20: 0 | BN20: 0 | BO20: 0 | BP20: 0 | BQ20: 0 | BR20: 0 | BS20: 0 | BT20: 0 | BU20: 0 | BV20: 0 | BW20: 0 | BX20: 0 | BY20: 18.29 | BZ20: 21.66 | CA20: Mon | CB20: 1500 | CC20: 1 | CD20: 0 | CE20: 125 | CF20: 186 | CG20: 9 | CH20: 1 | CI20: 0 | CJ20: 2 | CK20: 0 | CL20: 0 | CM20: 1 | CN20: 0 | CO20: 2 | CP20: 46 | CQ20: 168 | CR20: 99 | CS20: 10 | CT20: 0 | CU20: 0 | CV20: 0 | CW20: 0 | CX20: 0 | CY20: 0 | CZ20: 0 | DA20: 0 | DB20: 0 | DC20: 0 | DD20: 0 | DE20: 0 | DF20: 0 | DG20: 0 | DH20: 0 | DI20: 0 | DJ20: 0 | DK20: 0 | DL20: 18.65 | DM20: 22.3 | DN20: 0 | DO20: 0 | DP20: 55 | DQ20: 110 | DR20: 6 | DS20: 1 | DT20: 0 | DU20: 1 | DV20: 0 | DW20: 0 | DX20: 1 | DY20: 0 | DZ20: 174 | EA20: 1 | EB20: 0 | EC20: 70 | ED20: 76 | EE20: 3 | EF20: 0 | EG20: 0 | EH20: 1 | EI20: 0 | EJ20: 0 | EK20: 0 | EL20: 0 | EM20: 151 | EN20: 1 | EO20: 0 | EP20: 125 | EQ20: 186 | ER20: 9 | ES20: 1 | ET20: 0 | EU20: 2 | EV20: 0 | EW20: 0 | EX20: 1 | EY20: 0 | EZ20: 325 | FA20: 174 | FB20: 196 | FC20: 165 | FD20: 148 | FE20: 193 | FF20: 106 | FG20: 101 | FH20: 151 | FI20: 201 | FJ20: 162 | FK20: 146 | FL20: 213 | FM20: 123 | FN20: 110 | FO20: 325 | FP20: 397 | FQ20: 327 | FR20: 294 | FS20: 406 | FT20: 229 | FU20: 211 | FV20: 175 | FW20: 175 | FX20: 350
A21: Mon | B21: 1600 | C21: 1 | D21: 0 | E21: 62 | F21: 91 | G21: 5 | H21: 0 | I21: 0 | J21: 1 | K21: 0 | L21: 0 | M21: 3 | N21: 0 | O21: 2 | P21: 18 | Q21: 79 | R21: 57 | S21: 7 | T21: 0 | U21: 0 | V21: 0 | W21: 0 | X21: 0 | Y21: 0 | Z21: 0 | AA21: 0 | AB21: 0 | AC21: 0 | AD21: 0 | AE21: 0 | AF21: 0 | AG21: 0 | AH21: 0 | AI21: 0 | AJ21: 0 | AK21: 0 | AL21: 19.2 | AM21: 22.46 | AN21: Mon | AO21: 1600 | AP21: 1 | AQ21: 1 | AR21: 78 | AS21: 94 | AT21: 2 | AU21: 0 | AV21: 0 | AW21: 0 | AX21: 0 | AY21: 0 | AZ21: 1 | BA21: 0 | BB21: 2 | BC21: 45 | BD21: 77 | BE21: 44 | BF21: 9 | BG21: 0 | BH21: 0 | BI21: 0 | BJ21: 0 | BK21: 0 | BL21: 0 | BM21: 0 | BN21: 0 | BO21: 0 | BP21: 0 | BQ21: 0 | BR21: 0 | BS21: 0 | BT21: 0 | BU21: 0 | BV21: 0 | BW21: 0 | BX21: 0 | BY21: 17.77 | BZ21: 21.98 | CA21: Mon | CB21: 1600 | CC21: 2 | CD21: 1 | CE21: 140 | CF21: 185 | CG21: 7 | CH21: 0 | CI21: 0 | CJ21: 1 | CK21: 0 | CL21: 0 | CM21: 4 | CN21: 0 | CO21: 4 | CP21: 63 | CQ21: 156 | CR21: 101 | CS21: 16 | CT21: 0 | CU21: 0 | CV21: 0 | CW21: 0 | CX21: 0 | CY21: 0 | CZ21: 0 | DA21: 0 | DB21: 0 | DC21: 0 | DD21: 0 | DE21: 0 | DF21: 0 | DG21: 0 | DH21: 0 | DI21: 0 | DJ21: 0 | DK21: 0 | DL21: 18.46 | DM21: 22.39 | DN21: 1 | DO21: 0 | DP21: 62 | DQ21: 91 | DR21: 5 | DS21: 0 | DT21: 0 | DU21: 1 | DV21: 0 | DW21: 0 | DX21: 3 | DY21: 0 | DZ21: 163 | EA21: 1 | EB21: 1 | EC21: 78 | ED21: 94 | EE21: 2 | EF21: 0 | EG21: 0 | EH21: 0 | EI21: 0 | EJ21: 0 | EK21: 1 | EL21: 0 | EM21: 177 | EN21: 2 | EO21: 1 | EP21: 140 | EQ21: 185 | ER21: 7 | ES21: 0 | ET21: 0 | EU21: 1 | EV21: 0 | EW21: 0 | EX21: 4 | EY21: 0 | EZ21: 340 | FA21: 163 | FB21: 177 | FC21: 190 | FD21: 149 | FE21: 179 | FF21: 123 | FG21: 91 | FH21: 177 | FI21: 206 | FJ21: 210 | FK21: 193 | FL21: 197 | FM21: 141 | FN21: 115 | FO21: 340 | FP21: 383 | FQ21: 400 | FR21: 342 | FS21: 376 | FT21: 264 | FU21: 206 | FV21: 172 | FW21: 197 | FX21: 368
A22: Mon | B22: 1700 | C22: 0 | D22: 0 | E22: 43 | F22: 74 | G22: 1 | H22: 0 | I22: 0 | J22: 1 | K22: 0 | L22: 0 | M22: 0 | N22: 0 | O22: 1 | P22: 7 | Q22: 56 | R22: 41 | S22: 10 | T22: 4 | U22: 0 | V22: 0 | W22: 0 | X22: 0 | Y22: 0 | Z22: 0 | AA22: 0 | AB22: 0 | AC22: 0 | AD22: 0 | AE22: 0 | AF22: 0 | AG22: 0 | AH22: 0 | AI22: 0 | AJ22: 0 | AK22: 0 | AL22: 20.37 | AM22: 24.26 | AN22: Mon | AO22: 1700 | AP22: 0 | AQ22: 2 | AR22: 86 | AS22: 63 | AT22: 1 | AU22: 0 | AV22: 0 | AW22: 1 | AX22: 0 | AY22: 0 | AZ22: 0 | BA22: 1 | BB22: 2 | BC22: 9 | BD22: 68 | BE22: 67 | BF22: 8 | BG22: 0 | BH22: 0 | BI22: 0 | BJ22: 0 | BK22: 0 | BL22: 0 | BM22: 0 | BN22: 0 | BO22: 0 | BP22: 0 | BQ22: 0 | BR22: 0 | BS22: 0 | BT22: 0 | BU22: 0 | BV22: 0 | BW22: 0 | BX22: 0 | BY22: 19.58 | BZ22: 22.98 | CA22: Mon | CB22: 1700 | CC22: 0 | CD22: 2 | CE22: 129 | CF22: 137 | CG22: 2 | CH22: 0 | CI22: 0 | CJ22: 2 | CK22: 0 | CL22: 0 | CM22: 0 | CN22: 1 | CO22: 3 | CP22: 16 | CQ22: 124 | CR22: 108 | CS22: 18 | CT22: 4 | CU22: 0 | CV22: 0 | CW22: 0 | CX22: 0 | CY22: 0 | CZ22: 0 | DA22: 0 | DB22: 0 | DC22: 0 | DD22: 0 | DE22: 0 | DF22: 0 | DG22: 0 | DH22: 0 | DI22: 0 | DJ22: 0 | DK22: 0 | DL22: 19.93 | DM22: 23.59 | DN22: 0 | DO22: 0 | DP22: 43 | DQ22: 74 | DR22: 1 | DS22: 0 | DT22: 0 | DU22: 1 | DV22: 0 | DW22: 0 | DX22: 0 | DY22: 0 | DZ22: 119 | EA22: 0 | EB22: 2 | EC22: 86 | ED22: 63 | EE22: 1 | EF22: 0 | EG22: 0 | EH22: 1 | EI22: 0 | EJ22: 0 | EK22: 0 | EL22: 1 | EM22: 154 | EN22: 0 | EO22: 2 | EP22: 129 | EQ22: 137 | ER22: 2 | ES22: 0 | ET22: 0 | EU22: 2 | EV22: 0 | EW22: 0 | EX22: 0 | EY22: 1 | EZ22: 273 | FA22: 119 | FB22: 154 | FC22: 142 | FD22: 153 | FE22: 166 | FF22: 121 | FG22: 82 | FH22: 154 | FI22: 179 | FJ22: 172 | FK22: 175 | FL22: 207 | FM22: 116 | FN22: 117 | FO22: 273 | FP22: 333 | FQ22: 314 | FR22: 328 | FS22: 373 | FT22: 237 | FU22: 199 | FV22: 147 | FW22: 177 | FX22: 324
A23: Mon | B23: 1800 | C23: 0 | D23: 0 | E23: 40 | F23: 62 | G23: 3 | H23: 0 | I23: 0 | J23: 1 | K23: 0 | L23: 0 | M23: 2 | N23: 0 | O23: 0 | P23: 8 | Q23: 22 | R23: 57 | S23: 21 | T23: 0 | U23: 0 | V23: 0 | W23: 0 | X23: 0 | Y23: 0 | Z23: 0 | AA23: 0 | AB23: 0 | AC23: 0 | AD23: 0 | AE23: 0 | AF23: 0 | AG23: 0 | AH23: 0 | AI23: 0 | AJ23: 0 | AK23: 0 | AL23: 21.65 | AM23: 25.73 | AN23: Mon | AO23: 1800 | AP23: 0 | AQ23: 2 | AR23: 59 | AS23: 52 | AT23: 0 | AU23: 0 | AV23: 0 | AW23: 0 | AX23: 0 | AY23: 0 | AZ23: 0 | BA23: 1 | BB23: 3 | BC23: 20 | BD23: 40 | BE23: 44 | BF23: 7 | BG23: 0 | BH23: 0 | BI23: 0 | BJ23: 0 | BK23: 0 | BL23: 0 | BM23: 0 | BN23: 0 | BO23: 0 | BP23: 0 | BQ23: 0 | BR23: 0 | BS23: 0 | BT23: 0 | BU23: 0 | BV23: 0 | BW23: 0 | BX23: 0 | BY23: 19.01 | BZ23: 22.92 | CA23: Mon | CB23: 1800 | CC23: 0 | CD23: 2 | CE23: 99 | CF23: 114 | CG23: 3 | CH23: 0 | CI23: 0 | CJ23: 1 | CK23: 0 | CL23: 0 | CM23: 2 | CN23: 1 | CO23: 3 | CP23: 28 | CQ23: 62 | CR23: 101 | CS23: 28 | CT23: 0 | CU23: 0 | CV23: 0 | CW23: 0 | CX23: 0 | CY23: 0 | CZ23: 0 | DA23: 0 | DB23: 0 | DC23: 0 | DD23: 0 | DE23: 0 | DF23: 0 | DG23: 0 | DH23: 0 | DI23: 0 | DJ23: 0 | DK23: 0 | DL23: 20.3 | DM23: 24.53 | DN23: 0 | DO23: 0 | DP23: 40 | DQ23: 62 | DR23: 3 | DS23: 0 | DT23: 0 | DU23: 1 | DV23: 0 | DW23: 0 | DX23: 2 | DY23: 0 | DZ23: 108 | EA23: 0 | EB23: 2 | EC23: 59 | ED23: 52 | EE23: 0 | EF23: 0 | EG23: 0 | EH23: 0 | EI23: 0 | EJ23: 0 | EK23: 0 | EL23: 1 | EM23: 114 | EN23: 0 | EO23: 2 | EP23: 99 | EQ23: 114 | ER23: 3 | ES23: 0 | ET23: 0 | EU23: 1 | EV23: 0 | EW23: 0 | EX23: 2 | EY23: 1 | EZ23: 222 | FA23: 108 | FB23: 108 | FC23: 126 | FD23: 108 | FE23: 147 | FF23: 73 | FG23: 112 | FH23: 114 | FI23: 105 | FJ23: 136 | FK23: 142 | FL23: 136 | FM23: 93 | FN23: 96 | FO23: 222 | FP23: 213 | FQ23: 262 | FR23: 250 | FS23: 283 | FT23: 166 | FU23: 208 | FV23: 119 | FW23: 127 | FX23: 246
A24: Mon | B24: 1900 | C24: 0 | D24: 1 | E24: 22 | F24: 50 | G24: 1 | H24: 0 | I24: 0 | J24: 0 | K24: 0 | L24: 0 | M24: 0 | N24: 0 | O24: 0 | P24: 4 | Q24: 17 | R24: 38 | S24: 14 | T24: 1 | U24: 0 | V24: 0 | W24: 0 | X24: 0 | Y24: 0 | Z24: 0 | AA24: 0 | AB24: 0 | AC24: 0 | AD24: 0 | AE24: 0 | AF24: 0 | AG24: 0 | AH24: 0 | AI24: 0 | AJ24: 0 | AK24: 0 | AL24: 22.01 | AM24: 25.98 | AN24: Mon | AO24: 1900 | AP24: 0 | AQ24: 0 | AR24: 35 | AS24: 36 | AT24: 2 | AU24: 0 | AV24: 0 | AW24: 0 | AX24: 0 | AY24: 0 | AZ24: 0 | BA24: 0 | BB24: 1 | BC24: 11 | BD24: 15 | BE24: 42 | BF24: 4 | BG24: 0 | BH24: 0 | BI24: 0 | BJ24: 0 | BK24: 0 | BL24: 0 | BM24: 0 | BN24: 0 | BO24: 0 | BP24: 0 | BQ24: 0 | BR24: 0 | BS24: 0 | BT24: 0 | BU24: 0 | BV24: 0 | BW24: 0 | BX24: 0 | BY24: 19.99 | BZ24: 23.64 | CA24: Mon | CB24: 1900 | CC24: 0 | CD24: 1 | CE24: 57 | CF24: 86 | CG24: 3 | CH24: 0 | CI24: 0 | CJ24: 0 | CK24: 0 | CL24: 0 | CM24: 0 | CN24: 0 | CO24: 1 | CP24: 15 | CQ24: 32 | CR24: 80 | CS24: 18 | CT24: 1 | CU24: 0 | CV24: 0 | CW24: 0 | CX24: 0 | CY24: 0 | CZ24: 0 | DA24: 0 | DB24: 0 | DC24: 0 | DD24: 0 | DE24: 0 | DF24: 0 | DG24: 0 | DH24: 0 | DI24: 0 | DJ24: 0 | DK24: 0 | DL24: 21.01 | DM24: 24.83 | DN24: 0 | DO24: 1 | DP24: 22 | DQ24: 50 | DR24: 1 | DS24: 0 | DT24: 0 | DU24: 0 | DV24: 0 | DW24: 0 | DX24: 0 | DY24: 0 | DZ24: 74 | EA24: 0 | EB24: 0 | EC24: 35 | ED24: 36 | EE24: 2 | EF24: 0 | EG24: 0 | EH24: 0 | EI24: 0 | EJ24: 0 | EK24: 0 | EL24: 0 | EM24: 73 | EN24: 0 | EO24: 1 | EP24: 57 | EQ24: 86 | ER24: 3 | ES24: 0 | ET24: 0 | EU24: 0 | EV24: 0 | EW24: 0 | EX24: 0 | EY24: 0 | EZ24: 147 | FA24: 74 | FB24: 66 | FC24: 89 | FD24: 86 | FE24: 96 | FF24: 89 | FG24: 76 | FH24: 73 | FI24: 93 | FJ24: 98 | FK24: 99 | FL24: 77 | FM24: 86 | FN24: 87 | FO24: 147 | FP24: 159 | FQ24: 187 | FR24: 185 | FS24: 173 | FT24: 175 | FU24: 163 | FV24: 82 | FW24: 88 | FX24: 170
A25: Mon | B25: 2000 | C25: 1 | D25: 1 | E25: 13 | F25: 35 | G25: 2 | H25: 0 | I25: 0 | J25: 0 | K25: 0 | L25: 0 | M25: 0 | N25: 0 | O25: 0 | P25: 4 | Q25: 13 | R25: 24 | S25: 10 | T25: 1 | U25: 0 | V25: 0 | W25: 0 | X25: 0 | Y25: 0 | Z25: 0 | AA25: 0 | AB25: 0 | AC25: 0 | AD25: 0 | AE25: 0 | AF25: 0 | AG25: 0 | AH25: 0 | AI25: 0 | AJ25: 0 | AK25: 0 | AL25: 21.72 | AM25: 26.38 | AN25: Mon | AO25: 2000 | AP25: 0 | AQ25: 1 | AR25: 35 | AS25: 40 | AT25: 2 | AU25: 0 | AV25: 0 | AW25: 0 | AX25: 0 | AY25: 0 | AZ25: 0 | BA25: 0 | BB25: 0 | BC25: 2 | BD25: 31 | BE25: 37 | BF25: 8 | BG25: 0 | BH25: 0 | BI25: 0 | BJ25: 0 | BK25: 0 | BL25: 0 | BM25: 0 | BN25: 0 | BO25: 0 | BP25: 0 | BQ25: 0 | BR25: 0 | BS25: 0 | BT25: 0 | BU25: 0 | BV25: 0 | BW25: 0 | BX25: 0 | BY25: 20.84 | BZ25: 24.63 | CA25: Mon | CB25: 2000 | CC25: 1 | CD25: 2 | CE25: 48 | CF25: 75 | CG25: 4 | CH25: 0 | CI25: 0 | CJ25: 0 | CK25: 0 | CL25: 0 | CM25: 0 | CN25: 0 | CO25: 0 | CP25: 6 | CQ25: 44 | CR25: 61 | CS25: 18 | CT25: 1 | CU25: 0 | CV25: 0 | CW25: 0 | CX25: 0 | CY25: 0 | CZ25: 0 | DA25: 0 | DB25: 0 | DC25: 0 | DD25: 0 | DE25: 0 | DF25: 0 | DG25: 0 | DH25: 0 | DI25: 0 | DJ25: 0 | DK25: 0 | DL25: 21.19 | DM25: 24.99 | DN25: 1 | DO25: 1 | DP25: 13 | DQ25: 35 | DR25: 2 | DS25: 0 | DT25: 0 | DU25: 0 | DV25: 0 | DW25: 0 | DX25: 0 | DY25: 0 | DZ25: 52 | EA25: 0 | EB25: 1 | EC25: 35 | ED25: 40 | EE25: 2 | EF25: 0 | EG25: 0 | EH25: 0 | EI25: 0 | EJ25: 0 | EK25: 0 | EL25: 0 | EM25: 78 | EN25: 1 | EO25: 2 | EP25: 48 | EQ25: 75 | ER25: 4 | ES25: 0 | ET25: 0 | EU25: 0 | EV25: 0 | EW25: 0 | EX25: 0 | EY25: 0 | EZ25: 130 | FA25: 52 | FB25: 65 | FC25: 71 | FD25: 50 | FE25: 57 | FF25: 69 | FG25: 29 | FH25: 78 | FI25: 46 | FJ25: 62 | FK25: 60 | FL25: 60 | FM25: 63 | FN25: 37 | FO25: 130 | FP25: 111 | FQ25: 133 | FR25: 110 | FS25: 117 | FT25: 132 | FU25: 66 | FV25: 59 | FW25: 61 | FX25: 120
A26: Mon | B26: 2100 | C26: 0 | D26: 0 | E26: 8 | F26: 31 | G26: 1 | H26: 0 | I26: 0 | J26: 0 | K26: 0 | L26: 0 | M26: 0 | N26: 0 | O26: 0 | P26: 4 | Q26: 15 | R26: 14 | S26: 6 | T26: 1 | U26: 0 | V26: 0 | W26: 0 | X26: 0 | Y26: 0 | Z26: 0 | AA26: 0 | AB26: 0 | AC26: 0 | AD26: 0 | AE26: 0 | AF26: 0 | AG26: 0 | AH26: 0 | AI26: 0 | AJ26: 0 | AK26: 0 | AL26: 20.83 | AM26: 25.22 | AN26: Mon | AO26: 2100 | AP26: 0 | AQ26: 0 | AR26: 20 | AS26: 16 | AT26: 1 | AU26: 0 | AV26: 0 | AW26: 0 | AX26: 0 | AY26: 0 | AZ26: 0 | BA26: 0 | BB26: 0 | BC26: 3 | BD26: 18 | BE26: 14 | BF26: 2 | BG26: 0 | BH26: 0 | BI26: 0 | BJ26: 0 | BK26: 0 | BL26: 0 | BM26: 0 | BN26: 0 | BO26: 0 | BP26: 0 | BQ26: 0 | BR26: 0 | BS26: 0 | BT26: 0 | BU26: 0 | BV26: 0 | BW26: 0 | BX26: 0 | BY26: 19.42 | BZ26: 21.71 | CA26: Mon | CB26: 2100 | CC26: 0 | CD26: 0 | CE26: 28 | CF26: 47 | CG26: 2 | CH26: 0 | CI26: 0 | CJ26: 0 | CK26: 0 | CL26: 0 | CM26: 0 | CN26: 0 | CO26: 0 | CP26: 7 | CQ26: 33 | CR26: 28 | CS26: 8 | CT26: 1 | CU26: 0 | CV26: 0 | CW26: 0 | CX26: 0 | CY26: 0 | CZ26: 0 | DA26: 0 | DB26: 0 | DC26: 0 | DD26: 0 | DE26: 0 | DF26: 0 | DG26: 0 | DH26: 0 | DI26: 0 | DJ26: 0 | DK26: 0 | DL26: 20.15 | DM26: 24.05 | DN26: 0 | DO26: 0 | DP26: 8 | DQ26: 31 | DR26: 1 | DS26: 0 | DT26: 0 | DU26: 0 | DV26: 0 | DW26: 0 | DX26: 0 | DY26: 0 | DZ26: 40 | EA26: 0 | EB26: 0 | EC26: 20 | ED26: 16 | EE26: 1 | EF26: 0 | EG26: 0 | EH26: 0 | EI26: 0 | EJ26: 0 | EK26: 0 | EL26: 0 | EM26: 37 | EN26: 0 | EO26: 0 | EP26: 28 | EQ26: 47 | ER26: 2 | ES26: 0 | ET26: 0 | EU26: 0 | EV26: 0 | EW26: 0 | EX26: 0 | EY26: 0 | EZ26: 77 | FA26: 40 | FB26: 53 | FC26: 41 | FD26: 47 | FE26: 35 | FF26: 39 | FG26: 32 | FH26: 37 | FI26: 41 | FJ26: 49 | FK26: 48 | FL26: 38 | FM26: 54 | FN26: 26 | FO26: 77 | FP26: 94 | FQ26: 90 | FR26: 95 | FS26: 73 | FT26: 93 | FU26: 58 | FV26: 43 | FW26: 43 | FX26: 86
A27: Mon | B27: 2200 | C27: 0 | D27: 0 | E27: 5 | F27: 7 | G27: 0 | H27: 0 | I27: 0 | J27: 0 | K27: 0 | L27: 0 | M27: 0 | N27: 0 | O27: 0 | P27: 0 | Q27: 2 | R27: 6 | S27: 3 | T27: 1 | U27: 0 | V27: 0 | W27: 0 | X27: 0 | Y27: 0 | Z27: 0 | AA27: 0 | AB27: 0 | AC27: 0 | AD27: 0 | AE27: 0 | AF27: 0 | AG27: 0 | AH27: 0 | AI27: 0 | AJ27: 0 | AK27: 0 | AL27: 23.96 | AM27: 29.07 | AN27: Mon | AO27: 2200 | AP27: 0 | AQ27: 0 | AR27: 8 | AS27: 9 | AT27: 0 | AU27: 0 | AV27: 0 | AW27: 0 | AX27: 0 | AY27: 0 | AZ27: 0 | BA27: 0 | BB27: 0 | BC27: 0 | BD27: 1 | BE27: 10 | BF27: 5 | BG27: 1 | BH27: 0 | BI27: 0 | BJ27: 0 | BK27: 0 | BL27: 0 | BM27: 0 | BN27: 0 | BO27: 0 | BP27: 0 | BQ27: 0 | BR27: 0 | BS27: 0 | BT27: 0 | BU27: 0 | BV27: 0 | BW27: 0 | BX27: 0 | BY27: 23.94 | BZ27: 26.81 | CA27: Mon | CB27: 2200 | CC27: 0 | CD27: 0 | CE27: 13 | CF27: 16 | CG27: 0 | CH27: 0 | CI27: 0 | CJ27: 0 | CK27: 0 | CL27: 0 | CM27: 0 | CN27: 0 | CO27: 0 | CP27: 0 | CQ27: 3 | CR27: 16 | CS27: 8 | CT27: 2 | CU27: 0 | CV27: 0 | CW27: 0 | CX27: 0 | CY27: 0 | CZ27: 0 | DA27: 0 | DB27: 0 | DC27: 0 | DD27: 0 | DE27: 0 | DF27: 0 | DG27: 0 | DH27: 0 | DI27: 0 | DJ27: 0 | DK27: 0 | DL27: 23.95 | DM27: 28.45 | DN27: 0 | DO27: 0 | DP27: 5 | DQ27: 7 | DR27: 0 | DS27: 0 | DT27: 0 | DU27: 0 | DV27: 0 | DW27: 0 | DX27: 0 | DY27: 0 | DZ27: 12 | EA27: 0 | EB27: 0 | EC27: 8 | ED27: 9 | EE27: 0 | EF27: 0 | EG27: 0 | EH27: 0 | EI27: 0 | EJ27: 0 | EK27: 0 | EL27: 0 | EM27: 17 | EN27: 0 | EO27: 0 | EP27: 13 | EQ27: 16 | ER27: 0 | ES27: 0 | ET27: 0 | EU27: 0 | EV27: 0 | EW27: 0 | EX27: 0 | EY27: 0 | EZ27: 29 | FA27: 12 | FB27: 13 | FC27: 14 | FD27: 13 | FE27: 16 | FF27: 19 | FG27: 10 | FH27: 17 | FI27: 21 | FJ27: 21 | FK27: 20 | FL27: 22 | FM27: 26 | FN27: 14 | FO27: 29 | FP27: 34 | FQ27: 35 | FR27: 33 | FS27: 38 | FT27: 45 | FU27: 24 | FV27: 14 | FW27: 20 | FX27: 34
A28: Mon | B28: 2300 | C28: 0 | D28: 0 | E28: 3 | F28: 1 | G28: 0 | H28: 0 | I28: 0 | J28: 0 | K28: 0 | L28: 0 | M28: 0 | N28: 0 | O28: 0 | P28: 0 | Q28: 0 | R28: 2 | S28: 2 | T28: 0 | U28: 0 | V28: 0 | W28: 0 | X28: 0 | Y28: 0 | Z28: 0 | AA28: 0 | AB28: 0 | AC28: 0 | AD28: 0 | AE28: 0 | AF28: 0 | AG28: 0 | AH28: 0 | AI28: 0 | AJ28: 0 | AK28: 0 | AL28: 24.56 | AM28: - | AN28: Mon | AO28: 2300 | AP28: 0 | AQ28: 0 | AR28: 5 | AS28: 0 | AT28: 0 | AU28: 0 | AV28: 0 | AW28: 0 | AX28: 0 | AY28: 0 | AZ28: 0 | BA28: 0 | BB28: 0 | BC28: 0 | BD28: 2 | BE28: 1 | BF28: 2 | BG28: 0 | BH28: 0 | BI28: 0 | BJ28: 0 | BK28: 0 | BL28: 0 | BM28: 0 | BN28: 0 | BO28: 0 | BP28: 0 | BQ28: 0 | BR28: 0 | BS28: 0 | BT28: 0 | BU28: 0 | BV28: 0 | BW28: 0 | BX28: 0 | BY28: 22.04 | BZ28: - | CA28: Mon | CB28: 2300 | CC28: 0 | CD28: 0 | CE28: 8 | CF28: 1 | CG28: 0 | CH28: 0 | CI28: 0 | CJ28: 0 | CK28: 0 | CL28: 0 | CM28: 0 | CN28: 0 | CO28: 0 | CP28: 0 | CQ28: 2 | CR28: 3 | CS28: 4 | CT28: 0 | CU28: 0 | CV28: 0 | CW28: 0 | CX28: 0 | CY28: 0 | CZ28: 0 | DA28: 0 | DB28: 0 | DC28: 0 | DD28: 0 | DE28: 0 | DF28: 0 | DG28: 0 | DH28: 0 | DI28: 0 | DJ28: 0 | DK28: 0 | DL28: 23.16 | DM28: - | DN28: 0 | DO28: 0 | DP28: 3 | DQ28: 1 | DR28: 0 | DS28: 0 | DT28: 0 | DU28: 0 | DV28: 0 | DW28: 0 | DX28: 0 | DY28: 0 | DZ28: 4 | EA28: 0 | EB28: 0 | EC28: 5 | ED28: 0 | EE28: 0 | EF28: 0 | EG28: 0 | EH28: 0 | EI28: 0 | EJ28: 0 | EK28: 0 | EL28: 0 | EM28: 5 | EN28: 0 | EO28: 0 | EP28: 8 | EQ28: 1 | ER28: 0 | ES28: 0 | ET28: 0 | EU28: 0 | EV28: 0 | EW28: 0 | EX28: 0 | EY28: 0 | EZ28: 9 | FA28: 4 | FB28: 6 | FC28: 4 | FD28: 6 | FE28: 4 | FF28: 6 | FG28: 1 | FH28: 5 | FI28: 12 | FJ28: 6 | FK28: 8 | FL28: 14 | FM28: 16 | FN28: 1 | FO28: 9 | FP28: 18 | FQ28: 10 | FR28: 14 | FS28: 18 | FT28: 22 | FU28: 2 | FV28: 5 | FW28: 9 | FX28: 14
A29: Tue | B29: 0 | C29: 0 | D29: 0 | E29: 0 | F29: 2 | G29: 0 | H29: 0 | I29: 0 | J29: 0 | K29: 0 | L29: 0 | M29: 0 | N29: 0 | O29: 0 | P29: 0 | Q29: 0 | R29: 0 | S29: 2 | T29: 0 | U29: 0 | V29: 0 | W29: 0 | X29: 0 | Y29: 0 | Z29: 0 | AA29: 0 | AB29: 0 | AC29: 0 | AD29: 0 | AE29: 0 | AF29: 0 | AG29: 0 | AH29: 0 | AI29: 0 | AJ29: 0 | AK29: 0 | AL29: 26.49 | AM29: - | AN29: Tue | AO29: 0 | AP29: 0 | AQ29: 0 | AR29: 0 | AS29: 1 | AT29: 0 | AU29: 0 | AV29: 0 | AW29: 0 | AX29: 0 | AY29: 0 | AZ29: 0 | BA29: 0 | BB29: 0 | BC29: 0 | BD29: 0 | BE29: 0 | BF29: 0 | BG29: 1 | BH29: 0 | BI29: 0 | BJ29: 0 | BK29: 0 | BL29: 0 | BM29: 0 | BN29: 0 | BO29: 0 | BP29: 0 | BQ29: 0 | BR29: 0 | BS29: 0 | BT29: 0 | BU29: 0 | BV29: 0 | BW29: 0 | BX29: 0 | BY29: 30.59 | BZ29: - | CA29: Tue | CB29: 0 | CC29: 0 | CD29: 0 | CE29: 0 | CF29: 3 | CG29: 0 | CH29: 0 | CI29: 0 | CJ29: 0 | CK29: 0 | CL29: 0 | CM29: 0 | CN29: 0 | CO29: 0 | CP29: 0 | CQ29: 0 | CR29: 0 | CS29: 2 | CT29: 1 | CU29: 0 | CV29: 0 | CW29: 0 | CX29: 0 | CY29: 0 | CZ29: 0 | DA29: 0 | DB29: 0 | DC29: 0 | DD29: 0 | DE29: 0 | DF29: 0 | DG29: 0 | DH29: 0 | DI29: 0 | DJ29: 0 | DK29: 0 | DL29: 27.86 | DM29: - | DN29: 0 | DO29: 0 | DP29: 0 | DQ29: 2 | DR29: 0 | DS29: 0 | DT29: 0 | DU29: 0 | DV29: 0 | DW29: 0 | DX29: 0 | DY29: 0 | DZ29: 2 | EA29: 0 | EB29: 0 | EC29: 0 | ED29: 1 | EE29: 0 | EF29: 0 | EG29: 0 | EH29: 0 | EI29: 0 | EJ29: 0 | EK29: 0 | EL29: 0 | EM29: 1 | EN29: 0 | EO29: 0 | EP29: 0 | EQ29: 3 | ER29: 0 | ES29: 0 | ET29: 0 | EU29: 0 | EV29: 0 | EW29: 0 | EX29: 0 | EY29: 0 | EZ29: 3 | FA29: =SUM(FA5:FA28) -> 2046 | FB29: =SUM(FB5:FB28) -> 2119 | FC29: 2156 | FD29: 2068 | FE29: 2232 | FF29: 1953 | FG29: 1427 | FH29: 1802 | FI29: 1975 | FJ29: 2004 | FK29: 1959 | FL29: 2120 | FM29: 1899 | FN29: 1285 | FO29: 3848 | FP29: 4094 | FQ29: 4160 | FR29: 4027 | FS29: 4352 | FT29: 3852 | FU29: 2712
A30: Tue | B30: 100 | C30: 0 | D30: 0 | E30: 0 | F30: 0 | G30: 0 | H30: 0 | I30: 0 | J30: 0 | K30: 0 | L30: 0 | M30: 0 | N30: 0 | O30: 0 | P30: 0 | Q30: 0 | R30: 0 | S30: 0 | T30: 0 | U30: 0 | V30: 0 | W30: 0 | X30: 0 | Y30: 0 | Z30: 0 | AA30: 0 | AB30: 0 | AC30: 0 | AD30: 0 | AE30: 0 | AF30: 0 | AG30: 0 | AH30: 0 | AI30: 0 | AJ30: 0 | AK30: 0 | AL30: - | AM30: - | AN30: Tue | AO30: 100 | AP30: 0 | AQ30: 0 | AR30: 0 | AS30: 0 | AT30: 0 | AU30: 0 | AV30: 0 | AW30: 0 | AX30: 0 | AY30: 0 | AZ30: 0 | BA30: 0 | BB30: 0 | BC30: 0 | BD30: 0 | BE30: 0 | BF30: 0 | BG30: 0 | BH30: 0 | BI30: 0 | BJ30: 0 | BK30: 0 | BL30: 0 | BM30: 0 | BN30: 0 | BO30: 0 | BP30: 0 | BQ30: 0 | BR30: 0 | BS30: 0 | BT30: 0 | BU30: 0 | BV30: 0 | BW30: 0 | BX30: 0 | BY30: - | BZ30: - | CA30: Tue | CB30: 100 | CC30: 0 | CD30: 0 | CE30: 0 | CF30: 0 | CG30: 0 | CH30: 0 | CI30: 0 | CJ30: 0 | CK30: 0 | CL30: 0 | CM30: 0 | CN30: 0 | CO30: 0 | CP30: 0 | CQ30: 0 | CR30: 0 | CS30: 0 | CT30: 0 | CU30: 0 | CV30: 0 | CW30: 0 | CX30: 0 | CY30: 0 | CZ30: 0 | DA30: 0 | DB30: 0 | DC30: 0 | DD30: 0 | DE30: 0 | DF30: 0 | DG30: 0 | DH30: 0 | DI30: 0 | DJ30: 0 | DK30: 0 | DL30: - | DM30: - | DN30: 0 | DO30: 0 | DP30: 0 | DQ30: 0 | DR30: 0 | DS30: 0 | DT30: 0 | DU30: 0 | DV30: 0 | DW30: 0 | DX30: 0 | DY30: 0 | DZ30: 0 | EA30: 0 | EB30: 0 | EC30: 0 | ED30: 0 | EE30: 0 | EF30: 0 | EG30: 0 | EH30: 0 | EI30: 0 | EJ30: 0 | EK30: 0 | EL30: 0 | EM30: 0 | EN30: 0 | EO30: 0 | EP30: 0 | EQ30: 0 | ER30: 0 | ES30: 0 | ET30: 0 | EU30: 0 | EV30: 0 | EW30: 0 | EX30: 0 | EY30: 0 | EZ30: 0
A31: Tue | B31: 200 | C31: 0 | D31: 0 | E31: 0 | F31: 0 | G31: 0 | H31: 0 | I31: 0 | J31: 0 | K31: 0 | L31: 0 | M31: 0 | N31: 0 | O31: 0 | P31: 0 | Q31: 0 | R31: 0 | S31: 0 | T31: 0 | U31: 0 | V31: 0 | W31: 0 | X31: 0 | Y31: 0 | Z31: 0 | AA31: 0 | AB31: 0 | AC31: 0 | AD31: 0 | AE31: 0 | AF31: 0 | AG31: 0 | AH31: 0 | AI31: 0 | AJ31: 0 | AK31: 0 | AL31: - | AM31: - | AN31: Tue | AO31: 200 | AP31: 0 | AQ31: 0 | AR31: 0 | AS31: 0 | AT31: 0 | AU31: 0 | AV31: 0 | AW31: 0 | AX31: 0 | AY31: 0 | AZ31: 0 | BA31: 0 | BB31: 0 | BC31: 0 | BD31: 0 | BE31: 0 | BF31: 0 | BG31: 0 | BH31: 0 | BI31: 0 | BJ31: 0 | BK31: 0 | BL31: 0 | BM31: 0 | BN31: 0 | BO31: 0 | BP31: 0 | BQ31: 0 | BR31: 0 | BS31: 0 | BT31: 0 | BU31: 0 | BV31: 0 | BW31: 0 | BX31: 0 | BY31: - | BZ31: - | CA31: Tue | CB31: 200 | CC31: 0 | CD31: 0 | CE31: 0 | CF31: 0 | CG31: 0 | CH31: 0 | CI31: 0 | CJ31: 0 | CK31: 0 | CL31: 0 | CM31: 0 | CN31: 0 | CO31: 0 | CP31: 0 | CQ31: 0 | CR31: 0 | CS31: 0 | CT31: 0 | CU31: 0 | CV31: 0 | CW31: 0 | CX31: 0 | CY31: 0 | CZ31: 0 | DA31: 0 | DB31: 0 | DC31: 0 | DD31: 0 | DE31: 0 | DF31: 0 | DG31: 0 | DH31: 0 | DI31: 0 | DJ31: 0 | DK31: 0 | DL31: - | DM31: - | DN31: 0 | DO31: 0 | DP31: 0 | DQ31: 0 | DR31: 0 | DS31: 0 | DT31: 0 | DU31: 0 | DV31: 0 | DW31: 0 | DX31: 0 | DY31: 0 | DZ31: 0 | EA31: 0 | EB31: 0 | EC31: 0 | ED31: 0 | EE31: 0 | EF31: 0 | EG31: 0 | EH31: 0 | EI31: 0 | EJ31: 0 | EK31: 0 | EL31: 0 | EM31: 0 | EN31: 0 | EO31: 0 | EP31: 0 | EQ31: 0 | ER31: 0 | ES31: 0 | ET31: 0 | EU31: 0 | EV31: 0 | EW31: 0 | EX31: 0 | EY31: 0 | EZ31: 0 | FD31: =FA2 -> NB | FN31: =FH2 -> SB | FX31: Combined
A32: Tue | B32: 300 | C32: 0 | D32: 0 | E32: 1 | F32: 0 | G32: 0 | H32: 0 | I32: 0 | J32: 0 | K32: 0 | L32: 0 | M32: 0 | N32: 0 | O32: 0 | P32: 0 | Q32: 0 | R32: 0 | S32: 1 | T32: 0 | U32: 0 | V32: 0 | W32: 0 | X32: 0 | Y32: 0 | Z32: 0 | AA32: 0 | AB32: 0 | AC32: 0 | AD32: 0 | AE32: 0 | AF32: 0 | AG32: 0 | AH32: 0 | AI32: 0 | AJ32: 0 | AK32: 0 | AL32: 26.32 | AM32: - | AN32: Tue | AO32: 300 | AP32: 0 | AQ32: 0 | AR32: 0 | AS32: 0 | AT32: 0 | AU32: 0 | AV32: 0 | AW32: 0 | AX32: 0 | AY32: 0 | AZ32: 0 | BA32: 0 | BB32: 0 | BC32: 0 | BD32: 0 | BE32: 0 | BF32: 0 | BG32: 0 | BH32: 0 | BI32: 0 | BJ32: 0 | BK32: 0 | BL32: 0 | BM32: 0 | BN32: 0 | BO32: 0 | BP32: 0 | BQ32: 0 | BR32: 0 | BS32: 0 | BT32: 0 | BU32: 0 | BV32: 0 | BW32: 0 | BX32: 0 | BY32: - | BZ32: - | CA32: Tue | CB32: 300 | CC32: 0 | CD32: 0 | CE32: 1 | CF32: 0 | CG32: 0 | CH32: 0 | CI32: 0 | CJ32: 0 | CK32: 0 | CL32: 0 | CM32: 0 | CN32: 0 | CO32: 0 | CP32: 0 | CQ32: 0 | CR32: 0 | CS32: 1 | CT32: 0 | CU32: 0 | CV32: 0 | CW32: 0 | CX32: 0 | CY32: 0 | CZ32: 0 | DA32: 0 | DB32: 0 | DC32: 0 | DD32: 0 | DE32: 0 | DF32: 0 | DG32: 0 | DH32: 0 | DI32: 0 | DJ32: 0 | DK32: 0 | DL32: 26.32 | DM32: - | DN32: 0 | DO32: 0 | DP32: 1 | DQ32: 0 | DR32: 0 | DS32: 0 | DT32: 0 | DU32: 0 | DV32: 0 | DW32: 0 | DX32: 0 | DY32: 0 | DZ32: 1 | EA32: 0 | EB32: 0 | EC32: 0 | ED32: 0 | EE32: 0 | EF32: 0 | EG32: 0 | EH32: 0 | EI32: 0 | EJ32: 0 | EK32: 0 | EL32: 0 | EM32: 0 | EN32: 0 | EO32: 0 | EP32: 1 | EQ32: 0 | ER32: 0 | ES32: 0 | ET32: 0 | EU32: 0 | EV32: 0 | EW32: 0 | EX32: 0 | EY32: 0 | EZ32: 1 | FC32: Headway >=0 | FD32: Min | FE32: Median | FF32: Average | FG32: 0.85 | FH32: 0.95 | FI32: Max | FJ32: StDev | FK32: 15Kph Pace Lower Bound | FL32: Pace Count | FM32: Count > PSL | FN32: Min | FO32: Median | FP32: Average | FQ32: 0.85 | FR32: 0.95 | FS32: Max | FT32: StDev | FU32: 15Kph Pace Lower Bound | FV32: Pace Count | FW32: Count > PSL | FX32: Min | FY32: Median | FZ32: Average | GA32: 0.85 | GB32: 0.95 | GC32: Max | GD32: StDev | GE32: 15Kph Pace Lower Bound | GF32: Pace Count | GG32: Count > PSL
A33: Tue | B33: 400 | C33: 0 | D33: 0 | E33: 1 | F33: 1 | G33: 2 | H33: 0 | I33: 0 | J33: 0 | K33: 0 | L33: 0 | M33: 0 | N33: 0 | O33: 0 | P33: 0 | Q33: 0 | R33: 1 | S33: 3 | T33: 0 | U33: 0 | V33: 0 | W33: 0 | X33: 0 | Y33: 0 | Z33: 0 | AA33: 0 | AB33: 0 | AC33: 0 | AD33: 0 | AE33: 0 | AF33: 0 | AG33: 0 | AH33: 0 | AI33: 0 | AJ33: 0 | AK33: 0 | AL33: 25.2 | AM33: - | AN33: Tue | AO33: 400 | AP33: 0 | AQ33: 0 | AR33: 0 | AS33: 2 | AT33: 1 | AU33: 0 | AV33: 0 | AW33: 0 | AX33: 0 | AY33: 0 | AZ33: 0 | BA33: 0 | BB33: 0 | BC33: 0 | BD33: 2 | BE33: 1 | BF33: 0 | BG33: 0 | BH33: 0 | BI33: 0 | BJ33: 0 | BK33: 0 | BL33: 0 | BM33: 0 | BN33: 0 | BO33: 0 | BP33: 0 | BQ33: 0 | BR33: 0 | BS33: 0 | BT33: 0 | BU33: 0 | BV33: 0 | BW33: 0 | BX33: 0 | BY33: 18.86 | BZ33: - | CA33: Tue | CB33: 400 | CC33: 0 | CD33: 0 | CE33: 1 | CF33: 3 | CG33: 3 | CH33: 0 | CI33: 0 | CJ33: 0 | CK33: 0 | CL33: 0 | CM33: 0 | CN33: 0 | CO33: 0 | CP33: 0 | CQ33: 2 | CR33: 2 | CS33: 3 | CT33: 0 | CU33: 0 | CV33: 0 | CW33: 0 | CX33: 0 | CY33: 0 | CZ33: 0 | DA33: 0 | DB33: 0 | DC33: 0 | DD33: 0 | DE33: 0 | DF33: 0 | DG33: 0 | DH33: 0 | DI33: 0 | DJ33: 0 | DK33: 0 | DL33: 22.48 | DM33: - | DN33: 0 | DO33: 0 | DP33: 1 | DQ33: 1 | DR33: 2 | DS33: 0 | DT33: 0 | DU33: 0 | DV33: 0 | DW33: 0 | DX33: 0 | DY33: 0 | DZ33: 4 | EA33: 0 | EB33: 0 | EC33: 0 | ED33: 2 | EE33: 1 | EF33: 0 | EG33: 0 | EH33: 0 | EI33: 0 | EJ33: 0 | EK33: 0 | EL33: 0 | EM33: 3 | EN33: 0 | EO33: 0 | EP33: 1 | EQ33: 3 | ER33: 3 | ES33: 0 | ET33: 0 | EU33: 0 | EV33: 0 | EW33: 0 | EX33: 0 | EY33: 0 | EZ33: 7 | FB33: 0 | FC33: Mon | FE33: 19.87 | FF33: 19.87 | FG33: 24.08 | FO33: 18.64 | FP33: 18.46 | FQ33: 22.57 | FY33: 19.3 | FZ33: 19.21 | GA33: 23.38
A34: Tue | B34: 500 | C34: 0 | D34: 0 | E34: 6 | F34: 9 | G34: 0 | H34: 0 | I34: 0 | J34: 0 | K34: 0 | L34: 0 | M34: 0 | N34: 0 | O34: 0 | P34: 0 | Q34: 2 | R34: 3 | S34: 8 | T34: 2 | U34: 0 | V34: 0 | W34: 0 | X34: 0 | Y34: 0 | Z34: 0 | AA34: 0 | AB34: 0 | AC34: 0 | AD34: 0 | AE34: 0 | AF34: 0 | AG34: 0 | AH34: 0 | AI34: 0 | AJ34: 0 | AK34: 0 | AL34: 25.68 | AM34: 29.13 | AN34: Tue | AO34: 500 | AP34: 0 | AQ34: 0 | AR34: 4 | AS34: 3 | AT34: 0 | AU34: 0 | AV34: 0 | AW34: 0 | AX34: 0 | AY34: 0 | AZ34: 0 | BA34: 1 | BB34: 1 | BC34: 0 | BD34: 3 | BE34: 2 | BF34: 2 | BG34: 0 | BH34: 0 | BI34: 0 | BJ34: 0 | BK34: 0 | BL34: 0 | BM34: 0 | BN34: 0 | BO34: 0 | BP34: 0 | BQ34: 0 | BR34: 0 | BS34: 0 | BT34: 0 | BU34: 0 | BV34: 0 | BW34: 0 | BX34: 0 | BY34: 19.95 | BZ34: - | CA34: Tue | CB34: 500 | CC34: 0 | CD34: 0 | CE34: 10 | CF34: 12 | CG34: 0 | CH34: 0 | CI34: 0 | CJ34: 0 | CK34: 0 | CL34: 0 | CM34: 0 | CN34: 1 | CO34: 1 | CP34: 0 | CQ34: 5 | CR34: 5 | CS34: 10 | CT34: 2 | CU34: 0 | CV34: 0 | CW34: 0 | CX34: 0 | CY34: 0 | CZ34: 0 | DA34: 0 | DB34: 0 | DC34: 0 | DD34: 0 | DE34: 0 | DF34: 0 | DG34: 0 | DH34: 0 | DI34: 0 | DJ34: 0 | DK34: 0 | DL34: 23.69 | DM34: 28.6 | DN34: 0 | DO34: 0 | DP34: 6 | DQ34: 9 | DR34: 0 | DS34: 0 | DT34: 0 | DU34: 0 | DV34: 0 | DW34: 0 | DX34: 0 | DY34: 0 | DZ34: 15 | EA34: 0 | EB34: 0 | EC34: 4 | ED34: 3 | EE34: 0 | EF34: 0 | EG34: 0 | EH34: 0 | EI34: 0 | EJ34: 0 | EK34: 0 | EL34: 1 | EM34: 8 | EN34: 0 | EO34: 0 | EP34: 10 | EQ34: 12 | ER34: 0 | ES34: 0 | ET34: 0 | EU34: 0 | EV34: 0 | EW34: 0 | EX34: 0 | EY34: 1 | EZ34: 23 | FB34: 1 | FC34: Tue | FE34: 19.91 | FF34: 19.87 | FG34: 23.99 | FO34: 18.56 | FP34: 18.52 | FQ34: 22.78 | FY34: 19.27 | FZ34: 19.22 | GA34: 23.41
A35: Tue | B35: 600 | C35: 0 | D35: 0 | E35: 18 | F35: 27 | G35: 3 | H35: 0 | I35: 0 | J35: 0 | K35: 0 | L35: 0 | M35: 0 | N35: 0 | O35: 0 | P35: 0 | Q35: 10 | R35: 18 | S35: 16 | T35: 4 | U35: 0 | V35: 0 | W35: 0 | X35: 0 | Y35: 0 | Z35: 0 | AA35: 0 | AB35: 0 | AC35: 0 | AD35: 0 | AE35: 0 | AF35: 0 | AG35: 0 | AH35: 0 | AI35: 0 | AJ35: 0 | AK35: 0 | AL35: 24.04 | AM35: 27.83 | AN35: Tue | AO35: 600 | AP35: 0 | AQ35: 0 | AR35: 5 | AS35: 7 | AT35: 2 | AU35: 0 | AV35: 0 | AW35: 0 | AX35: 0 | AY35: 0 | AZ35: 0 | BA35: 0 | BB35: 0 | BC35: 2 | BD35: 3 | BE35: 6 | BF35: 3 | BG35: 0 | BH35: 0 | BI35: 0 | BJ35: 0 | BK35: 0 | BL35: 0 | BM35: 0 | BN35: 0 | BO35: 0 | BP35: 0 | BQ35: 0 | BR35: 0 | BS35: 0 | BT35: 0 | BU35: 0 | BV35: 0 | BW35: 0 | BX35: 0 | BY35: 21.37 | BZ35: 26.12 | CA35: Tue | CB35: 600 | CC35: 0 | CD35: 0 | CE35: 23 | CF35: 34 | CG35: 5 | CH35: 0 | CI35: 0 | CJ35: 0 | CK35: 0 | CL35: 0 | CM35: 0 | CN35: 0 | CO35: 0 | CP35: 2 | CQ35: 13 | CR35: 24 | CS35: 19 | CT35: 4 | CU35: 0 | CV35: 0 | CW35: 0 | CX35: 0 | CY35: 0 | CZ35: 0 | DA35: 0 | DB35: 0 | DC35: 0 | DD35: 0 | DE35: 0 | DF35: 0 | DG35: 0 | DH35: 0 | DI35: 0 | DJ35: 0 | DK35: 0 | DL35: 23.44 | DM35: 27.39 | DN35: 0 | DO35: 0 | DP35: 18 | DQ35: 27 | DR35: 3 | DS35: 0 | DT35: 0 | DU35: 0 | DV35: 0 | DW35: 0 | DX35: 0 | DY35: 0 | DZ35: 48 | EA35: 0 | EB35: 0 | EC35: 5 | ED35: 7 | EE35: 2 | EF35: 0 | EG35: 0 | EH35: 0 | EI35: 0 | EJ35: 0 | EK35: 0 | EL35: 0 | EM35: 14 | EN35: 0 | EO35: 0 | EP35: 23 | EQ35: 34 | ER35: 5 | ES35: 0 | ET35: 0 | EU35: 0 | EV35: 0 | EW35: 0 | EX35: 0 | EY35: 0 | EZ35: 62 | FB35: 2 | FC35: Wed | FE35: 19.19 | FF35: 19.33 | FG35: 23.42 | FO35: 18.29 | FP35: 18.17 | FQ35: 22.07 | FY35: 18.79 | FZ35: 18.77 | GA35: 22.89
A36: Tue | B36: 700 | C36: 0 | D36: 1 | E36: 50 | F36: 77 | G36: 5 | H36: 0 | I36: 0 | J36: 2 | K36: 0 | L36: 0 | M36: 1 | N36: 0 | O36: 1 | P36: 4 | Q36: 25 | R36: 80 | S36: 25 | T36: 1 | U36: 0 | V36: 0 | W36: 0 | X36: 0 | Y36: 0 | Z36: 0 | AA36: 0 | AB36: 0 | AC36: 0 | AD36: 0 | AE36: 0 | AF36: 0 | AG36: 0 | AH36: 0 | AI36: 0 | AJ36: 0 | AK36: 0 | AL36: 22.27 | AM36: 25.86 | AN36: Tue | AO36: 700 | AP36: 0 | AQ36: 1 | AR36: 31 | AS36: 46 | AT36: 4 | AU36: 1 | AV36: 0 | AW36: 0 | AX36: 0 | AY36: 0 | AZ36: 2 | BA36: 0 | BB36: 0 | BC36: 4 | BD36: 34 | BE36: 34 | BF36: 12 | BG36: 1 | BH36: 0 | BI36: 0 | BJ36: 0 | BK36: 0 | BL36: 0 | BM36: 0 | BN36: 0 | BO36: 0 | BP36: 0 | BQ36: 0 | BR36: 0 | BS36: 0 | BT36: 0 | BU36: 0 | BV36: 0 | BW36: 0 | BX36: 0 | BY36: 20.9 | BZ36: 24.82 | CA36: Tue | CB36: 700 | CC36: 0 | CD36: 2 | CE36: 81 | CF36: 123 | CG36: 9 | CH36: 1 | CI36: 0 | CJ36: 2 | CK36: 0 | CL36: 0 | CM36: 3 | CN36: 0 | CO36: 1 | CP36: 8 | CQ36: 59 | CR36: 114 | CS36: 37 | CT36: 2 | CU36: 0 | CV36: 0 | CW36: 0 | CX36: 0 | CY36: 0 | CZ36: 0 | DA36: 0 | DB36: 0 | DC36: 0 | DD36: 0 | DE36: 0 | DF36: 0 | DG36: 0 | DH36: 0 | DI36: 0 | DJ36: 0 | DK36: 0 | DL36: 21.74 | DM36: 25.39 | DN36: 0 | DO36: 1 | DP36: 50 | DQ36: 77 | DR36: 5 | DS36: 0 | DT36: 0 | DU36: 2 | DV36: 0 | DW36: 0 | DX36: 1 | DY36: 0 | DZ36: 136 | EA36: 0 | EB36: 1 | EC36: 31 | ED36: 46 | EE36: 4 | EF36: 1 | EG36: 0 | EH36: 0 | EI36: 0 | EJ36: 0 | EK36: 2 | EL36: 0 | EM36: 85 | EN36: 0 | EO36: 2 | EP36: 81 | EQ36: 123 | ER36: 9 | ES36: 1 | ET36: 0 | EU36: 2 | EV36: 0 | EW36: 0 | EX36: 3 | EY36: 0 | EZ36: 221 | FB36: 3 | FC36: Thu | FE36: 19.44 | FF36: 19.42 | FG36: 23.69 | FO36: 18.46 | FP36: 18.28 | FQ36: 22.24 | FY36: 18.98 | FZ36: 18.87 | GA36: 23
A37: Tue | B37: 800 | C37: 0 | D37: 3 | E37: 70 | F37: 92 | G37: 9 | H37: 0 | I37: 0 | J37: 0 | K37: 0 | L37: 0 | M37: 2 | N37: 0 | O37: 5 | P37: 16 | Q37: 43 | R37: 91 | S37: 21 | T37: 0 | U37: 0 | V37: 0 | W37: 0 | X37: 0 | Y37: 0 | Z37: 0 | AA37: 0 | AB37: 0 | AC37: 0 | AD37: 0 | AE37: 0 | AF37: 0 | AG37: 0 | AH37: 0 | AI37: 0 | AJ37: 0 | AK37: 0 | AL37: 20.41 | AM37: 24.64 | AN37: Tue | AO37: 800 | AP37: 0 | AQ37: 2 | AR37: 56 | AS37: 53 | AT37: 4 | AU37: 2 | AV37: 0 | AW37: 3 | AX37: 0 | AY37: 0 | AZ37: 1 | BA37: 1 | BB37: 1 | BC37: 24 | BD37: 55 | BE37: 35 | BF37: 7 | BG37: 0 | BH37: 0 | BI37: 0 | BJ37: 0 | BK37: 0 | BL37: 0 | BM37: 0 | BN37: 0 | BO37: 0 | BP37: 0 | BQ37: 0 | BR37: 0 | BS37: 0 | BT37: 0 | BU37: 0 | BV37: 0 | BW37: 0 | BX37: 0 | BY37: 18.49 | BZ37: 22.44 | CA37: Tue | CB37: 800 | CC37: 0 | CD37: 5 | CE37: 126 | CF37: 145 | CG37: 13 | CH37: 2 | CI37: 0 | CJ37: 3 | CK37: 0 | CL37: 0 | CM37: 3 | CN37: 1 | CO37: 6 | CP37: 40 | CQ37: 98 | CR37: 126 | CS37: 28 | CT37: 0 | CU37: 0 | CV37: 0 | CW37: 0 | CX37: 0 | CY37: 0 | CZ37: 0 | DA37: 0 | DB37: 0 | DC37: 0 | DD37: 0 | DE37: 0 | DF37: 0 | DG37: 0 | DH37: 0 | DI37: 0 | DJ37: 0 | DK37: 0 | DL37: 19.63 | DM37: 23.79 | DN37: 0 | DO37: 3 | DP37: 70 | DQ37: 92 | DR37: 9 | DS37: 0 | DT37: 0 | DU37: 0 | DV37: 0 | DW37: 0 | DX37: 2 | DY37: 0 | DZ37: 176 | EA37: 0 | EB37: 2 | EC37: 56 | ED37: 53 | EE37: 4 | EF37: 2 | EG37: 0 | EH37: 3 | EI37: 0 | EJ37: 0 | EK37: 1 | EL37: 1 | EM37: 122 | EN37: 0 | EO37: 5 | EP37: 126 | EQ37: 145 | ER37: 13 | ES37: 2 | ET37: 0 | EU37: 3 | EV37: 0 | EW37: 0 | EX37: 3 | EY37: 1 | EZ37: 298 | FB37: 4 | FC37: Fri | FE37: 19.64 | FF37: 19.58 | FG37: 23.55 | FO37: 18.2 | FP37: 18.02 | FQ37: 21.95 | FY37: 18.93 | FZ37: 18.82 | GA37: 22.86
A38: Tue | B38: 900 | C38: 0 | D38: 0 | E38: 61 | F38: 94 | G38: 7 | H38: 2 | I38: 0 | J38: 0 | K38: 0 | L38: 1 | M38: 1 | N38: 0 | O38: 1 | P38: 15 | Q38: 92 | R38: 48 | S38: 10 | T38: 0 | U38: 0 | V38: 0 | W38: 0 | X38: 0 | Y38: 0 | Z38: 0 | AA38: 0 | AB38: 0 | AC38: 0 | AD38: 0 | AE38: 0 | AF38: 0 | AG38: 0 | AH38: 0 | AI38: 0 | AJ38: 0 | AK38: 0 | AL38: 19.19 | AM38: 22.57 | AN38: Tue | AO38: 900 | AP38: 0 | AQ38: 0 | AR38: 56 | AS38: 84 | AT38: 9 | AU38: 0 | AV38: 0 | AW38: 0 | AX38: 0 | AY38: 0 | AZ38: 1 | BA38: 0 | BB38: 3 | BC38: 34 | BD38: 63 | BE38: 45 | BF38: 4 | BG38: 1 | BH38: 0 | BI38: 0 | BJ38: 0 | BK38: 0 | BL38: 0 | BM38: 0 | BN38: 0 | BO38: 0 | BP38: 0 | BQ38: 0 | BR38: 0 | BS38: 0 | BT38: 0 | BU38: 0 | BV38: 0 | BW38: 0 | BX38: 0 | BY38: 17.96 | BZ38: 21.9 | CA38: Tue | CB38: 900 | CC38: 0 | CD38: 0 | CE38: 117 | CF38: 178 | CG38: 16 | CH38: 2 | CI38: 0 | CJ38: 0 | CK38: 0 | CL38: 1 | CM38: 2 | CN38: 0 | CO38: 4 | CP38: 49 | CQ38: 155 | CR38: 93 | CS38: 14 | CT38: 1 | CU38: 0 | CV38: 0 | CW38: 0 | CX38: 0 | CY38: 0 | CZ38: 0 | DA38: 0 | DB38: 0 | DC38: 0 | DD38: 0 | DE38: 0 | DF38: 0 | DG38: 0 | DH38: 0 | DI38: 0 | DJ38: 0 | DK38: 0 | DL38: 18.61 | DM38: 22.33 | DN38: 0 | DO38: 0 | DP38: 61 | DQ38: 94 | DR38: 7 | DS38: 2 | DT38: 0 | DU38: 0 | DV38: 0 | DW38: 1 | DX38: 1 | DY38: 0 | DZ38: 166 | EA38: 0 | EB38: 0 | EC38: 56 | ED38: 84 | EE38: 9 | EF38: 0 | EG38: 0 | EH38: 0 | EI38: 0 | EJ38: 0 | EK38: 1 | EL38: 0 | EM38: 150 | EN38: 0 | EO38: 0 | EP38: 117 | EQ38: 178 | ER38: 16 | ES38: 2 | ET38: 0 | EU38: 0 | EV38: 0 | EW38: 1 | EX38: 2 | EY38: 0 | EZ38: 316 | FB38: 5 | FC38: Sat | FE38: 19.24 | FF38: 19.3 | FG38: 23.64 | FO38: 18.14 | FP38: 18.19 | FQ38: 22.64 | FY38: 18.75 | FZ38: 18.75 | GA38: 23.14
A39: Tue | B39: 1000 | C39: 2 | D39: 1 | E39: 49 | F39: 96 | G39: 7 | H39: 0 | I39: 0 | J39: 1 | K39: 0 | L39: 0 | M39: 2 | N39: 0 | O39: 3 | P39: 20 | Q39: 64 | R39: 62 | S39: 9 | T39: 0 | U39: 0 | V39: 0 | W39: 0 | X39: 0 | Y39: 0 | Z39: 0 | AA39: 0 | AB39: 0 | AC39: 0 | AD39: 0 | AE39: 0 | AF39: 0 | AG39: 0 | AH39: 0 | AI39: 0 | AJ39: 0 | AK39: 0 | AL39: 19.06 | AM39: 22.34 | AN39: Tue | AO39: 1000 | AP39: 0 | AQ39: 2 | AR39: 43 | AS39: 70 | AT39: 7 | AU39: 1 | AV39: 0 | AW39: 1 | AX39: 0 | AY39: 0 | AZ39: 1 | BA39: 2 | BB39: 0 | BC39: 34 | BD39: 53 | BE39: 32 | BF39: 7 | BG39: 1 | BH39: 0 | BI39: 0 | BJ39: 0 | BK39: 0 | BL39: 0 | BM39: 0 | BN39: 0 | BO39: 0 | BP39: 0 | BQ39: 0 | BR39: 0 | BS39: 0 | BT39: 0 | BU39: 0 | BV39: 0 | BW39: 0 | BX39: 0 | BY39: 18.02 | BZ39: 22.24 | CA39: Tue | CB39: 1000 | CC39: 2 | CD39: 3 | CE39: 92 | CF39: 166 | CG39: 14 | CH39: 1 | CI39: 0 | CJ39: 2 | CK39: 0 | CL39: 0 | CM39: 3 | CN39: 2 | CO39: 3 | CP39: 54 | CQ39: 117 | CR39: 94 | CS39: 16 | CT39: 1 | CU39: 0 | CV39: 0 | CW39: 0 | CX39: 0 | CY39: 0 | CZ39: 0 | DA39: 0 | DB39: 0 | DC39: 0 | DD39: 0 | DE39: 0 | DF39: 0 | DG39: 0 | DH39: 0 | DI39: 0 | DJ39: 0 | DK39: 0 | DL39: 18.59 | DM39: 22.28 | DN39: 2 | DO39: 1 | DP39: 49 | DQ39: 96 | DR39: 7 | DS39: 0 | DT39: 0 | DU39: 1 | DV39: 0 | DW39: 0 | DX39: 2 | DY39: 0 | DZ39: 158 | EA39: 0 | EB39: 2 | EC39: 43 | ED39: 70 | EE39: 7 | EF39: 1 | EG39: 0 | EH39: 1 | EI39: 0 | EJ39: 0 | EK39: 1 | EL39: 2 | EM39: 127 | EN39: 2 | EO39: 3 | EP39: 92 | EQ39: 166 | ER39: 14 | ES39: 1 | ET39: 0 | EU39: 2 | EV39: 0 | EW39: 0 | EX39: 3 | EY39: 2 | EZ39: 285 | FB39: 6 | FC39: Sun | FE39: 20.78 | FF39: 20.68 | FG39: 24.53 | FO39: 19.37 | FP39: 19.09 | FQ39: 23.15 | FY39: 20.15 | FZ39: 19.93 | GA39: 23.87
A40: Tue | B40: 1100 | C40: 0 | D40: 4 | E40: 56 | F40: 87 | G40: 4 | H40: 0 | I40: 0 | J40: 2 | K40: 0 | L40: 0 | M40: 0 | N40: 0 | O40: 2 | P40: 19 | Q40: 80 | R40: 45 | S40: 5 | T40: 2 | U40: 0 | V40: 0 | W40: 0 | X40: 0 | Y40: 0 | Z40: 0 | AA40: 0 | AB40: 0 | AC40: 0 | AD40: 0 | AE40: 0 | AF40: 0 | AG40: 0 | AH40: 0 | AI40: 0 | AJ40: 0 | AK40: 0 | AL40: 18.82 | AM40: 22.55 | AN40: Tue | AO40: 1100 | AP40: 1 | AQ40: 3 | AR40: 68 | AS40: 71 | AT40: 4 | AU40: 0 | AV40: 0 | AW40: 0 | AX40: 0 | AY40: 0 | AZ40: 2 | BA40: 1 | BB40: 7 | BC40: 27 | BD40: 71 | BE40: 42 | BF40: 3 | BG40: 0 | BH40: 0 | BI40: 0 | BJ40: 0 | BK40: 0 | BL40: 0 | BM40: 0 | BN40: 0 | BO40: 0 | BP40: 0 | BQ40: 0 | BR40: 0 | BS40: 0 | BT40: 0 | BU40: 0 | BV40: 0 | BW40: 0 | BX40: 0 | BY40: 17.66 | BZ40: 21.14 | CA40: Tue | CB40: 1100 | CC40: 1 | CD40: 7 | CE40: 124 | CF40: 158 | CG40: 8 | CH40: 0 | CI40: 0 | CJ40: 2 | CK40: 0 | CL40: 0 | CM40: 2 | CN40: 1 | CO40: 9 | CP40: 46 | CQ40: 151 | CR40: 87 | CS40: 8 | CT40: 2 | CU40: 0 | CV40: 0 | CW40: 0 | CX40: 0 | CY40: 0 | CZ40: 0 | DA40: 0 | DB40: 0 | DC40: 0 | DD40: 0 | DE40: 0 | DF40: 0 | DG40: 0 | DH40: 0 | DI40: 0 | DJ40: 0 | DK40: 0 | DL40: 18.24 | DM40: 21.91 | DN40: 0 | DO40: 4 | DP40: 56 | DQ40: 87 | DR40: 4 | DS40: 0 | DT40: 0 | DU40: 2 | DV40: 0 | DW40: 0 | DX40: 0 | DY40: 0 | DZ40: 153 | EA40: 1 | EB40: 3 | EC40: 68 | ED40: 71 | EE40: 4 | EF40: 0 | EG40: 0 | EH40: 0 | EI40: 0 | EJ40: 0 | EK40: 2 | EL40: 1 | EM40: 150 | EN40: 1 | EO40: 7 | EP40: 124 | EQ40: 158 | ER40: 8 | ES40: 0 | ET40: 0 | EU40: 2 | EV40: 0 | EW40: 0 | EX40: 2 | EY40: 1 | EZ40: 303 | FC40: Weekday | FE40: 19.64 | FF40: 19.61 | FG40: 23.75 | FO40: 18.42 | FP40: 18.28 | FQ40: 22.35 | FY40: 19.04 | FZ40: 18.97 | GA40: 23.11
A41: Tue | B41: 1200 | C41: 0 | D41: 1 | E41: 48 | F41: 70 | G41: 6 | H41: 1 | I41: 0 | J41: 2 | K41: 0 | L41: 0 | M41: 1 | N41: 1 | O41: 2 | P41: 14 | Q41: 50 | R41: 54 | S41: 9 | T41: 1 | U41: 0 | V41: 0 | W41: 0 | X41: 0 | Y41: 0 | Z41: 0 | AA41: 0 | AB41: 0 | AC41: 0 | AD41: 0 | AE41: 0 | AF41: 0 | AG41: 0 | AH41: 0 | AI41: 0 | AJ41: 0 | AK41: 0 | AL41: 19.66 | AM41: 23.74 | AN41: Tue | AO41: 1200 | AP41: 0 | AQ41: 5 | AR41: 72 | AS41: 66 | AT41: 3 | AU41: 1 | AV41: 1 | AW41: 1 | AX41: 0 | AY41: 0 | AZ41: 0 | BA41: 1 | BB41: 3 | BC41: 22 | BD41: 60 | BE41: 53 | BF41: 12 | BG41: 0 | BH41: 0 | BI41: 0 | BJ41: 0 | BK41: 0 | BL41: 0 | BM41: 0 | BN41: 0 | BO41: 0 | BP41: 0 | BQ41: 0 | BR41: 0 | BS41: 0 | BT41: 0 | BU41: 0 | BV41: 0 | BW41: 0 | BX41: 0 | BY41: 19.11 | BZ41: 23.23 | CA41: Tue | CB41: 1200 | CC41: 0 | CD41: 6 | CE41: 120 | CF41: 136 | CG41: 9 | CH41: 2 | CI41: 1 | CJ41: 3 | CK41: 0 | CL41: 0 | CM41: 1 | CN41: 2 | CO41: 5 | CP41: 36 | CQ41: 110 | CR41: 107 | CS41: 21 | CT41: 1 | CU41: 0 | CV41: 0 | CW41: 0 | CX41: 0 | CY41: 0 | CZ41: 0 | DA41: 0 | DB41: 0 | DC41: 0 | DD41: 0 | DE41: 0 | DF41: 0 | DG41: 0 | DH41: 0 | DI41: 0 | DJ41: 0 | DK41: 0 | DL41: 19.37 | DM41: 23.53 | DN41: 0 | DO41: 1 | DP41: 48 | DQ41: 70 | DR41: 6 | DS41: 1 | DT41: 0 | DU41: 2 | DV41: 0 | DW41: 0 | DX41: 1 | DY41: 1 | DZ41: 130 | EA41: 0 | EB41: 5 | EC41: 72 | ED41: 66 | EE41: 3 | EF41: 1 | EG41: 1 | EH41: 1 | EI41: 0 | EJ41: 0 | EK41: 0 | EL41: 1 | EM41: 150 | EN41: 0 | EO41: 6 | EP41: 120 | EQ41: 136 | ER41: 9 | ES41: 2 | ET41: 1 | EU41: 3 | EV41: 0 | EW41: 0 | EX41: 1 | EY41: 2 | EZ41: 280 | FC41: 7 day | FE41: 19.71 | FF41: 19.68 | FG41: 23.81 | FO41: 18.48 | FP41: 18.35 | FQ41: 22.48 | FY41: 19.12 | FZ41: 19.04 | GA41: 23.21
A42: Tue | B42: 1300 | C42: 0 | D42: 2 | E42: 58 | F42: 81 | G42: 4 | H42: 0 | I42: 0 | J42: 0 | K42: 0 | L42: 0 | M42: 0 | N42: 0 | O42: 0 | P42: 25 | Q42: 54 | R42: 56 | S42: 9 | T42: 1 | U42: 0 | V42: 0 | W42: 0 | X42: 0 | Y42: 0 | Z42: 0 | AA42: 0 | AB42: 0 | AC42: 0 | AD42: 0 | AE42: 0 | AF42: 0 | AG42: 0 | AH42: 0 | AI42: 0 | AJ42: 0 | AK42: 0 | AL42: 19.34 | AM42: 23.74 | AN42: Tue | AO42: 1300 | AP42: 0 | AQ42: 1 | AR42: 67 | AS42: 63 | AT42: 3 | AU42: 0 | AV42: 0 | AW42: 1 | AX42: 0 | AY42: 0 | AZ42: 0 | BA42: 0 | BB42: 7 | BC42: 33 | BD42: 58 | BE42: 33 | BF42: 4 | BG42: 0 | BH42: 0 | BI42: 0 | BJ42: 0 | BK42: 0 | BL42: 0 | BM42: 0 | BN42: 0 | BO42: 0 | BP42: 0 | BQ42: 0 | BR42: 0 | BS42: 0 | BT42: 0 | BU42: 0 | BV42: 0 | BW42: 0 | BX42: 0 | BY42: 17.51 | BZ42: 21.88 | CA42: Tue | CB42: 1300 | CC42: 0 | CD42: 3 | CE42: 125 | CF42: 144 | CG42: 7 | CH42: 0 | CI42: 0 | CJ42: 1 | CK42: 0 | CL42: 0 | CM42: 0 | CN42: 0 | CO42: 7 | CP42: 58 | CQ42: 112 | CR42: 89 | CS42: 13 | CT42: 1 | CU42: 0 | CV42: 0 | CW42: 0 | CX42: 0 | CY42: 0 | CZ42: 0 | DA42: 0 | DB42: 0 | DC42: 0 | DD42: 0 | DE42: 0 | DF42: 0 | DG42: 0 | DH42: 0 | DI42: 0 | DJ42: 0 | DK42: 0 | DL42: 18.46 | DM42: 22.85 | DN42: 0 | DO42: 2 | DP42: 58 | DQ42: 81 | DR42: 4 | DS42: 0 | DT42: 0 | DU42: 0 | DV42: 0 | DW42: 0 | DX42: 0 | DY42: 0 | DZ42: 145 | EA42: 0 | EB42: 1 | EC42: 67 | ED42: 63 | EE42: 3 | EF42: 0 | EG42: 0 | EH42: 1 | EI42: 0 | EJ42: 0 | EK42: 0 | EL42: 0 | EM42: 135 | EN42: 0 | EO42: 3 | EP42: 125 | EQ42: 144 | ER42: 7 | ES42: 0 | ET42: 0 | EU42: 1 | EV42: 0 | EW42: 0 | EX42: 0 | EY42: 0 | EZ42: 280
A43: Tue | B43: 1400 | C43: 0 | D43: 2 | E43: 46 | F43: 91 | G43: 6 | H43: 0 | I43: 0 | J43: 1 | K43: 0 | L43: 0 | M43: 1 | N43: 0 | O43: 1 | P43: 16 | Q43: 81 | R43: 44 | S43: 5 | T43: 0 | U43: 0 | V43: 0 | W43: 0 | X43: 0 | Y43: 0 | Z43: 0 | AA43: 0 | AB43: 0 | AC43: 0 | AD43: 0 | AE43: 0 | AF43: 0 | AG43: 0 | AH43: 0 | AI43: 0 | AJ43: 0 | AK43: 0 | AL43: 18.75 | AM43: 22.37 | AN43: Tue | AO43: 1400 | AP43: 0 | AQ43: 0 | AR43: 69 | AS43: 56 | AT43: 1 | AU43: 0 | AV43: 0 | AW43: 0 | AX43: 0 | AY43: 0 | AZ43: 0 | BA43: 0 | BB43: 3 | BC43: 27 | BD43: 62 | BE43: 34 | BF43: 0 | BG43: 0 | BH43: 0 | BI43: 0 | BJ43: 0 | BK43: 0 | BL43: 0 | BM43: 0 | BN43: 0 | BO43: 0 | BP43: 0 | BQ43: 0 | BR43: 0 | BS43: 0 | BT43: 0 | BU43: 0 | BV43: 0 | BW43: 0 | BX43: 0 | BY43: 17.47 | BZ43: 21.16 | CA43: Tue | CB43: 1400 | CC43: 0 | CD43: 2 | CE43: 115 | CF43: 147 | CG43: 7 | CH43: 0 | CI43: 0 | CJ43: 1 | CK43: 0 | CL43: 0 | CM43: 1 | CN43: 0 | CO43: 4 | CP43: 43 | CQ43: 143 | CR43: 78 | CS43: 5 | CT43: 0 | CU43: 0 | CV43: 0 | CW43: 0 | CX43: 0 | CY43: 0 | CZ43: 0 | DA43: 0 | DB43: 0 | DC43: 0 | DD43: 0 | DE43: 0 | DF43: 0 | DG43: 0 | DH43: 0 | DI43: 0 | DJ43: 0 | DK43: 0 | DL43: 18.16 | DM43: 21.71 | DN43: 0 | DO43: 2 | DP43: 46 | DQ43: 91 | DR43: 6 | DS43: 0 | DT43: 0 | DU43: 1 | DV43: 0 | DW43: 0 | DX43: 1 | DY43: 0 | DZ43: 147 | EA43: 0 | EB43: 0 | EC43: 69 | ED43: 56 | EE43: 1 | EF43: 0 | EG43: 0 | EH43: 0 | EI43: 0 | EJ43: 0 | EK43: 0 | EL43: 0 | EM43: 126 | EN43: 0 | EO43: 2 | EP43: 115 | EQ43: 147 | ER43: 7 | ES43: 0 | ET43: 0 | EU43: 1 | EV43: 0 | EW43: 0 | EX43: 1 | EY43: 0 | EZ43: 273
A44: Tue | B44: 1500 | C44: 0 | D44: 4 | E44: 78 | F44: 102 | G44: 10 | H44: 0 | I44: 0 | J44: 1 | K44: 0 | L44: 0 | M44: 1 | N44: 0 | O44: 0 | P44: 22 | Q44: 102 | R44: 68 | S44: 4 | T44: 0 | U44: 0 | V44: 0 | W44: 0 | X44: 0 | Y44: 0 | Z44: 0 | AA44: 0 | AB44: 0 | AC44: 0 | AD44: 0 | AE44: 0 | AF44: 0 | AG44: 0 | AH44: 0 | AI44: 0 | AJ44: 0 | AK44: 0 | AL44: 18.86 | AM44: 22.29 | AN44: Tue | AO44: 1500 | AP44: 3 | AQ44: 5 | AR44: 94 | AS44: 90 | AT44: 7 | AU44: 0 | AV44: 0 | AW44: 0 | AX44: 0 | AY44: 0 | AZ44: 0 | BA44: 2 | BB44: 5 | BC44: 36 | BD44: 105 | BE44: 42 | BF44: 9 | BG44: 1 | BH44: 0 | BI44: 0 | BJ44: 0 | BK44: 0 | BL44: 0 | BM44: 0 | BN44: 0 | BO44: 0 | BP44: 0 | BQ44: 0 | BR44: 0 | BS44: 3 | BT44: 0 | BU44: 0 | BV44: 0 | BW44: 0 | BX44: 0 | BY44: 18.94 | BZ44: 22 | CA44: Tue | CB44: 1500 | CC44: 3 | CD44: 9 | CE44: 172 | CF44: 192 | CG44: 17 | CH44: 0 | CI44: 0 | CJ44: 1 | CK44: 0 | CL44: 0 | CM44: 1 | CN44: 2 | CO44: 5 | CP44: 58 | CQ44: 207 | CR44: 110 | CS44: 13 | CT44: 1 | CU44: 0 | CV44: 0 | CW44: 0 | CX44: 0 | CY44: 0 | CZ44: 0 | DA44: 0 | DB44: 0 | DC44: 0 | DD44: 0 | DE44: 0 | DF44: 3 | DG44: 0 | DH44: 0 | DI44: 0 | DJ44: 0 | DK44: 0 | DL44: 18.9 | DM44: 22.19 | DN44: 0 | DO44: 4 | DP44: 78 | DQ44: 102 | DR44: 10 | DS44: 0 | DT44: 0 | DU44: 1 | DV44: 0 | DW44: 0 | DX44: 1 | DY44: 0 | DZ44: 196 | EA44: 3 | EB44: 5 | EC44: 94 | ED44: 90 | EE44: 7 | EF44: 0 | EG44: 0 | EH44: 0 | EI44: 0 | EJ44: 0 | EK44: 0 | EL44: 2 | EM44: 201 | EN44: 3 | EO44: 9 | EP44: 172 | EQ44: 192 | ER44: 17 | ES44: 0 | ET44: 0 | EU44: 1 | EV44: 0 | EW44: 0 | EX44: 1 | EY44: 2 | EZ44: 397 | FC44: Headway >=4 | FE44: Median | FF44: Average | FG44: 0.85 | FO44: Median | FP44: Average | FQ44: 0.85 | FY44: Median | FZ44: Average | GA44: 0.85
A45: Tue | B45: 1600 | C45: 0 | D45: 2 | E45: 56 | F45: 111 | G45: 4 | H45: 0 | I45: 0 | J45: 1 | K45: 0 | L45: 0 | M45: 3 | N45: 0 | O45: 2 | P45: 30 | Q45: 90 | R45: 48 | S45: 7 | T45: 0 | U45: 0 | V45: 0 | W45: 0 | X45: 0 | Y45: 0 | Z45: 0 | AA45: 0 | AB45: 0 | AC45: 0 | AD45: 0 | AE45: 0 | AF45: 0 | AG45: 0 | AH45: 0 | AI45: 0 | AJ45: 0 | AK45: 0 | AL45: 18.09 | AM45: 22.18 | AN45: Tue | AO45: 1600 | AP45: 0 | AQ45: 1 | AR45: 109 | AS45: 89 | AT45: 4 | AU45: 0 | AV45: 0 | AW45: 1 | AX45: 0 | AY45: 0 | AZ45: 1 | BA45: 1 | BB45: 8 | BC45: 70 | BD45: 86 | BE45: 39 | BF45: 3 | BG45: 0 | BH45: 0 | BI45: 0 | BJ45: 0 | BK45: 0 | BL45: 0 | BM45: 0 | BN45: 0 | BO45: 0 | BP45: 0 | BQ45: 0 | BR45: 0 | BS45: 0 | BT45: 0 | BU45: 0 | BV45: 0 | BW45: 0 | BX45: 0 | BY45: 16.36 | BZ45: 20.7 | CA45: Tue | CB45: 1600 | CC45: 0 | CD45: 3 | CE45: 165 | CF45: 200 | CG45: 8 | CH45: 0 | CI45: 0 | CJ45: 2 | CK45: 0 | CL45: 0 | CM45: 4 | CN45: 1 | CO45: 10 | CP45: 100 | CQ45: 176 | CR45: 87 | CS45: 10 | CT45: 0 | CU45: 0 | CV45: 0 | CW45: 0 | CX45: 0 | CY45: 0 | CZ45: 0 | DA45: 0 | DB45: 0 | DC45: 0 | DD45: 0 | DE45: 0 | DF45: 0 | DG45: 0 | DH45: 0 | DI45: 0 | DJ45: 0 | DK45: 0 | DL45: 17.16 | DM45: 21.24 | DN45: 0 | DO45: 2 | DP45: 56 | DQ45: 111 | DR45: 4 | DS45: 0 | DT45: 0 | DU45: 1 | DV45: 0 | DW45: 0 | DX45: 3 | DY45: 0 | DZ45: 177 | EA45: 0 | EB45: 1 | EC45: 109 | ED45: 89 | EE45: 4 | EF45: 0 | EG45: 0 | EH45: 1 | EI45: 0 | EJ45: 0 | EK45: 1 | EL45: 1 | EM45: 206 | EN45: 0 | EO45: 3 | EP45: 165 | EQ45: 200 | ER45: 8 | ES45: 0 | ET45: 0 | EU45: 2 | EV45: 0 | EW45: 0 | EX45: 4 | EY45: 1 | EZ45: 383 | FB45: 0 | FC45: Mon | FE45: 20.23 | FF45: 20.26 | FG45: 24.4 | FO45: 18.7 | FP45: 18.51 | FQ45: 22.67 | FY45: 19.57 | FZ45: 19.43 | GA45: 23.65
A46: Tue | B46: 1700 | C46: 1 | D46: 0 | E46: 59 | F46: 87 | G46: 4 | H46: 0 | I46: 0 | J46: 3 | K46: 0 | L46: 0 | M46: 0 | N46: 0 | O46: 2 | P46: 7 | Q46: 70 | R46: 64 | S46: 10 | T46: 1 | U46: 0 | V46: 0 | W46: 0 | X46: 0 | Y46: 0 | Z46: 0 | AA46: 0 | AB46: 0 | AC46: 0 | AD46: 0 | AE46: 0 | AF46: 0 | AG46: 0 | AH46: 0 | AI46: 0 | AJ46: 0 | AK46: 0 | AL46: 20.35 | AM46: 23.98 | AN46: Tue | AO46: 1700 | AP46: 0 | AQ46: 2 | AR46: 87 | AS46: 82 | AT46: 5 | AU46: 0 | AV46: 0 | AW46: 0 | AX46: 0 | AY46: 0 | AZ46: 0 | BA46: 3 | BB46: 6 | BC46: 25 | BD46: 72 | BE46: 70 | BF46: 5 | BG46: 1 | BH46: 0 | BI46: 0 | BJ46: 0 | BK46: 0 | BL46: 0 | BM46: 0 | BN46: 0 | BO46: 0 | BP46: 0 | BQ46: 0 | BR46: 0 | BS46: 0 | BT46: 0 | BU46: 0 | BV46: 0 | BW46: 0 | BX46: 0 | BY46: 18.76 | BZ46: 22.77 | CA46: Tue | CB46: 1700 | CC46: 1 | CD46: 2 | CE46: 146 | CF46: 169 | CG46: 9 | CH46: 0 | CI46: 0 | CJ46: 3 | CK46: 0 | CL46: 0 | CM46: 0 | CN46: 3 | CO46: 8 | CP46: 32 | CQ46: 142 | CR46: 134 | CS46: 15 | CT46: 2 | CU46: 0 | CV46: 0 | CW46: 0 | CX46: 0 | CY46: 0 | CZ46: 0 | DA46: 0 | DB46: 0 | DC46: 0 | DD46: 0 | DE46: 0 | DF46: 0 | DG46: 0 | DH46: 0 | DI46: 0 | DJ46: 0 | DK46: 0 | DL46: 19.49 | DM46: 23.48 | DN46: 1 | DO46: 0 | DP46: 59 | DQ46: 87 | DR46: 4 | DS46: 0 | DT46: 0 | DU46: 3 | DV46: 0 | DW46: 0 | DX46: 0 | DY46: 0 | DZ46: 154 | EA46: 0 | EB46: 2 | EC46: 87 | ED46: 82 | EE46: 5 | EF46: 0 | EG46: 0 | EH46: 0 | EI46: 0 | EJ46: 0 | EK46: 0 | EL46: 3 | EM46: 179 | EN46: 1 | EO46: 2 | EP46: 146 | EQ46: 169 | ER46: 9 | ES46: 0 | ET46: 0 | EU46: 3 | EV46: 0 | EW46: 0 | EX46: 0 | EY46: 3 | EZ46: 333 | FB46: 1 | FC46: Tue | FE46: 20.38 | FF46: 20.29 | FG46: 24.42 | FO46: 18.81 | FP46: 18.61 | FQ46: 23.03 | FY46: 19.62 | FZ46: 19.47 | GA46: 23.77
A47: Tue | B47: 1800 | C47: 0 | D47: 0 | E47: 38 | F47: 63 | G47: 3 | H47: 0 | I47: 0 | J47: 1 | K47: 0 | L47: 0 | M47: 1 | N47: 2 | O47: 2 | P47: 8 | Q47: 36 | R47: 48 | S47: 14 | T47: 0 | U47: 0 | V47: 0 | W47: 0 | X47: 0 | Y47: 0 | Z47: 0 | AA47: 0 | AB47: 0 | AC47: 0 | AD47: 0 | AE47: 0 | AF47: 0 | AG47: 0 | AH47: 0 | AI47: 0 | AJ47: 0 | AK47: 0 | AL47: 20.36 | AM47: 24.63 | AN47: Tue | AO47: 1800 | AP47: 0 | AQ47: 0 | AR47: 49 | AS47: 53 | AT47: 2 | AU47: 0 | AV47: 0 | AW47: 1 | AX47: 0 | AY47: 0 | AZ47: 0 | BA47: 0 | BB47: 0 | BC47: 15 | BD47: 40 | BE47: 41 | BF47: 9 | BG47: 0 | BH47: 0 | BI47: 0 | BJ47: 0 | BK47: 0 | BL47: 0 | BM47: 0 | BN47: 0 | BO47: 0 | BP47: 0 | BQ47: 0 | BR47: 0 | BS47: 0 | BT47: 0 | BU47: 0 | BV47: 0 | BW47: 0 | BX47: 0 | BY47: 19.75 | BZ47: 23.6 | CA47: Tue | CB47: 1800 | CC47: 0 | CD47: 0 | CE47: 87 | CF47: 116 | CG47: 5 | CH47: 0 | CI47: 0 | CJ47: 2 | CK47: 0 | CL47: 0 | CM47: 1 | CN47: 2 | CO47: 2 | CP47: 23 | CQ47: 76 | CR47: 89 | CS47: 23 | CT47: 0 | CU47: 0 | CV47: 0 | CW47: 0 | CX47: 0 | CY47: 0 | CZ47: 0 | DA47: 0 | DB47: 0 | DC47: 0 | DD47: 0 | DE47: 0 | DF47: 0 | DG47: 0 | DH47: 0 | DI47: 0 | DJ47: 0 | DK47: 0 | DL47: 20.06 | DM47: 24.45 | DN47: 0 | DO47: 0 | DP47: 38 | DQ47: 63 | DR47: 3 | DS47: 0 | DT47: 0 | DU47: 1 | DV47: 0 | DW47: 0 | DX47: 1 | DY47: 2 | DZ47: 108 | EA47: 0 | EB47: 0 | EC47: 49 | ED47: 53 | EE47: 2 | EF47: 0 | EG47: 0 | EH47: 1 | EI47: 0 | EJ47: 0 | EK47: 0 | EL47: 0 | EM47: 105 | EN47: 0 | EO47: 0 | EP47: 87 | EQ47: 116 | ER47: 5 | ES47: 0 | ET47: 0 | EU47: 2 | EV47: 0 | EW47: 0 | EX47: 1 | EY47: 2 | EZ47: 213 | FB47: 2 | FC47: Wed | FE47: 19.77 | FF47: 19.83 | FG47: 24.08 | FO47: 18.38 | FP47: 18.25 | FQ47: 22.28 | FY47: 19.08 | FZ47: 19.05 | GA47: 23.22
A48: Tue | B48: 1900 | C48: 1 | D48: 2 | E48: 19 | F48: 42 | G48: 1 | H48: 0 | I48: 0 | J48: 1 | K48: 0 | L48: 0 | M48: 0 | N48: 0 | O48: 0 | P48: 2 | Q48: 20 | R48: 36 | S48: 8 | T48: 0 | U48: 0 | V48: 0 | W48: 0 | X48: 0 | Y48: 0 | Z48: 0 | AA48: 0 | AB48: 0 | AC48: 0 | AD48: 0 | AE48: 0 | AF48: 0 | AG48: 0 | AH48: 0 | AI48: 0 | AJ48: 0 | AK48: 0 | AL48: 21.23 | AM48: 24.82 | AN48: Tue | AO48: 1900 | AP48: 0 | AQ48: 2 | AR48: 59 | AS48: 29 | AT48: 3 | AU48: 0 | AV48: 0 | AW48: 0 | AX48: 0 | AY48: 0 | AZ48: 0 | BA48: 0 | BB48: 3 | BC48: 11 | BD48: 34 | BE48: 39 | BF48: 5 | BG48: 1 | BH48: 0 | BI48: 0 | BJ48: 0 | BK48: 0 | BL48: 0 | BM48: 0 | BN48: 0 | BO48: 0 | BP48: 0 | BQ48: 0 | BR48: 0 | BS48: 0 | BT48: 0 | BU48: 0 | BV48: 0 | BW48: 0 | BX48: 0 | BY48: 19.46 | BZ48: 23.13 | CA48: Tue | CB48: 1900 | CC48: 1 | CD48: 4 | CE48: 78 | CF48: 71 | CG48: 4 | CH48: 0 | CI48: 0 | CJ48: 1 | CK48: 0 | CL48: 0 | CM48: 0 | CN48: 0 | CO48: 3 | CP48: 13 | CQ48: 54 | CR48: 75 | CS48: 13 | CT48: 1 | CU48: 0 | CV48: 0 | CW48: 0 | CX48: 0 | CY48: 0 | CZ48: 0 | DA48: 0 | DB48: 0 | DC48: 0 | DD48: 0 | DE48: 0 | DF48: 0 | DG48: 0 | DH48: 0 | DI48: 0 | DJ48: 0 | DK48: 0 | DL48: 20.19 | DM48: 23.84 | DN48: 1 | DO48: 2 | DP48: 19 | DQ48: 42 | DR48: 1 | DS48: 0 | DT48: 0 | DU48: 1 | DV48: 0 | DW48: 0 | DX48: 0 | DY48: 0 | DZ48: 66 | EA48: 0 | EB48: 2 | EC48: 59 | ED48: 29 | EE48: 3 | EF48: 0 | EG48: 0 | EH48: 0 | EI48: 0 | EJ48: 0 | EK48: 0 | EL48: 0 | EM48: 93 | EN48: 1 | EO48: 4 | EP48: 78 | EQ48: 71 | ER48: 4 | ES48: 0 | ET48: 0 | EU48: 1 | EV48: 0 | EW48: 0 | EX48: 0 | EY48: 0 | EZ48: 159 | FB48: 3 | FC48: Thu | FE48: 19.81 | FF48: 19.84 | FG48: 23.99 | FO48: 18.54 | FP48: 18.39 | FQ48: 22.41 | FY48: 19.2 | FZ48: 19.13 | GA48: 23.35
A49: Tue | B49: 2000 | C49: 0 | D49: 0 | E49: 24 | F49: 37 | G49: 4 | H49: 0 | I49: 0 | J49: 0 | K49: 0 | L49: 0 | M49: 0 | N49: 0 | O49: 1 | P49: 4 | Q49: 19 | R49: 30 | S49: 10 | T49: 1 | U49: 0 | V49: 0 | W49: 0 | X49: 0 | Y49: 0 | Z49: 0 | AA49: 0 | AB49: 0 | AC49: 0 | AD49: 0 | AE49: 0 | AF49: 0 | AG49: 0 | AH49: 0 | AI49: 0 | AJ49: 0 | AK49: 0 | AL49: 21.21 | AM49: 25.29 | AN49: Tue | AO49: 2000 | AP49: 0 | AQ49: 0 | AR49: 20 | AS49: 26 | AT49: 0 | AU49: 0 | AV49: 0 | AW49: 0 | AX49: 0 | AY49: 0 | AZ49: 0 | BA49: 0 | BB49: 0 | BC49: 8 | BD49: 16 | BE49: 17 | BF49: 5 | BG49: 0 | BH49: 0 | BI49: 0 | BJ49: 0 | BK49: 0 | BL49: 0 | BM49: 0 | BN49: 0 | BO49: 0 | BP49: 0 | BQ49: 0 | BR49: 0 | BS49: 0 | BT49: 0 | BU49: 0 | BV49: 0 | BW49: 0 | BX49: 0 | BY49: 19.91 | BZ49: 23.75 | CA49: Tue | CB49: 2000 | CC49: 0 | CD49: 0 | CE49: 44 | CF49: 63 | CG49: 4 | CH49: 0 | CI49: 0 | CJ49: 0 | CK49: 0 | CL49: 0 | CM49: 0 | CN49: 0 | CO49: 1 | CP49: 12 | CQ49: 35 | CR49: 47 | CS49: 15 | CT49: 1 | CU49: 0 | CV49: 0 | CW49: 0 | CX49: 0 | CY49: 0 | CZ49: 0 | DA49: 0 | DB49: 0 | DC49: 0 | DD49: 0 | DE49: 0 | DF49: 0 | DG49: 0 | DH49: 0 | DI49: 0 | DJ49: 0 | DK49: 0 | DL49: 20.67 | DM49: 24.6 | DN49: 0 | DO49: 0 | DP49: 24 | DQ49: 37 | DR49: 4 | DS49: 0 | DT49: 0 | DU49: 0 | DV49: 0 | DW49: 0 | DX49: 0 | DY49: 0 | DZ49: 65 | EA49: 0 | EB49: 0 | EC49: 20 | ED49: 26 | EE49: 0 | EF49: 0 | EG49: 0 | EH49: 0 | EI49: 0 | EJ49: 0 | EK49: 0 | EL49: 0 | EM49: 46 | EN49: 0 | EO49: 0 | EP49: 44 | EQ49: 63 | ER49: 4 | ES49: 0 | ET49: 0 | EU49: 0 | EV49: 0 | EW49: 0 | EX49: 0 | EY49: 0 | EZ49: 111 | FB49: 4 | FC49: Fri | FE49: 20.04 | FF49: 19.95 | FG49: 23.89 | FO49: 18.47 | FP49: 18.19 | FQ49: 22.13 | FY49: 19.23 | FZ49: 19.09 | GA49: 23.2
A50: Tue | B50: 2100 | C50: 0 | D50: 1 | E50: 18 | F50: 32 | G50: 1 | H50: 0 | I50: 0 | J50: 0 | K50: 0 | L50: 0 | M50: 0 | N50: 1 | O50: 0 | P50: 4 | Q50: 15 | R50: 24 | S50: 8 | T50: 2 | U50: 0 | V50: 0 | W50: 0 | X50: 0 | Y50: 0 | Z50: 0 | AA50: 0 | AB50: 0 | AC50: 0 | AD50: 0 | AE50: 0 | AF50: 0 | AG50: 0 | AH50: 0 | AI50: 0 | AJ50: 0 | AK50: 0 | AL50: 21.3 | AM50: 25.21 | AN50: Tue | AO50: 2100 | AP50: 0 | AQ50: 0 | AR50: 27 | AS50: 14 | AT50: 0 | AU50: 0 | AV50: 0 | AW50: 0 | AX50: 0 | AY50: 0 | AZ50: 0 | BA50: 0 | BB50: 1 | BC50: 3 | BD50: 14 | BE50: 17 | BF50: 4 | BG50: 2 | BH50: 0 | BI50: 0 | BJ50: 0 | BK50: 0 | BL50: 0 | BM50: 0 | BN50: 0 | BO50: 0 | BP50: 0 | BQ50: 0 | BR50: 0 | BS50: 0 | BT50: 0 | BU50: 0 | BV50: 0 | BW50: 0 | BX50: 0 | BY50: 20.49 | BZ50: 24.88 | CA50: Tue | CB50: 2100 | CC50: 0 | CD50: 1 | CE50: 45 | CF50: 46 | CG50: 1 | CH50: 0 | CI50: 0 | CJ50: 0 | CK50: 0 | CL50: 0 | CM50: 0 | CN50: 1 | CO50: 1 | CP50: 7 | CQ50: 29 | CR50: 41 | CS50: 12 | CT50: 4 | CU50: 0 | CV50: 0 | CW50: 0 | CX50: 0 | CY50: 0 | CZ50: 0 | DA50: 0 | DB50: 0 | DC50: 0 | DD50: 0 | DE50: 0 | DF50: 0 | DG50: 0 | DH50: 0 | DI50: 0 | DJ50: 0 | DK50: 0 | DL50: 20.95 | DM50: 25.14 | DN50: 0 | DO50: 1 | DP50: 18 | DQ50: 32 | DR50: 1 | DS50: 0 | DT50: 0 | DU50: 0 | DV50: 0 | DW50: 0 | DX50: 0 | DY50: 1 | DZ50: 53 | EA50: 0 | EB50: 0 | EC50: 27 | ED50: 14 | EE50: 0 | EF50: 0 | EG50: 0 | EH50: 0 | EI50: 0 | EJ50: 0 | EK50: 0 | EL50: 0 | EM50: 41 | EN50: 0 | EO50: 1 | EP50: 45 | EQ50: 46 | ER50: 1 | ES50: 0 | ET50: 0 | EU50: 0 | EV50: 0 | EW50: 0 | EX50: 0 | EY50: 1 | EZ50: 94 | FB50: 5 | FC50: Sat | FE50: 19.74 | FF50: 19.78 | FG50: 23.95 | FO50: 18.38 | FP50: 18.35 | FQ50: 22.9 | FY50: 19.12 | FZ50: 19.05 | GA50: 23.47
A51: Tue | B51: 2200 | C51: 0 | D51: 0 | E51: 5 | F51: 8 | G51: 0 | H51: 0 | I51: 0 | J51: 0 | K51: 0 | L51: 0 | M51: 0 | N51: 0 | O51: 0 | P51: 0 | Q51: 1 | R51: 8 | S51: 2 | T51: 2 | U51: 0 | V51: 0 | W51: 0 | X51: 0 | Y51: 0 | Z51: 0 | AA51: 0 | AB51: 0 | AC51: 0 | AD51: 0 | AE51: 0 | AF51: 0 | AG51: 0 | AH51: 0 | AI51: 0 | AJ51: 0 | AK51: 0 | AL51: 24.05 | AM51: 27.08 | AN51: Tue | AO51: 2200 | AP51: 0 | AQ51: 1 | AR51: 10 | AS51: 10 | AT51: 0 | AU51: 0 | AV51: 0 | AW51: 0 | AX51: 0 | AY51: 0 | AZ51: 0 | BA51: 0 | BB51: 0 | BC51: 0 | BD51: 4 | BE51: 9 | BF51: 7 | BG51: 1 | BH51: 0 | BI51: 0 | BJ51: 0 | BK51: 0 | BL51: 0 | BM51: 0 | BN51: 0 | BO51: 0 | BP51: 0 | BQ51: 0 | BR51: 0 | BS51: 0 | BT51: 0 | BU51: 0 | BV51: 0 | BW51: 0 | BX51: 0 | BY51: 23.85 | BZ51: 26.26 | CA51: Tue | CB51: 2200 | CC51: 0 | CD51: 1 | CE51: 15 | CF51: 18 | CG51: 0 | CH51: 0 | CI51: 0 | CJ51: 0 | CK51: 0 | CL51: 0 | CM51: 0 | CN51: 0 | CO51: 0 | CP51: 0 | CQ51: 5 | CR51: 17 | CS51: 9 | CT51: 3 | CU51: 0 | CV51: 0 | CW51: 0 | CX51: 0 | CY51: 0 | CZ51: 0 | DA51: 0 | DB51: 0 | DC51: 0 | DD51: 0 | DE51: 0 | DF51: 0 | DG51: 0 | DH51: 0 | DI51: 0 | DJ51: 0 | DK51: 0 | DL51: 23.93 | DM51: 26.29 | DN51: 0 | DO51: 0 | DP51: 5 | DQ51: 8 | DR51: 0 | DS51: 0 | DT51: 0 | DU51: 0 | DV51: 0 | DW51: 0 | DX51: 0 | DY51: 0 | DZ51: 13 | EA51: 0 | EB51: 1 | EC51: 10 | ED51: 10 | EE51: 0 | EF51: 0 | EG51: 0 | EH51: 0 | EI51: 0 | EJ51: 0 | EK51: 0 | EL51: 0 | EM51: 21 | EN51: 0 | EO51: 1 | EP51: 15 | EQ51: 18 | ER51: 0 | ES51: 0 | ET51: 0 | EU51: 0 | EV51: 0 | EW51: 0 | EX51: 0 | EY51: 0 | EZ51: 34 | FB51: 6 | FC51: Sun | FE51: 21.21 | FF51: 21.08 | FG51: 24.87 | FO51: 19.44 | FP51: 19.12 | FQ51: 23.19 | FY51: 20.34 | FZ51: 20.12 | GA51: 24.1
A52: Tue | B52: 2300 | C52: 0 | D52: 0 | E52: 1 | F52: 5 | G52: 0 | H52: 0 | I52: 0 | J52: 0 | K52: 0 | L52: 0 | M52: 0 | N52: 0 | O52: 0 | P52: 0 | Q52: 2 | R52: 4 | S52: 0 | T52: 0 | U52: 0 | V52: 0 | W52: 0 | X52: 0 | Y52: 0 | Z52: 0 | AA52: 0 | AB52: 0 | AC52: 0 | AD52: 0 | AE52: 0 | AF52: 0 | AG52: 0 | AH52: 0 | AI52: 0 | AJ52: 0 | AK52: 0 | AL52: 20.29 | AM52: - | AN52: Tue | AO52: 2300 | AP52: 0 | AQ52: 0 | AR52: 7 | AS52: 5 | AT52: 0 | AU52: 0 | AV52: 0 | AW52: 0 | AX52: 0 | AY52: 0 | AZ52: 0 | BA52: 0 | BB52: 0 | BC52: 0 | BD52: 5 | BE52: 6 | BF52: 0 | BG52: 1 | BH52: 0 | BI52: 0 | BJ52: 0 | BK52: 0 | BL52: 0 | BM52: 0 | BN52: 0 | BO52: 0 | BP52: 0 | BQ52: 0 | BR52: 0 | BS52: 0 | BT52: 0 | BU52: 0 | BV52: 0 | BW52: 0 | BX52: 0 | BY52: 21.54 | BZ52: 24.45 | CA52: Tue | CB52: 2300 | CC52: 0 | CD52: 0 | CE52: 8 | CF52: 10 | CG52: 0 | CH52: 0 | CI52: 0 | CJ52: 0 | CK52: 0 | CL52: 0 | CM52: 0 | CN52: 0 | CO52: 0 | CP52: 0 | CQ52: 7 | CR52: 10 | CS52: 0 | CT52: 1 | CU52: 0 | CV52: 0 | CW52: 0 | CX52: 0 | CY52: 0 | CZ52: 0 | DA52: 0 | DB52: 0 | DC52: 0 | DD52: 0 | DE52: 0 | DF52: 0 | DG52: 0 | DH52: 0 | DI52: 0 | DJ52: 0 | DK52: 0 | DL52: 21.12 | DM52: 24.46 | DN52: 0 | DO52: 0 | DP52: 1 | DQ52: 5 | DR52: 0 | DS52: 0 | DT52: 0 | DU52: 0 | DV52: 0 | DW52: 0 | DX52: 0 | DY52: 0 | DZ52: 6 | EA52: 0 | EB52: 0 | EC52: 7 | ED52: 5 | EE52: 0 | EF52: 0 | EG52: 0 | EH52: 0 | EI52: 0 | EJ52: 0 | EK52: 0 | EL52: 0 | EM52: 12 | EN52: 0 | EO52: 0 | EP52: 8 | EQ52: 10 | ER52: 0 | ES52: 0 | ET52: 0 | EU52: 0 | EV52: 0 | EW52: 0 | EX52: 0 | EY52: 0 | EZ52: 18 | FC52: Weekday | FE52: 20.04 | FF52: 20.03 | FG52: 24.15 | FO52: 18.56 | FP52: 18.38 | FQ52: 22.54 | FY52: 19.33 | FZ52: 19.23 | GA52: 23.44
A53: Wed | B53: 0 | C53: 0 | D53: 0 | E53: 1 | F53: 2 | G53: 0 | H53: 0 | I53: 0 | J53: 0 | K53: 0 | L53: 0 | M53: 0 | N53: 0 | O53: 0 | P53: 0 | Q53: 1 | R53: 1 | S53: 1 | T53: 0 | U53: 0 | V53: 0 | W53: 0 | X53: 0 | Y53: 0 | Z53: 0 | AA53: 0 | AB53: 0 | AC53: 0 | AD53: 0 | AE53: 0 | AF53: 0 | AG53: 0 | AH53: 0 | AI53: 0 | AJ53: 0 | AK53: 0 | AL53: 21.33 | AM53: - | AN53: Wed | AO53: 0 | AP53: 0 | AQ53: 0 | AR53: 0 | AS53: 1 | AT53: 0 | AU53: 0 | AV53: 0 | AW53: 0 | AX53: 0 | AY53: 0 | AZ53: 0 | BA53: 0 | BB53: 0 | BC53: 0 | BD53: 0 | BE53: 1 | BF53: 0 | BG53: 0 | BH53: 0 | BI53: 0 | BJ53: 0 | BK53: 0 | BL53: 0 | BM53: 0 | BN53: 0 | BO53: 0 | BP53: 0 | BQ53: 0 | BR53: 0 | BS53: 0 | BT53: 0 | BU53: 0 | BV53: 0 | BW53: 0 | BX53: 0 | BY53: 20.24 | BZ53: - | CA53: Wed | CB53: 0 | CC53: 0 | CD53: 0 | CE53: 1 | CF53: 3 | CG53: 0 | CH53: 0 | CI53: 0 | CJ53: 0 | CK53: 0 | CL53: 0 | CM53: 0 | CN53: 0 | CO53: 0 | CP53: 0 | CQ53: 1 | CR53: 2 | CS53: 1 | CT53: 0 | CU53: 0 | CV53: 0 | CW53: 0 | CX53: 0 | CY53: 0 | CZ53: 0 | DA53: 0 | DB53: 0 | DC53: 0 | DD53: 0 | DE53: 0 | DF53: 0 | DG53: 0 | DH53: 0 | DI53: 0 | DJ53: 0 | DK53: 0 | DL53: 21.06 | DM53: - | DN53: 0 | DO53: 0 | DP53: 1 | DQ53: 2 | DR53: 0 | DS53: 0 | DT53: 0 | DU53: 0 | DV53: 0 | DW53: 0 | DX53: 0 | DY53: 0 | DZ53: 3 | EA53: 0 | EB53: 0 | EC53: 0 | ED53: 1 | EE53: 0 | EF53: 0 | EG53: 0 | EH53: 0 | EI53: 0 | EJ53: 0 | EK53: 0 | EL53: 0 | EM53: 1 | EN53: 0 | EO53: 0 | EP53: 1 | EQ53: 3 | ER53: 0 | ES53: 0 | ET53: 0 | EU53: 0 | EV53: 0 | EW53: 0 | EX53: 0 | EY53: 0 | EZ53: 4 | FC53: 7 day | FE53: 20.14 | FF53: 20.11 | FG53: 24.21 | FO53: 18.64 | FP53: 18.46 | FQ53: 22.66 | FY53: 19.41 | FZ53: 19.3 | GA53: 23.55
A54: Wed | B54: 100 | C54: 0 | D54: 0 | E54: 0 | F54: 0 | G54: 0 | H54: 0 | I54: 0 | J54: 0 | K54: 0 | L54: 0 | M54: 0 | N54: 0 | O54: 0 | P54: 0 | Q54: 0 | R54: 0 | S54: 0 | T54: 0 | U54: 0 | V54: 0 | W54: 0 | X54: 0 | Y54: 0 | Z54: 0 | AA54: 0 | AB54: 0 | AC54: 0 | AD54: 0 | AE54: 0 | AF54: 0 | AG54: 0 | AH54: 0 | AI54: 0 | AJ54: 0 | AK54: 0 | AL54: - | AM54: - | AN54: Wed | AO54: 100 | AP54: 0 | AQ54: 0 | AR54: 0 | AS54: 0 | AT54: 1 | AU54: 0 | AV54: 0 | AW54: 0 | AX54: 0 | AY54: 0 | AZ54: 0 | BA54: 0 | BB54: 0 | BC54: 0 | BD54: 0 | BE54: 1 | BF54: 0 | BG54: 0 | BH54: 0 | BI54: 0 | BJ54: 0 | BK54: 0 | BL54: 0 | BM54: 0 | BN54: 0 | BO54: 0 | BP54: 0 | BQ54: 0 | BR54: 0 | BS54: 0 | BT54: 0 | BU54: 0 | BV54: 0 | BW54: 0 | BX54: 0 | BY54: 23.94 | BZ54: - | CA54: Wed | CB54: 100 | CC54: 0 | CD54: 0 | CE54: 0 | CF54: 0 | CG54: 1 | CH54: 0 | CI54: 0 | CJ54: 0 | CK54: 0 | CL54: 0 | CM54: 0 | CN54: 0 | CO54: 0 | CP54: 0 | CQ54: 0 | CR54: 1 | CS54: 0 | CT54: 0 | CU54: 0 | CV54: 0 | CW54: 0 | CX54: 0 | CY54: 0 | CZ54: 0 | DA54: 0 | DB54: 0 | DC54: 0 | DD54: 0 | DE54: 0 | DF54: 0 | DG54: 0 | DH54: 0 | DI54: 0 | DJ54: 0 | DK54: 0 | DL54: 23.94 | DM54: - | DN54: 0 | DO54: 0 | DP54: 0 | DQ54: 0 | DR54: 0 | DS54: 0 | DT54: 0 | DU54: 0 | DV54: 0 | DW54: 0 | DX54: 0 | DY54: 0 | DZ54: 0 | EA54: 0 | EB54: 0 | EC54: 0 | ED54: 0 | EE54: 1 | EF54: 0 | EG54: 0 | EH54: 0 | EI54: 0 | EJ54: 0 | EK54: 0 | EL54: 0 | EM54: 1 | EN54: 0 | EO54: 0 | EP54: 0 | EQ54: 0 | ER54: 1 | ES54: 0 | ET54: 0 | EU54: 0 | EV54: 0 | EW54: 0 | EX54: 0 | EY54: 0 | EZ54: 1
A55: Wed | B55: 200 | C55: 0 | D55: 0 | E55: 0 | F55: 1 | G55: 0 | H55: 0 | I55: 0 | J55: 0 | K55: 0 | L55: 0 | M55: 0 | N55: 0 | O55: 0 | P55: 0 | Q55: 0 | R55: 0 | S55: 1 | T55: 0 | U55: 0 | V55: 0 | W55: 0 | X55: 0 | Y55: 0 | Z55: 0 | AA55: 0 | AB55: 0 | AC55: 0 | AD55: 0 | AE55: 0 | AF55: 0 | AG55: 0 | AH55: 0 | AI55: 0 | AJ55: 0 | AK55: 0 | AL55: 25.05 | AM55: - | AN55: Wed | AO55: 200 | AP55: 0 | AQ55: 0 | AR55: 0 | AS55: 2 | AT55: 0 | AU55: 0 | AV55: 0 | AW55: 0 | AX55: 0 | AY55: 0 | AZ55: 0 | BA55: 0 | BB55: 0 | BC55: 0 | BD55: 0 | BE55: 2 | BF55: 0 | BG55: 0 | BH55: 0 | BI55: 0 | BJ55: 0 | BK55: 0 | BL55: 0 | BM55: 0 | BN55: 0 | BO55: 0 | BP55: 0 | BQ55: 0 | BR55: 0 | BS55: 0 | BT55: 0 | BU55: 0 | BV55: 0 | BW55: 0 | BX55: 0 | BY55: 22.18 | BZ55: - | CA55: Wed | CB55: 200 | CC55: 0 | CD55: 0 | CE55: 0 | CF55: 3 | CG55: 0 | CH55: 0 | CI55: 0 | CJ55: 0 | CK55: 0 | CL55: 0 | CM55: 0 | CN55: 0 | CO55: 0 | CP55: 0 | CQ55: 0 | CR55: 2 | CS55: 1 | CT55: 0 | CU55: 0 | CV55: 0 | CW55: 0 | CX55: 0 | CY55: 0 | CZ55: 0 | DA55: 0 | DB55: 0 | DC55: 0 | DD55: 0 | DE55: 0 | DF55: 0 | DG55: 0 | DH55: 0 | DI55: 0 | DJ55: 0 | DK55: 0 | DL55: 23.13 | DM55: - | DN55: 0 | DO55: 0 | DP55: 0 | DQ55: 1 | DR55: 0 | DS55: 0 | DT55: 0 | DU55: 0 | DV55: 0 | DW55: 0 | DX55: 0 | DY55: 0 | DZ55: 1 | EA55: 0 | EB55: 0 | EC55: 0 | ED55: 2 | EE55: 0 | EF55: 0 | EG55: 0 | EH55: 0 | EI55: 0 | EJ55: 0 | EK55: 0 | EL55: 0 | EM55: 2 | EN55: 0 | EO55: 0 | EP55: 0 | EQ55: 3 | ER55: 0 | ES55: 0 | ET55: 0 | EU55: 0 | EV55: 0 | EW55: 0 | EX55: 0 | EY55: 0 | EZ55: 3
A56: Wed | B56: 300 | C56: 0 | D56: 0 | E56: 0 | F56: 0 | G56: 0 | H56: 0 | I56: 0 | J56: 0 | K56: 0 | L56: 0 | M56: 0 | N56: 0 | O56: 0 | P56: 0 | Q56: 0 | R56: 0 | S56: 0 | T56: 0 | U56: 0 | V56: 0 | W56: 0 | X56: 0 | Y56: 0 | Z56: 0 | AA56: 0 | AB56: 0 | AC56: 0 | AD56: 0 | AE56: 0 | AF56: 0 | AG56: 0 | AH56: 0 | AI56: 0 | AJ56: 0 | AK56: 0 | AL56: - | AM56: - | AN56: Wed | AO56: 300 | AP56: 0 | AQ56: 0 | AR56: 0 | AS56: 0 | AT56: 0 | AU56: 0 | AV56: 0 | AW56: 0 | AX56: 0 | AY56: 0 | AZ56: 0 | BA56: 0 | BB56: 0 | BC56: 0 | BD56: 0 | BE56: 0 | BF56: 0 | BG56: 0 | BH56: 0 | BI56: 0 | BJ56: 0 | BK56: 0 | BL56: 0 | BM56: 0 | BN56: 0 | BO56: 0 | BP56: 0 | BQ56: 0 | BR56: 0 | BS56: 0 | BT56: 0 | BU56: 0 | BV56: 0 | BW56: 0 | BX56: 0 | BY56: - | BZ56: - | CA56: Wed | CB56: 300 | CC56: 0 | CD56: 0 | CE56: 0 | CF56: 0 | CG56: 0 | CH56: 0 | CI56: 0 | CJ56: 0 | CK56: 0 | CL56: 0 | CM56: 0 | CN56: 0 | CO56: 0 | CP56: 0 | CQ56: 0 | CR56: 0 | CS56: 0 | CT56: 0 | CU56: 0 | CV56: 0 | CW56: 0 | CX56: 0 | CY56: 0 | CZ56: 0 | DA56: 0 | DB56: 0 | DC56: 0 | DD56: 0 | DE56: 0 | DF56: 0 | DG56: 0 | DH56: 0 | DI56: 0 | DJ56: 0 | DK56: 0 | DL56: - | DM56: - | DN56: 0 | DO56: 0 | DP56: 0 | DQ56: 0 | DR56: 0 | DS56: 0 | DT56: 0 | DU56: 0 | DV56: 0 | DW56: 0 | DX56: 0 | DY56: 0 | DZ56: 0 | EA56: 0 | EB56: 0 | EC56: 0 | ED56: 0 | EE56: 0 | EF56: 0 | EG56: 0 | EH56: 0 | EI56: 0 | EJ56: 0 | EK56: 0 | EL56: 0 | EM56: 0 | EN56: 0 | EO56: 0 | EP56: 0 | EQ56: 0 | ER56: 0 | ES56: 0 | ET56: 0 | EU56: 0 | EV56: 0 | EW56: 0 | EX56: 0 | EY56: 0 | EZ56: 0
A57: Wed | B57: 400 | C57: 0 | D57: 0 | E57: 1 | F57: 1 | G57: 0 | H57: 0 | I57: 0 | J57: 0 | K57: 0 | L57: 0 | M57: 0 | N57: 0 | O57: 0 | P57: 0 | Q57: 0 | R57: 0 | S57: 2 | T57: 0 | U57: 0 | V57: 0 | W57: 0 | X57: 0 | Y57: 0 | Z57: 0 | AA57: 0 | AB57: 0 | AC57: 0 | AD57: 0 | AE57: 0 | AF57: 0 | AG57: 0 | AH57: 0 | AI57: 0 | AJ57: 0 | AK57: 0 | AL57: 26.76 | AM57: - | AN57: Wed | AO57: 400 | AP57: 0 | AQ57: 0 | AR57: 0 | AS57: 3 | AT57: 0 | AU57: 0 | AV57: 0 | AW57: 0 | AX57: 0 | AY57: 0 | AZ57: 0 | BA57: 0 | BB57: 0 | BC57: 0 | BD57: 1 | BE57: 2 | BF57: 0 | BG57: 0 | BH57: 0 | BI57: 0 | BJ57: 0 | BK57: 0 | BL57: 0 | BM57: 0 | BN57: 0 | BO57: 0 | BP57: 0 | BQ57: 0 | BR57: 0 | BS57: 0 | BT57: 0 | BU57: 0 | BV57: 0 | BW57: 0 | BX57: 0 | BY57: 20.79 | BZ57: - | CA57: Wed | CB57: 400 | CC57: 0 | CD57: 0 | CE57: 1 | CF57: 4 | CG57: 0 | CH57: 0 | CI57: 0 | CJ57: 0 | CK57: 0 | CL57: 0 | CM57: 0 | CN57: 0 | CO57: 0 | CP57: 0 | CQ57: 1 | CR57: 2 | CS57: 2 | CT57: 0 | CU57: 0 | CV57: 0 | CW57: 0 | CX57: 0 | CY57: 0 | CZ57: 0 | DA57: 0 | DB57: 0 | DC57: 0 | DD57: 0 | DE57: 0 | DF57: 0 | DG57: 0 | DH57: 0 | DI57: 0 | DJ57: 0 | DK57: 0 | DL57: 23.18 | DM57: - | DN57: 0 | DO57: 0 | DP57: 1 | DQ57: 1 | DR57: 0 | DS57: 0 | DT57: 0 | DU57: 0 | DV57: 0 | DW57: 0 | DX57: 0 | DY57: 0 | DZ57: 2 | EA57: 0 | EB57: 0 | EC57: 0 | ED57: 3 | EE57: 0 | EF57: 0 | EG57: 0 | EH57: 0 | EI57: 0 | EJ57: 0 | EK57: 0 | EL57: 0 | EM57: 3 | EN57: 0 | EO57: 0 | EP57: 1 | EQ57: 4 | ER57: 0 | ES57: 0 | ET57: 0 | EU57: 0 | EV57: 0 | EW57: 0 | EX57: 0 | EY57: 0 | EZ57: 5
A58: Wed | B58: 500 | C58: 0 | D58: 0 | E58: 3 | F58: 13 | G58: 0 | H58: 0 | I58: 0 | J58: 0 | K58: 0 | L58: 0 | M58: 0 | N58: 0 | O58: 0 | P58: 0 | Q58: 5 | R58: 7 | S58: 4 | T58: 0 | U58: 0 | V58: 0 | W58: 0 | X58: 0 | Y58: 0 | Z58: 0 | AA58: 0 | AB58: 0 | AC58: 0 | AD58: 0 | AE58: 0 | AF58: 0 | AG58: 0 | AH58: 0 | AI58: 0 | AJ58: 0 | AK58: 0 | AL58: 22.18 | AM58: 25.87 | AN58: Wed | AO58: 500 | AP58: 0 | AQ58: 0 | AR58: 3 | AS58: 2 | AT58: 0 | AU58: 0 | AV58: 0 | AW58: 0 | AX58: 0 | AY58: 0 | AZ58: 0 | BA58: 0 | BB58: 0 | BC58: 1 | BD58: 2 | BE58: 1 | BF58: 1 | BG58: 0 | BH58: 0 | BI58: 0 | BJ58: 0 | BK58: 0 | BL58: 0 | BM58: 0 | BN58: 0 | BO58: 0 | BP58: 0 | BQ58: 0 | BR58: 0 | BS58: 0 | BT58: 0 | BU58: 0 | BV58: 0 | BW58: 0 | BX58: 0 | BY58: 18.68 | BZ58: - | CA58: Wed | CB58: 500 | CC58: 0 | CD58: 0 | CE58: 6 | CF58: 15 | CG58: 0 | CH58: 0 | CI58: 0 | CJ58: 0 | CK58: 0 | CL58: 0 | CM58: 0 | CN58: 0 | CO58: 0 | CP58: 1 | CQ58: 7 | CR58: 8 | CS58: 5 | CT58: 0 | CU58: 0 | CV58: 0 | CW58: 0 | CX58: 0 | CY58: 0 | CZ58: 0 | DA58: 0 | DB58: 0 | DC58: 0 | DD58: 0 | DE58: 0 | DF58: 0 | DG58: 0 | DH58: 0 | DI58: 0 | DJ58: 0 | DK58: 0 | DL58: 21.35 | DM58: 25.61 | DN58: 0 | DO58: 0 | DP58: 3 | DQ58: 13 | DR58: 0 | DS58: 0 | DT58: 0 | DU58: 0 | DV58: 0 | DW58: 0 | DX58: 0 | DY58: 0 | DZ58: 16 | EA58: 0 | EB58: 0 | EC58: 3 | ED58: 2 | EE58: 0 | EF58: 0 | EG58: 0 | EH58: 0 | EI58: 0 | EJ58: 0 | EK58: 0 | EL58: 0 | EM58: 5 | EN58: 0 | EO58: 0 | EP58: 6 | EQ58: 15 | ER58: 0 | ES58: 0 | ET58: 0 | EU58: 0 | EV58: 0 | EW58: 0 | EX58: 0 | EY58: 0 | EZ58: 21
A59: Wed | B59: 600 | C59: 0 | D59: 0 | E59: 16 | F59: 24 | G59: 2 | H59: 0 | I59: 0 | J59: 0 | K59: 0 | L59: 0 | M59: 0 | N59: 0 | O59: 0 | P59: 0 | Q59: 4 | R59: 18 | S59: 17 | T59: 3 | U59: 0 | V59: 0 | W59: 0 | X59: 0 | Y59: 0 | Z59: 0 | AA59: 0 | AB59: 0 | AC59: 0 | AD59: 0 | AE59: 0 | AF59: 0 | AG59: 0 | AH59: 0 | AI59: 0 | AJ59: 0 | AK59: 0 | AL59: 24.94 | AM59: 29.14 | AN59: Wed | AO59: 600 | AP59: 0 | AQ59: 0 | AR59: 6 | AS59: 6 | AT59: 2 | AU59: 0 | AV59: 0 | AW59: 0 | AX59: 0 | AY59: 0 | AZ59: 0 | BA59: 0 | BB59: 0 | BC59: 0 | BD59: 8 | BE59: 4 | BF59: 2 | BG59: 0 | BH59: 0 | BI59: 0 | BJ59: 0 | BK59: 0 | BL59: 0 | BM59: 0 | BN59: 0 | BO59: 0 | BP59: 0 | BQ59: 0 | BR59: 0 | BS59: 0 | BT59: 0 | BU59: 0 | BV59: 0 | BW59: 0 | BX59: 0 | BY59: 20.49 | BZ59: 24.29 | CA59: Wed | CB59: 600 | CC59: 0 | CD59: 0 | CE59: 22 | CF59: 30 | CG59: 4 | CH59: 0 | CI59: 0 | CJ59: 0 | CK59: 0 | CL59: 0 | CM59: 0 | CN59: 0 | CO59: 0 | CP59: 0 | CQ59: 12 | CR59: 22 | CS59: 19 | CT59: 3 | CU59: 0 | CV59: 0 | CW59: 0 | CX59: 0 | CY59: 0 | CZ59: 0 | DA59: 0 | DB59: 0 | DC59: 0 | DD59: 0 | DE59: 0 | DF59: 0 | DG59: 0 | DH59: 0 | DI59: 0 | DJ59: 0 | DK59: 0 | DL59: 23.83 | DM59: 27.51 | DN59: 0 | DO59: 0 | DP59: 16 | DQ59: 24 | DR59: 2 | DS59: 0 | DT59: 0 | DU59: 0 | DV59: 0 | DW59: 0 | DX59: 0 | DY59: 0 | DZ59: 42 | EA59: 0 | EB59: 0 | EC59: 6 | ED59: 6 | EE59: 2 | EF59: 0 | EG59: 0 | EH59: 0 | EI59: 0 | EJ59: 0 | EK59: 0 | EL59: 0 | EM59: 14 | EN59: 0 | EO59: 0 | EP59: 22 | EQ59: 30 | ER59: 4 | ES59: 0 | ET59: 0 | EU59: 0 | EV59: 0 | EW59: 0 | EX59: 0 | EY59: 0 | EZ59: 56
A60: Wed | B60: 700 | C60: 1 | D60: 0 | E60: 47 | F60: 66 | G60: 5 | H60: 0 | I60: 0 | J60: 0 | K60: 0 | L60: 0 | M60: 1 | N60: 0 | O60: 0 | P60: 6 | Q60: 27 | R60: 63 | S60: 23 | T60: 1 | U60: 0 | V60: 0 | W60: 0 | X60: 0 | Y60: 0 | Z60: 0 | AA60: 0 | AB60: 0 | AC60: 0 | AD60: 0 | AE60: 0 | AF60: 0 | AG60: 0 | AH60: 0 | AI60: 0 | AJ60: 0 | AK60: 0 | AL60: 22.05 | AM60: 26.29 | AN60: Wed | AO60: 700 | AP60: 1 | AQ60: 0 | AR60: 23 | AS60: 42 | AT60: 4 | AU60: 0 | AV60: 0 | AW60: 1 | AX60: 0 | AY60: 0 | AZ60: 0 | BA60: 1 | BB60: 4 | BC60: 12 | BD60: 30 | BE60: 24 | BF60: 2 | BG60: 0 | BH60: 0 | BI60: 0 | BJ60: 0 | BK60: 0 | BL60: 0 | BM60: 0 | BN60: 0 | BO60: 0 | BP60: 0 | BQ60: 0 | BR60: 0 | BS60: 0 | BT60: 0 | BU60: 0 | BV60: 0 | BW60: 0 | BX60: 0 | BY60: 18.22 | BZ60: 22.89 | CA60: Wed | CB60: 700 | CC60: 2 | CD60: 0 | CE60: 70 | CF60: 108 | CG60: 9 | CH60: 0 | CI60: 0 | CJ60: 1 | CK60: 0 | CL60: 0 | CM60: 1 | CN60: 1 | CO60: 4 | CP60: 18 | CQ60: 57 | CR60: 87 | CS60: 25 | CT60: 1 | CU60: 0 | CV60: 0 | CW60: 0 | CX60: 0 | CY60: 0 | CZ60: 0 | DA60: 0 | DB60: 0 | DC60: 0 | DD60: 0 | DE60: 0 | DF60: 0 | DG60: 0 | DH60: 0 | DI60: 0 | DJ60: 0 | DK60: 0 | DL60: 20.61 | DM60: 24.69 | DN60: 1 | DO60: 0 | DP60: 47 | DQ60: 66 | DR60: 5 | DS60: 0 | DT60: 0 | DU60: 0 | DV60: 0 | DW60: 0 | DX60: 1 | DY60: 0 | DZ60: 120 | EA60: 1 | EB60: 0 | EC60: 23 | ED60: 42 | EE60: 4 | EF60: 0 | EG60: 0 | EH60: 1 | EI60: 0 | EJ60: 0 | EK60: 0 | EL60: 1 | EM60: 72 | EN60: 2 | EO60: 0 | EP60: 70 | EQ60: 108 | ER60: 9 | ES60: 0 | ET60: 0 | EU60: 1 | EV60: 0 | EW60: 0 | EX60: 1 | EY60: 1 | EZ60: 192
A61: Wed | B61: 800 | C61: 1 | D61: 1 | E61: 55 | F61: 90 | G61: 8 | H61: 0 | I61: 0 | J61: 3 | K61: 0 | L61: 0 | M61: 2 | N61: 1 | O61: 0 | P61: 14 | Q61: 74 | R61: 62 | S61: 11 | T61: 0 | U61: 0 | V61: 0 | W61: 0 | X61: 0 | Y61: 0 | Z61: 0 | AA61: 0 | AB61: 0 | AC61: 0 | AD61: 0 | AE61: 0 | AF61: 0 | AG61: 0 | AH61: 0 | AI61: 0 | AJ61: 0 | AK61: 0 | AL61: 19.58 | AM61: 23.16 | AN61: Wed | AO61: 800 | AP61: 0 | AQ61: 0 | AR61: 58 | AS61: 74 | AT61: 6 | AU61: 1 | AV61: 0 | AW61: 4 | AX61: 0 | AY61: 0 | AZ61: 1 | BA61: 1 | BB61: 3 | BC61: 16 | BD61: 76 | BE61: 42 | BF61: 7 | BG61: 1 | BH61: 0 | BI61: 0 | BJ61: 0 | BK61: 0 | BL61: 0 | BM61: 0 | BN61: 0 | BO61: 0 | BP61: 0 | BQ61: 0 | BR61: 0 | BS61: 0 | BT61: 0 | BU61: 0 | BV61: 0 | BW61: 0 | BX61: 0 | BY61: 18.78 | BZ61: 22.32 | CA61: Wed | CB61: 800 | CC61: 1 | CD61: 1 | CE61: 113 | CF61: 164 | CG61: 14 | CH61: 1 | CI61: 0 | CJ61: 7 | CK61: 0 | CL61: 0 | CM61: 3 | CN61: 2 | CO61: 3 | CP61: 30 | CQ61: 150 | CR61: 104 | CS61: 18 | CT61: 1 | CU61: 0 | CV61: 0 | CW61: 0 | CX61: 0 | CY61: 0 | CZ61: 0 | DA61: 0 | DB61: 0 | DC61: 0 | DD61: 0 | DE61: 0 | DF61: 0 | DG61: 0 | DH61: 0 | DI61: 0 | DJ61: 0 | DK61: 0 | DL61: 19.2 | DM61: 22.95 | DN61: 1 | DO61: 1 | DP61: 55 | DQ61: 90 | DR61: 8 | DS61: 0 | DT61: 0 | DU61: 3 | DV61: 0 | DW61: 0 | DX61: 2 | DY61: 1 | DZ61: 161 | EA61: 0 | EB61: 0 | EC61: 58 | ED61: 74 | EE61: 6 | EF61: 1 | EG61: 0 | EH61: 4 | EI61: 0 | EJ61: 0 | EK61: 1 | EL61: 1 | EM61: 145 | EN61: 1 | EO61: 1 | EP61: 113 | EQ61: 164 | ER61: 14 | ES61: 1 | ET61: 0 | EU61: 7 | EV61: 0 | EW61: 0 | EX61: 3 | EY61: 2 | EZ61: 306
A62: Wed | B62: 900 | C62: 0 | D62: 0 | E62: 70 | F62: 88 | G62: 6 | H62: 1 | I62: 0 | J62: 0 | K62: 0 | L62: 0 | M62: 0 | N62: 0 | O62: 2 | P62: 16 | Q62: 98 | R62: 39 | S62: 10 | T62: 0 | U62: 0 | V62: 0 | W62: 0 | X62: 0 | Y62: 0 | Z62: 0 | AA62: 0 | AB62: 0 | AC62: 0 | AD62: 0 | AE62: 0 | AF62: 0 | AG62: 0 | AH62: 0 | AI62: 0 | AJ62: 0 | AK62: 0 | AL62: 18.71 | AM62: 22.44 | AN62: Wed | AO62: 900 | AP62: 0 | AQ62: 1 | AR62: 53 | AS62: 64 | AT62: 6 | AU62: 0 | AV62: 0 | AW62: 0 | AX62: 0 | AY62: 0 | AZ62: 1 | BA62: 0 | BB62: 5 | BC62: 31 | BD62: 56 | BE62: 30 | BF62: 3 | BG62: 0 | BH62: 0 | BI62: 0 | BJ62: 0 | BK62: 0 | BL62: 0 | BM62: 0 | BN62: 0 | BO62: 0 | BP62: 0 | BQ62: 0 | BR62: 0 | BS62: 0 | BT62: 0 | BU62: 0 | BV62: 0 | BW62: 0 | BX62: 0 | BY62: 17.49 | BZ62: 21.4 | CA62: Wed | CB62: 900 | CC62: 0 | CD62: 1 | CE62: 123 | CF62: 152 | CG62: 12 | CH62: 1 | CI62: 0 | CJ62: 0 | CK62: 0 | CL62: 0 | CM62: 1 | CN62: 0 | CO62: 7 | CP62: 47 | CQ62: 154 | CR62: 69 | CS62: 13 | CT62: 0 | CU62: 0 | CV62: 0 | CW62: 0 | CX62: 0 | CY62: 0 | CZ62: 0 | DA62: 0 | DB62: 0 | DC62: 0 | DD62: 0 | DE62: 0 | DF62: 0 | DG62: 0 | DH62: 0 | DI62: 0 | DJ62: 0 | DK62: 0 | DL62: 18.19 | DM62: 21.65 | DN62: 0 | DO62: 0 | DP62: 70 | DQ62: 88 | DR62: 6 | DS62: 1 | DT62: 0 | DU62: 0 | DV62: 0 | DW62: 0 | DX62: 0 | DY62: 0 | DZ62: 165 | EA62: 0 | EB62: 1 | EC62: 53 | ED62: 64 | EE62: 6 | EF62: 0 | EG62: 0 | EH62: 0 | EI62: 0 | EJ62: 0 | EK62: 1 | EL62: 0 | EM62: 125 | EN62: 0 | EO62: 1 | EP62: 123 | EQ62: 152 | ER62: 12 | ES62: 1 | ET62: 0 | EU62: 0 | EV62: 0 | EW62: 0 | EX62: 1 | EY62: 0 | EZ62: 290
A63: Wed | B63: 1000 | C63: 0 | D63: 1 | E63: 56 | F63: 91 | G63: 10 | H63: 0 | I63: 0 | J63: 2 | K63: 0 | L63: 1 | M63: 3 | N63: 0 | O63: 2 | P63: 37 | Q63: 91 | R63: 32 | S63: 2 | T63: 0 | U63: 0 | V63: 0 | W63: 0 | X63: 0 | Y63: 0 | Z63: 0 | AA63: 0 | AB63: 0 | AC63: 0 | AD63: 0 | AE63: 0 | AF63: 0 | AG63: 0 | AH63: 0 | AI63: 0 | AJ63: 0 | AK63: 0 | AL63: 17.19 | AM63: 21.01 | AN63: Wed | AO63: 1000 | AP63: 0 | AQ63: 0 | AR63: 58 | AS63: 95 | AT63: 8 | AU63: 2 | AV63: 0 | AW63: 0 | AX63: 0 | AY63: 1 | AZ63: 0 | BA63: 0 | BB63: 3 | BC63: 59 | BD63: 75 | BE63: 26 | BF63: 1 | BG63: 0 | BH63: 0 | BI63: 0 | BJ63: 0 | BK63: 0 | BL63: 0 | BM63: 0 | BN63: 0 | BO63: 0 | BP63: 0 | BQ63: 0 | BR63: 0 | BS63: 0 | BT63: 0 | BU63: 0 | BV63: 0 | BW63: 0 | BX63: 0 | BY63: 16.46 | BZ63: 20.11 | CA63: Wed | CB63: 1000 | CC63: 0 | CD63: 1 | CE63: 114 | CF63: 186 | CG63: 18 | CH63: 2 | CI63: 0 | CJ63: 2 | CK63: 0 | CL63: 2 | CM63: 3 | CN63: 0 | CO63: 5 | CP63: 96 | CQ63: 166 | CR63: 58 | CS63: 3 | CT63: 0 | CU63: 0 | CV63: 0 | CW63: 0 | CX63: 0 | CY63: 0 | CZ63: 0 | DA63: 0 | DB63: 0 | DC63: 0 | DD63: 0 | DE63: 0 | DF63: 0 | DG63: 0 | DH63: 0 | DI63: 0 | DJ63: 0 | DK63: 0 | DL63: 16.83 | DM63: 20.62 | DN63: 0 | DO63: 1 | DP63: 56 | DQ63: 91 | DR63: 10 | DS63: 0 | DT63: 0 | DU63: 2 | DV63: 0 | DW63: 1 | DX63: 3 | DY63: 0 | DZ63: 164 | EA63: 0 | EB63: 0 | EC63: 58 | ED63: 95 | EE63: 8 | EF63: 2 | EG63: 0 | EH63: 0 | EI63: 0 | EJ63: 1 | EK63: 0 | EL63: 0 | EM63: 164 | EN63: 0 | EO63: 1 | EP63: 114 | EQ63: 186 | ER63: 18 | ES63: 2 | ET63: 0 | EU63: 2 | EV63: 0 | EW63: 2 | EX63: 3 | EY63: 0 | EZ63: 328
A64: Wed | B64: 1100 | C64: 0 | D64: 0 | E64: 52 | F64: 92 | G64: 9 | H64: 0 | I64: 0 | J64: 0 | K64: 0 | L64: 0 | M64: 0 | N64: 0 | O64: 1 | P64: 37 | Q64: 66 | R64: 41 | S64: 7 | T64: 0 | U64: 1 | V64: 0 | W64: 0 | X64: 0 | Y64: 0 | Z64: 0 | AA64: 0 | AB64: 0 | AC64: 0 | AD64: 0 | AE64: 0 | AF64: 0 | AG64: 0 | AH64: 0 | AI64: 0 | AJ64: 0 | AK64: 0 | AL64: 18.03 | AM64: 21.96 | AN64: Wed | AO64: 1100 | AP64: 0 | AQ64: 0 | AR64: 58 | AS64: 77 | AT64: 10 | AU64: 0 | AV64: 0 | AW64: 0 | AX64: 0 | AY64: 0 | AZ64: 0 | BA64: 0 | BB64: 2 | BC64: 35 | BD64: 85 | BE64: 22 | BF64: 1 | BG64: 0 | BH64: 0 | BI64: 0 | BJ64: 0 | BK64: 0 | BL64: 0 | BM64: 0 | BN64: 0 | BO64: 0 | BP64: 0 | BQ64: 0 | BR64: 0 | BS64: 0 | BT64: 0 | BU64: 0 | BV64: 0 | BW64: 0 | BX64: 0 | BY64: 17.07 | BZ64: 20.12 | CA64: Wed | CB64: 1100 | CC64: 0 | CD64: 0 | CE64: 110 | CF64: 169 | CG64: 19 | CH64: 0 | CI64: 0 | CJ64: 0 | CK64: 0 | CL64: 0 | CM64: 0 | CN64: 0 | CO64: 3 | CP64: 72 | CQ64: 151 | CR64: 63 | CS64: 8 | CT64: 0 | CU64: 1 | CV64: 0 | CW64: 0 | CX64: 0 | CY64: 0 | CZ64: 0 | DA64: 0 | DB64: 0 | DC64: 0 | DD64: 0 | DE64: 0 | DF64: 0 | DG64: 0 | DH64: 0 | DI64: 0 | DJ64: 0 | DK64: 0 | DL64: 17.57 | DM64: 20.98 | DN64: 0 | DO64: 0 | DP64: 52 | DQ64: 92 | DR64: 9 | DS64: 0 | DT64: 0 | DU64: 0 | DV64: 0 | DW64: 0 | DX64: 0 | DY64: 0 | DZ64: 153 | EA64: 0 | EB64: 0 | EC64: 58 | ED64: 77 | EE64: 10 | EF64: 0 | EG64: 0 | EH64: 0 | EI64: 0 | EJ64: 0 | EK64: 0 | EL64: 0 | EM64: 145 | EN64: 0 | EO64: 0 | EP64: 110 | EQ64: 169 | ER64: 19 | ES64: 0 | ET64: 0 | EU64: 0 | EV64: 0 | EW64: 0 | EX64: 0 | EY64: 0 | EZ64: 298
A65: Wed | B65: 1200 | C65: 0 | D65: 2 | E65: 70 | F65: 104 | G65: 3 | H65: 2 | I65: 0 | J65: 1 | K65: 0 | L65: 0 | M65: 0 | N65: 1 | O65: 5 | P65: 23 | Q65: 102 | R65: 47 | S65: 6 | T65: 0 | U65: 0 | V65: 0 | W65: 0 | X65: 0 | Y65: 0 | Z65: 0 | AA65: 0 | AB65: 0 | AC65: 0 | AD65: 0 | AE65: 0 | AF65: 0 | AG65: 0 | AH65: 0 | AI65: 0 | AJ65: 0 | AK65: 0 | AL65: 18.18 | AM65: 21.52 | AN65: Wed | AO65: 1200 | AP65: 0 | AQ65: 2 | AR65: 55 | AS65: 81 | AT65: 3 | AU65: 3 | AV65: 0 | AW65: 1 | AX65: 0 | AY65: 0 | AZ65: 0 | BA65: 1 | BB65: 5 | BC65: 29 | BD65: 69 | BE65: 35 | BF65: 7 | BG65: 1 | BH65: 0 | BI65: 0 | BJ65: 0 | BK65: 0 | BL65: 0 | BM65: 0 | BN65: 0 | BO65: 0 | BP65: 0 | BQ65: 0 | BR65: 0 | BS65: 0 | BT65: 0 | BU65: 0 | BV65: 0 | BW65: 0 | BX65: 0 | BY65: 17.87 | BZ65: 21.51 | CA65: Wed | CB65: 1200 | CC65: 0 | CD65: 4 | CE65: 125 | CF65: 185 | CG65: 6 | CH65: 5 | CI65: 0 | CJ65: 2 | CK65: 0 | CL65: 0 | CM65: 0 | CN65: 2 | CO65: 10 | CP65: 52 | CQ65: 171 | CR65: 82 | CS65: 13 | CT65: 1 | CU65: 0 | CV65: 0 | CW65: 0 | CX65: 0 | CY65: 0 | CZ65: 0 | DA65: 0 | DB65: 0 | DC65: 0 | DD65: 0 | DE65: 0 | DF65: 0 | DG65: 0 | DH65: 0 | DI65: 0 | DJ65: 0 | DK65: 0 | DL65: 18.05 | DM65: 21.53 | DN65: 0 | DO65: 2 | DP65: 70 | DQ65: 104 | DR65: 3 | DS65: 2 | DT65: 0 | DU65: 1 | DV65: 0 | DW65: 0 | DX65: 0 | DY65: 1 | DZ65: 183 | EA65: 0 | EB65: 2 | EC65: 55 | ED65: 81 | EE65: 3 | EF65: 3 | EG65: 0 | EH65: 1 | EI65: 0 | EJ65: 0 | EK65: 0 | EL65: 1 | EM65: 146 | EN65: 0 | EO65: 4 | EP65: 125 | EQ65: 185 | ER65: 6 | ES65: 5 | ET65: 0 | EU65: 2 | EV65: 0 | EW65: 0 | EX65: 0 | EY65: 2 | EZ65: 329
A66: Wed | B66: 1300 | C66: 0 | D66: 1 | E66: 53 | F66: 90 | G66: 4 | H66: 0 | I66: 0 | J66: 1 | K66: 0 | L66: 0 | M66: 1 | N66: 0 | O66: 2 | P66: 19 | Q66: 69 | R66: 49 | S66: 10 | T66: 1 | U66: 0 | V66: 0 | W66: 0 | X66: 0 | Y66: 0 | Z66: 0 | AA66: 0 | AB66: 0 | AC66: 0 | AD66: 0 | AE66: 0 | AF66: 0 | AG66: 0 | AH66: 0 | AI66: 0 | AJ66: 0 | AK66: 0 | AL66: 19.07 | AM66: 22.75 | AN66: Wed | AO66: 1300 | AP66: 0 | AQ66: 1 | AR66: 61 | AS66: 64 | AT66: 6 | AU66: 0 | AV66: 0 | AW66: 0 | AX66: 0 | AY66: 0 | AZ66: 0 | BA66: 0 | BB66: 1 | BC66: 21 | BD66: 76 | BE66: 32 | BF66: 2 | BG66: 0 | BH66: 0 | BI66: 0 | BJ66: 0 | BK66: 0 | BL66: 0 | BM66: 0 | BN66: 0 | BO66: 0 | BP66: 0 | BQ66: 0 | BR66: 0 | BS66: 0 | BT66: 0 | BU66: 0 | BV66: 0 | BW66: 0 | BX66: 0 | BY66: 17.97 | BZ66: 20.99 | CA66: Wed | CB66: 1300 | CC66: 0 | CD66: 2 | CE66: 114 | CF66: 154 | CG66: 10 | CH66: 0 | CI66: 0 | CJ66: 1 | CK66: 0 | CL66: 0 | CM66: 1 | CN66: 0 | CO66: 3 | CP66: 40 | CQ66: 145 | CR66: 81 | CS66: 12 | CT66: 1 | CU66: 0 | CV66: 0 | CW66: 0 | CX66: 0 | CY66: 0 | CZ66: 0 | DA66: 0 | DB66: 0 | DC66: 0 | DD66: 0 | DE66: 0 | DF66: 0 | DG66: 0 | DH66: 0 | DI66: 0 | DJ66: 0 | DK66: 0 | DL66: 18.55 | DM66: 21.76 | DN66: 0 | DO66: 1 | DP66: 53 | DQ66: 90 | DR66: 4 | DS66: 0 | DT66: 0 | DU66: 1 | DV66: 0 | DW66: 0 | DX66: 1 | DY66: 0 | DZ66: 150 | EA66: 0 | EB66: 1 | EC66: 61 | ED66: 64 | EE66: 6 | EF66: 0 | EG66: 0 | EH66: 0 | EI66: 0 | EJ66: 0 | EK66: 0 | EL66: 0 | EM66: 132 | EN66: 0 | EO66: 2 | EP66: 114 | EQ66: 154 | ER66: 10 | ES66: 0 | ET66: 0 | EU66: 1 | EV66: 0 | EW66: 0 | EX66: 1 | EY66: 0 | EZ66: 282
A67: Wed | B67: 1400 | C67: 1 | D67: 0 | E67: 51 | F67: 93 | G67: 8 | H67: 1 | I67: 0 | J67: 0 | K67: 0 | L67: 0 | M67: 0 | N67: 0 | O67: 1 | P67: 30 | Q67: 79 | R67: 42 | S67: 2 | T67: 0 | U67: 0 | V67: 0 | W67: 0 | X67: 0 | Y67: 0 | Z67: 0 | AA67: 0 | AB67: 0 | AC67: 0 | AD67: 0 | AE67: 0 | AF67: 0 | AG67: 0 | AH67: 0 | AI67: 0 | AJ67: 0 | AK67: 0 | AL67: 17.86 | AM67: 21.98 | AN67: Wed | AO67: 1400 | AP67: 0 | AQ67: 1 | AR67: 61 | AS67: 68 | AT67: 1 | AU67: 1 | AV67: 0 | AW67: 0 | AX67: 0 | AY67: 0 | AZ67: 0 | BA67: 1 | BB67: 5 | BC67: 32 | BD67: 60 | BE67: 34 | BF67: 2 | BG67: 0 | BH67: 0 | BI67: 0 | BJ67: 0 | BK67: 0 | BL67: 0 | BM67: 0 | BN67: 0 | BO67: 0 | BP67: 0 | BQ67: 0 | BR67: 0 | BS67: 0 | BT67: 0 | BU67: 0 | BV67: 0 | BW67: 0 | BX67: 0 | BY67: 17.2 | BZ67: 21.08 | CA67: Wed | CB67: 1400 | CC67: 1 | CD67: 1 | CE67: 112 | CF67: 161 | CG67: 9 | CH67: 2 | CI67: 0 | CJ67: 0 | CK67: 0 | CL67: 0 | CM67: 0 | CN67: 1 | CO67: 6 | CP67: 62 | CQ67: 139 | CR67: 76 | CS67: 4 | CT67: 0 | CU67: 0 | CV67: 0 | CW67: 0 | CX67: 0 | CY67: 0 | CZ67: 0 | DA67: 0 | DB67: 0 | DC67: 0 | DD67: 0 | DE67: 0 | DF67: 0 | DG67: 0 | DH67: 0 | DI67: 0 | DJ67: 0 | DK67: 0 | DL67: 17.55 | DM67: 21.53 | DN67: 1 | DO67: 0 | DP67: 51 | DQ67: 93 | DR67: 8 | DS67: 1 | DT67: 0 | DU67: 0 | DV67: 0 | DW67: 0 | DX67: 0 | DY67: 0 | DZ67: 154 | EA67: 0 | EB67: 1 | EC67: 61 | ED67: 68 | EE67: 1 | EF67: 1 | EG67: 0 | EH67: 0 | EI67: 0 | EJ67: 0 | EK67: 0 | EL67: 1 | EM67: 133 | EN67: 1 | EO67: 1 | EP67: 112 | EQ67: 161 | ER67: 9 | ES67: 2 | ET67: 0 | EU67: 0 | EV67: 0 | EW67: 0 | EX67: 0 | EY67: 1 | EZ67: 287
A68: Wed | B68: 1500 | C68: 0 | D68: 0 | E68: 57 | F68: 98 | G68: 8 | H68: 0 | I68: 0 | J68: 1 | K68: 0 | L68: 0 | M68: 1 | N68: 0 | O68: 0 | P68: 18 | Q68: 77 | R68: 62 | S68: 8 | T68: 0 | U68: 0 | V68: 0 | W68: 0 | X68: 0 | Y68: 0 | Z68: 0 | AA68: 0 | AB68: 0 | AC68: 0 | AD68: 0 | AE68: 0 | AF68: 0 | AG68: 0 | AH68: 0 | AI68: 0 | AJ68: 0 | AK68: 0 | AL68: 19.26 | AM68: 22.95 | AN68: Wed | AO68: 1500 | AP68: 0 | AQ68: 1 | AR68: 67 | AS68: 90 | AT68: 4 | AU68: 0 | AV68: 0 | AW68: 0 | AX68: 0 | AY68: 0 | AZ68: 0 | BA68: 0 | BB68: 2 | BC68: 33 | BD68: 70 | BE68: 49 | BF68: 8 | BG68: 0 | BH68: 0 | BI68: 0 | BJ68: 0 | BK68: 0 | BL68: 0 | BM68: 0 | BN68: 0 | BO68: 0 | BP68: 0 | BQ68: 0 | BR68: 0 | BS68: 0 | BT68: 0 | BU68: 0 | BV68: 0 | BW68: 0 | BX68: 0 | BY68: 18.48 | BZ68: 22.62 | CA68: Wed | CB68: 1500 | CC68: 0 | CD68: 1 | CE68: 124 | CF68: 188 | CG68: 12 | CH68: 0 | CI68: 0 | CJ68: 1 | CK68: 0 | CL68: 0 | CM68: 1 | CN68: 0 | CO68: 2 | CP68: 51 | CQ68: 147 | CR68: 111 | CS68: 16 | CT68: 0 | CU68: 0 | CV68: 0 | CW68: 0 | CX68: 0 | CY68: 0 | CZ68: 0 | DA68: 0 | DB68: 0 | DC68: 0 | DD68: 0 | DE68: 0 | DF68: 0 | DG68: 0 | DH68: 0 | DI68: 0 | DJ68: 0 | DK68: 0 | DL68: 18.87 | DM68: 22.81 | DN68: 0 | DO68: 0 | DP68: 57 | DQ68: 98 | DR68: 8 | DS68: 0 | DT68: 0 | DU68: 1 | DV68: 0 | DW68: 0 | DX68: 1 | DY68: 0 | DZ68: 165 | EA68: 0 | EB68: 1 | EC68: 67 | ED68: 90 | EE68: 4 | EF68: 0 | EG68: 0 | EH68: 0 | EI68: 0 | EJ68: 0 | EK68: 0 | EL68: 0 | EM68: 162 | EN68: 0 | EO68: 1 | EP68: 124 | EQ68: 188 | ER68: 12 | ES68: 0 | ET68: 0 | EU68: 1 | EV68: 0 | EW68: 0 | EX68: 1 | EY68: 0 | EZ68: 327
A69: Wed | B69: 1600 | C69: 0 | D69: 0 | E69: 66 | F69: 111 | G69: 11 | H69: 0 | I69: 0 | J69: 1 | K69: 0 | L69: 0 | M69: 1 | N69: 0 | O69: 5 | P69: 29 | Q69: 94 | R69: 52 | S69: 10 | T69: 0 | U69: 0 | V69: 0 | W69: 0 | X69: 0 | Y69: 0 | Z69: 0 | AA69: 0 | AB69: 0 | AC69: 0 | AD69: 0 | AE69: 0 | AF69: 0 | AG69: 0 | AH69: 0 | AI69: 0 | AJ69: 0 | AK69: 0 | AL69: 18.34 | AM69: 21.76 | AN69: Wed | AO69: 1600 | AP69: 1 | AQ69: 0 | AR69: 94 | AS69: 111 | AT69: 3 | AU69: 0 | AV69: 0 | AW69: 0 | AX69: 0 | AY69: 0 | AZ69: 1 | BA69: 0 | BB69: 3 | BC69: 38 | BD69: 109 | BE69: 54 | BF69: 6 | BG69: 0 | BH69: 0 | BI69: 0 | BJ69: 0 | BK69: 0 | BL69: 0 | BM69: 0 | BN69: 0 | BO69: 0 | BP69: 0 | BQ69: 0 | BR69: 0 | BS69: 0 | BT69: 0 | BU69: 0 | BV69: 0 | BW69: 0 | BX69: 0 | BY69: 18.18 | BZ69: 21.93 | CA69: Wed | CB69: 1600 | CC69: 1 | CD69: 0 | CE69: 160 | CF69: 222 | CG69: 14 | CH69: 0 | CI69: 0 | CJ69: 1 | CK69: 0 | CL69: 0 | CM69: 2 | CN69: 0 | CO69: 8 | CP69: 67 | CQ69: 203 | CR69: 106 | CS69: 16 | CT69: 0 | CU69: 0 | CV69: 0 | CW69: 0 | CX69: 0 | CY69: 0 | CZ69: 0 | DA69: 0 | DB69: 0 | DC69: 0 | DD69: 0 | DE69: 0 | DF69: 0 | DG69: 0 | DH69: 0 | DI69: 0 | DJ69: 0 | DK69: 0 | DL69: 18.25 | DM69: 21.82 | DN69: =SUM(C69) -> 0 | DO69: =SUM(D69) -> 0 | DP69: =SUM(E69) -> 66 | DQ69: =SUM(F69) -> 111 | DR69: =SUM(G69) -> 11 | DS69: =SUM(H69) -> 0 | DT69: =SUM(I69) -> 0 | DU69: =SUM(J69) -> 1 | DV69: =SUM(K69) -> 0 | DW69: =SUM(L69) -> 0 | DX69: =SUM(M69) -> 1 | DY69: =SUM(N69) -> 0 | DZ69: =SUM(C69:N69) -> 190 | EA69: =SUM(AP69) -> 1 | EB69: =SUM(AQ69) -> 0 | EC69: =SUM(AR69) -> 94 | ED69: =SUM(AS69) -> 111 | EE69: =SUM(AT69) -> 3 | EF69: =SUM(AU69) -> 0 | EG69: =SUM(AV69) -> 0 | EH69: =SUM(AW69) -> 0 | EI69: =SUM(AX69) -> 0 | EJ69: =SUM(AY69) -> 0 | EK69: =SUM(AZ69) -> 1 | EL69: =SUM(BA69) -> 0 | EM69: =SUM(AP69:BA69) -> 210 | EN69: =SUM(DN69+EA69) -> 1 | EO69: =SUM(DO69+EB69) -> 0 | EP69: =SUM(DP69+EC69) -> 160 | EQ69: =SUM(DQ69+ED69) -> 222 | ER69: =SUM(DR69+EE69) -> 14 | ES69: =SUM(DS69+EF69) -> 0 | ET69: =SUM(DT69+EG69) -> 0 | EU69: =SUM(DU69+EH69) -> 1 | EV69: =SUM(DV69+EI69) -> 0 | EW69: =SUM(DW69+EJ69) -> 0 | EX69: =SUM(DX69+EK69) -> 2 | EY69: =SUM(DY69+EL69) -> 0 | EZ69: =SUM(DZ69+EM69) -> 400
A70: Wed | B70: 1700 | C70: 0 | D70: 0 | E70: 54 | F70: 84 | G70: 3 | H70: 0 | I70: 0 | J70: 0 | K70: 0 | L70: 0 | M70: 0 | N70: 1 | O70: 1 | P70: 17 | Q70: 66 | R70: 47 | S70: 10 | T70: 0 | U70: 1 | V70: 0 | W70: 0 | X70: 0 | Y70: 0 | Z70: 0 | AA70: 0 | AB70: 0 | AC70: 0 | AD70: 0 | AE70: 0 | AF70: 0 | AG70: 0 | AH70: 0 | AI70: 0 | AJ70: 0 | AK70: 0 | AL70: 19.36 | AM70: 23.4 | AN70: Wed | AO70: 1700 | AP70: 0 | AQ70: 2 | AR70: 92 | AS70: 72 | AT70: 5 | AU70: 0 | AV70: 0 | AW70: 0 | AX70: 0 | AY70: 0 | AZ70: 0 | BA70: 1 | BB70: 3 | BC70: 28 | BD70: 75 | BE70: 57 | BF70: 9 | BG70: 0 | BH70: 0 | BI70: 0 | BJ70: 0 | BK70: 0 | BL70: 0 | BM70: 0 | BN70: 0 | BO70: 0 | BP70: 0 | BQ70: 0 | BR70: 0 | BS70: 0 | BT70: 0 | BU70: 0 | BV70: 0 | BW70: 0 | BX70: 0 | BY70: 18.75 | BZ70: 22.89 | CA70: Wed | CB70: 1700 | CC70: 0 | CD70: 2 | CE70: 146 | CF70: 156 | CG70: 8 | CH70: 0 | CI70: 0 | CJ70: 0 | CK70: 0 | CL70: 0 | CM70: 0 | CN70: 2 | CO70: 4 | CP70: 45 | CQ70: 141 | CR70: 104 | CS70: 19 | CT70: 0 | CU70: 1 | CV70: 0 | CW70: 0 | CX70: 0 | CY70: 0 | CZ70: 0 | DA70: 0 | DB70: 0 | DC70: 0 | DD70: 0 | DE70: 0 | DF70: 0 | DG70: 0 | DH70: 0 | DI70: 0 | DJ70: 0 | DK70: 0 | DL70: 19.02 | DM70: 23.17 | DN70: 0 | DO70: 0 | DP70: 54 | DQ70: 84 | DR70: 3 | DS70: 0 | DT70: 0 | DU70: 0 | DV70: 0 | DW70: 0 | DX70: 0 | DY70: 1 | DZ70: 142 | EA70: 0 | EB70: 2 | EC70: 92 | ED70: 72 | EE70: 5 | EF70: 0 | EG70: 0 | EH70: 0 | EI70: 0 | EJ70: 0 | EK70: 0 | EL70: 1 | EM70: 172 | EN70: 0 | EO70: 2 | EP70: 146 | EQ70: 156 | ER70: 8 | ES70: 0 | ET70: 0 | EU70: 0 | EV70: 0 | EW70: 0 | EX70: 0 | EY70: 2 | EZ70: 314
A71: Wed | B71: 1800 | C71: 0 | D71: 1 | E71: 49 | F71: 71 | G71: 5 | H71: 0 | I71: 0 | J71: 0 | K71: 0 | L71: 0 | M71: 0 | N71: 0 | O71: 0 | P71: 10 | Q71: 30 | R71: 70 | S71: 15 | T71: 1 | U71: 0 | V71: 0 | W71: 0 | X71: 0 | Y71: 0 | Z71: 0 | AA71: 0 | AB71: 0 | AC71: 0 | AD71: 0 | AE71: 0 | AF71: 0 | AG71: 0 | AH71: 0 | AI71: 0 | AJ71: 0 | AK71: 0 | AL71: 21.09 | AM71: 24.73 | AN71: Wed | AO71: 1800 | AP71: 0 | AQ71: 1 | AR71: 56 | AS71: 77 | AT71: 1 | AU71: 0 | AV71: 0 | AW71: 0 | AX71: 0 | AY71: 0 | AZ71: 0 | BA71: 1 | BB71: 5 | BC71: 24 | BD71: 65 | BE71: 39 | BF71: 3 | BG71: 0 | BH71: 0 | BI71: 0 | BJ71: 0 | BK71: 0 | BL71: 0 | BM71: 0 | BN71: 0 | BO71: 0 | BP71: 0 | BQ71: 0 | BR71: 0 | BS71: 0 | BT71: 0 | BU71: 0 | BV71: 0 | BW71: 0 | BX71: 0 | BY71: 17.78 | BZ71: 21.72 | CA71: Wed | CB71: 1800 | CC71: 0 | CD71: 2 | CE71: 105 | CF71: 148 | CG71: 6 | CH71: 0 | CI71: 0 | CJ71: 0 | CK71: 0 | CL71: 0 | CM71: 0 | CN71: 1 | CO71: 5 | CP71: 34 | CQ71: 95 | CR71: 109 | CS71: 18 | CT71: 1 | CU71: 0 | CV71: 0 | CW71: 0 | CX71: 0 | CY71: 0 | CZ71: 0 | DA71: 0 | DB71: 0 | DC71: 0 | DD71: 0 | DE71: 0 | DF71: 0 | DG71: 0 | DH71: 0 | DI71: 0 | DJ71: 0 | DK71: 0 | DL71: 19.37 | DM71: 23.16 | DN71: 0 | DO71: 1 | DP71: 49 | DQ71: 71 | DR71: 5 | DS71: 0 | DT71: 0 | DU71: 0 | DV71: 0 | DW71: 0 | DX71: 0 | DY71: 0 | DZ71: 126 | EA71: 0 | EB71: 1 | EC71: 56 | ED71: 77 | EE71: 1 | EF71: 0 | EG71: 0 | EH71: 0 | EI71: 0 | EJ71: 0 | EK71: 0 | EL71: 1 | EM71: 136 | EN71: 0 | EO71: 2 | EP71: 105 | EQ71: 148 | ER71: 6 | ES71: 0 | ET71: 0 | EU71: 0 | EV71: 0 | EW71: 0 | EX71: 0 | EY71: 1 | EZ71: 262
A72: Wed | B72: 1900 | C72: 0 | D72: 2 | E72: 28 | F72: 57 | G72: 1 | H72: 0 | I72: 0 | J72: 0 | K72: 0 | L72: 0 | M72: 0 | N72: 1 | O72: 0 | P72: 7 | Q72: 30 | R72: 40 | S72: 12 | T72: 0 | U72: 0 | V72: 0 | W72: 0 | X72: 0 | Y72: 0 | Z72: 0 | AA72: 0 | AB72: 0 | AC72: 0 | AD72: 0 | AE72: 0 | AF72: 0 | AG72: 0 | AH72: 0 | AI72: 0 | AJ72: 0 | AK72: 0 | AL72: 20.63 | AM72: 24.87 | AN72: Wed | AO72: 1900 | AP72: 0 | AQ72: 3 | AR72: 41 | AS72: 53 | AT72: 1 | AU72: 0 | AV72: 0 | AW72: 0 | AX72: 0 | AY72: 0 | AZ72: 0 | BA72: 0 | BB72: 0 | BC72: 15 | BD72: 35 | BE72: 41 | BF72: 7 | BG72: 0 | BH72: 0 | BI72: 0 | BJ72: 0 | BK72: 0 | BL72: 0 | BM72: 0 | BN72: 0 | BO72: 0 | BP72: 0 | BQ72: 0 | BR72: 0 | BS72: 0 | BT72: 0 | BU72: 0 | BV72: 0 | BW72: 0 | BX72: 0 | BY72: 19.48 | BZ72: 23.87 | CA72: Wed | CB72: 1900 | CC72: 0 | CD72: 5 | CE72: 69 | CF72: 110 | CG72: 2 | CH72: 0 | CI72: 0 | CJ72: 0 | CK72: 0 | CL72: 0 | CM72: 0 | CN72: 1 | CO72: 0 | CP72: 22 | CQ72: 65 | CR72: 81 | CS72: 19 | CT72: 0 | CU72: 0 | CV72: 0 | CW72: 0 | CX72: 0 | CY72: 0 | CZ72: 0 | DA72: 0 | DB72: 0 | DC72: 0 | DD72: 0 | DE72: 0 | DF72: 0 | DG72: 0 | DH72: 0 | DI72: 0 | DJ72: 0 | DK72: 0 | DL72: 20.03 | DM72: 24.17 | DN72: 0 | DO72: 2 | DP72: 28 | DQ72: 57 | DR72: 1 | DS72: 0 | DT72: 0 | DU72: 0 | DV72: 0 | DW72: 0 | DX72: 0 | DY72: 1 | DZ72: 89 | EA72: 0 | EB72: 3 | EC72: 41 | ED72: 53 | EE72: 1 | EF72: 0 | EG72: 0 | EH72: 0 | EI72: 0 | EJ72: 0 | EK72: 0 | EL72: 0 | EM72: 98 | EN72: 0 | EO72: 5 | EP72: 69 | EQ72: 110 | ER72: 2 | ES72: 0 | ET72: 0 | EU72: 0 | EV72: 0 | EW72: 0 | EX72: 0 | EY72: 1 | EZ72: 187
A73: Wed | B73: 2000 | C73: 0 | D73: 0 | E73: 20 | F73: 48 | G73: 3 | H73: 0 | I73: 0 | J73: 0 | K73: 0 | L73: 0 | M73: 0 | N73: 0 | O73: 0 | P73: 0 | Q73: 23 | R73: 39 | S73: 8 | T73: 1 | U73: 0 | V73: 0 | W73: 0 | X73: 0 | Y73: 0 | Z73: 0 | AA73: 0 | AB73: 0 | AC73: 0 | AD73: 0 | AE73: 0 | AF73: 0 | AG73: 0 | AH73: 0 | AI73: 0 | AJ73: 0 | AK73: 0 | AL73: 21.75 | AM73: 24.67 | AN73: Wed | AO73: 2000 | AP73: 0 | AQ73: 0 | AR73: 29 | AS73: 29 | AT73: 2 | AU73: 0 | AV73: 0 | AW73: 2 | AX73: 0 | AY73: 0 | AZ73: 0 | BA73: 0 | BB73: 0 | BC73: 10 | BD73: 22 | BE73: 25 | BF73: 5 | BG73: 0 | BH73: 0 | BI73: 0 | BJ73: 0 | BK73: 0 | BL73: 0 | BM73: 0 | BN73: 0 | BO73: 0 | BP73: 0 | BQ73: 0 | BR73: 0 | BS73: 0 | BT73: 0 | BU73: 0 | BV73: 0 | BW73: 0 | BX73: 0 | BY73: 19.58 | BZ73: 23.07 | CA73: Wed | CB73: 2000 | CC73: 0 | CD73: 0 | CE73: 49 | CF73: 77 | CG73: 5 | CH73: 0 | CI73: 0 | CJ73: 2 | CK73: 0 | CL73: 0 | CM73: 0 | CN73: 0 | CO73: 0 | CP73: 10 | CQ73: 45 | CR73: 64 | CS73: 13 | CT73: 1 | CU73: 0 | CV73: 0 | CW73: 0 | CX73: 0 | CY73: 0 | CZ73: 0 | DA73: 0 | DB73: 0 | DC73: 0 | DD73: 0 | DE73: 0 | DF73: 0 | DG73: 0 | DH73: 0 | DI73: 0 | DJ73: 0 | DK73: 0 | DL73: 20.74 | DM73: 24.37 | DN73: 0 | DO73: 0 | DP73: 20 | DQ73: 48 | DR73: 3 | DS73: 0 | DT73: 0 | DU73: 0 | DV73: 0 | DW73: 0 | DX73: 0 | DY73: 0 | DZ73: 71 | EA73: 0 | EB73: 0 | EC73: 29 | ED73: 29 | EE73: 2 | EF73: 0 | EG73: 0 | EH73: 2 | EI73: 0 | EJ73: 0 | EK73: 0 | EL73: 0 | EM73: 62 | EN73: 0 | EO73: 0 | EP73: 49 | EQ73: 77 | ER73: 5 | ES73: 0 | ET73: 0 | EU73: 2 | EV73: 0 | EW73: 0 | EX73: 0 | EY73: 0 | EZ73: 133
A74: Wed | B74: 2100 | C74: 0 | D74: 1 | E74: 13 | F74: 26 | G74: 1 | H74: 0 | I74: 0 | J74: 0 | K74: 0 | L74: 0 | M74: 0 | N74: 0 | O74: 0 | P74: 2 | Q74: 12 | R74: 22 | S74: 4 | T74: 1 | U74: 0 | V74: 0 | W74: 0 | X74: 0 | Y74: 0 | Z74: 0 | AA74: 0 | AB74: 0 | AC74: 0 | AD74: 0 | AE74: 0 | AF74: 0 | AG74: 0 | AH74: 0 | AI74: 0 | AJ74: 0 | AK74: 0 | AL74: 21.34 | AM74: 24.32 | AN74: Wed | AO74: 2100 | AP74: 0 | AQ74: 0 | AR74: 22 | AS74: 26 | AT74: 1 | AU74: 0 | AV74: 0 | AW74: 0 | AX74: 0 | AY74: 0 | AZ74: 0 | BA74: 0 | BB74: 2 | BC74: 5 | BD74: 13 | BE74: 23 | BF74: 5 | BG74: 1 | BH74: 0 | BI74: 0 | BJ74: 0 | BK74: 0 | BL74: 0 | BM74: 0 | BN74: 0 | BO74: 0 | BP74: 0 | BQ74: 0 | BR74: 0 | BS74: 0 | BT74: 0 | BU74: 0 | BV74: 0 | BW74: 0 | BX74: 0 | BY74: 20.2 | BZ74: 23.64 | CA74: Wed | CB74: 2100 | CC74: 0 | CD74: 1 | CE74: 35 | CF74: 52 | CG74: 2 | CH74: 0 | CI74: 0 | CJ74: 0 | CK74: 0 | CL74: 0 | CM74: 0 | CN74: 0 | CO74: 2 | CP74: 7 | CQ74: 25 | CR74: 45 | CS74: 9 | CT74: 2 | CU74: 0 | CV74: 0 | CW74: 0 | CX74: 0 | CY74: 0 | CZ74: 0 | DA74: 0 | DB74: 0 | DC74: 0 | DD74: 0 | DE74: 0 | DF74: 0 | DG74: 0 | DH74: 0 | DI74: 0 | DJ74: 0 | DK74: 0 | DL74: 20.72 | DM74: 24.3 | DN74: 0 | DO74: 1 | DP74: 13 | DQ74: 26 | DR74: 1 | DS74: 0 | DT74: 0 | DU74: 0 | DV74: 0 | DW74: 0 | DX74: 0 | DY74: 0 | DZ74: 41 | EA74: 0 | EB74: 0 | EC74: 22 | ED74: 26 | EE74: 1 | EF74: 0 | EG74: 0 | EH74: 0 | EI74: 0 | EJ74: 0 | EK74: 0 | EL74: 0 | EM74: 49 | EN74: 0 | EO74: 1 | EP74: 35 | EQ74: 52 | ER74: 2 | ES74: 0 | ET74: 0 | EU74: 0 | EV74: 0 | EW74: 0 | EX74: 0 | EY74: 0 | EZ74: 90
A75: Wed | B75: 2200 | C75: 0 | D75: 1 | E75: 5 | F75: 7 | G75: 0 | H75: 0 | I75: 0 | J75: 0 | K75: 0 | L75: 1 | M75: 0 | N75: 0 | O75: 0 | P75: 0 | Q75: 3 | R75: 9 | S75: 2 | T75: 0 | U75: 0 | V75: 0 | W75: 0 | X75: 0 | Y75: 0 | Z75: 0 | AA75: 0 | AB75: 0 | AC75: 0 | AD75: 0 | AE75: 0 | AF75: 0 | AG75: 0 | AH75: 0 | AI75: 0 | AJ75: 0 | AK75: 0 | AL75: 22.37 | AM75: 24.95 | AN75: Wed | AO75: 2200 | AP75: 0 | AQ75: 1 | AR75: 12 | AS75: 8 | AT75: 0 | AU75: 0 | AV75: 0 | AW75: 0 | AX75: 0 | AY75: 0 | AZ75: 0 | BA75: 0 | BB75: 0 | BC75: 2 | BD75: 1 | BE75: 12 | BF75: 3 | BG75: 3 | BH75: 0 | BI75: 0 | BJ75: 0 | BK75: 0 | BL75: 0 | BM75: 0 | BN75: 0 | BO75: 0 | BP75: 0 | BQ75: 0 | BR75: 0 | BS75: 0 | BT75: 0 | BU75: 0 | BV75: 0 | BW75: 0 | BX75: 0 | BY75: 23.82 | BZ75: 28.14 | CA75: Wed | CB75: 2200 | CC75: 0 | CD75: 2 | CE75: 17 | CF75: 15 | CG75: 0 | CH75: 0 | CI75: 0 | CJ75: 0 | CK75: 0 | CL75: 1 | CM75: 0 | CN75: 0 | CO75: 0 | CP75: 2 | CQ75: 4 | CR75: 21 | CS75: 5 | CT75: 3 | CU75: 0 | CV75: 0 | CW75: 0 | CX75: 0 | CY75: 0 | CZ75: 0 | DA75: 0 | DB75: 0 | DC75: 0 | DD75: 0 | DE75: 0 | DF75: 0 | DG75: 0 | DH75: 0 | DI75: 0 | DJ75: 0 | DK75: 0 | DL75: 23.24 | DM75: 27.17 | DN75: 0 | DO75: 1 | DP75: 5 | DQ75: 7 | DR75: 0 | DS75: 0 | DT75: 0 | DU75: 0 | DV75: 0 | DW75: 1 | DX75: 0 | DY75: 0 | DZ75: 14 | EA75: 0 | EB75: 1 | EC75: 12 | ED75: 8 | EE75: 0 | EF75: 0 | EG75: 0 | EH75: 0 | EI75: 0 | EJ75: 0 | EK75: 0 | EL75: 0 | EM75: 21 | EN75: 0 | EO75: 2 | EP75: 17 | EQ75: 15 | ER75: 0 | ES75: 0 | ET75: 0 | EU75: 0 | EV75: 0 | EW75: 1 | EX75: 0 | EY75: 0 | EZ75: 35
A76: Wed | B76: 2300 | C76: 0 | D76: 0 | E76: 2 | F76: 2 | G76: 0 | H76: 0 | I76: 0 | J76: 0 | K76: 0 | L76: 0 | M76: 0 | N76: 0 | O76: 0 | P76: 0 | Q76: 1 | R76: 1 | S76: 2 | T76: 0 | U76: 0 | V76: 0 | W76: 0 | X76: 0 | Y76: 0 | Z76: 0 | AA76: 0 | AB76: 0 | AC76: 0 | AD76: 0 | AE76: 0 | AF76: 0 | AG76: 0 | AH76: 0 | AI76: 0 | AJ76: 0 | AK76: 0 | AL76: 22.9 | AM76: - | AN76: Wed | AO76: 2300 | AP76: 0 | AQ76: 0 | AR76: 4 | AS76: 2 | AT76: 0 | AU76: 0 | AV76: 0 | AW76: 0 | AX76: 0 | AY76: 0 | AZ76: 0 | BA76: 0 | BB76: 0 | BC76: 0 | BD76: 0 | BE76: 4 | BF76: 2 | BG76: 0 | BH76: 0 | BI76: 0 | BJ76: 0 | BK76: 0 | BL76: 0 | BM76: 0 | BN76: 0 | BO76: 0 | BP76: 0 | BQ76: 0 | BR76: 0 | BS76: 0 | BT76: 0 | BU76: 0 | BV76: 0 | BW76: 0 | BX76: 0 | BY76: 24.29 | BZ76: - | CA76: Wed | CB76: 2300 | CC76: 0 | CD76: 0 | CE76: 6 | CF76: 4 | CG76: 0 | CH76: 0 | CI76: 0 | CJ76: 0 | CK76: 0 | CL76: 0 | CM76: 0 | CN76: 0 | CO76: 0 | CP76: 0 | CQ76: 1 | CR76: 5 | CS76: 4 | CT76: 0 | CU76: 0 | CV76: 0 | CW76: 0 | CX76: 0 | CY76: 0 | CZ76: 0 | DA76: 0 | DB76: 0 | DC76: 0 | DD76: 0 | DE76: 0 | DF76: 0 | DG76: 0 | DH76: 0 | DI76: 0 | DJ76: 0 | DK76: 0 | DL76: 23.73 | DM76: 26.81 | DN76: 0 | DO76: 0 | DP76: 2 | DQ76: 2 | DR76: 0 | DS76: 0 | DT76: 0 | DU76: 0 | DV76: 0 | DW76: 0 | DX76: 0 | DY76: 0 | DZ76: 4 | EA76: 0 | EB76: 0 | EC76: 4 | ED76: 2 | EE76: 0 | EF76: 0 | EG76: 0 | EH76: 0 | EI76: 0 | EJ76: 0 | EK76: 0 | EL76: 0 | EM76: 6 | EN76: 0 | EO76: 0 | EP76: 6 | EQ76: 4 | ER76: 0 | ES76: 0 | ET76: 0 | EU76: 0 | EV76: 0 | EW76: 0 | EX76: 0 | EY76: 0 | EZ76: 10
A77: Thu | B77: 0 | C77: 0 | D77: 0 | E77: 0 | F77: 0 | G77: 0 | H77: 0 | I77: 0 | J77: 0 | K77: 0 | L77: 0 | M77: 0 | N77: 0 | O77: 0 | P77: 0 | Q77: 0 | R77: 0 | S77: 0 | T77: 0 | U77: 0 | V77: 0 | W77: 0 | X77: 0 | Y77: 0 | Z77: 0 | AA77: 0 | AB77: 0 | AC77: 0 | AD77: 0 | AE77: 0 | AF77: 0 | AG77: 0 | AH77: 0 | AI77: 0 | AJ77: 0 | AK77: 0 | AL77: - | AM77: - | AN77: Thu | AO77: 0 | AP77: 0 | AQ77: 0 | AR77: 1 | AS77: 1 | AT77: 0 | AU77: 0 | AV77: 0 | AW77: 0 | AX77: 0 | AY77: 0 | AZ77: 0 | BA77: 0 | BB77: 0 | BC77: 0 | BD77: 0 | BE77: 1 | BF77: 1 | BG77: 0 | BH77: 0 | BI77: 0 | BJ77: 0 | BK77: 0 | BL77: 0 | BM77: 0 | BN77: 0 | BO77: 0 | BP77: 0 | BQ77: 0 | BR77: 0 | BS77: 0 | BT77: 0 | BU77: 0 | BV77: 0 | BW77: 0 | BX77: 0 | BY77: 25.49 | BZ77: - | CA77: Thu | CB77: 0 | CC77: 0 | CD77: 0 | CE77: 1 | CF77: 1 | CG77: 0 | CH77: 0 | CI77: 0 | CJ77: 0 | CK77: 0 | CL77: 0 | CM77: 0 | CN77: 0 | CO77: 0 | CP77: 0 | CQ77: 0 | CR77: 1 | CS77: 1 | CT77: 0 | CU77: 0 | CV77: 0 | CW77: 0 | CX77: 0 | CY77: 0 | CZ77: 0 | DA77: 0 | DB77: 0 | DC77: 0 | DD77: 0 | DE77: 0 | DF77: 0 | DG77: 0 | DH77: 0 | DI77: 0 | DJ77: 0 | DK77: 0 | DL77: 25.49 | DM77: - | DN77: 0 | DO77: 0 | DP77: 0 | DQ77: 0 | DR77: 0 | DS77: 0 | DT77: 0 | DU77: 0 | DV77: 0 | DW77: 0 | DX77: 0 | DY77: 0 | DZ77: 0 | EA77: 0 | EB77: 0 | EC77: 1 | ED77: 1 | EE77: 0 | EF77: 0 | EG77: 0 | EH77: 0 | EI77: 0 | EJ77: 0 | EK77: 0 | EL77: 0 | EM77: 2 | EN77: 0 | EO77: 0 | EP77: 1 | EQ77: 1 | ER77: 0 | ES77: 0 | ET77: 0 | EU77: 0 | EV77: 0 | EW77: 0 | EX77: 0 | EY77: 0 | EZ77: 2
A78: Thu | B78: 100 | C78: 0 | D78: 0 | E78: 1 | F78: 1 | G78: 0 | H78: 0 | I78: 0 | J78: 0 | K78: 0 | L78: 0 | M78: 0 | N78: 0 | O78: 0 | P78: 0 | Q78: 0 | R78: 0 | S78: 2 | T78: 0 | U78: 0 | V78: 0 | W78: 0 | X78: 0 | Y78: 0 | Z78: 0 | AA78: 0 | AB78: 0 | AC78: 0 | AD78: 0 | AE78: 0 | AF78: 0 | AG78: 0 | AH78: 0 | AI78: 0 | AJ78: 0 | AK78: 0 | AL78: 25.69 | AM78: - | AN78: Thu | AO78: 100 | AP78: 0 | AQ78: 0 | AR78: 0 | AS78: 0 | AT78: 0 | AU78: 0 | AV78: 0 | AW78: 0 | AX78: 0 | AY78: 0 | AZ78: 0 | BA78: 0 | BB78: 0 | BC78: 0 | BD78: 0 | BE78: 0 | BF78: 0 | BG78: 0 | BH78: 0 | BI78: 0 | BJ78: 0 | BK78: 0 | BL78: 0 | BM78: 0 | BN78: 0 | BO78: 0 | BP78: 0 | BQ78: 0 | BR78: 0 | BS78: 0 | BT78: 0 | BU78: 0 | BV78: 0 | BW78: 0 | BX78: 0 | BY78: - | BZ78: - | CA78: Thu | CB78: 100 | CC78: 0 | CD78: 0 | CE78: 1 | CF78: 1 | CG78: 0 | CH78: 0 | CI78: 0 | CJ78: 0 | CK78: 0 | CL78: 0 | CM78: 0 | CN78: 0 | CO78: 0 | CP78: 0 | CQ78: 0 | CR78: 0 | CS78: 2 | CT78: 0 | CU78: 0 | CV78: 0 | CW78: 0 | CX78: 0 | CY78: 0 | CZ78: 0 | DA78: 0 | DB78: 0 | DC78: 0 | DD78: 0 | DE78: 0 | DF78: 0 | DG78: 0 | DH78: 0 | DI78: 0 | DJ78: 0 | DK78: 0 | DL78: 25.69 | DM78: - | DN78: 0 | DO78: 0 | DP78: 1 | DQ78: 1 | DR78: 0 | DS78: 0 | DT78: 0 | DU78: 0 | DV78: 0 | DW78: 0 | DX78: 0 | DY78: 0 | DZ78: 2 | EA78: 0 | EB78: 0 | EC78: 0 | ED78: 0 | EE78: 0 | EF78: 0 | EG78: 0 | EH78: 0 | EI78: 0 | EJ78: 0 | EK78: 0 | EL78: 0 | EM78: 0 | EN78: 0 | EO78: 0 | EP78: 1 | EQ78: 1 | ER78: 0 | ES78: 0 | ET78: 0 | EU78: 0 | EV78: 0 | EW78: 0 | EX78: 0 | EY78: 0 | EZ78: 2
A79: Thu | B79: 200 | C79: 0 | D79: 0 | E79: 0 | F79: 0 | G79: 0 | H79: 0 | I79: 0 | J79: 0 | K79: 0 | L79: 0 | M79: 0 | N79: 0 | O79: 0 | P79: 0 | Q79: 0 | R79: 0 | S79: 0 | T79: 0 | U79: 0 | V79: 0 | W79: 0 | X79: 0 | Y79: 0 | Z79: 0 | AA79: 0 | AB79: 0 | AC79: 0 | AD79: 0 | AE79: 0 | AF79: 0 | AG79: 0 | AH79: 0 | AI79: 0 | AJ79: 0 | AK79: 0 | AL79: - | AM79: - | AN79: Thu | AO79: 200 | AP79: 0 | AQ79: 0 | AR79: 2 | AS79: 0 | AT79: 0 | AU79: 0 | AV79: 0 | AW79: 0 | AX79: 0 | AY79: 0 | AZ79: 0 | BA79: 0 | BB79: 0 | BC79: 0 | BD79: 1 | BE79: 1 | BF79: 0 | BG79: 0 | BH79: 0 | BI79: 0 | BJ79: 0 | BK79: 0 | BL79: 0 | BM79: 0 | BN79: 0 | BO79: 0 | BP79: 0 | BQ79: 0 | BR79: 0 | BS79: 0 | BT79: 0 | BU79: 0 | BV79: 0 | BW79: 0 | BX79: 0 | BY79: 19.51 | BZ79: - | CA79: Thu | CB79: 200 | CC79: 0 | CD79: 0 | CE79: 2 | CF79: 0 | CG79: 0 | CH79: 0 | CI79: 0 | CJ79: 0 | CK79: 0 | CL79: 0 | CM79: 0 | CN79: 0 | CO79: 0 | CP79: 0 | CQ79: 1 | CR79: 1 | CS79: 0 | CT79: 0 | CU79: 0 | CV79: 0 | CW79: 0 | CX79: 0 | CY79: 0 | CZ79: 0 | DA79: 0 | DB79: 0 | DC79: 0 | DD79: 0 | DE79: 0 | DF79: 0 | DG79: 0 | DH79: 0 | DI79: 0 | DJ79: 0 | DK79: 0 | DL79: 19.51 | DM79: - | DN79: 0 | DO79: 0 | DP79: 0 | DQ79: 0 | DR79: 0 | DS79: 0 | DT79: 0 | DU79: 0 | DV79: 0 | DW79: 0 | DX79: 0 | DY79: 0 | DZ79: 0 | EA79: 0 | EB79: 0 | EC79: 2 | ED79: 0 | EE79: 0 | EF79: 0 | EG79: 0 | EH79: 0 | EI79: 0 | EJ79: 0 | EK79: 0 | EL79: 0 | EM79: 2 | EN79: 0 | EO79: 0 | EP79: 2 | EQ79: 0 | ER79: 0 | ES79: 0 | ET79: 0 | EU79: 0 | EV79: 0 | EW79: 0 | EX79: 0 | EY79: 0 | EZ79: 2
A80: Thu | B80: 300 | C80: 0 | D80: 0 | E80: 0 | F80: 0 | G80: 1 | H80: 0 | I80: 0 | J80: 0 | K80: 0 | L80: 0 | M80: 0 | N80: 0 | O80: 0 | P80: 0 | Q80: 0 | R80: 0 | S80: 1 | T80: 0 | U80: 0 | V80: 0 | W80: 0 | X80: 0 | Y80: 0 | Z80: 0 | AA80: 0 | AB80: 0 | AC80: 0 | AD80: 0 | AE80: 0 | AF80: 0 | AG80: 0 | AH80: 0 | AI80: 0 | AJ80: 0 | AK80: 0 | AL80: 29.12 | AM80: - | AN80: Thu | AO80: 300 | AP80: 0 | AQ80: 0 | AR80: 0 | AS80: 0 | AT80: 0 | AU80: 0 | AV80: 0 | AW80: 0 | AX80: 0 | AY80: 0 | AZ80: 0 | BA80: 0 | BB80: 0 | BC80: 0 | BD80: 0 | BE80: 0 | BF80: 0 | BG80: 0 | BH80: 0 | BI80: 0 | BJ80: 0 | BK80: 0 | BL80: 0 | BM80: 0 | BN80: 0 | BO80: 0 | BP80: 0 | BQ80: 0 | BR80: 0 | BS80: 0 | BT80: 0 | BU80: 0 | BV80: 0 | BW80: 0 | BX80: 0 | BY80: - | BZ80: - | CA80: Thu | CB80: 300 | CC80: 0 | CD80: 0 | CE80: 0 | CF80: 0 | CG80: 1 | CH80: 0 | CI80: 0 | CJ80: 0 | CK80: 0 | CL80: 0 | CM80: 0 | CN80: 0 | CO80: 0 | CP80: 0 | CQ80: 0 | CR80: 0 | CS80: 1 | CT80: 0 | CU80: 0 | CV80: 0 | CW80: 0 | CX80: 0 | CY80: 0 | CZ80: 0 | DA80: 0 | DB80: 0 | DC80: 0 | DD80: 0 | DE80: 0 | DF80: 0 | DG80: 0 | DH80: 0 | DI80: 0 | DJ80: 0 | DK80: 0 | DL80: 29.12 | DM80: - | DN80: 0 | DO80: 0 | DP80: 0 | DQ80: 0 | DR80: 1 | DS80: 0 | DT80: 0 | DU80: 0 | DV80: 0 | DW80: 0 | DX80: 0 | DY80: 0 | DZ80: 1 | EA80: 0 | EB80: 0 | EC80: 0 | ED80: 0 | EE80: 0 | EF80: 0 | EG80: 0 | EH80: 0 | EI80: 0 | EJ80: 0 | EK80: 0 | EL80: 0 | EM80: 0 | EN80: 0 | EO80: 0 | EP80: 0 | EQ80: 0 | ER80: 1 | ES80: 0 | ET80: 0 | EU80: 0 | EV80: 0 | EW80: 0 | EX80: 0 | EY80: 0 | EZ80: 1
A81: Thu | B81: 400 | C81: 0 | D81: 0 | E81: 1 | F81: 2 | G81: 0 | H81: 0 | I81: 0 | J81: 0 | K81: 0 | L81: 0 | M81: 0 | N81: 0 | O81: 0 | P81: 0 | Q81: 0 | R81: 2 | S81: 1 | T81: 0 | U81: 0 | V81: 0 | W81: 0 | X81: 0 | Y81: 0 | Z81: 0 | AA81: 0 | AB81: 0 | AC81: 0 | AD81: 0 | AE81: 0 | AF81: 0 | AG81: 0 | AH81: 0 | AI81: 0 | AJ81: 0 | AK81: 0 | AL81: 23.98 | AM81: - | AN81: Thu | AO81: 400 | AP81: 0 | AQ81: 0 | AR81: 0 | AS81: 0 | AT81: 0 | AU81: 0 | AV81: 0 | AW81: 0 | AX81: 0 | AY81: 0 | AZ81: 0 | BA81: 0 | BB81: 0 | BC81: 0 | BD81: 0 | BE81: 0 | BF81: 0 | BG81: 0 | BH81: 0 | BI81: 0 | BJ81: 0 | BK81: 0 | BL81: 0 | BM81: 0 | BN81: 0 | BO81: 0 | BP81: 0 | BQ81: 0 | BR81: 0 | BS81: 0 | BT81: 0 | BU81: 0 | BV81: 0 | BW81: 0 | BX81: 0 | BY81: - | BZ81: - | CA81: Thu | CB81: 400 | CC81: 0 | CD81: 0 | CE81: 1 | CF81: 2 | CG81: 0 | CH81: 0 | CI81: 0 | CJ81: 0 | CK81: 0 | CL81: 0 | CM81: 0 | CN81: 0 | CO81: 0 | CP81: 0 | CQ81: 0 | CR81: 2 | CS81: 1 | CT81: 0 | CU81: 0 | CV81: 0 | CW81: 0 | CX81: 0 | CY81: 0 | CZ81: 0 | DA81: 0 | DB81: 0 | DC81: 0 | DD81: 0 | DE81: 0 | DF81: 0 | DG81: 0 | DH81: 0 | DI81: 0 | DJ81: 0 | DK81: 0 | DL81: 23.98 | DM81: - | DN81: 0 | DO81: 0 | DP81: 1 | DQ81: 2 | DR81: 0 | DS81: 0 | DT81: 0 | DU81: 0 | DV81: 0 | DW81: 0 | DX81: 0 | DY81: 0 | DZ81: 3 | EA81: 0 | EB81: 0 | EC81: 0 | ED81: 0 | EE81: 0 | EF81: 0 | EG81: 0 | EH81: 0 | EI81: 0 | EJ81: 0 | EK81: 0 | EL81: 0 | EM81: 0 | EN81: 0 | EO81: 0 | EP81: 1 | EQ81: 2 | ER81: 0 | ES81: 0 | ET81: 0 | EU81: 0 | EV81: 0 | EW81: 0 | EX81: 0 | EY81: 0 | EZ81: 3
A82: Thu | B82: 500 | C82: 0 | D82: 0 | E82: 5 | F82: 6 | G82: 1 | H82: 0 | I82: 0 | J82: 0 | K82: 0 | L82: 0 | M82: 0 | N82: 0 | O82: 0 | P82: 0 | Q82: 1 | R82: 5 | S82: 6 | T82: 0 | U82: 0 | V82: 0 | W82: 0 | X82: 0 | Y82: 0 | Z82: 0 | AA82: 0 | AB82: 0 | AC82: 0 | AD82: 0 | AE82: 0 | AF82: 0 | AG82: 0 | AH82: 0 | AI82: 0 | AJ82: 0 | AK82: 0 | AL82: 24.39 | AM82: 28.2 | AN82: Thu | AO82: 500 | AP82: 0 | AQ82: 0 | AR82: 3 | AS82: 2 | AT82: 1 | AU82: 0 | AV82: 0 | AW82: 0 | AX82: 0 | AY82: 0 | AZ82: 0 | BA82: 0 | BB82: 0 | BC82: 1 | BD82: 2 | BE82: 3 | BF82: 0 | BG82: 0 | BH82: 0 | BI82: 0 | BJ82: 0 | BK82: 0 | BL82: 0 | BM82: 0 | BN82: 0 | BO82: 0 | BP82: 0 | BQ82: 0 | BR82: 0 | BS82: 0 | BT82: 0 | BU82: 0 | BV82: 0 | BW82: 0 | BX82: 0 | BY82: 18.09 | BZ82: - | CA82: Thu | CB82: 500 | CC82: 0 | CD82: 0 | CE82: 8 | CF82: 8 | CG82: 2 | CH82: 0 | CI82: 0 | CJ82: 0 | CK82: 0 | CL82: 0 | CM82: 0 | CN82: 0 | CO82: 0 | CP82: 1 | CQ82: 3 | CR82: 8 | CS82: 6 | CT82: 0 | CU82: 0 | CV82: 0 | CW82: 0 | CX82: 0 | CY82: 0 | CZ82: 0 | DA82: 0 | DB82: 0 | DC82: 0 | DD82: 0 | DE82: 0 | DF82: 0 | DG82: 0 | DH82: 0 | DI82: 0 | DJ82: 0 | DK82: 0 | DL82: 22.29 | DM82: 27.15 | DN82: 0 | DO82: 0 | DP82: 5 | DQ82: 6 | DR82: 1 | DS82: 0 | DT82: 0 | DU82: 0 | DV82: 0 | DW82: 0 | DX82: 0 | DY82: 0 | DZ82: 12 | EA82: 0 | EB82: 0 | EC82: 3 | ED82: 2 | EE82: 1 | EF82: 0 | EG82: 0 | EH82: 0 | EI82: 0 | EJ82: 0 | EK82: 0 | EL82: 0 | EM82: 6 | EN82: 0 | EO82: 0 | EP82: 8 | EQ82: 8 | ER82: 2 | ES82: 0 | ET82: 0 | EU82: 0 | EV82: 0 | EW82: 0 | EX82: 0 | EY82: 0 | EZ82: 18
A83: Thu | B83: 600 | C83: 0 | D83: 1 | E83: 20 | F83: 28 | G83: 3 | H83: 0 | I83: 0 | J83: 0 | K83: 0 | L83: 0 | M83: 0 | N83: 0 | O83: 0 | P83: 2 | Q83: 8 | R83: 23 | S83: 16 | T83: 3 | U83: 0 | V83: 0 | W83: 0 | X83: 0 | Y83: 0 | Z83: 0 | AA83: 0 | AB83: 0 | AC83: 0 | AD83: 0 | AE83: 0 | AF83: 0 | AG83: 0 | AH83: 0 | AI83: 0 | AJ83: 0 | AK83: 0 | AL83: 23.3 | AM83: 27.6 | AN83: Thu | AO83: 600 | AP83: 0 | AQ83: 0 | AR83: 7 | AS83: 10 | AT83: 1 | AU83: 1 | AV83: 0 | AW83: 0 | AX83: 0 | AY83: 0 | AZ83: 0 | BA83: 0 | BB83: 0 | BC83: 0 | BD83: 7 | BE83: 10 | BF83: 2 | BG83: 0 | BH83: 0 | BI83: 0 | BJ83: 0 | BK83: 0 | BL83: 0 | BM83: 0 | BN83: 0 | BO83: 0 | BP83: 0 | BQ83: 0 | BR83: 0 | BS83: 0 | BT83: 0 | BU83: 0 | BV83: 0 | BW83: 0 | BX83: 0 | BY83: 21.42 | BZ83: 23.65 | CA83: Thu | CB83: 600 | CC83: 0 | CD83: 1 | CE83: 27 | CF83: 38 | CG83: 4 | CH83: 1 | CI83: 0 | CJ83: 0 | CK83: 0 | CL83: 0 | CM83: 0 | CN83: 0 | CO83: 0 | CP83: 2 | CQ83: 15 | CR83: 33 | CS83: 18 | CT83: 3 | CU83: 0 | CV83: 0 | CW83: 0 | CX83: 0 | CY83: 0 | CZ83: 0 | DA83: 0 | DB83: 0 | DC83: 0 | DD83: 0 | DE83: 0 | DF83: 0 | DG83: 0 | DH83: 0 | DI83: 0 | DJ83: 0 | DK83: 0 | DL83: 22.8 | DM83: 26.73 | DN83: 0 | DO83: 1 | DP83: 20 | DQ83: 28 | DR83: 3 | DS83: 0 | DT83: 0 | DU83: 0 | DV83: 0 | DW83: 0 | DX83: 0 | DY83: 0 | DZ83: 52 | EA83: 0 | EB83: 0 | EC83: 7 | ED83: 10 | EE83: 1 | EF83: 1 | EG83: 0 | EH83: 0 | EI83: 0 | EJ83: 0 | EK83: 0 | EL83: 0 | EM83: 19 | EN83: 0 | EO83: 1 | EP83: 27 | EQ83: 38 | ER83: 4 | ES83: 1 | ET83: 0 | EU83: 0 | EV83: 0 | EW83: 0 | EX83: 0 | EY83: 0 | EZ83: 71
A84: Thu | B84: 700 | C84: 0 | D84: 2 | E84: 40 | F84: 72 | G84: 5 | H84: 3 | I84: 0 | J84: 2 | K84: 0 | L84: 0 | M84: 1 | N84: 0 | O84: 0 | P84: 3 | Q84: 35 | R84: 62 | S84: 25 | T84: 0 | U84: 0 | V84: 0 | W84: 0 | X84: 0 | Y84: 0 | Z84: 0 | AA84: 0 | AB84: 0 | AC84: 0 | AD84: 0 | AE84: 0 | AF84: 0 | AG84: 0 | AH84: 0 | AI84: 0 | AJ84: 0 | AK84: 0 | AL84: 21.8 | AM84: 25.36 | AN84: Thu | AO84: 700 | AP84: 2 | AQ84: 0 | AR84: 30 | AS84: 40 | AT84: 5 | AU84: 0 | AV84: 0 | AW84: 0 | AX84: 0 | AY84: 0 | AZ84: 0 | BA84: 0 | BB84: 4 | BC84: 17 | BD84: 26 | BE84: 26 | BF84: 4 | BG84: 0 | BH84: 0 | BI84: 0 | BJ84: 0 | BK84: 0 | BL84: 0 | BM84: 0 | BN84: 0 | BO84: 0 | BP84: 0 | BQ84: 0 | BR84: 0 | BS84: 0 | BT84: 0 | BU84: 0 | BV84: 0 | BW84: 0 | BX84: 0 | BY84: 18.23 | BZ84: 23.2 | CA84: Thu | CB84: 700 | CC84: 2 | CD84: 2 | CE84: 70 | CF84: 112 | CG84: 10 | CH84: 3 | CI84: 0 | CJ84: 2 | CK84: 0 | CL84: 0 | CM84: 1 | CN84: 0 | CO84: 4 | CP84: 20 | CQ84: 61 | CR84: 88 | CS84: 29 | CT84: 0 | CU84: 0 | CV84: 0 | CW84: 0 | CX84: 0 | CY84: 0 | CZ84: 0 | DA84: 0 | DB84: 0 | DC84: 0 | DD84: 0 | DE84: 0 | DF84: 0 | DG84: 0 | DH84: 0 | DI84: 0 | DJ84: 0 | DK84: 0 | DL84: 20.44 | DM84: 24.93 | DN84: 0 | DO84: 2 | DP84: 40 | DQ84: 72 | DR84: 5 | DS84: 3 | DT84: 0 | DU84: 2 | DV84: 0 | DW84: 0 | DX84: 1 | DY84: 0 | DZ84: 125 | EA84: 2 | EB84: 0 | EC84: 30 | ED84: 40 | EE84: 5 | EF84: 0 | EG84: 0 | EH84: 0 | EI84: 0 | EJ84: 0 | EK84: 0 | EL84: 0 | EM84: 77 | EN84: 2 | EO84: 2 | EP84: 70 | EQ84: 112 | ER84: 10 | ES84: 3 | ET84: 0 | EU84: 2 | EV84: 0 | EW84: 0 | EX84: 1 | EY84: 0 | EZ84: 202
A85: Thu | B85: 800 | C85: 1 | D85: 3 | E85: 63 | F85: 98 | G85: 8 | H85: 0 | I85: 0 | J85: 2 | K85: 0 | L85: 0 | M85: 2 | N85: 0 | O85: 0 | P85: 14 | Q85: 72 | R85: 78 | S85: 13 | T85: 0 | U85: 0 | V85: 0 | W85: 0 | X85: 0 | Y85: 0 | Z85: 0 | AA85: 0 | AB85: 0 | AC85: 0 | AD85: 0 | AE85: 0 | AF85: 0 | AG85: 0 | AH85: 0 | AI85: 0 | AJ85: 0 | AK85: 0 | AL85: 20.09 | AM85: 23.99 | AN85: Thu | AO85: 800 | AP85: 0 | AQ85: 2 | AR85: 67 | AS85: 81 | AT85: 9 | AU85: 1 | AV85: 1 | AW85: 1 | AX85: 0 | AY85: 0 | AZ85: 2 | BA85: 2 | BB85: 4 | BC85: 38 | BD85: 62 | BE85: 60 | BF85: 2 | BG85: 0 | BH85: 0 | BI85: 0 | BJ85: 0 | BK85: 0 | BL85: 0 | BM85: 0 | BN85: 0 | BO85: 0 | BP85: 0 | BQ85: 0 | BR85: 0 | BS85: 0 | BT85: 0 | BU85: 0 | BV85: 0 | BW85: 0 | BX85: 0 | BY85: 17.95 | BZ85: 22.34 | CA85: Thu | CB85: 800 | CC85: 1 | CD85: 5 | CE85: 130 | CF85: 179 | CG85: 17 | CH85: 1 | CI85: 1 | CJ85: 3 | CK85: 0 | CL85: 0 | CM85: 4 | CN85: 2 | CO85: 4 | CP85: 52 | CQ85: 134 | CR85: 138 | CS85: 15 | CT85: 0 | CU85: 0 | CV85: 0 | CW85: 0 | CX85: 0 | CY85: 0 | CZ85: 0 | DA85: 0 | DB85: 0 | DC85: 0 | DD85: 0 | DE85: 0 | DF85: 0 | DG85: 0 | DH85: 0 | DI85: 0 | DJ85: 0 | DK85: 0 | DL85: 19.05 | DM85: 23.22 | DN85: 1 | DO85: 3 | DP85: 63 | DQ85: 98 | DR85: 8 | DS85: 0 | DT85: 0 | DU85: 2 | DV85: 0 | DW85: 0 | DX85: 2 | DY85: 0 | DZ85: 177 | EA85: 0 | EB85: 2 | EC85: 67 | ED85: 81 | EE85: 9 | EF85: 1 | EG85: 1 | EH85: 1 | EI85: 0 | EJ85: 0 | EK85: 2 | EL85: 2 | EM85: 166 | EN85: 1 | EO85: 5 | EP85: 130 | EQ85: 179 | ER85: 17 | ES85: 1 | ET85: 1 | EU85: 3 | EV85: 0 | EW85: 0 | EX85: 4 | EY85: 2 | EZ85: 343
A86: Thu | B86: 900 | C86: 0 | D86: 0 | E86: 63 | F86: 83 | G86: 11 | H86: 0 | I86: 0 | J86: 1 | K86: 0 | L86: 1 | M86: 2 | N86: 1 | O86: 4 | P86: 22 | Q86: 73 | R86: 55 | S86: 8 | T86: 0 | U86: 0 | V86: 0 | W86: 0 | X86: 0 | Y86: 0 | Z86: 0 | AA86: 0 | AB86: 0 | AC86: 0 | AD86: 0 | AE86: 0 | AF86: 0 | AG86: 0 | AH86: 0 | AI86: 0 | AJ86: 0 | AK86: 0 | AL86: 18.59 | AM86: 23.16 | AN86: Thu | AO86: 900 | AP86: 1 | AQ86: 0 | AR86: 51 | AS86: 80 | AT86: 3 | AU86: 1 | AV86: 0 | AW86: 0 | AX86: 0 | AY86: 0 | AZ86: 1 | BA86: 2 | BB86: 3 | BC86: 28 | BD86: 76 | BE86: 28 | BF86: 4 | BG86: 0 | BH86: 0 | BI86: 0 | BJ86: 0 | BK86: 0 | BL86: 0 | BM86: 0 | BN86: 0 | BO86: 0 | BP86: 0 | BQ86: 0 | BR86: 0 | BS86: 0 | BT86: 0 | BU86: 0 | BV86: 0 | BW86: 0 | BX86: 0 | BY86: 17.91 | BZ86: 21.57 | CA86: Thu | CB86: 900 | CC86: 1 | CD86: 0 | CE86: 114 | CF86: 163 | CG86: 14 | CH86: 1 | CI86: 0 | CJ86: 1 | CK86: 0 | CL86: 1 | CM86: 3 | CN86: 3 | CO86: 7 | CP86: 50 | CQ86: 149 | CR86: 83 | CS86: 12 | CT86: 0 | CU86: 0 | CV86: 0 | CW86: 0 | CX86: 0 | CY86: 0 | CZ86: 0 | DA86: 0 | DB86: 0 | DC86: 0 | DD86: 0 | DE86: 0 | DF86: 0 | DG86: 0 | DH86: 0 | DI86: 0 | DJ86: 0 | DK86: 0 | DL86: 18.28 | DM86: 22 | DN86: 0 | DO86: 0 | DP86: 63 | DQ86: 83 | DR86: 11 | DS86: 0 | DT86: 0 | DU86: 1 | DV86: 0 | DW86: 1 | DX86: 2 | DY86: 1 | DZ86: 162 | EA86: 1 | EB86: 0 | EC86: 51 | ED86: 80 | EE86: 3 | EF86: 1 | EG86: 0 | EH86: 0 | EI86: 0 | EJ86: 0 | EK86: 1 | EL86: 2 | EM86: 139 | EN86: 1 | EO86: 0 | EP86: 114 | EQ86: 163 | ER86: 14 | ES86: 1 | ET86: 0 | EU86: 1 | EV86: 0 | EW86: 1 | EX86: 3 | EY86: 3 | EZ86: 301
A87: Thu | B87: 1000 | C87: 0 | D87: 0 | E87: 56 | F87: 89 | G87: 7 | H87: 2 | I87: 0 | J87: 0 | K87: 0 | L87: 0 | M87: 3 | N87: 0 | O87: 4 | P87: 20 | Q87: 86 | R87: 42 | S87: 5 | T87: 0 | U87: 0 | V87: 0 | W87: 0 | X87: 0 | Y87: 0 | Z87: 0 | AA87: 0 | AB87: 0 | AC87: 0 | AD87: 0 | AE87: 0 | AF87: 0 | AG87: 0 | AH87: 0 | AI87: 0 | AJ87: 0 | AK87: 0 | AL87: 18.24 | AM87: 21.68 | AN87: Thu | AO87: 1000 | AP87: 0 | AQ87: 0 | AR87: 55 | AS87: 71 | AT87: 8 | AU87: 0 | AV87: 0 | AW87: 0 | AX87: 0 | AY87: 0 | AZ87: 2 | BA87: 0 | BB87: 0 | BC87: 38 | BD87: 68 | BE87: 28 | BF87: 2 | BG87: 0 | BH87: 0 | BI87: 0 | BJ87: 0 | BK87: 0 | BL87: 0 | BM87: 0 | BN87: 0 | BO87: 0 | BP87: 0 | BQ87: 0 | BR87: 0 | BS87: 0 | BT87: 0 | BU87: 0 | BV87: 0 | BW87: 0 | BX87: 0 | BY87: 17.3 | BZ87: 20.54 | CA87: Thu | CB87: 1000 | CC87: 0 | CD87: 0 | CE87: 111 | CF87: 160 | CG87: 15 | CH87: 2 | CI87: 0 | CJ87: 0 | CK87: 0 | CL87: 0 | CM87: 5 | CN87: 0 | CO87: 4 | CP87: 58 | CQ87: 154 | CR87: 70 | CS87: 7 | CT87: 0 | CU87: 0 | CV87: 0 | CW87: 0 | CX87: 0 | CY87: 0 | CZ87: 0 | DA87: 0 | DB87: 0 | DC87: 0 | DD87: 0 | DE87: 0 | DF87: 0 | DG87: 0 | DH87: 0 | DI87: 0 | DJ87: 0 | DK87: 0 | DL87: 17.8 | DM87: 21.14 | DN87: 0 | DO87: 0 | DP87: 56 | DQ87: 89 | DR87: 7 | DS87: 2 | DT87: 0 | DU87: 0 | DV87: 0 | DW87: 0 | DX87: 3 | DY87: 0 | DZ87: 157 | EA87: 0 | EB87: 0 | EC87: 55 | ED87: 71 | EE87: 8 | EF87: 0 | EG87: 0 | EH87: 0 | EI87: 0 | EJ87: 0 | EK87: 2 | EL87: 0 | EM87: 136 | EN87: 0 | EO87: 0 | EP87: 111 | EQ87: 160 | ER87: 15 | ES87: 2 | ET87: 0 | EU87: 0 | EV87: 0 | EW87: 0 | EX87: 5 | EY87: 0 | EZ87: 293
A88: Thu | B88: 1100 | C88: 0 | D88: 2 | E88: 49 | F88: 92 | G88: 5 | H88: 1 | I88: 0 | J88: 1 | K88: 0 | L88: 0 | M88: 2 | N88: 1 | O88: 5 | P88: 32 | Q88: 77 | R88: 31 | S88: 7 | T88: 1 | U88: 0 | V88: 0 | W88: 0 | X88: 0 | Y88: 0 | Z88: 0 | AA88: 0 | AB88: 0 | AC88: 0 | AD88: 0 | AE88: 0 | AF88: 0 | AG88: 0 | AH88: 0 | AI88: 0 | AJ88: 0 | AK88: 0 | AL88: 17.69 | AM88: 21.56 | AN88: Thu | AO88: 1100 | AP88: 0 | AQ88: 3 | AR88: 59 | AS88: 81 | AT88: 7 | AU88: 0 | AV88: 0 | AW88: 0 | AX88: 0 | AY88: 0 | AZ88: 1 | BA88: 1 | BB88: 3 | BC88: 46 | BD88: 72 | BE88: 28 | BF88: 3 | BG88: 0 | BH88: 0 | BI88: 0 | BJ88: 0 | BK88: 0 | BL88: 0 | BM88: 0 | BN88: 0 | BO88: 0 | BP88: 0 | BQ88: 0 | BR88: 0 | BS88: 0 | BT88: 0 | BU88: 0 | BV88: 0 | BW88: 0 | BX88: 0 | BY88: 17.14 | BZ88: 20.87 | CA88: Thu | CB88: 1100 | CC88: 0 | CD88: 5 | CE88: 108 | CF88: 173 | CG88: 12 | CH88: 1 | CI88: 0 | CJ88: 1 | CK88: 0 | CL88: 0 | CM88: 3 | CN88: 2 | CO88: 8 | CP88: 78 | CQ88: 149 | CR88: 59 | CS88: 10 | CT88: 1 | CU88: 0 | CV88: 0 | CW88: 0 | CX88: 0 | CY88: 0 | CZ88: 0 | DA88: 0 | DB88: 0 | DC88: 0 | DD88: 0 | DE88: 0 | DF88: 0 | DG88: 0 | DH88: 0 | DI88: 0 | DJ88: 0 | DK88: 0 | DL88: 17.42 | DM88: 21.25 | DN88: 0 | DO88: 2 | DP88: 49 | DQ88: 92 | DR88: 5 | DS88: 1 | DT88: 0 | DU88: 1 | DV88: 0 | DW88: 0 | DX88: 2 | DY88: 1 | DZ88: 153 | EA88: 0 | EB88: 3 | EC88: 59 | ED88: 81 | EE88: 7 | EF88: 0 | EG88: 0 | EH88: 0 | EI88: 0 | EJ88: 0 | EK88: 1 | EL88: 1 | EM88: 152 | EN88: 0 | EO88: 5 | EP88: 108 | EQ88: 173 | ER88: 12 | ES88: 1 | ET88: 0 | EU88: 1 | EV88: 0 | EW88: 0 | EX88: 3 | EY88: 2 | EZ88: 305
A89: Thu | B89: 1200 | C89: 0 | D89: 3 | E89: 69 | F89: 96 | G89: 3 | H89: 0 | I89: 0 | J89: 0 | K89: 0 | L89: 0 | M89: 1 | N89: 1 | O89: 4 | P89: 38 | Q89: 75 | R89: 48 | S89: 8 | T89: 0 | U89: 0 | V89: 0 | W89: 0 | X89: 0 | Y89: 0 | Z89: 0 | AA89: 0 | AB89: 0 | AC89: 0 | AD89: 0 | AE89: 0 | AF89: 0 | AG89: 0 | AH89: 0 | AI89: 0 | AJ89: 0 | AK89: 0 | AL89: 18.2 | AM89: 22.18 | AN89: Thu | AO89: 1200 | AP89: 1 | AQ89: 2 | AR89: 64 | AS89: 67 | AT89: 9 | AU89: 1 | AV89: 1 | AW89: 1 | AX89: 0 | AY89: 0 | AZ89: 1 | BA89: 0 | BB89: 1 | BC89: 37 | BD89: 69 | BE89: 36 | BF89: 4 | BG89: 0 | BH89: 0 | BI89: 0 | BJ89: 0 | BK89: 0 | BL89: 0 | BM89: 0 | BN89: 0 | BO89: 0 | BP89: 0 | BQ89: 0 | BR89: 0 | BS89: 0 | BT89: 0 | BU89: 0 | BV89: 0 | BW89: 0 | BX89: 0 | BY89: 17.94 | BZ89: 21.54 | CA89: Thu | CB89: 1200 | CC89: 1 | CD89: 5 | CE89: 133 | CF89: 163 | CG89: 12 | CH89: 1 | CI89: 1 | CJ89: 1 | CK89: 0 | CL89: 0 | CM89: 2 | CN89: 1 | CO89: 5 | CP89: 75 | CQ89: 144 | CR89: 84 | CS89: 12 | CT89: 0 | CU89: 0 | CV89: 0 | CW89: 0 | CX89: 0 | CY89: 0 | CZ89: 0 | DA89: 0 | DB89: 0 | DC89: 0 | DD89: 0 | DE89: 0 | DF89: 0 | DG89: 0 | DH89: 0 | DI89: 0 | DJ89: 0 | DK89: 0 | DL89: 18.08 | DM89: 21.82 | DN89: 0 | DO89: 3 | DP89: 69 | DQ89: 96 | DR89: 3 | DS89: 0 | DT89: 0 | DU89: 0 | DV89: 0 | DW89: 0 | DX89: 1 | DY89: 1 | DZ89: 173 | EA89: 1 | EB89: 2 | EC89: 64 | ED89: 67 | EE89: 9 | EF89: 1 | EG89: 1 | EH89: 1 | EI89: 0 | EJ89: 0 | EK89: 1 | EL89: 0 | EM89: 147 | EN89: 1 | EO89: 5 | EP89: 133 | EQ89: 163 | ER89: 12 | ES89: 1 | ET89: 1 | EU89: 1 | EV89: 0 | EW89: 0 | EX89: 2 | EY89: 1 | EZ89: 320
A90: Thu | B90: 1300 | C90: 0 | D90: 6 | E90: 45 | F90: 87 | G90: 9 | H90: 0 | I90: 1 | J90: 0 | K90: 0 | L90: 0 | M90: 2 | N90: 1 | O90: 2 | P90: 25 | Q90: 69 | R90: 48 | S90: 7 | T90: 0 | U90: 0 | V90: 0 | W90: 0 | X90: 0 | Y90: 0 | Z90: 0 | AA90: 0 | AB90: 0 | AC90: 0 | AD90: 0 | AE90: 0 | AF90: 0 | AG90: 0 | AH90: 0 | AI90: 0 | AJ90: 0 | AK90: 0 | AL90: 18.68 | AM90: 22.63 | AN90: Thu | AO90: 1300 | AP90: 0 | AQ90: 0 | AR90: 53 | AS90: 56 | AT90: 6 | AU90: 0 | AV90: 0 | AW90: 0 | AX90: 0 | AY90: 0 | AZ90: 0 | BA90: 0 | BB90: 1 | BC90: 26 | BD90: 56 | BE90: 28 | BF90: 4 | BG90: 0 | BH90: 0 | BI90: 0 | BJ90: 0 | BK90: 0 | BL90: 0 | BM90: 0 | BN90: 0 | BO90: 0 | BP90: 0 | BQ90: 0 | BR90: 0 | BS90: 0 | BT90: 0 | BU90: 0 | BV90: 0 | BW90: 0 | BX90: 0 | BY90: 17.84 | BZ90: 21.23 | CA90: Thu | CB90: 1300 | CC90: 0 | CD90: 6 | CE90: 98 | CF90: 143 | CG90: 15 | CH90: 0 | CI90: 1 | CJ90: 0 | CK90: 0 | CL90: 0 | CM90: 2 | CN90: 1 | CO90: 3 | CP90: 51 | CQ90: 125 | CR90: 76 | CS90: 11 | CT90: 0 | CU90: 0 | CV90: 0 | CW90: 0 | CX90: 0 | CY90: 0 | CZ90: 0 | DA90: 0 | DB90: 0 | DC90: 0 | DD90: 0 | DE90: 0 | DF90: 0 | DG90: 0 | DH90: 0 | DI90: 0 | DJ90: 0 | DK90: 0 | DL90: 18.32 | DM90: 22.14 | DN90: 0 | DO90: 6 | DP90: 45 | DQ90: 87 | DR90: 9 | DS90: 0 | DT90: 1 | DU90: 0 | DV90: 0 | DW90: 0 | DX90: 2 | DY90: 1 | DZ90: 151 | EA90: 0 | EB90: 0 | EC90: 53 | ED90: 56 | EE90: 6 | EF90: 0 | EG90: 0 | EH90: 0 | EI90: 0 | EJ90: 0 | EK90: 0 | EL90: 0 | EM90: 115 | EN90: 0 | EO90: 6 | EP90: 98 | EQ90: 143 | ER90: 15 | ES90: 0 | ET90: 1 | EU90: 0 | EV90: 0 | EW90: 0 | EX90: 2 | EY90: 1 | EZ90: 266
A91: Thu | B91: 1400 | C91: 0 | D91: 3 | E91: 50 | F91: 82 | G91: 4 | H91: 0 | I91: 0 | J91: 1 | K91: 0 | L91: 0 | M91: 0 | N91: 0 | O91: 1 | P91: 19 | Q91: 69 | R91: 45 | S91: 6 | T91: 0 | U91: 0 | V91: 0 | W91: 0 | X91: 0 | Y91: 0 | Z91: 0 | AA91: 0 | AB91: 0 | AC91: 0 | AD91: 0 | AE91: 0 | AF91: 0 | AG91: 0 | AH91: 0 | AI91: 0 | AJ91: 0 | AK91: 0 | AL91: 18.88 | AM91: 21.98 | AN91: Thu | AO91: 1400 | AP91: 0 | AQ91: 6 | AR91: 45 | AS91: 51 | AT91: 3 | AU91: 0 | AV91: 1 | AW91: 0 | AX91: 0 | AY91: 0 | AZ91: 0 | BA91: 1 | BB91: 1 | BC91: 16 | BD91: 53 | BE91: 36 | BF91: 1 | BG91: 0 | BH91: 0 | BI91: 0 | BJ91: 0 | BK91: 0 | BL91: 0 | BM91: 0 | BN91: 0 | BO91: 0 | BP91: 0 | BQ91: 0 | BR91: 0 | BS91: 0 | BT91: 0 | BU91: 0 | BV91: 0 | BW91: 0 | BX91: 0 | BY91: 18.4 | BZ91: 21.91 | CA91: Thu | CB91: 1400 | CC91: 0 | CD91: 9 | CE91: 95 | CF91: 133 | CG91: 7 | CH91: 0 | CI91: 1 | CJ91: 1 | CK91: 0 | CL91: 0 | CM91: 0 | CN91: 1 | CO91: 2 | CP91: 35 | CQ91: 122 | CR91: 81 | CS91: 7 | CT91: 0 | CU91: 0 | CV91: 0 | CW91: 0 | CX91: 0 | CY91: 0 | CZ91: 0 | DA91: 0 | DB91: 0 | DC91: 0 | DD91: 0 | DE91: 0 | DF91: 0 | DG91: 0 | DH91: 0 | DI91: 0 | DJ91: 0 | DK91: 0 | DL91: 18.67 | DM91: 21.92 | DN91: 0 | DO91: 3 | DP91: 50 | DQ91: 82 | DR91: 4 | DS91: 0 | DT91: 0 | DU91: 1 | DV91: 0 | DW91: 0 | DX91: 0 | DY91: 0 | DZ91: 140 | EA91: 0 | EB91: 6 | EC91: 45 | ED91: 51 | EE91: 3 | EF91: 0 | EG91: 1 | EH91: 0 | EI91: 0 | EJ91: 0 | EK91: 0 | EL91: 1 | EM91: 107 | EN91: 0 | EO91: 9 | EP91: 95 | EQ91: 133 | ER91: 7 | ES91: 0 | ET91: 1 | EU91: 1 | EV91: 0 | EW91: 0 | EX91: 0 | EY91: 1 | EZ91: 247
A92: Thu | B92: 1500 | C92: 0 | D92: 1 | E92: 55 | F92: 87 | G92: 3 | H92: 0 | I92: 0 | J92: 0 | K92: 0 | L92: 0 | M92: 1 | N92: 1 | O92: 4 | P92: 27 | Q92: 73 | R92: 33 | S92: 10 | T92: 1 | U92: 0 | V92: 0 | W92: 0 | X92: 0 | Y92: 0 | Z92: 0 | AA92: 0 | AB92: 0 | AC92: 0 | AD92: 0 | AE92: 0 | AF92: 0 | AG92: 0 | AH92: 0 | AI92: 0 | AJ92: 0 | AK92: 0 | AL92: 18.38 | AM92: 22.2 | AN92: Thu | AO92: 1500 | AP92: 0 | AQ92: 1 | AR92: 66 | AS92: 73 | AT92: 6 | AU92: 0 | AV92: 0 | AW92: 0 | AX92: 0 | AY92: 0 | AZ92: 0 | BA92: 0 | BB92: 1 | BC92: 31 | BD92: 72 | BE92: 38 | BF92: 4 | BG92: 0 | BH92: 0 | BI92: 0 | BJ92: 0 | BK92: 0 | BL92: 0 | BM92: 0 | BN92: 0 | BO92: 0 | BP92: 0 | BQ92: 0 | BR92: 0 | BS92: 0 | BT92: 0 | BU92: 0 | BV92: 0 | BW92: 0 | BX92: 0 | BY92: 17.88 | BZ92: 20.91 | CA92: Thu | CB92: 1500 | CC92: 0 | CD92: 2 | CE92: 121 | CF92: 160 | CG92: 9 | CH92: 0 | CI92: 0 | CJ92: 0 | CK92: 0 | CL92: 0 | CM92: 1 | CN92: 1 | CO92: 5 | CP92: 58 | CQ92: 145 | CR92: 71 | CS92: 14 | CT92: 1 | CU92: 0 | CV92: 0 | CW92: 0 | CX92: 0 | CY92: 0 | CZ92: 0 | DA92: 0 | DB92: 0 | DC92: 0 | DD92: 0 | DE92: 0 | DF92: 0 | DG92: 0 | DH92: 0 | DI92: 0 | DJ92: 0 | DK92: 0 | DL92: 18.13 | DM92: 21.46 | DN92: 0 | DO92: 1 | DP92: 55 | DQ92: 87 | DR92: 3 | DS92: 0 | DT92: 0 | DU92: 0 | DV92: 0 | DW92: 0 | DX92: 1 | DY92: 1 | DZ92: 148 | EA92: 0 | EB92: 1 | EC92: 66 | ED92: 73 | EE92: 6 | EF92: 0 | EG92: 0 | EH92: 0 | EI92: 0 | EJ92: 0 | EK92: 0 | EL92: 0 | EM92: 146 | EN92: 0 | EO92: 2 | EP92: 121 | EQ92: 160 | ER92: 9 | ES92: 0 | ET92: 0 | EU92: 0 | EV92: 0 | EW92: 0 | EX92: 1 | EY92: 1 | EZ92: 294
A93: Thu | B93: 1600 | C93: 1 | D93: 0 | E93: 45 | F93: 94 | G93: 6 | H93: 0 | I93: 0 | J93: 0 | K93: 0 | L93: 1 | M93: 2 | N93: 0 | O93: 2 | P93: 16 | Q93: 58 | R93: 62 | S93: 10 | T93: 1 | U93: 0 | V93: 0 | W93: 0 | X93: 0 | Y93: 0 | Z93: 0 | AA93: 0 | AB93: 0 | AC93: 0 | AD93: 0 | AE93: 0 | AF93: 0 | AG93: 0 | AH93: 0 | AI93: 0 | AJ93: 0 | AK93: 0 | AL93: 19.58 | AM93: 23.11 | AN93: Thu | AO93: 1600 | AP93: 0 | AQ93: 0 | AR93: 83 | AS93: 103 | AT93: 3 | AU93: 1 | AV93: 0 | AW93: 0 | AX93: 0 | AY93: 0 | AZ93: 1 | BA93: 2 | BB93: 1 | BC93: 27 | BD93: 87 | BE93: 69 | BF93: 9 | BG93: 0 | BH93: 0 | BI93: 0 | BJ93: 0 | BK93: 0 | BL93: 0 | BM93: 0 | BN93: 0 | BO93: 0 | BP93: 0 | BQ93: 0 | BR93: 0 | BS93: 0 | BT93: 0 | BU93: 0 | BV93: 0 | BW93: 0 | BX93: 0 | BY93: 19.04 | BZ93: 22.44 | CA93: Thu | CB93: 1600 | CC93: 1 | CD93: 0 | CE93: 128 | CF93: 197 | CG93: 9 | CH93: 1 | CI93: 0 | CJ93: 0 | CK93: 0 | CL93: 1 | CM93: 3 | CN93: 2 | CO93: 3 | CP93: 43 | CQ93: 145 | CR93: 131 | CS93: 19 | CT93: 1 | CU93: 0 | CV93: 0 | CW93: 0 | CX93: 0 | CY93: 0 | CZ93: 0 | DA93: 0 | DB93: 0 | DC93: 0 | DD93: 0 | DE93: 0 | DF93: 0 | DG93: 0 | DH93: 0 | DI93: 0 | DJ93: 0 | DK93: 0 | DL93: 19.28 | DM93: 22.88 | DN93: 1 | DO93: 0 | DP93: 45 | DQ93: 94 | DR93: 6 | DS93: 0 | DT93: 0 | DU93: 0 | DV93: 0 | DW93: 1 | DX93: 2 | DY93: 0 | DZ93: 149 | EA93: 0 | EB93: 0 | EC93: 83 | ED93: 103 | EE93: 3 | EF93: 1 | EG93: 0 | EH93: 0 | EI93: 0 | EJ93: 0 | EK93: 1 | EL93: 2 | EM93: 193 | EN93: 1 | EO93: 0 | EP93: 128 | EQ93: 197 | ER93: 9 | ES93: 1 | ET93: 0 | EU93: 0 | EV93: 0 | EW93: 1 | EX93: 3 | EY93: 2 | EZ93: 342
A94: Thu | B94: 1700 | C94: 0 | D94: 0 | E94: 67 | F94: 81 | G94: 3 | H94: 0 | I94: 0 | J94: 2 | K94: 0 | L94: 0 | M94: 0 | N94: 0 | O94: 5 | P94: 16 | Q94: 67 | R94: 58 | S94: 6 | T94: 1 | U94: 0 | V94: 0 | W94: 0 | X94: 0 | Y94: 0 | Z94: 0 | AA94: 0 | AB94: 0 | AC94: 0 | AD94: 0 | AE94: 0 | AF94: 0 | AG94: 0 | AH94: 0 | AI94: 0 | AJ94: 0 | AK94: 0 | AL94: 19.17 | AM94: 23.01 | AN94: Thu | AO94: 1700 | AP94: 0 | AQ94: 4 | AR94: 92 | AS94: 75 | AT94: 1 | AU94: 1 | AV94: 0 | AW94: 0 | AX94: 0 | AY94: 0 | AZ94: 0 | BA94: 2 | BB94: 7 | BC94: 33 | BD94: 66 | BE94: 61 | BF94: 8 | BG94: 0 | BH94: 0 | BI94: 0 | BJ94: 0 | BK94: 0 | BL94: 0 | BM94: 0 | BN94: 0 | BO94: 0 | BP94: 0 | BQ94: 0 | BR94: 0 | BS94: 0 | BT94: 0 | BU94: 0 | BV94: 0 | BW94: 0 | BX94: 0 | BY94: 18.29 | BZ94: 22.48 | CA94: Thu | CB94: 1700 | CC94: 0 | CD94: 4 | CE94: 159 | CF94: 156 | CG94: 4 | CH94: 1 | CI94: 0 | CJ94: 2 | CK94: 0 | CL94: 0 | CM94: 0 | CN94: 2 | CO94: 12 | CP94: 49 | CQ94: 133 | CR94: 119 | CS94: 14 | CT94: 1 | CU94: 0 | CV94: 0 | CW94: 0 | CX94: 0 | CY94: 0 | CZ94: 0 | DA94: 0 | DB94: 0 | DC94: 0 | DD94: 0 | DE94: 0 | DF94: 0 | DG94: 0 | DH94: 0 | DI94: 0 | DJ94: 0 | DK94: 0 | DL94: 18.7 | DM94: 22.65 | DN94: 0 | DO94: 0 | DP94: 67 | DQ94: 81 | DR94: 3 | DS94: 0 | DT94: 0 | DU94: 2 | DV94: 0 | DW94: 0 | DX94: 0 | DY94: 0 | DZ94: 153 | EA94: 0 | EB94: 4 | EC94: 92 | ED94: 75 | EE94: 1 | EF94: 1 | EG94: 0 | EH94: 0 | EI94: 0 | EJ94: 0 | EK94: 0 | EL94: 2 | EM94: 175 | EN94: 0 | EO94: 4 | EP94: 159 | EQ94: 156 | ER94: 4 | ES94: 1 | ET94: 0 | EU94: 2 | EV94: 0 | EW94: 0 | EX94: 0 | EY94: 2 | EZ94: 328
A95: Thu | B95: 1800 | C95: 0 | D95: 0 | E95: 44 | F95: 60 | G95: 3 | H95: 0 | I95: 0 | J95: 0 | K95: 0 | L95: 0 | M95: 1 | N95: 0 | O95: 3 | P95: 8 | Q95: 48 | R95: 42 | S95: 7 | T95: 0 | U95: 0 | V95: 0 | W95: 0 | X95: 0 | Y95: 0 | Z95: 0 | AA95: 0 | AB95: 0 | AC95: 0 | AD95: 0 | AE95: 0 | AF95: 0 | AG95: 0 | AH95: 0 | AI95: 0 | AJ95: 0 | AK95: 0 | AL95: 19.58 | AM95: 23.55 | AN95: Thu | AO95: 1800 | AP95: 0 | AQ95: 2 | AR95: 76 | AS95: 61 | AT95: 2 | AU95: 0 | AV95: 0 | AW95: 1 | AX95: 0 | AY95: 0 | AZ95: 0 | BA95: 0 | BB95: 4 | BC95: 21 | BD95: 76 | BE95: 31 | BF95: 9 | BG95: 1 | BH95: 0 | BI95: 0 | BJ95: 0 | BK95: 0 | BL95: 0 | BM95: 0 | BN95: 0 | BO95: 0 | BP95: 0 | BQ95: 0 | BR95: 0 | BS95: 0 | BT95: 0 | BU95: 0 | BV95: 0 | BW95: 0 | BX95: 0 | BY95: 18.54 | BZ95: 22.5 | CA95: Thu | CB95: 1800 | CC95: 0 | CD95: 2 | CE95: 120 | CF95: 121 | CG95: 5 | CH95: 0 | CI95: 0 | CJ95: 1 | CK95: 0 | CL95: 0 | CM95: 1 | CN95: 0 | CO95: 7 | CP95: 29 | CQ95: 124 | CR95: 73 | CS95: 16 | CT95: 1 | CU95: 0 | CV95: 0 | CW95: 0 | CX95: 0 | CY95: 0 | CZ95: 0 | DA95: 0 | DB95: 0 | DC95: 0 | DD95: 0 | DE95: 0 | DF95: 0 | DG95: 0 | DH95: 0 | DI95: 0 | DJ95: 0 | DK95: 0 | DL95: 18.99 | DM95: 23.11 | DN95: 0 | DO95: 0 | DP95: 44 | DQ95: 60 | DR95: 3 | DS95: 0 | DT95: 0 | DU95: 0 | DV95: 0 | DW95: 0 | DX95: 1 | DY95: 0 | DZ95: 108 | EA95: 0 | EB95: 2 | EC95: 76 | ED95: 61 | EE95: 2 | EF95: 0 | EG95: 0 | EH95: 1 | EI95: 0 | EJ95: 0 | EK95: 0 | EL95: 0 | EM95: 142 | EN95: 0 | EO95: 2 | EP95: 120 | EQ95: 121 | ER95: 5 | ES95: 0 | ET95: 0 | EU95: 1 | EV95: 0 | EW95: 0 | EX95: 1 | EY95: 0 | EZ95: 250
A96: Thu | B96: 1900 | C96: 0 | D96: 2 | E96: 26 | F96: 54 | G96: 3 | H96: 0 | I96: 0 | J96: 0 | K96: 0 | L96: 0 | M96: 1 | N96: 0 | O96: 0 | P96: 6 | Q96: 28 | R96: 42 | S96: 10 | T96: 0 | U96: 0 | V96: 0 | W96: 0 | X96: 0 | Y96: 0 | Z96: 0 | AA96: 0 | AB96: 0 | AC96: 0 | AD96: 0 | AE96: 0 | AF96: 0 | AG96: 0 | AH96: 0 | AI96: 0 | AJ96: 0 | AK96: 0 | AL96: 20.9 | AM96: 24.29 | AN96: Thu | AO96: 1900 | AP96: 1 | AQ96: 1 | AR96: 53 | AS96: 40 | AT96: 3 | AU96: 0 | AV96: 0 | AW96: 0 | AX96: 1 | AY96: 0 | AZ96: 0 | BA96: 0 | BB96: 4 | BC96: 19 | BD96: 33 | BE96: 32 | BF96: 8 | BG96: 3 | BH96: 0 | BI96: 0 | BJ96: 0 | BK96: 0 | BL96: 0 | BM96: 0 | BN96: 0 | BO96: 0 | BP96: 0 | BQ96: 0 | BR96: 0 | BS96: 0 | BT96: 0 | BU96: 0 | BV96: 0 | BW96: 0 | BX96: 0 | BY96: 18.8 | BZ96: 23.77 | CA96: Thu | CB96: 1900 | CC96: 1 | CD96: 3 | CE96: 79 | CF96: 94 | CG96: 6 | CH96: 0 | CI96: 0 | CJ96: 0 | CK96: 1 | CL96: 0 | CM96: 1 | CN96: 0 | CO96: 4 | CP96: 25 | CQ96: 61 | CR96: 74 | CS96: 18 | CT96: 3 | CU96: 0 | CV96: 0 | CW96: 0 | CX96: 0 | CY96: 0 | CZ96: 0 | DA96: 0 | DB96: 0 | DC96: 0 | DD96: 0 | DE96: 0 | DF96: 0 | DG96: 0 | DH96: 0 | DI96: 0 | DJ96: 0 | DK96: 0 | DL96: 19.78 | DM96: 24.08 | DN96: 0 | DO96: 2 | DP96: 26 | DQ96: 54 | DR96: 3 | DS96: 0 | DT96: 0 | DU96: 0 | DV96: 0 | DW96: 0 | DX96: 1 | DY96: 0 | DZ96: 86 | EA96: 1 | EB96: 1 | EC96: 53 | ED96: 40 | EE96: 3 | EF96: 0 | EG96: 0 | EH96: 0 | EI96: 1 | EJ96: 0 | EK96: 0 | EL96: 0 | EM96: 99 | EN96: 1 | EO96: 3 | EP96: 79 | EQ96: 94 | ER96: 6 | ES96: 0 | ET96: 0 | EU96: 0 | EV96: 1 | EW96: 0 | EX96: 1 | EY96: 0 | EZ96: 185
A97: Thu | B97: 2000 | C97: 0 | D97: 0 | E97: 18 | F97: 31 | G97: 1 | H97: 0 | I97: 0 | J97: 0 | K97: 0 | L97: 0 | M97: 0 | N97: 0 | O97: 0 | P97: 2 | Q97: 16 | R97: 24 | S97: 5 | T97: 3 | U97: 0 | V97: 0 | W97: 0 | X97: 0 | Y97: 0 | Z97: 0 | AA97: 0 | AB97: 0 | AC97: 0 | AD97: 0 | AE97: 0 | AF97: 0 | AG97: 0 | AH97: 0 | AI97: 0 | AJ97: 0 | AK97: 0 | AL97: 21.44 | AM97: 25.11 | AN97: Thu | AO97: 2000 | AP97: 0 | AQ97: 0 | AR97: 31 | AS97: 25 | AT97: 3 | AU97: 0 | AV97: 0 | AW97: 0 | AX97: 0 | AY97: 0 | AZ97: 0 | BA97: 1 | BB97: 3 | BC97: 4 | BD97: 24 | BE97: 25 | BF97: 4 | BG97: 0 | BH97: 0 | BI97: 0 | BJ97: 0 | BK97: 0 | BL97: 0 | BM97: 0 | BN97: 0 | BO97: 0 | BP97: 0 | BQ97: 0 | BR97: 0 | BS97: 0 | BT97: 0 | BU97: 0 | BV97: 0 | BW97: 0 | BX97: 0 | BY97: 19.52 | BZ97: 22.98 | CA97: Thu | CB97: 2000 | CC97: 0 | CD97: 0 | CE97: 49 | CF97: 56 | CG97: 4 | CH97: 0 | CI97: 0 | CJ97: 0 | CK97: 0 | CL97: 0 | CM97: 0 | CN97: 1 | CO97: 3 | CP97: 6 | CQ97: 40 | CR97: 49 | CS97: 9 | CT97: 3 | CU97: 0 | CV97: 0 | CW97: 0 | CX97: 0 | CY97: 0 | CZ97: 0 | DA97: 0 | DB97: 0 | DC97: 0 | DD97: 0 | DE97: 0 | DF97: 0 | DG97: 0 | DH97: 0 | DI97: 0 | DJ97: 0 | DK97: 0 | DL97: 20.39 | DM97: 24.12 | DN97: 0 | DO97: 0 | DP97: 18 | DQ97: 31 | DR97: 1 | DS97: 0 | DT97: 0 | DU97: 0 | DV97: 0 | DW97: 0 | DX97: 0 | DY97: 0 | DZ97: 50 | EA97: 0 | EB97: 0 | EC97: 31 | ED97: 25 | EE97: 3 | EF97: 0 | EG97: 0 | EH97: 0 | EI97: 0 | EJ97: 0 | EK97: 0 | EL97: 1 | EM97: 60 | EN97: 0 | EO97: 0 | EP97: 49 | EQ97: 56 | ER97: 4 | ES97: 0 | ET97: 0 | EU97: 0 | EV97: 0 | EW97: 0 | EX97: 0 | EY97: 1 | EZ97: 110
A98: Thu | B98: 2100 | C98: 0 | D98: 0 | E98: 15 | F98: 30 | G98: 2 | H98: 0 | I98: 0 | J98: 0 | K98: 0 | L98: 0 | M98: 0 | N98: 0 | O98: 0 | P98: 1 | Q98: 13 | R98: 25 | S98: 7 | T98: 1 | U98: 0 | V98: 0 | W98: 0 | X98: 0 | Y98: 0 | Z98: 0 | AA98: 0 | AB98: 0 | AC98: 0 | AD98: 0 | AE98: 0 | AF98: 0 | AG98: 0 | AH98: 0 | AI98: 0 | AJ98: 0 | AK98: 0 | AL98: 21.92 | AM98: 25.15 | AN98: Thu | AO98: 2100 | AP98: 0 | AQ98: 0 | AR98: 25 | AS98: 22 | AT98: 0 | AU98: 0 | AV98: 0 | AW98: 0 | AX98: 0 | AY98: 0 | AZ98: 0 | BA98: 1 | BB98: 2 | BC98: 3 | BD98: 21 | BE98: 18 | BF98: 4 | BG98: 0 | BH98: 0 | BI98: 0 | BJ98: 0 | BK98: 0 | BL98: 0 | BM98: 0 | BN98: 0 | BO98: 0 | BP98: 0 | BQ98: 0 | BR98: 0 | BS98: 0 | BT98: 0 | BU98: 0 | BV98: 0 | BW98: 0 | BX98: 0 | BY98: 19.43 | BZ98: 23.04 | CA98: Thu | CB98: 2100 | CC98: 0 | CD98: 0 | CE98: 40 | CF98: 52 | CG98: 2 | CH98: 0 | CI98: 0 | CJ98: 0 | CK98: 0 | CL98: 0 | CM98: 0 | CN98: 1 | CO98: 2 | CP98: 4 | CQ98: 34 | CR98: 43 | CS98: 11 | CT98: 1 | CU98: 0 | CV98: 0 | CW98: 0 | CX98: 0 | CY98: 0 | CZ98: 0 | DA98: 0 | DB98: 0 | DC98: 0 | DD98: 0 | DE98: 0 | DF98: 0 | DG98: 0 | DH98: 0 | DI98: 0 | DJ98: 0 | DK98: 0 | DL98: 20.67 | DM98: 24.17 | DN98: 0 | DO98: 0 | DP98: 15 | DQ98: 30 | DR98: 2 | DS98: 0 | DT98: 0 | DU98: 0 | DV98: 0 | DW98: 0 | DX98: 0 | DY98: 0 | DZ98: 47 | EA98: 0 | EB98: 0 | EC98: 25 | ED98: 22 | EE98: 0 | EF98: 0 | EG98: 0 | EH98: 0 | EI98: 0 | EJ98: 0 | EK98: 0 | EL98: 1 | EM98: 48 | EN98: 0 | EO98: 0 | EP98: 40 | EQ98: 52 | ER98: 2 | ES98: 0 | ET98: 0 | EU98: 0 | EV98: 0 | EW98: 0 | EX98: 0 | EY98: 1 | EZ98: 95
A99: Thu | B99: 2200 | C99: 0 | D99: 0 | E99: 5 | F99: 8 | G99: 0 | H99: 0 | I99: 0 | J99: 0 | K99: 0 | L99: 0 | M99: 0 | N99: 0 | O99: 0 | P99: 0 | Q99: 4 | R99: 4 | S99: 4 | T99: 1 | U99: 0 | V99: 0 | W99: 0 | X99: 0 | Y99: 0 | Z99: 0 | AA99: 0 | AB99: 0 | AC99: 0 | AD99: 0 | AE99: 0 | AF99: 0 | AG99: 0 | AH99: 0 | AI99: 0 | AJ99: 0 | AK99: 0 | AL99: 23.47 | AM99: 27.1 | AN99: Thu | AO99: 2200 | AP99: 0 | AQ99: 1 | AR99: 11 | AS99: 8 | AT99: 0 | AU99: 0 | AV99: 0 | AW99: 0 | AX99: 0 | AY99: 0 | AZ99: 0 | BA99: 0 | BB99: 0 | BC99: 0 | BD99: 3 | BE99: 12 | BF99: 5 | BG99: 0 | BH99: 0 | BI99: 0 | BJ99: 0 | BK99: 0 | BL99: 0 | BM99: 0 | BN99: 0 | BO99: 0 | BP99: 0 | BQ99: 0 | BR99: 0 | BS99: 0 | BT99: 0 | BU99: 0 | BV99: 0 | BW99: 0 | BX99: 0 | BY99: 22.69 | BZ99: 26.19 | CA99: Thu | CB99: 2200 | CC99: 0 | CD99: 1 | CE99: 16 | CF99: 16 | CG99: 0 | CH99: 0 | CI99: 0 | CJ99: 0 | CK99: 0 | CL99: 0 | CM99: 0 | CN99: 0 | CO99: 0 | CP99: 0 | CQ99: 7 | CR99: 16 | CS99: 9 | CT99: 1 | CU99: 0 | CV99: 0 | CW99: 0 | CX99: 0 | CY99: 0 | CZ99: 0 | DA99: 0 | DB99: 0 | DC99: 0 | DD99: 0 | DE99: 0 | DF99: 0 | DG99: 0 | DH99: 0 | DI99: 0 | DJ99: 0 | DK99: 0 | DL99: 23 | DM99: 26.9 | DN99: 0 | DO99: 0 | DP99: 5 | DQ99: 8 | DR99: 0 | DS99: 0 | DT99: 0 | DU99: 0 | DV99: 0 | DW99: 0 | DX99: 0 | DY99: 0 | DZ99: 13 | EA99: 0 | EB99: 1 | EC99: 11 | ED99: 8 | EE99: 0 | EF99: 0 | EG99: 0 | EH99: 0 | EI99: 0 | EJ99: 0 | EK99: 0 | EL99: 0 | EM99: 20 | EN99: 0 | EO99: 1 | EP99: 16 | EQ99: 16 | ER99: 0 | ES99: 0 | ET99: 0 | EU99: 0 | EV99: 0 | EW99: 0 | EX99: 0 | EY99: 0 | EZ99: 33
A100: Thu | B100: 2300 | C100: 0 | D100: 1 | E100: 3 | F100: 1 | G100: 0 | H100: 0 | I100: 0 | J100: 1 | K100: 0 | L100: 0 | M100: 0 | N100: 0 | O100: 0 | P100: 1 | Q100: 1 | R100: 2 | S100: 2 | T100: 0 | U100: 0 | V100: 0 | W100: 0 | X100: 0 | Y100: 0 | Z100: 0 | AA100: 0 | AB100: 0 | AC100: 0 | AD100: 0 | AE100: 0 | AF100: 0 | AG100: 0 | AH100: 0 | AI100: 0 | AJ100: 0 | AK100: 0 | AL100: 22.66 | AM100: - | AN100: Thu | AO100: 2300 | AP100: 0 | AQ100: 0 | AR100: 3 | AS100: 5 | AT100: 0 | AU100: 0 | AV100: 0 | AW100: 0 | AX100: 0 | AY100: 0 | AZ100: 0 | BA100: 0 | BB100: 0 | BC100: 0 | BD100: 2 | BE100: 3 | BF100: 3 | BG100: 0 | BH100: 0 | BI100: 0 | BJ100: 0 | BK100: 0 | BL100: 0 | BM100: 0 | BN100: 0 | BO100: 0 | BP100: 0 | BQ100: 0 | BR100: 0 | BS100: 0 | BT100: 0 | BU100: 0 | BV100: 0 | BW100: 0 | BX100: 0 | BY100: 22.91 | BZ100: - | CA100: Thu | CB100: 2300 | CC100: 0 | CD100: 1 | CE100: 6 | CF100: 6 | CG100: 0 | CH100: 0 | CI100: 0 | CJ100: 1 | CK100: 0 | CL100: 0 | CM100: 0 | CN100: 0 | CO100: 0 | CP100: 1 | CQ100: 3 | CR100: 5 | CS100: 5 | CT100: 0 | CU100: 0 | CV100: 0 | CW100: 0 | CX100: 0 | CY100: 0 | CZ100: 0 | DA100: 0 | DB100: 0 | DC100: 0 | DD100: 0 | DE100: 0 | DF100: 0 | DG100: 0 | DH100: 0 | DI100: 0 | DJ100: 0 | DK100: 0 | DL100: 22.8 | DM100: 26.69 | DN100: 0 | DO100: 1 | DP100: 3 | DQ100: 1 | DR100: 0 | DS100: 0 | DT100: 0 | DU100: 1 | DV100: 0 | DW100: 0 | DX100: 0 | DY100: 0 | DZ100: 6 | EA100: 0 | EB100: 0 | EC100: 3 | ED100: 5 | EE100: 0 | EF100: 0 | EG100: 0 | EH100: 0 | EI100: 0 | EJ100: 0 | EK100: 0 | EL100: 0 | EM100: 8 | EN100: 0 | EO100: 1 | EP100: 6 | EQ100: 6 | ER100: 0 | ES100: 0 | ET100: 0 | EU100: 1 | EV100: 0 | EW100: 0 | EX100: 0 | EY100: 0 | EZ100: 14
A101: Fri | B101: 0 | C101: 0 | D101: 0 | E101: 3 | F101: 1 | G101: 0 | H101: 0 | I101: 0 | J101: 0 | K101: 0 | L101: 0 | M101: 0 | N101: 0 | O101: 0 | P101: 0 | Q101: 2 | R101: 1 | S101: 1 | T101: 0 | U101: 0 | V101: 0 | W101: 0 | X101: 0 | Y101: 0 | Z101: 0 | AA101: 0 | AB101: 0 | AC101: 0 | AD101: 0 | AE101: 0 | AF101: 0 | AG101: 0 | AH101: 0 | AI101: 0 | AJ101: 0 | AK101: 0 | AL101: 22.66 | AM101: - | AN101: Fri | AO101: 0 | AP101: 0 | AQ101: 0 | AR101: 1 | AS101: 2 | AT101: 0 | AU101: 0 | AV101: 0 | AW101: 0 | AX101: 0 | AY101: 0 | AZ101: 0 | BA101: 0 | BB101: 0 | BC101: 0 | BD101: 1 | BE101: 2 | BF101: 0 | BG101: 0 | BH101: 0 | BI101: 0 | BJ101: 0 | BK101: 0 | BL101: 0 | BM101: 0 | BN101: 0 | BO101: 0 | BP101: 0 | BQ101: 0 | BR101: 0 | BS101: 0 | BT101: 0 | BU101: 0 | BV101: 0 | BW101: 0 | BX101: 0 | BY101: 21.17 | BZ101: - | CA101: Fri | CB101: 0 | CC101: 0 | CD101: 0 | CE101: 4 | CF101: 3 | CG101: 0 | CH101: 0 | CI101: 0 | CJ101: 0 | CK101: 0 | CL101: 0 | CM101: 0 | CN101: 0 | CO101: 0 | CP101: 0 | CQ101: 3 | CR101: 3 | CS101: 1 | CT101: 0 | CU101: 0 | CV101: 0 | CW101: 0 | CX101: 0 | CY101: 0 | CZ101: 0 | DA101: 0 | DB101: 0 | DC101: 0 | DD101: 0 | DE101: 0 | DF101: 0 | DG101: 0 | DH101: 0 | DI101: 0 | DJ101: 0 | DK101: 0 | DL101: 22.02 | DM101: - | DN101: 0 | DO101: 0 | DP101: 3 | DQ101: 1 | DR101: 0 | DS101: 0 | DT101: 0 | DU101: 0 | DV101: 0 | DW101: 0 | DX101: 0 | DY101: 0 | DZ101: 4 | EA101: 0 | EB101: 0 | EC101: 1 | ED101: 2 | EE101: 0 | EF101: 0 | EG101: 0 | EH101: 0 | EI101: 0 | EJ101: 0 | EK101: 0 | EL101: 0 | EM101: 3 | EN101: 0 | EO101: 0 | EP101: 4 | EQ101: 3 | ER101: 0 | ES101: 0 | ET101: 0 | EU101: 0 | EV101: 0 | EW101: 0 | EX101: 0 | EY101: 0 | EZ101: 7
A102: Fri | B102: 100 | C102: 0 | D102: 0 | E102: 0 | F102: 0 | G102: 0 | H102: 0 | I102: 0 | J102: 0 | K102: 0 | L102: 0 | M102: 0 | N102: 0 | O102: 0 | P102: 0 | Q102: 0 | R102: 0 | S102: 0 | T102: 0 | U102: 0 | V102: 0 | W102: 0 | X102: 0 | Y102: 0 | Z102: 0 | AA102: 0 | AB102: 0 | AC102: 0 | AD102: 0 | AE102: 0 | AF102: 0 | AG102: 0 | AH102: 0 | AI102: 0 | AJ102: 0 | AK102: 0 | AL102: - | AM102: - | AN102: Fri | AO102: 100 | AP102: 0 | AQ102: 0 | AR102: 0 | AS102: 1 | AT102: 0 | AU102: 0 | AV102: 0 | AW102: 0 | AX102: 0 | AY102: 0 | AZ102: 0 | BA102: 0 | BB102: 0 | BC102: 0 | BD102: 0 | BE102: 0 | BF102: 0 | BG102: 1 | BH102: 0 | BI102: 0 | BJ102: 0 | BK102: 0 | BL102: 0 | BM102: 0 | BN102: 0 | BO102: 0 | BP102: 0 | BQ102: 0 | BR102: 0 | BS102: 0 | BT102: 0 | BU102: 0 | BV102: 0 | BW102: 0 | BX102: 0 | BY102: 30.16 | BZ102: - | CA102: Fri | CB102: 100 | CC102: 0 | CD102: 0 | CE102: 0 | CF102: 1 | CG102: 0 | CH102: 0 | CI102: 0 | CJ102: 0 | CK102: 0 | CL102: 0 | CM102: 0 | CN102: 0 | CO102: 0 | CP102: 0 | CQ102: 0 | CR102: 0 | CS102: 0 | CT102: 1 | CU102: 0 | CV102: 0 | CW102: 0 | CX102: 0 | CY102: 0 | CZ102: 0 | DA102: 0 | DB102: 0 | DC102: 0 | DD102: 0 | DE102: 0 | DF102: 0 | DG102: 0 | DH102: 0 | DI102: 0 | DJ102: 0 | DK102: 0 | DL102: 30.16 | DM102: - | DN102: 0 | DO102: 0 | DP102: 0 | DQ102: 0 | DR102: 0 | DS102: 0 | DT102: 0 | DU102: 0 | DV102: 0 | DW102: 0 | DX102: 0 | DY102: 0 | DZ102: 0 | EA102: 0 | EB102: 0 | EC102: 0 | ED102: 1 | EE102: 0 | EF102: 0 | EG102: 0 | EH102: 0 | EI102: 0 | EJ102: 0 | EK102: 0 | EL102: 0 | EM102: 1 | EN102: 0 | EO102: 0 | EP102: 0 | EQ102: 1 | ER102: 0 | ES102: 0 | ET102: 0 | EU102: 0 | EV102: 0 | EW102: 0 | EX102: 0 | EY102: 0 | EZ102: 1
A103: Fri | B103: 200 | C103: 0 | D103: 0 | E103: 0 | F103: 0 | G103: 0 | H103: 0 | I103: 0 | J103: 0 | K103: 0 | L103: 0 | M103: 0 | N103: 0 | O103: 0 | P103: 0 | Q103: 0 | R103: 0 | S103: 0 | T103: 0 | U103: 0 | V103: 0 | W103: 0 | X103: 0 | Y103: 0 | Z103: 0 | AA103: 0 | AB103: 0 | AC103: 0 | AD103: 0 | AE103: 0 | AF103: 0 | AG103: 0 | AH103: 0 | AI103: 0 | AJ103: 0 | AK103: 0 | AL103: - | AM103: - | AN103: Fri | AO103: 200 | AP103: 0 | AQ103: 0 | AR103: 0 | AS103: 0 | AT103: 0 | AU103: 0 | AV103: 0 | AW103: 0 | AX103: 0 | AY103: 0 | AZ103: 0 | BA103: 0 | BB103: 0 | BC103: 0 | BD103: 0 | BE103: 0 | BF103: 0 | BG103: 0 | BH103: 0 | BI103: 0 | BJ103: 0 | BK103: 0 | BL103: 0 | BM103: 0 | BN103: 0 | BO103: 0 | BP103: 0 | BQ103: 0 | BR103: 0 | BS103: 0 | BT103: 0 | BU103: 0 | BV103: 0 | BW103: 0 | BX103: 0 | BY103: - | BZ103: - | CA103: Fri | CB103: 200 | CC103: 0 | CD103: 0 | CE103: 0 | CF103: 0 | CG103: 0 | CH103: 0 | CI103: 0 | CJ103: 0 | CK103: 0 | CL103: 0 | CM103: 0 | CN103: 0 | CO103: 0 | CP103: 0 | CQ103: 0 | CR103: 0 | CS103: 0 | CT103: 0 | CU103: 0 | CV103: 0 | CW103: 0 | CX103: 0 | CY103: 0 | CZ103: 0 | DA103: 0 | DB103: 0 | DC103: 0 | DD103: 0 | DE103: 0 | DF103: 0 | DG103: 0 | DH103: 0 | DI103: 0 | DJ103: 0 | DK103: 0 | DL103: - | DM103: - | DN103: 0 | DO103: 0 | DP103: 0 | DQ103: 0 | DR103: 0 | DS103: 0 | DT103: 0 | DU103: 0 | DV103: 0 | DW103: 0 | DX103: 0 | DY103: 0 | DZ103: 0 | EA103: 0 | EB103: 0 | EC103: 0 | ED103: 0 | EE103: 0 | EF103: 0 | EG103: 0 | EH103: 0 | EI103: 0 | EJ103: 0 | EK103: 0 | EL103: 0 | EM103: 0 | EN103: 0 | EO103: 0 | EP103: 0 | EQ103: 0 | ER103: 0 | ES103: 0 | ET103: 0 | EU103: 0 | EV103: 0 | EW103: 0 | EX103: 0 | EY103: 0 | EZ103: 0
A104: Fri | B104: 300 | C104: 0 | D104: 0 | E104: 0 | F104: 1 | G104: 0 | H104: 0 | I104: 0 | J104: 0 | K104: 0 | L104: 0 | M104: 0 | N104: 0 | O104: 0 | P104: 0 | Q104: 0 | R104: 0 | S104: 1 | T104: 0 | U104: 0 | V104: 0 | W104: 0 | X104: 0 | Y104: 0 | Z104: 0 | AA104: 0 | AB104: 0 | AC104: 0 | AD104: 0 | AE104: 0 | AF104: 0 | AG104: 0 | AH104: 0 | AI104: 0 | AJ104: 0 | AK104: 0 | AL104: 29.14 | AM104: - | AN104: Fri | AO104: 300 | AP104: 0 | AQ104: 0 | AR104: 0 | AS104: 0 | AT104: 1 | AU104: 0 | AV104: 0 | AW104: 0 | AX104: 0 | AY104: 0 | AZ104: 0 | BA104: 0 | BB104: 0 | BC104: 0 | BD104: 0 | BE104: 1 | BF104: 0 | BG104: 0 | BH104: 0 | BI104: 0 | BJ104: 0 | BK104: 0 | BL104: 0 | BM104: 0 | BN104: 0 | BO104: 0 | BP104: 0 | BQ104: 0 | BR104: 0 | BS104: 0 | BT104: 0 | BU104: 0 | BV104: 0 | BW104: 0 | BX104: 0 | BY104: 21.78 | BZ104: - | CA104: Fri | CB104: 300 | CC104: 0 | CD104: 0 | CE104: 0 | CF104: 1 | CG104: 1 | CH104: 0 | CI104: 0 | CJ104: 0 | CK104: 0 | CL104: 0 | CM104: 0 | CN104: 0 | CO104: 0 | CP104: 0 | CQ104: 0 | CR104: 1 | CS104: 1 | CT104: 0 | CU104: 0 | CV104: 0 | CW104: 0 | CX104: 0 | CY104: 0 | CZ104: 0 | DA104: 0 | DB104: 0 | DC104: 0 | DD104: 0 | DE104: 0 | DF104: 0 | DG104: 0 | DH104: 0 | DI104: 0 | DJ104: 0 | DK104: 0 | DL104: 25.46 | DM104: - | DN104: 0 | DO104: 0 | DP104: 0 | DQ104: 1 | DR104: 0 | DS104: 0 | DT104: 0 | DU104: 0 | DV104: 0 | DW104: 0 | DX104: 0 | DY104: 0 | DZ104: 1 | EA104: 0 | EB104: 0 | EC104: 0 | ED104: 0 | EE104: 1 | EF104: 0 | EG104: 0 | EH104: 0 | EI104: 0 | EJ104: 0 | EK104: 0 | EL104: 0 | EM104: 1 | EN104: 0 | EO104: 0 | EP104: 0 | EQ104: 1 | ER104: 1 | ES104: 0 | ET104: 0 | EU104: 0 | EV104: 0 | EW104: 0 | EX104: 0 | EY104: 0 | EZ104: 2
A105: Fri | B105: 400 | C105: 0 | D105: 0 | E105: 1 | F105: 2 | G105: 1 | H105: 0 | I105: 0 | J105: 0 | K105: 0 | L105: 0 | M105: 0 | N105: 0 | O105: 0 | P105: 0 | Q105: 1 | R105: 1 | S105: 2 | T105: 0 | U105: 0 | V105: 0 | W105: 0 | X105: 0 | Y105: 0 | Z105: 0 | AA105: 0 | AB105: 0 | AC105: 0 | AD105: 0 | AE105: 0 | AF105: 0 | AG105: 0 | AH105: 0 | AI105: 0 | AJ105: 0 | AK105: 0 | AL105: 24.02 | AM105: - | AN105: Fri | AO105: 400 | AP105: 0 | AQ105: 0 | AR105: 0 | AS105: 2 | AT105: 1 | AU105: 0 | AV105: 0 | AW105: 0 | AX105: 0 | AY105: 0 | AZ105: 0 | BA105: 0 | BB105: 0 | BC105: 0 | BD105: 1 | BE105: 1 | BF105: 1 | BG105: 0 | BH105: 0 | BI105: 0 | BJ105: 0 | BK105: 0 | BL105: 0 | BM105: 0 | BN105: 0 | BO105: 0 | BP105: 0 | BQ105: 0 | BR105: 0 | BS105: 0 | BT105: 0 | BU105: 0 | BV105: 0 | BW105: 0 | BX105: 0 | BY105: 22.46 | BZ105: - | CA105: Fri | CB105: 400 | CC105: 0 | CD105: 0 | CE105: 1 | CF105: 4 | CG105: 2 | CH105: 0 | CI105: 0 | CJ105: 0 | CK105: 0 | CL105: 0 | CM105: 0 | CN105: 0 | CO105: 0 | CP105: 0 | CQ105: 2 | CR105: 2 | CS105: 3 | CT105: 0 | CU105: 0 | CV105: 0 | CW105: 0 | CX105: 0 | CY105: 0 | CZ105: 0 | DA105: 0 | DB105: 0 | DC105: 0 | DD105: 0 | DE105: 0 | DF105: 0 | DG105: 0 | DH105: 0 | DI105: 0 | DJ105: 0 | DK105: 0 | DL105: 23.35 | DM105: - | DN105: 0 | DO105: 0 | DP105: 1 | DQ105: 2 | DR105: 1 | DS105: 0 | DT105: 0 | DU105: 0 | DV105: 0 | DW105: 0 | DX105: 0 | DY105: 0 | DZ105: 4 | EA105: 0 | EB105: 0 | EC105: 0 | ED105: 2 | EE105: 1 | EF105: 0 | EG105: 0 | EH105: 0 | EI105: 0 | EJ105: 0 | EK105: 0 | EL105: 0 | EM105: 3 | EN105: 0 | EO105: 0 | EP105: 1 | EQ105: 4 | ER105: 2 | ES105: 0 | ET105: 0 | EU105: 0 | EV105: 0 | EW105: 0 | EX105: 0 | EY105: 0 | EZ105: 7
A106: Fri | B106: 500 | C106: 0 | D106: 0 | E106: 6 | F106: 7 | G106: 0 | H106: 0 | I106: 0 | J106: 0 | K106: 0 | L106: 0 | M106: 0 | N106: 0 | O106: 0 | P106: 0 | Q106: 0 | R106: 9 | S106: 4 | T106: 0 | U106: 0 | V106: 0 | W106: 0 | X106: 0 | Y106: 0 | Z106: 0 | AA106: 0 | AB106: 0 | AC106: 0 | AD106: 0 | AE106: 0 | AF106: 0 | AG106: 0 | AH106: 0 | AI106: 0 | AJ106: 0 | AK106: 0 | AL106: 23.99 | AM106: 25.83 | AN106: Fri | AO106: 500 | AP106: 0 | AQ106: 0 | AR106: 3 | AS106: 2 | AT106: 0 | AU106: 0 | AV106: 0 | AW106: 0 | AX106: 0 | AY106: 0 | AZ106: 0 | BA106: 0 | BB106: 0 | BC106: 0 | BD106: 5 | BE106: 0 | BF106: 0 | BG106: 0 | BH106: 0 | BI106: 0 | BJ106: 0 | BK106: 0 | BL106: 0 | BM106: 0 | BN106: 0 | BO106: 0 | BP106: 0 | BQ106: 0 | BR106: 0 | BS106: 0 | BT106: 0 | BU106: 0 | BV106: 0 | BW106: 0 | BX106: 0 | BY106: 19.67 | BZ106: - | CA106: Fri | CB106: 500 | CC106: 0 | CD106: 0 | CE106: 9 | CF106: 9 | CG106: 0 | CH106: 0 | CI106: 0 | CJ106: 0 | CK106: 0 | CL106: 0 | CM106: 0 | CN106: 0 | CO106: 0 | CP106: 0 | CQ106: 5 | CR106: 9 | CS106: 4 | CT106: 0 | CU106: 0 | CV106: 0 | CW106: 0 | CX106: 0 | CY106: 0 | CZ106: 0 | DA106: 0 | DB106: 0 | DC106: 0 | DD106: 0 | DE106: 0 | DF106: 0 | DG106: 0 | DH106: 0 | DI106: 0 | DJ106: 0 | DK106: 0 | DL106: 22.79 | DM106: 25.47 | DN106: 0 | DO106: 0 | DP106: 6 | DQ106: 7 | DR106: 0 | DS106: 0 | DT106: 0 | DU106: 0 | DV106: 0 | DW106: 0 | DX106: 0 | DY106: 0 | DZ106: 13 | EA106: 0 | EB106: 0 | EC106: 3 | ED106: 2 | EE106: 0 | EF106: 0 | EG106: 0 | EH106: 0 | EI106: 0 | EJ106: 0 | EK106: 0 | EL106: 0 | EM106: 5 | EN106: 0 | EO106: 0 | EP106: 9 | EQ106: 9 | ER106: 0 | ES106: 0 | ET106: 0 | EU106: 0 | EV106: 0 | EW106: 0 | EX106: 0 | EY106: 0 | EZ106: 18
A107: Fri | B107: 600 | C107: 0 | D107: 0 | E107: 17 | F107: 18 | G107: 2 | H107: 0 | I107: 0 | J107: 0 | K107: 0 | L107: 0 | M107: 0 | N107: 0 | O107: 0 | P107: 0 | Q107: 4 | R107: 17 | S107: 13 | T107: 3 | U107: 0 | V107: 0 | W107: 0 | X107: 0 | Y107: 0 | Z107: 0 | AA107: 0 | AB107: 0 | AC107: 0 | AD107: 0 | AE107: 0 | AF107: 0 | AG107: 0 | AH107: 0 | AI107: 0 | AJ107: 0 | AK107: 0 | AL107: 24.97 | AM107: 29.14 | AN107: Fri | AO107: 600 | AP107: 0 | AQ107: 1 | AR107: 4 | AS107: 6 | AT107: 2 | AU107: 0 | AV107: 0 | AW107: 0 | AX107: 0 | AY107: 0 | AZ107: 0 | BA107: 1 | BB107: 0 | BC107: 2 | BD107: 4 | BE107: 7 | BF107: 1 | BG107: 0 | BH107: 0 | BI107: 0 | BJ107: 0 | BK107: 0 | BL107: 0 | BM107: 0 | BN107: 0 | BO107: 0 | BP107: 0 | BQ107: 0 | BR107: 0 | BS107: 0 | BT107: 0 | BU107: 0 | BV107: 0 | BW107: 0 | BX107: 0 | BY107: 19.94 | BZ107: 22.37 | CA107: Fri | CB107: 600 | CC107: 0 | CD107: 1 | CE107: 21 | CF107: 24 | CG107: 4 | CH107: 0 | CI107: 0 | CJ107: 0 | CK107: 0 | CL107: 0 | CM107: 0 | CN107: 1 | CO107: 0 | CP107: 2 | CQ107: 8 | CR107: 24 | CS107: 14 | CT107: 3 | CU107: 0 | CV107: 0 | CW107: 0 | CX107: 0 | CY107: 0 | CZ107: 0 | DA107: 0 | DB107: 0 | DC107: 0 | DD107: 0 | DE107: 0 | DF107: 0 | DG107: 0 | DH107: 0 | DI107: 0 | DJ107: 0 | DK107: 0 | DL107: 23.59 | DM107: 28.03 | DN107: 0 | DO107: 0 | DP107: 17 | DQ107: 18 | DR107: 2 | DS107: 0 | DT107: 0 | DU107: 0 | DV107: 0 | DW107: 0 | DX107: 0 | DY107: 0 | DZ107: 37 | EA107: 0 | EB107: 1 | EC107: 4 | ED107: 6 | EE107: 2 | EF107: 0 | EG107: 0 | EH107: 0 | EI107: 0 | EJ107: 0 | EK107: 0 | EL107: 1 | EM107: 14 | EN107: 0 | EO107: 1 | EP107: 21 | EQ107: 24 | ER107: 4 | ES107: 0 | ET107: 0 | EU107: 0 | EV107: 0 | EW107: 0 | EX107: 0 | EY107: 1 | EZ107: 51
A108: Fri | B108: 700 | C108: 1 | D108: 3 | E108: 36 | F108: 74 | G108: 5 | H108: 0 | I108: 0 | J108: 0 | K108: 0 | L108: 0 | M108: 1 | N108: 1 | O108: 1 | P108: 2 | Q108: 29 | R108: 68 | S108: 19 | T108: 2 | U108: 0 | V108: 0 | W108: 0 | X108: 0 | Y108: 0 | Z108: 0 | AA108: 0 | AB108: 0 | AC108: 0 | AD108: 0 | AE108: 0 | AF108: 0 | AG108: 0 | AH108: 0 | AI108: 0 | AJ108: 0 | AK108: 0 | AL108: 21.97 | AM108: 25.56 | AN108: Fri | AO108: 700 | AP108: 0 | AQ108: 0 | AR108: 28 | AS108: 27 | AT108: 4 | AU108: 0 | AV108: 0 | AW108: 0 | AX108: 0 | AY108: 0 | AZ108: 1 | BA108: 0 | BB108: 2 | BC108: 4 | BD108: 19 | BE108: 28 | BF108: 7 | BG108: 0 | BH108: 0 | BI108: 0 | BJ108: 0 | BK108: 0 | BL108: 0 | BM108: 0 | BN108: 0 | BO108: 0 | BP108: 0 | BQ108: 0 | BR108: 0 | BS108: 0 | BT108: 0 | BU108: 0 | BV108: 0 | BW108: 0 | BX108: 0 | BY108: 20.27 | BZ108: 24.58 | CA108: Fri | CB108: 700 | CC108: 1 | CD108: 3 | CE108: 64 | CF108: 101 | CG108: 9 | CH108: 0 | CI108: 0 | CJ108: 0 | CK108: 0 | CL108: 0 | CM108: 2 | CN108: 1 | CO108: 3 | CP108: 6 | CQ108: 48 | CR108: 96 | CS108: 26 | CT108: 2 | CU108: 0 | CV108: 0 | CW108: 0 | CX108: 0 | CY108: 0 | CZ108: 0 | DA108: 0 | DB108: 0 | DC108: 0 | DD108: 0 | DE108: 0 | DF108: 0 | DG108: 0 | DH108: 0 | DI108: 0 | DJ108: 0 | DK108: 0 | DL108: 21.41 | DM108: 25.02 | DN108: 1 | DO108: 3 | DP108: 36 | DQ108: 74 | DR108: 5 | DS108: 0 | DT108: 0 | DU108: 0 | DV108: 0 | DW108: 0 | DX108: 1 | DY108: 1 | DZ108: 121 | EA108: 0 | EB108: 0 | EC108: 28 | ED108: 27 | EE108: 4 | EF108: 0 | EG108: 0 | EH108: 0 | EI108: 0 | EJ108: 0 | EK108: 1 | EL108: 0 | EM108: 60 | EN108: 1 | EO108: 3 | EP108: 64 | EQ108: 101 | ER108: 9 | ES108: 0 | ET108: 0 | EU108: 0 | EV108: 0 | EW108: 0 | EX108: 2 | EY108: 1 | EZ108: 181
A109: Fri | B109: 800 | C109: 1 | D109: 2 | E109: 48 | F109: 81 | G109: 8 | H109: 0 | I109: 0 | J109: 1 | K109: 0 | L109: 0 | M109: 3 | N109: 1 | O109: 0 | P109: 9 | Q109: 45 | R109: 74 | S109: 17 | T109: 0 | U109: 0 | V109: 0 | W109: 0 | X109: 0 | Y109: 0 | Z109: 0 | AA109: 0 | AB109: 0 | AC109: 0 | AD109: 0 | AE109: 0 | AF109: 0 | AG109: 0 | AH109: 0 | AI109: 0 | AJ109: 0 | AK109: 0 | AL109: 20.9 | AM109: 24.6 | AN109: Fri | AO109: 800 | AP109: 0 | AQ109: 1 | AR109: 47 | AS109: 62 | AT109: 6 | AU109: 0 | AV109: 0 | AW109: 1 | AX109: 0 | AY109: 0 | AZ109: 1 | BA109: 1 | BB109: 1 | BC109: 18 | BD109: 51 | BE109: 46 | BF109: 3 | BG109: 0 | BH109: 0 | BI109: 0 | BJ109: 0 | BK109: 0 | BL109: 0 | BM109: 0 | BN109: 0 | BO109: 0 | BP109: 0 | BQ109: 0 | BR109: 0 | BS109: 0 | BT109: 0 | BU109: 0 | BV109: 0 | BW109: 0 | BX109: 0 | BY109: 19.09 | BZ109: 22.89 | CA109: Fri | CB109: 800 | CC109: 1 | CD109: 3 | CE109: 95 | CF109: 143 | CG109: 14 | CH109: 0 | CI109: 0 | CJ109: 2 | CK109: 0 | CL109: 0 | CM109: 4 | CN109: 2 | CO109: 1 | CP109: 27 | CQ109: 96 | CR109: 120 | CS109: 20 | CT109: 0 | CU109: 0 | CV109: 0 | CW109: 0 | CX109: 0 | CY109: 0 | CZ109: 0 | DA109: 0 | DB109: 0 | DC109: 0 | DD109: 0 | DE109: 0 | DF109: 0 | DG109: 0 | DH109: 0 | DI109: 0 | DJ109: 0 | DK109: 0 | DL109: 20.08 | DM109: 24.05 | DN109: 1 | DO109: 2 | DP109: 48 | DQ109: 81 | DR109: 8 | DS109: 0 | DT109: 0 | DU109: 1 | DV109: 0 | DW109: 0 | DX109: 3 | DY109: 1 | DZ109: 145 | EA109: 0 | EB109: 1 | EC109: 47 | ED109: 62 | EE109: 6 | EF109: 0 | EG109: 0 | EH109: 1 | EI109: 0 | EJ109: 0 | EK109: 1 | EL109: 1 | EM109: 119 | EN109: 1 | EO109: 3 | EP109: 95 | EQ109: 143 | ER109: 14 | ES109: 0 | ET109: 0 | EU109: 2 | EV109: 0 | EW109: 0 | EX109: 4 | EY109: 2 | EZ109: 264
A110: Fri | B110: 900 | C110: 0 | D110: 0 | E110: 68 | F110: 95 | G110: 6 | H110: 0 | I110: 0 | J110: 0 | K110: 0 | L110: 1 | M110: 1 | N110: 0 | O110: 0 | P110: 19 | Q110: 79 | R110: 65 | S110: 8 | T110: 0 | U110: 0 | V110: 0 | W110: 0 | X110: 0 | Y110: 0 | Z110: 0 | AA110: 0 | AB110: 0 | AC110: 0 | AD110: 0 | AE110: 0 | AF110: 0 | AG110: 0 | AH110: 0 | AI110: 0 | AJ110: 0 | AK110: 0 | AL110: 19.25 | AM110: 22.5 | AN110: Fri | AO110: 900 | AP110: 0 | AQ110: 0 | AR110: 65 | AS110: 87 | AT110: 5 | AU110: 0 | AV110: 0 | AW110: 0 | AX110: 0 | AY110: 0 | AZ110: 1 | BA110: 0 | BB110: 0 | BC110: 26 | BD110: 83 | BE110: 44 | BF110: 5 | BG110: 0 | BH110: 0 | BI110: 0 | BJ110: 0 | BK110: 0 | BL110: 0 | BM110: 0 | BN110: 0 | BO110: 0 | BP110: 0 | BQ110: 0 | BR110: 0 | BS110: 0 | BT110: 0 | BU110: 0 | BV110: 0 | BW110: 0 | BX110: 0 | BY110: 18.49 | BZ110: 21.67 | CA110: Fri | CB110: 900 | CC110: 0 | CD110: 0 | CE110: 133 | CF110: 182 | CG110: 11 | CH110: 0 | CI110: 0 | CJ110: 0 | CK110: 0 | CL110: 1 | CM110: 2 | CN110: 0 | CO110: 0 | CP110: 45 | CQ110: 162 | CR110: 109 | CS110: 13 | CT110: 0 | CU110: 0 | CV110: 0 | CW110: 0 | CX110: 0 | CY110: 0 | CZ110: 0 | DA110: 0 | DB110: 0 | DC110: 0 | DD110: 0 | DE110: 0 | DF110: 0 | DG110: 0 | DH110: 0 | DI110: 0 | DJ110: 0 | DK110: 0 | DL110: 18.88 | DM110: 22.31 | DN110: 0 | DO110: 0 | DP110: 68 | DQ110: 95 | DR110: 6 | DS110: 0 | DT110: 0 | DU110: 0 | DV110: 0 | DW110: 1 | DX110: 1 | DY110: 0 | DZ110: 171 | EA110: 0 | EB110: 0 | EC110: 65 | ED110: 87 | EE110: 5 | EF110: 0 | EG110: 0 | EH110: 0 | EI110: 0 | EJ110: 0 | EK110: 1 | EL110: 0 | EM110: 158 | EN110: 0 | EO110: 0 | EP110: 133 | EQ110: 182 | ER110: 11 | ES110: 0 | ET110: 0 | EU110: 0 | EV110: 0 | EW110: 1 | EX110: 2 | EY110: 0 | EZ110: 329
A111: Fri | B111: 1000 | C111: 0 | D111: 1 | E111: 70 | F111: 99 | G111: 11 | H111: 0 | I111: 0 | J111: 0 | K111: 0 | L111: 0 | M111: 2 | N111: 0 | O111: 2 | P111: 11 | Q111: 98 | R111: 64 | S111: 8 | T111: 0 | U111: 0 | V111: 0 | W111: 0 | X111: 0 | Y111: 0 | Z111: 0 | AA111: 0 | AB111: 0 | AC111: 0 | AD111: 0 | AE111: 0 | AF111: 0 | AG111: 0 | AH111: 0 | AI111: 0 | AJ111: 0 | AK111: 0 | AL111: 19.34 | AM111: 22.49 | AN111: Fri | AO111: 1000 | AP111: 0 | AQ111: 0 | AR111: 57 | AS111: 73 | AT111: 6 | AU111: 1 | AV111: 0 | AW111: 0 | AX111: 0 | AY111: 0 | AZ111: 1 | BA111: 0 | BB111: 1 | BC111: 28 | BD111: 63 | BE111: 38 | BF111: 8 | BG111: 0 | BH111: 0 | BI111: 0 | BJ111: 0 | BK111: 0 | BL111: 0 | BM111: 0 | BN111: 0 | BO111: 0 | BP111: 0 | BQ111: 0 | BR111: 0 | BS111: 0 | BT111: 0 | BU111: 0 | BV111: 0 | BW111: 0 | BX111: 0 | BY111: 18.25 | BZ111: 21.74 | CA111: Fri | CB111: 1000 | CC111: 0 | CD111: 1 | CE111: 127 | CF111: 172 | CG111: 17 | CH111: 1 | CI111: 0 | CJ111: 0 | CK111: 0 | CL111: 0 | CM111: 3 | CN111: 0 | CO111: 3 | CP111: 39 | CQ111: 161 | CR111: 102 | CS111: 16 | CT111: 0 | CU111: 0 | CV111: 0 | CW111: 0 | CX111: 0 | CY111: 0 | CZ111: 0 | DA111: 0 | DB111: 0 | DC111: 0 | DD111: 0 | DE111: 0 | DF111: 0 | DG111: 0 | DH111: 0 | DI111: 0 | DJ111: 0 | DK111: 0 | DL111: 18.87 | DM111: 21.98 | DN111: 0 | DO111: 1 | DP111: 70 | DQ111: 99 | DR111: 11 | DS111: 0 | DT111: 0 | DU111: 0 | DV111: 0 | DW111: 0 | DX111: 2 | DY111: 0 | DZ111: 183 | EA111: 0 | EB111: 0 | EC111: 57 | ED111: 73 | EE111: 6 | EF111: 1 | EG111: 0 | EH111: 0 | EI111: 0 | EJ111: 0 | EK111: 1 | EL111: 0 | EM111: 138 | EN111: 0 | EO111: 1 | EP111: 127 | EQ111: 172 | ER111: 17 | ES111: 1 | ET111: 0 | EU111: 0 | EV111: 0 | EW111: 0 | EX111: 3 | EY111: 0 | EZ111: 321
A112: Fri | B112: 1100 | C112: 0 | D112: 2 | E112: 57 | F112: 104 | G112: 8 | H112: 1 | I112: 0 | J112: 0 | K112: 0 | L112: 0 | M112: 0 | N112: 0 | O112: 3 | P112: 29 | Q112: 84 | R112: 51 | S112: 5 | T112: 0 | U112: 0 | V112: 0 | W112: 0 | X112: 0 | Y112: 0 | Z112: 0 | AA112: 0 | AB112: 0 | AC112: 0 | AD112: 0 | AE112: 0 | AF112: 0 | AG112: 0 | AH112: 0 | AI112: 0 | AJ112: 0 | AK112: 0 | AL112: 18.46 | AM112: 22.7 | AN112: Fri | AO112: 1100 | AP112: 0 | AQ112: 0 | AR112: 76 | AS112: 79 | AT112: 7 | AU112: 0 | AV112: 0 | AW112: 0 | AX112: 0 | AY112: 0 | AZ112: 0 | BA112: 0 | BB112: 2 | BC112: 48 | BD112: 69 | BE112: 38 | BF112: 5 | BG112: 0 | BH112: 0 | BI112: 0 | BJ112: 0 | BK112: 0 | BL112: 0 | BM112: 0 | BN112: 0 | BO112: 0 | BP112: 0 | BQ112: 0 | BR112: 0 | BS112: 0 | BT112: 0 | BU112: 0 | BV112: 0 | BW112: 0 | BX112: 0 | BY112: 17.32 | BZ112: 21.25 | CA112: Fri | CB112: 1100 | CC112: 0 | CD112: 2 | CE112: 133 | CF112: 183 | CG112: 15 | CH112: 1 | CI112: 0 | CJ112: 0 | CK112: 0 | CL112: 0 | CM112: 0 | CN112: 0 | CO112: 5 | CP112: 77 | CQ112: 153 | CR112: 89 | CS112: 10 | CT112: 0 | CU112: 0 | CV112: 0 | CW112: 0 | CX112: 0 | CY112: 0 | CZ112: 0 | DA112: 0 | DB112: 0 | DC112: 0 | DD112: 0 | DE112: 0 | DF112: 0 | DG112: 0 | DH112: 0 | DI112: 0 | DJ112: 0 | DK112: 0 | DL112: 17.91 | DM112: 21.99 | DN112: 0 | DO112: 2 | DP112: 57 | DQ112: 104 | DR112: 8 | DS112: 1 | DT112: 0 | DU112: 0 | DV112: 0 | DW112: 0 | DX112: 0 | DY112: 0 | DZ112: 172 | EA112: 0 | EB112: 0 | EC112: 76 | ED112: 79 | EE112: 7 | EF112: 0 | EG112: 0 | EH112: 0 | EI112: 0 | EJ112: 0 | EK112: 0 | EL112: 0 | EM112: 162 | EN112: 0 | EO112: 2 | EP112: 133 | EQ112: 183 | ER112: 15 | ES112: 1 | ET112: 0 | EU112: 0 | EV112: 0 | EW112: 0 | EX112: 0 | EY112: 0 | EZ112: 334
A113: Fri | B113: 1200 | C113: 0 | D113: 0 | E113: 56 | F113: 96 | G113: 7 | H113: 0 | I113: 0 | J113: 1 | K113: 0 | L113: 0 | M113: 1 | N113: 1 | O113: 2 | P113: 20 | Q113: 84 | R113: 53 | S113: 3 | T113: 0 | U113: 0 | V113: 0 | W113: 0 | X113: 0 | Y113: 0 | Z113: 0 | AA113: 0 | AB113: 0 | AC113: 0 | AD113: 0 | AE113: 0 | AF113: 0 | AG113: 0 | AH113: 0 | AI113: 0 | AJ113: 0 | AK113: 0 | AL113: 18.76 | AM113: 21.99 | AN113: Fri | AO113: 1200 | AP113: 0 | AQ113: 3 | AR113: 79 | AS113: 80 | AT113: 6 | AU113: 0 | AV113: 0 | AW113: 1 | AX113: 0 | AY113: 1 | AZ113: 0 | BA113: 0 | BB113: 2 | BC113: 45 | BD113: 77 | BE113: 43 | BF113: 3 | BG113: 0 | BH113: 0 | BI113: 0 | BJ113: 0 | BK113: 0 | BL113: 0 | BM113: 0 | BN113: 0 | BO113: 0 | BP113: 0 | BQ113: 0 | BR113: 0 | BS113: 0 | BT113: 0 | BU113: 0 | BV113: 0 | BW113: 0 | BX113: 0 | BY113: 17.58 | BZ113: 21.49 | CA113: Fri | CB113: 1200 | CC113: 0 | CD113: 3 | CE113: 135 | CF113: 176 | CG113: 13 | CH113: 0 | CI113: 0 | CJ113: 2 | CK113: 0 | CL113: 1 | CM113: 1 | CN113: 1 | CO113: 4 | CP113: 65 | CQ113: 161 | CR113: 96 | CS113: 6 | CT113: 0 | CU113: 0 | CV113: 0 | CW113: 0 | CX113: 0 | CY113: 0 | CZ113: 0 | DA113: 0 | DB113: 0 | DC113: 0 | DD113: 0 | DE113: 0 | DF113: 0 | DG113: 0 | DH113: 0 | DI113: 0 | DJ113: 0 | DK113: 0 | DL113: 18.16 | DM113: 21.84 | DN113: 0 | DO113: 0 | DP113: 56 | DQ113: 96 | DR113: 7 | DS113: 0 | DT113: 0 | DU113: 1 | DV113: 0 | DW113: 0 | DX113: 1 | DY113: 1 | DZ113: 162 | EA113: 0 | EB113: 3 | EC113: 79 | ED113: 80 | EE113: 6 | EF113: 0 | EG113: 0 | EH113: 1 | EI113: 0 | EJ113: 1 | EK113: 0 | EL113: 0 | EM113: 170 | EN113: 0 | EO113: 3 | EP113: 135 | EQ113: 176 | ER113: 13 | ES113: 0 | ET113: 0 | EU113: 2 | EV113: 0 | EW113: 1 | EX113: 1 | EY113: 1 | EZ113: 332
A114: Fri | B114: 1300 | C114: 0 | D114: 2 | E114: 65 | F114: 99 | G114: 6 | H114: 1 | I114: 0 | J114: 1 | K114: 0 | L114: 0 | M114: 1 | N114: 0 | O114: 3 | P114: 17 | Q114: 94 | R114: 54 | S114: 6 | T114: 1 | U114: 0 | V114: 0 | W114: 0 | X114: 0 | Y114: 0 | Z114: 0 | AA114: 0 | AB114: 0 | AC114: 0 | AD114: 0 | AE114: 0 | AF114: 0 | AG114: 0 | AH114: 0 | AI114: 0 | AJ114: 0 | AK114: 0 | AL114: 18.88 | AM114: 22.4 | AN114: Fri | AO114: 1300 | AP114: 0 | AQ114: 0 | AR114: 64 | AS114: 74 | AT114: 5 | AU114: 0 | AV114: 0 | AW114: 1 | AX114: 0 | AY114: 1 | AZ114: 0 | BA114: 1 | BB114: 0 | BC114: 37 | BD114: 64 | BE114: 42 | BF114: 3 | BG114: 0 | BH114: 0 | BI114: 0 | BJ114: 0 | BK114: 0 | BL114: 0 | BM114: 0 | BN114: 0 | BO114: 0 | BP114: 0 | BQ114: 0 | BR114: 0 | BS114: 0 | BT114: 0 | BU114: 0 | BV114: 0 | BW114: 0 | BX114: 0 | BY114: 17.99 | BZ114: 22.01 | CA114: Fri | CB114: 1300 | CC114: 0 | CD114: 2 | CE114: 129 | CF114: 173 | CG114: 11 | CH114: 1 | CI114: 0 | CJ114: 2 | CK114: 0 | CL114: 1 | CM114: 1 | CN114: 1 | CO114: 3 | CP114: 54 | CQ114: 158 | CR114: 96 | CS114: 9 | CT114: 1 | CU114: 0 | CV114: 0 | CW114: 0 | CX114: 0 | CY114: 0 | CZ114: 0 | DA114: 0 | DB114: 0 | DC114: 0 | DD114: 0 | DE114: 0 | DF114: 0 | DG114: 0 | DH114: 0 | DI114: 0 | DJ114: 0 | DK114: 0 | DL114: 18.47 | DM114: 22.1 | DN114: 0 | DO114: 2 | DP114: 65 | DQ114: 99 | DR114: 6 | DS114: 1 | DT114: 0 | DU114: 1 | DV114: 0 | DW114: 0 | DX114: 1 | DY114: 0 | DZ114: 175 | EA114: 0 | EB114: 0 | EC114: 64 | ED114: 74 | EE114: 5 | EF114: 0 | EG114: 0 | EH114: 1 | EI114: 0 | EJ114: 1 | EK114: 0 | EL114: 1 | EM114: 146 | EN114: 0 | EO114: 2 | EP114: 129 | EQ114: 173 | ER114: 11 | ES114: 1 | ET114: 0 | EU114: 2 | EV114: 0 | EW114: 1 | EX114: 1 | EY114: 1 | EZ114: 321
A115: Fri | B115: 1400 | C115: 2 | D115: 1 | E115: 61 | F115: 76 | G115: 10 | H115: 0 | I115: 0 | J115: 0 | K115: 0 | L115: 0 | M115: 1 | N115: 0 | O115: 3 | P115: 26 | Q115: 70 | R115: 46 | S115: 5 | T115: 1 | U115: 0 | V115: 0 | W115: 0 | X115: 0 | Y115: 0 | Z115: 0 | AA115: 0 | AB115: 0 | AC115: 0 | AD115: 0 | AE115: 0 | AF115: 0 | AG115: 0 | AH115: 0 | AI115: 0 | AJ115: 0 | AK115: 0 | AL115: 18.23 | AM115: 21.69 | AN115: Fri | AO115: 1400 | AP115: 0 | AQ115: 2 | AR115: 88 | AS115: 76 | AT115: 7 | AU115: 0 | AV115: 0 | AW115: 1 | AX115: 0 | AY115: 0 | AZ115: 0 | BA115: 2 | BB115: 8 | BC115: 46 | BD115: 76 | BE115: 42 | BF115: 4 | BG115: 0 | BH115: 0 | BI115: 0 | BJ115: 0 | BK115: 0 | BL115: 0 | BM115: 0 | BN115: 0 | BO115: 0 | BP115: 0 | BQ115: 0 | BR115: 0 | BS115: 0 | BT115: 0 | BU115: 0 | BV115: 0 | BW115: 0 | BX115: 0 | BY115: 17.18 | BZ115: 21.09 | CA115: Fri | CB115: 1400 | CC115: 2 | CD115: 3 | CE115: 149 | CF115: 152 | CG115: 17 | CH115: 0 | CI115: 0 | CJ115: 1 | CK115: 0 | CL115: 0 | CM115: 1 | CN115: 2 | CO115: 11 | CP115: 72 | CQ115: 146 | CR115: 88 | CS115: 9 | CT115: 1 | CU115: 0 | CV115: 0 | CW115: 0 | CX115: 0 | CY115: 0 | CZ115: 0 | DA115: 0 | DB115: 0 | DC115: 0 | DD115: 0 | DE115: 0 | DF115: 0 | DG115: 0 | DH115: 0 | DI115: 0 | DJ115: 0 | DK115: 0 | DL115: 17.67 | DM115: 21.3 | DN115: 2 | DO115: 1 | DP115: 61 | DQ115: 76 | DR115: 10 | DS115: 0 | DT115: 0 | DU115: 0 | DV115: 0 | DW115: 0 | DX115: 1 | DY115: 0 | DZ115: 151 | EA115: 0 | EB115: 2 | EC115: 88 | ED115: 76 | EE115: 7 | EF115: 0 | EG115: 0 | EH115: 1 | EI115: 0 | EJ115: 0 | EK115: 0 | EL115: 2 | EM115: 176 | EN115: 2 | EO115: 3 | EP115: 149 | EQ115: 152 | ER115: 17 | ES115: 0 | ET115: 0 | EU115: 1 | EV115: 0 | EW115: 0 | EX115: 1 | EY115: 2 | EZ115: 327
A116: Fri | B116: 1500 | C116: 0 | D116: 1 | E116: 79 | F116: 105 | G116: 8 | H116: 0 | I116: 0 | J116: 0 | K116: 0 | L116: 0 | M116: 0 | N116: 0 | O116: 5 | P116: 35 | Q116: 91 | R116: 53 | S116: 8 | T116: 1 | U116: 0 | V116: 0 | W116: 0 | X116: 0 | Y116: 0 | Z116: 0 | AA116: 0 | AB116: 0 | AC116: 0 | AD116: 0 | AE116: 0 | AF116: 0 | AG116: 0 | AH116: 0 | AI116: 0 | AJ116: 0 | AK116: 0 | AL116: 18 | AM116: 22.14 | AN116: Fri | AO116: 1500 | AP116: 0 | AQ116: 2 | AR116: 100 | AS116: 105 | AT116: 5 | AU116: 0 | AV116: 0 | AW116: 0 | AX116: 0 | AY116: 0 | AZ116: 0 | BA116: 1 | BB116: 10 | BC116: 56 | BD116: 104 | BE116: 41 | BF116: 2 | BG116: 0 | BH116: 0 | BI116: 0 | BJ116: 0 | BK116: 0 | BL116: 0 | BM116: 0 | BN116: 0 | BO116: 0 | BP116: 0 | BQ116: 0 | BR116: 0 | BS116: 0 | BT116: 0 | BU116: 0 | BV116: 0 | BW116: 0 | BX116: 0 | BY116: 17.11 | BZ116: 20.73 | CA116: Fri | CB116: 1500 | CC116: 0 | CD116: 3 | CE116: 179 | CF116: 210 | CG116: 13 | CH116: 0 | CI116: 0 | CJ116: 0 | CK116: 0 | CL116: 0 | CM116: 0 | CN116: 1 | CO116: 15 | CP116: 91 | CQ116: 195 | CR116: 94 | CS116: 10 | CT116: 1 | CU116: 0 | CV116: 0 | CW116: 0 | CX116: 0 | CY116: 0 | CZ116: 0 | DA116: 0 | DB116: 0 | DC116: 0 | DD116: 0 | DE116: 0 | DF116: 0 | DG116: 0 | DH116: 0 | DI116: 0 | DJ116: 0 | DK116: 0 | DL116: 17.53 | DM116: 21.46 | DN116: 0 | DO116: 1 | DP116: 79 | DQ116: 105 | DR116: 8 | DS116: 0 | DT116: 0 | DU116: 0 | DV116: 0 | DW116: 0 | DX116: 0 | DY116: 0 | DZ116: 193 | EA116: 0 | EB116: 2 | EC116: 100 | ED116: 105 | EE116: 5 | EF116: 0 | EG116: 0 | EH116: 0 | EI116: 0 | EJ116: 0 | EK116: 0 | EL116: 1 | EM116: 213 | EN116: 0 | EO116: 3 | EP116: 179 | EQ116: 210 | ER116: 13 | ES116: 0 | ET116: 0 | EU116: 0 | EV116: 0 | EW116: 0 | EX116: 0 | EY116: 1 | EZ116: 406
A117: Fri | B117: 1600 | C117: 0 | D117: 5 | E117: 68 | F117: 99 | G117: 3 | H117: 0 | I117: 0 | J117: 1 | K117: 0 | L117: 0 | M117: 2 | N117: 1 | O117: 6 | P117: 31 | Q117: 86 | R117: 52 | S117: 4 | T117: 0 | U117: 0 | V117: 0 | W117: 0 | X117: 0 | Y117: 0 | Z117: 0 | AA117: 0 | AB117: 0 | AC117: 0 | AD117: 0 | AE117: 0 | AF117: 0 | AG117: 0 | AH117: 0 | AI117: 0 | AJ117: 0 | AK117: 0 | AL117: 17.97 | AM117: 21.57 | AN117: Fri | AO117: 1600 | AP117: 1 | AQ117: 5 | AR117: 91 | AS117: 90 | AT117: 4 | AU117: 1 | AV117: 1 | AW117: 1 | AX117: 0 | AY117: 1 | AZ117: 1 | BA117: 1 | BB117: 4 | BC117: 41 | BD117: 116 | BE117: 32 | BF117: 4 | BG117: 0 | BH117: 0 | BI117: 0 | BJ117: 0 | BK117: 0 | BL117: 0 | BM117: 0 | BN117: 0 | BO117: 0 | BP117: 0 | BQ117: 0 | BR117: 0 | BS117: 0 | BT117: 0 | BU117: 0 | BV117: 0 | BW117: 0 | BX117: 0 | BY117: 17.07 | BZ117: 20.9 | CA117: Fri | CB117: 1600 | CC117: 1 | CD117: 10 | CE117: 159 | CF117: 189 | CG117: 7 | CH117: 1 | CI117: 1 | CJ117: 2 | CK117: 0 | CL117: 1 | CM117: 3 | CN117: 2 | CO117: 10 | CP117: 72 | CQ117: 202 | CR117: 84 | CS117: 8 | CT117: 0 | CU117: 0 | CV117: 0 | CW117: 0 | CX117: 0 | CY117: 0 | CZ117: 0 | DA117: 0 | DB117: 0 | DC117: 0 | DD117: 0 | DE117: 0 | DF117: 0 | DG117: 0 | DH117: 0 | DI117: 0 | DJ117: 0 | DK117: 0 | DL117: 17.5 | DM117: 21.4 | DN117: 0 | DO117: 5 | DP117: 68 | DQ117: 99 | DR117: 3 | DS117: 0 | DT117: 0 | DU117: 1 | DV117: 0 | DW117: 0 | DX117: 2 | DY117: 1 | DZ117: 179 | EA117: 1 | EB117: 5 | EC117: 91 | ED117: 90 | EE117: 4 | EF117: 1 | EG117: 1 | EH117: 1 | EI117: 0 | EJ117: 1 | EK117: 1 | EL117: 1 | EM117: 197 | EN117: 1 | EO117: 10 | EP117: 159 | EQ117: 189 | ER117: 7 | ES117: 1 | ET117: 1 | EU117: 2 | EV117: 0 | EW117: 1 | EX117: 3 | EY117: 2 | EZ117: 376
A118: Fri | B118: 1700 | C118: 1 | D118: 3 | E118: 58 | F118: 102 | G118: 2 | H118: 0 | I118: 0 | J118: 0 | K118: 0 | L118: 0 | M118: 0 | N118: 0 | O118: 2 | P118: 16 | Q118: 77 | R118: 66 | S118: 5 | T118: 0 | U118: 0 | V118: 0 | W118: 0 | X118: 0 | Y118: 0 | Z118: 0 | AA118: 0 | AB118: 0 | AC118: 0 | AD118: 0 | AE118: 0 | AF118: 0 | AG118: 0 | AH118: 0 | AI118: 0 | AJ118: 0 | AK118: 0 | AL118: 19.04 | AM118: 22.46 | AN118: Fri | AO118: 1700 | AP118: 0 | AQ118: 2 | AR118: 98 | AS118: 101 | AT118: 5 | AU118: 0 | AV118: 0 | AW118: 1 | AX118: 0 | AY118: 0 | AZ118: 0 | BA118: 0 | BB118: 6 | BC118: 48 | BD118: 93 | BE118: 56 | BF118: 4 | BG118: 0 | BH118: 0 | BI118: 0 | BJ118: 0 | BK118: 0 | BL118: 0 | BM118: 0 | BN118: 0 | BO118: 0 | BP118: 0 | BQ118: 0 | BR118: 0 | BS118: 0 | BT118: 0 | BU118: 0 | BV118: 0 | BW118: 0 | BX118: 0 | BY118: 17.64 | BZ118: 21.55 | CA118: Fri | CB118: 1700 | CC118: 1 | CD118: 5 | CE118: 156 | CF118: 203 | CG118: 7 | CH118: 0 | CI118: 0 | CJ118: 1 | CK118: 0 | CL118: 0 | CM118: 0 | CN118: 0 | CO118: 8 | CP118: 64 | CQ118: 170 | CR118: 122 | CS118: 9 | CT118: 0 | CU118: 0 | CV118: 0 | CW118: 0 | CX118: 0 | CY118: 0 | CZ118: 0 | DA118: 0 | DB118: 0 | DC118: 0 | DD118: 0 | DE118: 0 | DF118: 0 | DG118: 0 | DH118: 0 | DI118: 0 | DJ118: 0 | DK118: 0 | DL118: 18.26 | DM118: 22.09 | DN118: 1 | DO118: 3 | DP118: 58 | DQ118: 102 | DR118: 2 | DS118: 0 | DT118: 0 | DU118: 0 | DV118: 0 | DW118: 0 | DX118: 0 | DY118: 0 | DZ118: 166 | EA118: 0 | EB118: 2 | EC118: 98 | ED118: 101 | EE118: 5 | EF118: 0 | EG118: 0 | EH118: 1 | EI118: 0 | EJ118: 0 | EK118: 0 | EL118: 0 | EM118: 207 | EN118: 1 | EO118: 5 | EP118: 156 | EQ118: 203 | ER118: 7 | ES118: 0 | ET118: 0 | EU118: 1 | EV118: 0 | EW118: 0 | EX118: 0 | EY118: 0 | EZ118: 373
A119: Fri | B119: 1800 | C119: 0 | D119: 1 | E119: 56 | F119: 87 | G119: 3 | H119: 0 | I119: 0 | J119: 0 | K119: 0 | L119: 0 | M119: 0 | N119: 0 | O119: 1 | P119: 4 | Q119: 52 | R119: 70 | S119: 20 | T119: 0 | U119: 0 | V119: 0 | W119: 0 | X119: 0 | Y119: 0 | Z119: 0 | AA119: 0 | AB119: 0 | AC119: 0 | AD119: 0 | AE119: 0 | AF119: 0 | AG119: 0 | AH119: 0 | AI119: 0 | AJ119: 0 | AK119: 0 | AL119: 21.22 | AM119: 24.83 | AN119: Fri | AO119: 1800 | AP119: 0 | AQ119: 0 | AR119: 61 | AS119: 71 | AT119: 2 | AU119: 0 | AV119: 0 | AW119: 1 | AX119: 0 | AY119: 0 | AZ119: 0 | BA119: 1 | BB119: 2 | BC119: 29 | BD119: 57 | BE119: 41 | BF119: 7 | BG119: 0 | BH119: 0 | BI119: 0 | BJ119: 0 | BK119: 0 | BL119: 0 | BM119: 0 | BN119: 0 | BO119: 0 | BP119: 0 | BQ119: 0 | BR119: 0 | BS119: 0 | BT119: 0 | BU119: 0 | BV119: 0 | BW119: 0 | BX119: 0 | BY119: 18.15 | BZ119: 22.45 | CA119: Fri | CB119: 1800 | CC119: 0 | CD119: 1 | CE119: 117 | CF119: 158 | CG119: 5 | CH119: 0 | CI119: 0 | CJ119: 1 | CK119: 0 | CL119: 0 | CM119: 0 | CN119: 1 | CO119: 3 | CP119: 33 | CQ119: 109 | CR119: 111 | CS119: 27 | CT119: 0 | CU119: 0 | CV119: 0 | CW119: 0 | CX119: 0 | CY119: 0 | CZ119: 0 | DA119: 0 | DB119: 0 | DC119: 0 | DD119: 0 | DE119: 0 | DF119: 0 | DG119: 0 | DH119: 0 | DI119: 0 | DJ119: 0 | DK119: 0 | DL119: 19.75 | DM119: 23.88 | DN119: 0 | DO119: 1 | DP119: 56 | DQ119: 87 | DR119: 3 | DS119: 0 | DT119: 0 | DU119: 0 | DV119: 0 | DW119: 0 | DX119: 0 | DY119: 0 | DZ119: 147 | EA119: 0 | EB119: 0 | EC119: 61 | ED119: 71 | EE119: 2 | EF119: 0 | EG119: 0 | EH119: 1 | EI119: 0 | EJ119: 0 | EK119: 0 | EL119: 1 | EM119: 136 | EN119: 0 | EO119: 1 | EP119: 117 | EQ119: 158 | ER119: 5 | ES119: 0 | ET119: 0 | EU119: 1 | EV119: 0 | EW119: 0 | EX119: 0 | EY119: 1 | EZ119: 283
A120: Fri | B120: 1900 | C120: 0 | D120: 2 | E120: 31 | F120: 61 | G120: 1 | H120: 0 | I120: 0 | J120: 0 | K120: 0 | L120: 0 | M120: 1 | N120: 0 | O120: 0 | P120: 3 | Q120: 28 | R120: 53 | S120: 12 | T120: 0 | U120: 0 | V120: 0 | W120: 0 | X120: 0 | Y120: 0 | Z120: 0 | AA120: 0 | AB120: 0 | AC120: 0 | AD120: 0 | AE120: 0 | AF120: 0 | AG120: 0 | AH120: 0 | AI120: 0 | AJ120: 0 | AK120: 0 | AL120: 21.36 | AM120: 24.21 | AN120: Fri | AO120: 1900 | AP120: 0 | AQ120: 2 | AR120: 30 | AS120: 41 | AT120: 2 | AU120: 0 | AV120: 0 | AW120: 0 | AX120: 0 | AY120: 0 | AZ120: 0 | BA120: 2 | BB120: 4 | BC120: 12 | BD120: 30 | BE120: 30 | BF120: 1 | BG120: 0 | BH120: 0 | BI120: 0 | BJ120: 0 | BK120: 0 | BL120: 0 | BM120: 0 | BN120: 0 | BO120: 0 | BP120: 0 | BQ120: 0 | BR120: 0 | BS120: 0 | BT120: 0 | BU120: 0 | BV120: 0 | BW120: 0 | BX120: 0 | BY120: 18.22 | BZ120: 22.44 | CA120: Fri | CB120: 1900 | CC120: 0 | CD120: 4 | CE120: 61 | CF120: 102 | CG120: 3 | CH120: 0 | CI120: 0 | CJ120: 0 | CK120: 0 | CL120: 0 | CM120: 1 | CN120: 2 | CO120: 4 | CP120: 15 | CQ120: 58 | CR120: 83 | CS120: 13 | CT120: 0 | CU120: 0 | CV120: 0 | CW120: 0 | CX120: 0 | CY120: 0 | CZ120: 0 | DA120: 0 | DB120: 0 | DC120: 0 | DD120: 0 | DE120: 0 | DF120: 0 | DG120: 0 | DH120: 0 | DI120: 0 | DJ120: 0 | DK120: 0 | DL120: 19.96 | DM120: 23.84 | DN120: 0 | DO120: 2 | DP120: 31 | DQ120: 61 | DR120: 1 | DS120: 0 | DT120: 0 | DU120: 0 | DV120: 0 | DW120: 0 | DX120: 1 | DY120: 0 | DZ120: 96 | EA120: 0 | EB120: 2 | EC120: 30 | ED120: 41 | EE120: 2 | EF120: 0 | EG120: 0 | EH120: 0 | EI120: 0 | EJ120: 0 | EK120: 0 | EL120: 2 | EM120: 77 | EN120: 0 | EO120: 4 | EP120: 61 | EQ120: 102 | ER120: 3 | ES120: 0 | ET120: 0 | EU120: 0 | EV120: 0 | EW120: 0 | EX120: 1 | EY120: 2 | EZ120: 173
A121: Fri | B121: 2000 | C121: 0 | D121: 0 | E121: 18 | F121: 37 | G121: 2 | H121: 0 | I121: 0 | J121: 0 | K121: 0 | L121: 0 | M121: 0 | N121: 0 | O121: 1 | P121: 2 | Q121: 22 | R121: 23 | S121: 9 | T121: 0 | U121: 0 | V121: 0 | W121: 0 | X121: 0 | Y121: 0 | Z121: 0 | AA121: 0 | AB121: 0 | AC121: 0 | AD121: 0 | AE121: 0 | AF121: 0 | AG121: 0 | AH121: 0 | AI121: 0 | AJ121: 0 | AK121: 0 | AL121: 20.96 | AM121: 24.87 | AN121: Fri | AO121: 2000 | AP121: 0 | AQ121: 0 | AR121: 32 | AS121: 28 | AT121: 0 | AU121: 0 | AV121: 0 | AW121: 0 | AX121: 0 | AY121: 0 | AZ121: 0 | BA121: 0 | BB121: 1 | BC121: 5 | BD121: 23 | BE121: 26 | BF121: 4 | BG121: 1 | BH121: 0 | BI121: 0 | BJ121: 0 | BK121: 0 | BL121: 0 | BM121: 0 | BN121: 0 | BO121: 0 | BP121: 0 | BQ121: 0 | BR121: 0 | BS121: 0 | BT121: 0 | BU121: 0 | BV121: 0 | BW121: 0 | BX121: 0 | BY121: 19.69 | BZ121: 23.15 | CA121: Fri | CB121: 2000 | CC121: 0 | CD121: 0 | CE121: 50 | CF121: 65 | CG121: 2 | CH121: 0 | CI121: 0 | CJ121: 0 | CK121: 0 | CL121: 0 | CM121: 0 | CN121: 0 | CO121: 2 | CP121: 7 | CQ121: 45 | CR121: 49 | CS121: 13 | CT121: 1 | CU121: 0 | CV121: 0 | CW121: 0 | CX121: 0 | CY121: 0 | CZ121: 0 | DA121: 0 | DB121: 0 | DC121: 0 | DD121: 0 | DE121: 0 | DF121: 0 | DG121: 0 | DH121: 0 | DI121: 0 | DJ121: 0 | DK121: 0 | DL121: 20.31 | DM121: 23.97 | DN121: 0 | DO121: 0 | DP121: 18 | DQ121: 37 | DR121: 2 | DS121: 0 | DT121: 0 | DU121: 0 | DV121: 0 | DW121: 0 | DX121: 0 | DY121: 0 | DZ121: 57 | EA121: 0 | EB121: 0 | EC121: 32 | ED121: 28 | EE121: 0 | EF121: 0 | EG121: 0 | EH121: 0 | EI121: 0 | EJ121: 0 | EK121: 0 | EL121: 0 | EM121: 60 | EN121: 0 | EO121: 0 | EP121: 50 | EQ121: 65 | ER121: 2 | ES121: 0 | ET121: 0 | EU121: 0 | EV121: 0 | EW121: 0 | EX121: 0 | EY121: 0 | EZ121: 117
A122: Fri | B122: 2100 | C122: 0 | D122: 0 | E122: 7 | F122: 26 | G122: 2 | H122: 0 | I122: 0 | J122: 0 | K122: 0 | L122: 0 | M122: 0 | N122: 0 | O122: 1 | P122: 2 | Q122: 8 | R122: 14 | S122: 9 | T122: 0 | U122: 1 | V122: 0 | W122: 0 | X122: 0 | Y122: 0 | Z122: 0 | AA122: 0 | AB122: 0 | AC122: 0 | AD122: 0 | AE122: 0 | AF122: 0 | AG122: 0 | AH122: 0 | AI122: 0 | AJ122: 0 | AK122: 0 | AL122: 22.02 | AM122: 26.56 | AN122: Fri | AO122: 2100 | AP122: 0 | AQ122: 0 | AR122: 17 | AS122: 21 | AT122: 0 | AU122: 0 | AV122: 0 | AW122: 0 | AX122: 0 | AY122: 0 | AZ122: 0 | BA122: 0 | BB122: 1 | BC122: 5 | BD122: 17 | BE122: 10 | BF122: 4 | BG122: 0 | BH122: 1 | BI122: 0 | BJ122: 0 | BK122: 0 | BL122: 0 | BM122: 0 | BN122: 0 | BO122: 0 | BP122: 0 | BQ122: 0 | BR122: 0 | BS122: 0 | BT122: 0 | BU122: 0 | BV122: 0 | BW122: 0 | BX122: 0 | BY122: 19.64 | BZ122: 23.88 | CA122: Fri | CB122: 2100 | CC122: 0 | CD122: 0 | CE122: 24 | CF122: 47 | CG122: 2 | CH122: 0 | CI122: 0 | CJ122: 0 | CK122: 0 | CL122: 0 | CM122: 0 | CN122: 0 | CO122: 2 | CP122: 7 | CQ122: 25 | CR122: 24 | CS122: 13 | CT122: 0 | CU122: 2 | CV122: 0 | CW122: 0 | CX122: 0 | CY122: 0 | CZ122: 0 | DA122: 0 | DB122: 0 | DC122: 0 | DD122: 0 | DE122: 0 | DF122: 0 | DG122: 0 | DH122: 0 | DI122: 0 | DJ122: 0 | DK122: 0 | DL122: 20.78 | DM122: 25.97 | DN122: 0 | DO122: 0 | DP122: 7 | DQ122: 26 | DR122: 2 | DS122: 0 | DT122: 0 | DU122: 0 | DV122: 0 | DW122: 0 | DX122: 0 | DY122: 0 | DZ122: 35 | EA122: 0 | EB122: 0 | EC122: 17 | ED122: 21 | EE122: 0 | EF122: 0 | EG122: 0 | EH122: 0 | EI122: 0 | EJ122: 0 | EK122: 0 | EL122: 0 | EM122: 38 | EN122: 0 | EO122: 0 | EP122: 24 | EQ122: 47 | ER122: 2 | ES122: 0 | ET122: 0 | EU122: 0 | EV122: 0 | EW122: 0 | EX122: 0 | EY122: 0 | EZ122: 73
A123: Fri | B123: 2200 | C123: 0 | D123: 1 | E123: 4 | F123: 11 | G123: 0 | H123: 0 | I123: 0 | J123: 0 | K123: 0 | L123: 0 | M123: 0 | N123: 0 | O123: 0 | P123: 0 | Q123: 5 | R123: 6 | S123: 4 | T123: 1 | U123: 0 | V123: 0 | W123: 0 | X123: 0 | Y123: 0 | Z123: 0 | AA123: 0 | AB123: 0 | AC123: 0 | AD123: 0 | AE123: 0 | AF123: 0 | AG123: 0 | AH123: 0 | AI123: 0 | AJ123: 0 | AK123: 0 | AL123: 23.14 | AM123: 26.37 | AN123: Fri | AO123: 2200 | AP123: 0 | AQ123: 1 | AR123: 10 | AS123: 11 | AT123: 0 | AU123: 0 | AV123: 0 | AW123: 0 | AX123: 0 | AY123: 0 | AZ123: 0 | BA123: 0 | BB123: 0 | BC123: 1 | BD123: 4 | BE123: 13 | BF123: 4 | BG123: 0 | BH123: 0 | BI123: 0 | BJ123: 0 | BK123: 0 | BL123: 0 | BM123: 0 | BN123: 0 | BO123: 0 | BP123: 0 | BQ123: 0 | BR123: 0 | BS123: 0 | BT123: 0 | BU123: 0 | BV123: 0 | BW123: 0 | BX123: 0 | BY123: 21.97 | BZ123: 26.29 | CA123: Fri | CB123: 2200 | CC123: 0 | CD123: 2 | CE123: 14 | CF123: 22 | CG123: 0 | CH123: 0 | CI123: 0 | CJ123: 0 | CK123: 0 | CL123: 0 | CM123: 0 | CN123: 0 | CO123: 0 | CP123: 1 | CQ123: 9 | CR123: 19 | CS123: 8 | CT123: 1 | CU123: 0 | CV123: 0 | CW123: 0 | CX123: 0 | CY123: 0 | CZ123: 0 | DA123: 0 | DB123: 0 | DC123: 0 | DD123: 0 | DE123: 0 | DF123: 0 | DG123: 0 | DH123: 0 | DI123: 0 | DJ123: 0 | DK123: 0 | DL123: 22.46 | DM123: 26.56 | DN123: 0 | DO123: 1 | DP123: 4 | DQ123: 11 | DR123: 0 | DS123: 0 | DT123: 0 | DU123: 0 | DV123: 0 | DW123: 0 | DX123: 0 | DY123: 0 | DZ123: 16 | EA123: 0 | EB123: 1 | EC123: 10 | ED123: 11 | EE123: 0 | EF123: 0 | EG123: 0 | EH123: 0 | EI123: 0 | EJ123: 0 | EK123: 0 | EL123: 0 | EM123: 22 | EN123: 0 | EO123: 2 | EP123: 14 | EQ123: 22 | ER123: 0 | ES123: 0 | ET123: 0 | EU123: 0 | EV123: 0 | EW123: 0 | EX123: 0 | EY123: 0 | EZ123: 38
A124: Fri | B124: 2300 | C124: 0 | D124: 0 | E124: 1 | F124: 3 | G124: 0 | H124: 0 | I124: 0 | J124: 0 | K124: 0 | L124: 0 | M124: 0 | N124: 0 | O124: 0 | P124: 0 | Q124: 1 | R124: 1 | S124: 1 | T124: 1 | U124: 0 | V124: 0 | W124: 0 | X124: 0 | Y124: 0 | Z124: 0 | AA124: 0 | AB124: 0 | AC124: 0 | AD124: 0 | AE124: 0 | AF124: 0 | AG124: 0 | AH124: 0 | AI124: 0 | AJ124: 0 | AK124: 0 | AL124: 25.51 | AM124: - | AN124: Fri | AO124: 2300 | AP124: 0 | AQ124: 1 | AR124: 8 | AS124: 5 | AT124: 0 | AU124: 0 | AV124: 0 | AW124: 0 | AX124: 0 | AY124: 0 | AZ124: 0 | BA124: 0 | BB124: 0 | BC124: 0 | BD124: 4 | BE124: 6 | BF124: 3 | BG124: 1 | BH124: 0 | BI124: 0 | BJ124: 0 | BK124: 0 | BL124: 0 | BM124: 0 | BN124: 0 | BO124: 0 | BP124: 0 | BQ124: 0 | BR124: 0 | BS124: 0 | BT124: 0 | BU124: 0 | BV124: 0 | BW124: 0 | BX124: 0 | BY124: 23.03 | BZ124: 28.39 | CA124: Fri | CB124: 2300 | CC124: 0 | CD124: 1 | CE124: 9 | CF124: 8 | CG124: 0 | CH124: 0 | CI124: 0 | CJ124: 0 | CK124: 0 | CL124: 0 | CM124: 0 | CN124: 0 | CO124: 0 | CP124: 0 | CQ124: 5 | CR124: 7 | CS124: 4 | CT124: 2 | CU124: 0 | CV124: 0 | CW124: 0 | CX124: 0 | CY124: 0 | CZ124: 0 | DA124: 0 | DB124: 0 | DC124: 0 | DD124: 0 | DE124: 0 | DF124: 0 | DG124: 0 | DH124: 0 | DI124: 0 | DJ124: 0 | DK124: 0 | DL124: 23.58 | DM124: 28.8 | DN124: 0 | DO124: 0 | DP124: 1 | DQ124: 3 | DR124: 0 | DS124: 0 | DT124: 0 | DU124: 0 | DV124: 0 | DW124: 0 | DX124: 0 | DY124: 0 | DZ124: 4 | EA124: 0 | EB124: 1 | EC124: 8 | ED124: 5 | EE124: 0 | EF124: 0 | EG124: 0 | EH124: 0 | EI124: 0 | EJ124: 0 | EK124: 0 | EL124: 0 | EM124: 14 | EN124: 0 | EO124: 1 | EP124: 9 | EQ124: 8 | ER124: 0 | ES124: 0 | ET124: 0 | EU124: 0 | EV124: 0 | EW124: 0 | EX124: 0 | EY124: 0 | EZ124: 18
A125: Sat | B125: 0 | C125: 0 | D125: 0 | E125: 1 | F125: 0 | G125: 0 | H125: 0 | I125: 0 | J125: 0 | K125: 0 | L125: 0 | M125: 0 | N125: 0 | O125: 0 | P125: 0 | Q125: 0 | R125: 0 | S125: 0 | T125: 0 | U125: 0 | V125: 1 | W125: 0 | X125: 0 | Y125: 0 | Z125: 0 | AA125: 0 | AB125: 0 | AC125: 0 | AD125: 0 | AE125: 0 | AF125: 0 | AG125: 0 | AH125: 0 | AI125: 0 | AJ125: 0 | AK125: 0 | AL125: 41.09 | AM125: - | AN125: Sat | AO125: 0 | AP125: 0 | AQ125: 0 | AR125: 1 | AS125: 0 | AT125: 0 | AU125: 0 | AV125: 0 | AW125: 0 | AX125: 0 | AY125: 0 | AZ125: 0 | BA125: 0 | BB125: 0 | BC125: 0 | BD125: 1 | BE125: 0 | BF125: 0 | BG125: 0 | BH125: 0 | BI125: 0 | BJ125: 0 | BK125: 0 | BL125: 0 | BM125: 0 | BN125: 0 | BO125: 0 | BP125: 0 | BQ125: 0 | BR125: 0 | BS125: 0 | BT125: 0 | BU125: 0 | BV125: 0 | BW125: 0 | BX125: 0 | BY125: 16.85 | BZ125: - | CA125: Sat | CB125: 0 | CC125: 0 | CD125: 0 | CE125: 2 | CF125: 0 | CG125: 0 | CH125: 0 | CI125: 0 | CJ125: 0 | CK125: 0 | CL125: 0 | CM125: 0 | CN125: 0 | CO125: 0 | CP125: 0 | CQ125: 1 | CR125: 0 | CS125: 0 | CT125: 0 | CU125: 0 | CV125: 1 | CW125: 0 | CX125: 0 | CY125: 0 | CZ125: 0 | DA125: 0 | DB125: 0 | DC125: 0 | DD125: 0 | DE125: 0 | DF125: 0 | DG125: 0 | DH125: 0 | DI125: 0 | DJ125: 0 | DK125: 0 | DL125: 28.97 | DM125: - | DN125: 0 | DO125: 0 | DP125: 1 | DQ125: 0 | DR125: 0 | DS125: 0 | DT125: 0 | DU125: 0 | DV125: 0 | DW125: 0 | DX125: 0 | DY125: 0 | DZ125: 1 | EA125: 0 | EB125: 0 | EC125: 1 | ED125: 0 | EE125: 0 | EF125: 0 | EG125: 0 | EH125: 0 | EI125: 0 | EJ125: 0 | EK125: 0 | EL125: 0 | EM125: 1 | EN125: 0 | EO125: 0 | EP125: 2 | EQ125: 0 | ER125: 0 | ES125: 0 | ET125: 0 | EU125: 0 | EV125: 0 | EW125: 0 | EX125: 0 | EY125: 0 | EZ125: 2
A126: Sat | B126: 100 | C126: 0 | D126: 0 | E126: 0 | F126: 0 | G126: 0 | H126: 0 | I126: 0 | J126: 0 | K126: 0 | L126: 0 | M126: 0 | N126: 0 | O126: 0 | P126: 0 | Q126: 0 | R126: 0 | S126: 0 | T126: 0 | U126: 0 | V126: 0 | W126: 0 | X126: 0 | Y126: 0 | Z126: 0 | AA126: 0 | AB126: 0 | AC126: 0 | AD126: 0 | AE126: 0 | AF126: 0 | AG126: 0 | AH126: 0 | AI126: 0 | AJ126: 0 | AK126: 0 | AL126: - | AM126: - | AN126: Sat | AO126: 100 | AP126: 0 | AQ126: 0 | AR126: 0 | AS126: 0 | AT126: 0 | AU126: 0 | AV126: 0 | AW126: 0 | AX126: 0 | AY126: 0 | AZ126: 0 | BA126: 0 | BB126: 0 | BC126: 0 | BD126: 0 | BE126: 0 | BF126: 0 | BG126: 0 | BH126: 0 | BI126: 0 | BJ126: 0 | BK126: 0 | BL126: 0 | BM126: 0 | BN126: 0 | BO126: 0 | BP126: 0 | BQ126: 0 | BR126: 0 | BS126: 0 | BT126: 0 | BU126: 0 | BV126: 0 | BW126: 0 | BX126: 0 | BY126: - | BZ126: - | CA126: Sat | CB126: 100 | CC126: 0 | CD126: 0 | CE126: 0 | CF126: 0 | CG126: 0 | CH126: 0 | CI126: 0 | CJ126: 0 | CK126: 0 | CL126: 0 | CM126: 0 | CN126: 0 | CO126: 0 | CP126: 0 | CQ126: 0 | CR126: 0 | CS126: 0 | CT126: 0 | CU126: 0 | CV126: 0 | CW126: 0 | CX126: 0 | CY126: 0 | CZ126: 0 | DA126: 0 | DB126: 0 | DC126: 0 | DD126: 0 | DE126: 0 | DF126: 0 | DG126: 0 | DH126: 0 | DI126: 0 | DJ126: 0 | DK126: 0 | DL126: - | DM126: - | DN126: 0 | DO126: 0 | DP126: 0 | DQ126: 0 | DR126: 0 | DS126: 0 | DT126: 0 | DU126: 0 | DV126: 0 | DW126: 0 | DX126: 0 | DY126: 0 | DZ126: 0 | EA126: 0 | EB126: 0 | EC126: 0 | ED126: 0 | EE126: 0 | EF126: 0 | EG126: 0 | EH126: 0 | EI126: 0 | EJ126: 0 | EK126: 0 | EL126: 0 | EM126: 0 | EN126: 0 | EO126: 0 | EP126: 0 | EQ126: 0 | ER126: 0 | ES126: 0 | ET126: 0 | EU126: 0 | EV126: 0 | EW126: 0 | EX126: 0 | EY126: 0 | EZ126: 0
A127: Sat | B127: 200 | C127: 0 | D127: 0 | E127: 0 | F127: 0 | G127: 0 | H127: 0 | I127: 0 | J127: 0 | K127: 0 | L127: 0 | M127: 0 | N127: 0 | O127: 0 | P127: 0 | Q127: 0 | R127: 0 | S127: 0 | T127: 0 | U127: 0 | V127: 0 | W127: 0 | X127: 0 | Y127: 0 | Z127: 0 | AA127: 0 | AB127: 0 | AC127: 0 | AD127: 0 | AE127: 0 | AF127: 0 | AG127: 0 | AH127: 0 | AI127: 0 | AJ127: 0 | AK127: 0 | AL127: - | AM127: - | AN127: Sat | AO127: 200 | AP127: 0 | AQ127: 0 | AR127: 0 | AS127: 0 | AT127: 0 | AU127: 0 | AV127: 0 | AW127: 0 | AX127: 0 | AY127: 0 | AZ127: 0 | BA127: 0 | BB127: 0 | BC127: 0 | BD127: 0 | BE127: 0 | BF127: 0 | BG127: 0 | BH127: 0 | BI127: 0 | BJ127: 0 | BK127: 0 | BL127: 0 | BM127: 0 | BN127: 0 | BO127: 0 | BP127: 0 | BQ127: 0 | BR127: 0 | BS127: 0 | BT127: 0 | BU127: 0 | BV127: 0 | BW127: 0 | BX127: 0 | BY127: - | BZ127: - | CA127: Sat | CB127: 200 | CC127: 0 | CD127: 0 | CE127: 0 | CF127: 0 | CG127: 0 | CH127: 0 | CI127: 0 | CJ127: 0 | CK127: 0 | CL127: 0 | CM127: 0 | CN127: 0 | CO127: 0 | CP127: 0 | CQ127: 0 | CR127: 0 | CS127: 0 | CT127: 0 | CU127: 0 | CV127: 0 | CW127: 0 | CX127: 0 | CY127: 0 | CZ127: 0 | DA127: 0 | DB127: 0 | DC127: 0 | DD127: 0 | DE127: 0 | DF127: 0 | DG127: 0 | DH127: 0 | DI127: 0 | DJ127: 0 | DK127: 0 | DL127: - | DM127: - | DN127: 0 | DO127: 0 | DP127: 0 | DQ127: 0 | DR127: 0 | DS127: 0 | DT127: 0 | DU127: 0 | DV127: 0 | DW127: 0 | DX127: 0 | DY127: 0 | DZ127: 0 | EA127: 0 | EB127: 0 | EC127: 0 | ED127: 0 | EE127: 0 | EF127: 0 | EG127: 0 | EH127: 0 | EI127: 0 | EJ127: 0 | EK127: 0 | EL127: 0 | EM127: 0 | EN127: 0 | EO127: 0 | EP127: 0 | EQ127: 0 | ER127: 0 | ES127: 0 | ET127: 0 | EU127: 0 | EV127: 0 | EW127: 0 | EX127: 0 | EY127: 0 | EZ127: 0
A128: Sat | B128: 300 | C128: 0 | D128: 0 | E128: 0 | F128: 0 | G128: 1 | H128: 0 | I128: 0 | J128: 0 | K128: 0 | L128: 0 | M128: 0 | N128: 0 | O128: 0 | P128: 0 | Q128: 0 | R128: 0 | S128: 1 | T128: 0 | U128: 0 | V128: 0 | W128: 0 | X128: 0 | Y128: 0 | Z128: 0 | AA128: 0 | AB128: 0 | AC128: 0 | AD128: 0 | AE128: 0 | AF128: 0 | AG128: 0 | AH128: 0 | AI128: 0 | AJ128: 0 | AK128: 0 | AL128: 29.21 | AM128: - | AN128: Sat | AO128: 300 | AP128: 0 | AQ128: 0 | AR128: 0 | AS128: 0 | AT128: 1 | AU128: 0 | AV128: 0 | AW128: 0 | AX128: 0 | AY128: 0 | AZ128: 0 | BA128: 0 | BB128: 0 | BC128: 0 | BD128: 0 | BE128: 1 | BF128: 0 | BG128: 0 | BH128: 0 | BI128: 0 | BJ128: 0 | BK128: 0 | BL128: 0 | BM128: 0 | BN128: 0 | BO128: 0 | BP128: 0 | BQ128: 0 | BR128: 0 | BS128: 0 | BT128: 0 | BU128: 0 | BV128: 0 | BW128: 0 | BX128: 0 | BY128: 22.48 | BZ128: - | CA128: Sat | CB128: 300 | CC128: 0 | CD128: 0 | CE128: 0 | CF128: 0 | CG128: 2 | CH128: 0 | CI128: 0 | CJ128: 0 | CK128: 0 | CL128: 0 | CM128: 0 | CN128: 0 | CO128: 0 | CP128: 0 | CQ128: 0 | CR128: 1 | CS128: 1 | CT128: 0 | CU128: 0 | CV128: 0 | CW128: 0 | CX128: 0 | CY128: 0 | CZ128: 0 | DA128: 0 | DB128: 0 | DC128: 0 | DD128: 0 | DE128: 0 | DF128: 0 | DG128: 0 | DH128: 0 | DI128: 0 | DJ128: 0 | DK128: 0 | DL128: 25.85 | DM128: - | DN128: 0 | DO128: 0 | DP128: 0 | DQ128: 0 | DR128: 1 | DS128: 0 | DT128: 0 | DU128: 0 | DV128: 0 | DW128: 0 | DX128: 0 | DY128: 0 | DZ128: 1 | EA128: 0 | EB128: 0 | EC128: 0 | ED128: 0 | EE128: 1 | EF128: 0 | EG128: 0 | EH128: 0 | EI128: 0 | EJ128: 0 | EK128: 0 | EL128: 0 | EM128: 1 | EN128: 0 | EO128: 0 | EP128: 0 | EQ128: 0 | ER128: 2 | ES128: 0 | ET128: 0 | EU128: 0 | EV128: 0 | EW128: 0 | EX128: 0 | EY128: 0 | EZ128: 2
A129: Sat | B129: 400 | C129: 0 | D129: 0 | E129: 0 | F129: 1 | G129: 0 | H129: 0 | I129: 0 | J129: 0 | K129: 0 | L129: 0 | M129: 0 | N129: 0 | O129: 0 | P129: 0 | Q129: 0 | R129: 0 | S129: 1 | T129: 0 | U129: 0 | V129: 0 | W129: 0 | X129: 0 | Y129: 0 | Z129: 0 | AA129: 0 | AB129: 0 | AC129: 0 | AD129: 0 | AE129: 0 | AF129: 0 | AG129: 0 | AH129: 0 | AI129: 0 | AJ129: 0 | AK129: 0 | AL129: 26.27 | AM129: - | AN129: Sat | AO129: 400 | AP129: 0 | AQ129: 0 | AR129: 0 | AS129: 2 | AT129: 0 | AU129: 0 | AV129: 0 | AW129: 0 | AX129: 0 | AY129: 0 | AZ129: 0 | BA129: 0 | BB129: 0 | BC129: 0 | BD129: 2 | BE129: 0 | BF129: 0 | BG129: 0 | BH129: 0 | BI129: 0 | BJ129: 0 | BK129: 0 | BL129: 0 | BM129: 0 | BN129: 0 | BO129: 0 | BP129: 0 | BQ129: 0 | BR129: 0 | BS129: 0 | BT129: 0 | BU129: 0 | BV129: 0 | BW129: 0 | BX129: 0 | BY129: 17.53 | BZ129: - | CA129: Sat | CB129: 400 | CC129: 0 | CD129: 0 | CE129: 0 | CF129: 3 | CG129: 0 | CH129: 0 | CI129: 0 | CJ129: 0 | CK129: 0 | CL129: 0 | CM129: 0 | CN129: 0 | CO129: 0 | CP129: 0 | CQ129: 2 | CR129: 0 | CS129: 1 | CT129: 0 | CU129: 0 | CV129: 0 | CW129: 0 | CX129: 0 | CY129: 0 | CZ129: 0 | DA129: 0 | DB129: 0 | DC129: 0 | DD129: 0 | DE129: 0 | DF129: 0 | DG129: 0 | DH129: 0 | DI129: 0 | DJ129: 0 | DK129: 0 | DL129: 20.44 | DM129: - | DN129: 0 | DO129: 0 | DP129: 0 | DQ129: 1 | DR129: 0 | DS129: 0 | DT129: 0 | DU129: 0 | DV129: 0 | DW129: 0 | DX129: 0 | DY129: 0 | DZ129: 1 | EA129: 0 | EB129: 0 | EC129: 0 | ED129: 2 | EE129: 0 | EF129: 0 | EG129: 0 | EH129: 0 | EI129: 0 | EJ129: 0 | EK129: 0 | EL129: 0 | EM129: 2 | EN129: 0 | EO129: 0 | EP129: 0 | EQ129: 3 | ER129: 0 | ES129: 0 | ET129: 0 | EU129: 0 | EV129: 0 | EW129: 0 | EX129: 0 | EY129: 0 | EZ129: 3
A130: Sat | B130: 500 | C130: 0 | D130: 0 | E130: 4 | F130: 2 | G130: 1 | H130: 0 | I130: 0 | J130: 0 | K130: 0 | L130: 0 | M130: 0 | N130: 0 | O130: 0 | P130: 0 | Q130: 1 | R130: 5 | S130: 1 | T130: 0 | U130: 0 | V130: 0 | W130: 0 | X130: 0 | Y130: 0 | Z130: 0 | AA130: 0 | AB130: 0 | AC130: 0 | AD130: 0 | AE130: 0 | AF130: 0 | AG130: 0 | AH130: 0 | AI130: 0 | AJ130: 0 | AK130: 0 | AL130: 22.47 | AM130: - | AN130: Sat | AO130: 500 | AP130: 0 | AQ130: 0 | AR130: 0 | AS130: 1 | AT130: 0 | AU130: 0 | AV130: 0 | AW130: 0 | AX130: 0 | AY130: 0 | AZ130: 0 | BA130: 0 | BB130: 0 | BC130: 0 | BD130: 0 | BE130: 0 | BF130: 1 | BG130: 0 | BH130: 0 | BI130: 0 | BJ130: 0 | BK130: 0 | BL130: 0 | BM130: 0 | BN130: 0 | BO130: 0 | BP130: 0 | BQ130: 0 | BR130: 0 | BS130: 0 | BT130: 0 | BU130: 0 | BV130: 0 | BW130: 0 | BX130: 0 | BY130: 26.6 | BZ130: - | CA130: Sat | CB130: 500 | CC130: 0 | CD130: 0 | CE130: 4 | CF130: 3 | CG130: 1 | CH130: 0 | CI130: 0 | CJ130: 0 | CK130: 0 | CL130: 0 | CM130: 0 | CN130: 0 | CO130: 0 | CP130: 0 | CQ130: 1 | CR130: 5 | CS130: 2 | CT130: 0 | CU130: 0 | CV130: 0 | CW130: 0 | CX130: 0 | CY130: 0 | CZ130: 0 | DA130: 0 | DB130: 0 | DC130: 0 | DD130: 0 | DE130: 0 | DF130: 0 | DG130: 0 | DH130: 0 | DI130: 0 | DJ130: 0 | DK130: 0 | DL130: 22.98 | DM130: - | DN130: 0 | DO130: 0 | DP130: 4 | DQ130: 2 | DR130: 1 | DS130: 0 | DT130: 0 | DU130: 0 | DV130: 0 | DW130: 0 | DX130: 0 | DY130: 0 | DZ130: 7 | EA130: 0 | EB130: 0 | EC130: 0 | ED130: 1 | EE130: 0 | EF130: 0 | EG130: 0 | EH130: 0 | EI130: 0 | EJ130: 0 | EK130: 0 | EL130: 0 | EM130: 1 | EN130: 0 | EO130: 0 | EP130: 4 | EQ130: 3 | ER130: 1 | ES130: 0 | ET130: 0 | EU130: 0 | EV130: 0 | EW130: 0 | EX130: 0 | EY130: 0 | EZ130: 8
A131: Sat | B131: 600 | C131: 0 | D131: 1 | E131: 9 | F131: 16 | G131: 1 | H131: 0 | I131: 0 | J131: 0 | K131: 0 | L131: 0 | M131: 0 | N131: 0 | O131: 0 | P131: 0 | Q131: 3 | R131: 12 | S131: 9 | T131: 3 | U131: 0 | V131: 0 | W131: 0 | X131: 0 | Y131: 0 | Z131: 0 | AA131: 0 | AB131: 0 | AC131: 0 | AD131: 0 | AE131: 0 | AF131: 0 | AG131: 0 | AH131: 0 | AI131: 0 | AJ131: 0 | AK131: 0 | AL131: 24.93 | AM131: 29.64 | AN131: Sat | AO131: 600 | AP131: 0 | AQ131: 0 | AR131: 3 | AS131: 5 | AT131: 2 | AU131: 0 | AV131: 0 | AW131: 0 | AX131: 0 | AY131: 0 | AZ131: 0 | BA131: 0 | BB131: 0 | BC131: 0 | BD131: 2 | BE131: 6 | BF131: 2 | BG131: 0 | BH131: 0 | BI131: 0 | BJ131: 0 | BK131: 0 | BL131: 0 | BM131: 0 | BN131: 0 | BO131: 0 | BP131: 0 | BQ131: 0 | BR131: 0 | BS131: 0 | BT131: 0 | BU131: 0 | BV131: 0 | BW131: 0 | BX131: 0 | BY131: 22.08 | BZ131: 24.69 | CA131: Sat | CB131: 600 | CC131: 0 | CD131: 1 | CE131: 12 | CF131: 21 | CG131: 3 | CH131: 0 | CI131: 0 | CJ131: 0 | CK131: 0 | CL131: 0 | CM131: 0 | CN131: 0 | CO131: 0 | CP131: 0 | CQ131: 5 | CR131: 18 | CS131: 11 | CT131: 3 | CU131: 0 | CV131: 0 | CW131: 0 | CX131: 0 | CY131: 0 | CZ131: 0 | DA131: 0 | DB131: 0 | DC131: 0 | DD131: 0 | DE131: 0 | DF131: 0 | DG131: 0 | DH131: 0 | DI131: 0 | DJ131: 0 | DK131: 0 | DL131: 24.16 | DM131: 29.3 | DN131: 0 | DO131: 1 | DP131: 9 | DQ131: 16 | DR131: 1 | DS131: 0 | DT131: 0 | DU131: 0 | DV131: 0 | DW131: 0 | DX131: 0 | DY131: 0 | DZ131: 27 | EA131: 0 | EB131: 0 | EC131: 3 | ED131: 5 | EE131: 2 | EF131: 0 | EG131: 0 | EH131: 0 | EI131: 0 | EJ131: 0 | EK131: 0 | EL131: 0 | EM131: 10 | EN131: 0 | EO131: 1 | EP131: 12 | EQ131: 21 | ER131: 3 | ES131: 0 | ET131: 0 | EU131: 0 | EV131: 0 | EW131: 0 | EX131: 0 | EY131: 0 | EZ131: 37
A132: Sat | B132: 700 | C132: 0 | D132: 0 | E132: 25 | F132: 23 | G132: 3 | H132: 0 | I132: 0 | J132: 0 | K132: 0 | L132: 0 | M132: 0 | N132: 0 | O132: 0 | P132: 1 | Q132: 14 | R132: 25 | S132: 11 | T132: 0 | U132: 0 | V132: 0 | W132: 0 | X132: 0 | Y132: 0 | Z132: 0 | AA132: 0 | AB132: 0 | AC132: 0 | AD132: 0 | AE132: 0 | AF132: 0 | AG132: 0 | AH132: 0 | AI132: 0 | AJ132: 0 | AK132: 0 | AL132: 22.32 | AM132: 26.01 | AN132: Sat | AO132: 700 | AP132: 0 | AQ132: 0 | AR132: 17 | AS132: 23 | AT132: 4 | AU132: 0 | AV132: 0 | AW132: 0 | AX132: 0 | AY132: 0 | AZ132: 0 | BA132: 0 | BB132: 0 | BC132: 3 | BD132: 12 | BE132: 21 | BF132: 8 | BG132: 0 | BH132: 0 | BI132: 0 | BJ132: 0 | BK132: 0 | BL132: 0 | BM132: 0 | BN132: 0 | BO132: 0 | BP132: 0 | BQ132: 0 | BR132: 0 | BS132: 0 | BT132: 0 | BU132: 0 | BV132: 0 | BW132: 0 | BX132: 0 | BY132: 21.35 | BZ132: 25.27 | CA132: Sat | CB132: 700 | CC132: 0 | CD132: 0 | CE132: 42 | CF132: 46 | CG132: 7 | CH132: 0 | CI132: 0 | CJ132: 0 | CK132: 0 | CL132: 0 | CM132: 0 | CN132: 0 | CO132: 0 | CP132: 4 | CQ132: 26 | CR132: 46 | CS132: 19 | CT132: 0 | CU132: 0 | CV132: 0 | CW132: 0 | CX132: 0 | CY132: 0 | CZ132: 0 | DA132: 0 | DB132: 0 | DC132: 0 | DD132: 0 | DE132: 0 | DF132: 0 | DG132: 0 | DH132: 0 | DI132: 0 | DJ132: 0 | DK132: 0 | DL132: 21.87 | DM132: 25.46 | DN132: 0 | DO132: 0 | DP132: 25 | DQ132: 23 | DR132: 3 | DS132: 0 | DT132: 0 | DU132: 0 | DV132: 0 | DW132: 0 | DX132: 0 | DY132: 0 | DZ132: 51 | EA132: 0 | EB132: 0 | EC132: 17 | ED132: 23 | EE132: 4 | EF132: 0 | EG132: 0 | EH132: 0 | EI132: 0 | EJ132: 0 | EK132: 0 | EL132: 0 | EM132: 44 | EN132: 0 | EO132: 0 | EP132: 42 | EQ132: 46 | ER132: 7 | ES132: 0 | ET132: 0 | EU132: 0 | EV132: 0 | EW132: 0 | EX132: 0 | EY132: 0 | EZ132: 95
A133: Sat | B133: 800 | C133: 0 | D133: 2 | E133: 39 | F133: 67 | G133: 6 | H133: 0 | I133: 0 | J133: 0 | K133: 0 | L133: 0 | M133: 2 | N133: 1 | O133: 1 | P133: 4 | Q133: 35 | R133: 63 | S133: 14 | T133: 0 | U133: 0 | V133: 0 | W133: 0 | X133: 0 | Y133: 0 | Z133: 0 | AA133: 0 | AB133: 0 | AC133: 0 | AD133: 0 | AE133: 0 | AF133: 0 | AG133: 0 | AH133: 0 | AI133: 0 | AJ133: 0 | AK133: 0 | AL133: 21 | AM133: 24.54 | AN133: Sat | AO133: 800 | AP133: 0 | AQ133: 0 | AR133: 38 | AS133: 55 | AT133: 4 | AU133: 0 | AV133: 0 | AW133: 1 | AX133: 0 | AY133: 0 | AZ133: 0 | BA133: 0 | BB133: 5 | BC133: 12 | BD133: 31 | BE133: 39 | BF133: 11 | BG133: 0 | BH133: 0 | BI133: 0 | BJ133: 0 | BK133: 0 | BL133: 0 | BM133: 0 | BN133: 0 | BO133: 0 | BP133: 0 | BQ133: 0 | BR133: 0 | BS133: 0 | BT133: 0 | BU133: 0 | BV133: 0 | BW133: 0 | BX133: 0 | BY133: 19.47 | BZ133: 24.26 | CA133: Sat | CB133: 800 | CC133: 0 | CD133: 2 | CE133: 77 | CF133: 122 | CG133: 10 | CH133: 0 | CI133: 0 | CJ133: 1 | CK133: 0 | CL133: 0 | CM133: 2 | CN133: 1 | CO133: 6 | CP133: 16 | CQ133: 66 | CR133: 102 | CS133: 25 | CT133: 0 | CU133: 0 | CV133: 0 | CW133: 0 | CX133: 0 | CY133: 0 | CZ133: 0 | DA133: 0 | DB133: 0 | DC133: 0 | DD133: 0 | DE133: 0 | DF133: 0 | DG133: 0 | DH133: 0 | DI133: 0 | DJ133: 0 | DK133: 0 | DL133: 20.3 | DM133: 24.46 | DN133: =SUM(C133) -> 0 | DO133: =SUM(D133) -> 2 | DP133: =SUM(E133) -> 39 | DQ133: =SUM(F133) -> 67 | DR133: =SUM(G133) -> 6 | DS133: =SUM(H133) -> 0 | DT133: =SUM(I133) -> 0 | DU133: =SUM(J133) -> 0 | DV133: =SUM(K133) -> 0 | DW133: =SUM(L133) -> 0 | DX133: =SUM(M133) -> 2 | DY133: =SUM(N133) -> 1 | DZ133: =SUM(C133:N133) -> 117 | EA133: =SUM(AP133) -> 0 | EB133: =SUM(AQ133) -> 0 | EC133: =SUM(AR133) -> 38 | ED133: =SUM(AS133) -> 55 | EE133: =SUM(AT133) -> 4 | EF133: =SUM(AU133) -> 0 | EG133: =SUM(AV133) -> 0 | EH133: =SUM(AW133) -> 1 | EI133: =SUM(AX133) -> 0 | EJ133: =SUM(AY133) -> 0 | EK133: =SUM(AZ133) -> 0 | EL133: =SUM(BA133) -> 0 | EM133: =SUM(AP133:BA133) -> 98 | EN133: =SUM(DN133+EA133) -> 0 | EO133: =SUM(DO133+EB133) -> 2 | EP133: =SUM(DP133+EC133) -> 77 | EQ133: =SUM(DQ133+ED133) -> 122 | ER133: =SUM(DR133+EE133) -> 10 | ES133: =SUM(DS133+EF133) -> 0 | ET133: =SUM(DT133+EG133) -> 0 | EU133: =SUM(DU133+EH133) -> 1 | EV133: =SUM(DV133+EI133) -> 0 | EW133: =SUM(DW133+EJ133) -> 0 | EX133: =SUM(DX133+EK133) -> 2 | EY133: =SUM(DY133+EL133) -> 1 | EZ133: =SUM(DZ133+EM133) -> 215
A134: Sat | B134: 900 | C134: 1 | D134: 2 | E134: 74 | F134: 102 | G134: 3 | H134: 0 | I134: 0 | J134: 1 | K134: 0 | L134: 0 | M134: 0 | N134: 0 | O134: 1 | P134: 13 | Q134: 84 | R134: 75 | S134: 10 | T134: 0 | U134: 0 | V134: 0 | W134: 0 | X134: 0 | Y134: 0 | Z134: 0 | AA134: 0 | AB134: 0 | AC134: 0 | AD134: 0 | AE134: 0 | AF134: 0 | AG134: 0 | AH134: 0 | AI134: 0 | AJ134: 0 | AK134: 0 | AL134: 19.75 | AM134: 23.68 | AN134: Sat | AO134: 900 | AP134: 0 | AQ134: 0 | AR134: 62 | AS134: 79 | AT134: 5 | AU134: 0 | AV134: 0 | AW134: 2 | AX134: 0 | AY134: 0 | AZ134: 0 | BA134: 0 | BB134: 1 | BC134: 23 | BD134: 67 | BE134: 49 | BF134: 8 | BG134: 0 | BH134: 0 | BI134: 0 | BJ134: 0 | BK134: 0 | BL134: 0 | BM134: 0 | BN134: 0 | BO134: 0 | BP134: 0 | BQ134: 0 | BR134: 0 | BS134: 0 | BT134: 0 | BU134: 0 | BV134: 0 | BW134: 0 | BX134: 0 | BY134: 18.83 | BZ134: 22.09 | CA134: Sat | CB134: 900 | CC134: 1 | CD134: 2 | CE134: 136 | CF134: 181 | CG134: 8 | CH134: 0 | CI134: 0 | CJ134: 3 | CK134: 0 | CL134: 0 | CM134: 0 | CN134: 0 | CO134: 2 | CP134: 36 | CQ134: 151 | CR134: 124 | CS134: 18 | CT134: 0 | CU134: 0 | CV134: 0 | CW134: 0 | CX134: 0 | CY134: 0 | CZ134: 0 | DA134: 0 | DB134: 0 | DC134: 0 | DD134: 0 | DE134: 0 | DF134: 0 | DG134: 0 | DH134: 0 | DI134: 0 | DJ134: 0 | DK134: 0 | DL134: 19.34 | DM134: 23.14 | DN134: 1 | DO134: 2 | DP134: 74 | DQ134: 102 | DR134: 3 | DS134: 0 | DT134: 0 | DU134: 1 | DV134: 0 | DW134: 0 | DX134: 0 | DY134: 0 | DZ134: 183 | EA134: 0 | EB134: 0 | EC134: 62 | ED134: 79 | EE134: 5 | EF134: 0 | EG134: 0 | EH134: 2 | EI134: 0 | EJ134: 0 | EK134: 0 | EL134: 0 | EM134: 148 | EN134: 1 | EO134: 2 | EP134: 136 | EQ134: 181 | ER134: 8 | ES134: 0 | ET134: 0 | EU134: 3 | EV134: 0 | EW134: 0 | EX134: 0 | EY134: 0 | EZ134: 331
A135: Sat | B135: 1000 | C135: 0 | D135: 3 | E135: 89 | F135: 111 | G135: 6 | H135: 0 | I135: 0 | J135: 1 | K135: 0 | L135: 0 | M135: 1 | N135: 0 | O135: 4 | P135: 46 | Q135: 120 | R135: 38 | S135: 2 | T135: 1 | U135: 0 | V135: 0 | W135: 0 | X135: 0 | Y135: 0 | Z135: 0 | AA135: 0 | AB135: 0 | AC135: 0 | AD135: 0 | AE135: 0 | AF135: 0 | AG135: 0 | AH135: 0 | AI135: 0 | AJ135: 0 | AK135: 0 | AL135: 17.34 | AM135: 21.03 | AN135: Sat | AO135: 1000 | AP135: 0 | AQ135: 1 | AR135: 116 | AS135: 119 | AT135: 5 | AU135: 3 | AV135: 0 | AW135: 0 | AX135: 0 | AY135: 0 | AZ135: 0 | BA135: 0 | BB135: 9 | BC135: 72 | BD135: 110 | BE135: 51 | BF135: 2 | BG135: 0 | BH135: 0 | BI135: 0 | BJ135: 0 | BK135: 0 | BL135: 0 | BM135: 0 | BN135: 0 | BO135: 0 | BP135: 0 | BQ135: 0 | BR135: 0 | BS135: 0 | BT135: 0 | BU135: 0 | BV135: 0 | BW135: 0 | BX135: 0 | BY135: 16.63 | BZ135: 20.84 | CA135: Sat | CB135: 1000 | CC135: 0 | CD135: 4 | CE135: 205 | CF135: 230 | CG135: 11 | CH135: 3 | CI135: 0 | CJ135: 1 | CK135: 0 | CL135: 0 | CM135: 1 | CN135: 0 | CO135: 13 | CP135: 118 | CQ135: 230 | CR135: 89 | CS135: 4 | CT135: 1 | CU135: 0 | CV135: 0 | CW135: 0 | CX135: 0 | CY135: 0 | CZ135: 0 | DA135: 0 | DB135: 0 | DC135: 0 | DD135: 0 | DE135: 0 | DF135: 0 | DG135: 0 | DH135: 0 | DI135: 0 | DJ135: 0 | DK135: 0 | DL135: 16.96 | DM135: 20.98 | DN135: 0 | DO135: 3 | DP135: 89 | DQ135: 111 | DR135: 6 | DS135: 0 | DT135: 0 | DU135: 1 | DV135: 0 | DW135: 0 | DX135: 1 | DY135: 0 | DZ135: 211 | EA135: 0 | EB135: 1 | EC135: 116 | ED135: 119 | EE135: 5 | EF135: 3 | EG135: 0 | EH135: 0 | EI135: 0 | EJ135: 0 | EK135: 0 | EL135: 0 | EM135: 244 | EN135: 0 | EO135: 4 | EP135: 205 | EQ135: 230 | ER135: 11 | ES135: 3 | ET135: 0 | EU135: 1 | EV135: 0 | EW135: 0 | EX135: 1 | EY135: 0 | EZ135: 455
A136: Sat | B136: 1100 | C136: 0 | D136: 1 | E136: 81 | F136: 115 | G136: 6 | H136: 1 | I136: 0 | J136: 0 | K136: 0 | L136: 0 | M136: 0 | N136: 0 | O136: 6 | P136: 60 | Q136: 104 | R136: 33 | S136: 1 | T136: 0 | U136: 0 | V136: 0 | W136: 0 | X136: 0 | Y136: 0 | Z136: 0 | AA136: 0 | AB136: 0 | AC136: 0 | AD136: 0 | AE136: 0 | AF136: 0 | AG136: 0 | AH136: 0 | AI136: 0 | AJ136: 0 | AK136: 0 | AL136: 16.78 | AM136: 20.26 | AN136: Sat | AO136: 1100 | AP136: 0 | AQ136: 5 | AR136: 96 | AS136: 80 | AT136: 5 | AU136: 0 | AV136: 0 | AW136: 0 | AX136: 0 | AY136: 0 | AZ136: 0 | BA136: 0 | BB136: 15 | BC136: 64 | BD136: 84 | BE136: 19 | BF136: 4 | BG136: 0 | BH136: 0 | BI136: 0 | BJ136: 0 | BK136: 0 | BL136: 0 | BM136: 0 | BN136: 0 | BO136: 0 | BP136: 0 | BQ136: 0 | BR136: 0 | BS136: 0 | BT136: 0 | BU136: 0 | BV136: 0 | BW136: 0 | BX136: 0 | BY136: 15.74 | BZ136: 19.84 | CA136: Sat | CB136: 1100 | CC136: 0 | CD136: 6 | CE136: 177 | CF136: 195 | CG136: 11 | CH136: 1 | CI136: 0 | CJ136: 0 | CK136: 0 | CL136: 0 | CM136: 0 | CN136: 0 | CO136: 21 | CP136: 124 | CQ136: 188 | CR136: 52 | CS136: 5 | CT136: 0 | CU136: 0 | CV136: 0 | CW136: 0 | CX136: 0 | CY136: 0 | CZ136: 0 | DA136: 0 | DB136: 0 | DC136: 0 | DD136: 0 | DE136: 0 | DF136: 0 | DG136: 0 | DH136: 0 | DI136: 0 | DJ136: 0 | DK136: 0 | DL136: 16.28 | DM136: 19.93 | DN136: 0 | DO136: 1 | DP136: 81 | DQ136: 115 | DR136: 6 | DS136: 1 | DT136: 0 | DU136: 0 | DV136: 0 | DW136: 0 | DX136: 0 | DY136: 0 | DZ136: 204 | EA136: 0 | EB136: 5 | EC136: 96 | ED136: 80 | EE136: 5 | EF136: 0 | EG136: 0 | EH136: 0 | EI136: 0 | EJ136: 0 | EK136: 0 | EL136: 0 | EM136: 186 | EN136: 0 | EO136: 6 | EP136: 177 | EQ136: 195 | ER136: 11 | ES136: 1 | ET136: 0 | EU136: 0 | EV136: 0 | EW136: 0 | EX136: 0 | EY136: 0 | EZ136: 390
A137: Sat | B137: 1200 | C137: 0 | D137: 2 | E137: 78 | F137: 112 | G137: 2 | H137: 0 | I137: 0 | J137: 0 | K137: 0 | L137: 0 | M137: 0 | N137: 0 | O137: 4 | P137: 44 | Q137: 113 | R137: 28 | S137: 5 | T137: 0 | U137: 0 | V137: 0 | W137: 0 | X137: 0 | Y137: 0 | Z137: 0 | AA137: 0 | AB137: 0 | AC137: 0 | AD137: 0 | AE137: 0 | AF137: 0 | AG137: 0 | AH137: 0 | AI137: 0 | AJ137: 0 | AK137: 0 | AL137: 17.14 | AM137: 20.32 | AN137: Sat | AO137: 1200 | AP137: 1 | AQ137: 4 | AR137: 79 | AS137: 71 | AT137: 1 | AU137: 0 | AV137: 0 | AW137: 0 | AX137: 0 | AY137: 0 | AZ137: 1 | BA137: 1 | BB137: 6 | BC137: 42 | BD137: 58 | BE137: 48 | BF137: 4 | BG137: 0 | BH137: 0 | BI137: 0 | BJ137: 0 | BK137: 0 | BL137: 0 | BM137: 0 | BN137: 0 | BO137: 0 | BP137: 0 | BQ137: 0 | BR137: 0 | BS137: 0 | BT137: 0 | BU137: 0 | BV137: 0 | BW137: 0 | BX137: 0 | BY137: 17.65 | BZ137: 22.41 | CA137: Sat | CB137: 1200 | CC137: 1 | CD137: 6 | CE137: 157 | CF137: 183 | CG137: 3 | CH137: 0 | CI137: 0 | CJ137: 0 | CK137: 0 | CL137: 0 | CM137: 1 | CN137: 1 | CO137: 10 | CP137: 86 | CQ137: 171 | CR137: 76 | CS137: 9 | CT137: 0 | CU137: 0 | CV137: 0 | CW137: 0 | CX137: 0 | CY137: 0 | CZ137: 0 | DA137: 0 | DB137: 0 | DC137: 0 | DD137: 0 | DE137: 0 | DF137: 0 | DG137: 0 | DH137: 0 | DI137: 0 | DJ137: 0 | DK137: 0 | DL137: 17.37 | DM137: 21.31 | DN137: 0 | DO137: 2 | DP137: 78 | DQ137: 112 | DR137: 2 | DS137: 0 | DT137: 0 | DU137: 0 | DV137: 0 | DW137: 0 | DX137: 0 | DY137: 0 | DZ137: 194 | EA137: 1 | EB137: 4 | EC137: 79 | ED137: 71 | EE137: 1 | EF137: 0 | EG137: 0 | EH137: 0 | EI137: 0 | EJ137: 0 | EK137: 1 | EL137: 1 | EM137: 158 | EN137: 1 | EO137: 6 | EP137: 157 | EQ137: 183 | ER137: 3 | ES137: 0 | ET137: 0 | EU137: 0 | EV137: 0 | EW137: 0 | EX137: 1 | EY137: 1 | EZ137: 352
A138: Sat | B138: 1300 | C138: 2 | D138: 8 | E138: 56 | F138: 82 | G138: 1 | H138: 0 | I138: 0 | J138: 2 | K138: 0 | L138: 1 | M138: 0 | N138: 1 | O138: 2 | P138: 22 | Q138: 66 | R138: 54 | S138: 9 | T138: 0 | U138: 0 | V138: 0 | W138: 0 | X138: 0 | Y138: 0 | Z138: 0 | AA138: 0 | AB138: 0 | AC138: 0 | AD138: 0 | AE138: 0 | AF138: 0 | AG138: 0 | AH138: 0 | AI138: 0 | AJ138: 0 | AK138: 0 | AL138: 19.01 | AM138: 23.01 | AN138: Sat | AO138: 1300 | AP138: 1 | AQ138: 7 | AR138: 53 | AS138: 73 | AT138: 2 | AU138: 0 | AV138: 1 | AW138: 0 | AX138: 0 | AY138: 0 | AZ138: 0 | BA138: 0 | BB138: 3 | BC138: 22 | BD138: 67 | BE138: 39 | BF138: 6 | BG138: 0 | BH138: 0 | BI138: 0 | BJ138: 0 | BK138: 0 | BL138: 0 | BM138: 0 | BN138: 0 | BO138: 0 | BP138: 0 | BQ138: 0 | BR138: 0 | BS138: 0 | BT138: 0 | BU138: 0 | BV138: 0 | BW138: 0 | BX138: 0 | BY138: 18.46 | BZ138: 23.32 | CA138: Sat | CB138: 1300 | CC138: 3 | CD138: 15 | CE138: 109 | CF138: 155 | CG138: 3 | CH138: 0 | CI138: 1 | CJ138: 2 | CK138: 0 | CL138: 1 | CM138: 0 | CN138: 1 | CO138: 5 | CP138: 44 | CQ138: 133 | CR138: 93 | CS138: 15 | CT138: 0 | CU138: 0 | CV138: 0 | CW138: 0 | CX138: 0 | CY138: 0 | CZ138: 0 | DA138: 0 | DB138: 0 | DC138: 0 | DD138: 0 | DE138: 0 | DF138: 0 | DG138: 0 | DH138: 0 | DI138: 0 | DJ138: 0 | DK138: 0 | DL138: 18.75 | DM138: 23.03 | DN138: 2 | DO138: 8 | DP138: 56 | DQ138: 82 | DR138: 1 | DS138: 0 | DT138: 0 | DU138: 2 | DV138: 0 | DW138: 1 | DX138: 0 | DY138: 1 | DZ138: 153 | EA138: 1 | EB138: 7 | EC138: 53 | ED138: 73 | EE138: 2 | EF138: 0 | EG138: 1 | EH138: 0 | EI138: 0 | EJ138: 0 | EK138: 0 | EL138: 0 | EM138: 137 | EN138: 3 | EO138: 15 | EP138: 109 | EQ138: 155 | ER138: 3 | ES138: 0 | ET138: 1 | EU138: 2 | EV138: 0 | EW138: 1 | EX138: 0 | EY138: 1 | EZ138: 290
A139: Sat | B139: 1400 | C139: 0 | D139: 9 | E139: 58 | F139: 87 | G139: 4 | H139: 0 | I139: 0 | J139: 0 | K139: 0 | L139: 0 | M139: 0 | N139: 0 | O139: 1 | P139: 22 | Q139: 74 | R139: 57 | S139: 3 | T139: 1 | U139: 0 | V139: 0 | W139: 0 | X139: 0 | Y139: 0 | Z139: 0 | AA139: 0 | AB139: 0 | AC139: 0 | AD139: 0 | AE139: 0 | AF139: 0 | AG139: 0 | AH139: 0 | AI139: 0 | AJ139: 0 | AK139: 0 | AL139: 18.82 | AM139: 22.44 | AN139: Sat | AO139: 1400 | AP139: 0 | AQ139: 2 | AR139: 70 | AS139: 75 | AT139: 2 | AU139: 0 | AV139: 0 | AW139: 1 | AX139: 0 | AY139: 0 | AZ139: 0 | BA139: 1 | BB139: 4 | BC139: 28 | BD139: 75 | BE139: 37 | BF139: 6 | BG139: 1 | BH139: 0 | BI139: 0 | BJ139: 0 | BK139: 0 | BL139: 0 | BM139: 0 | BN139: 0 | BO139: 0 | BP139: 0 | BQ139: 0 | BR139: 0 | BS139: 0 | BT139: 0 | BU139: 0 | BV139: 0 | BW139: 0 | BX139: 0 | BY139: 18.02 | BZ139: 21.69 | CA139: Sat | CB139: 1400 | CC139: 0 | CD139: 11 | CE139: 128 | CF139: 162 | CG139: 6 | CH139: 0 | CI139: 0 | CJ139: 1 | CK139: 0 | CL139: 0 | CM139: 0 | CN139: 1 | CO139: 5 | CP139: 50 | CQ139: 149 | CR139: 94 | CS139: 9 | CT139: 2 | CU139: 0 | CV139: 0 | CW139: 0 | CX139: 0 | CY139: 0 | CZ139: 0 | DA139: 0 | DB139: 0 | DC139: 0 | DD139: 0 | DE139: 0 | DF139: 0 | DG139: 0 | DH139: 0 | DI139: 0 | DJ139: 0 | DK139: 0 | DL139: 18.43 | DM139: 22.27 | DN139: 0 | DO139: 9 | DP139: 58 | DQ139: 87 | DR139: 4 | DS139: 0 | DT139: 0 | DU139: 0 | DV139: 0 | DW139: 0 | DX139: 0 | DY139: 0 | DZ139: 158 | EA139: 0 | EB139: 2 | EC139: 70 | ED139: 75 | EE139: 2 | EF139: 0 | EG139: 0 | EH139: 1 | EI139: 0 | EJ139: 0 | EK139: 0 | EL139: 1 | EM139: 151 | EN139: 0 | EO139: 11 | EP139: 128 | EQ139: 162 | ER139: 6 | ES139: 0 | ET139: 0 | EU139: 1 | EV139: 0 | EW139: 0 | EX139: 0 | EY139: 1 | EZ139: 309
A140: Sat | B140: 1500 | C140: 0 | D140: 3 | E140: 46 | F140: 56 | G140: 0 | H140: 0 | I140: 0 | J140: 1 | K140: 0 | L140: 0 | M140: 0 | N140: 0 | O140: 5 | P140: 11 | Q140: 35 | R140: 45 | S140: 10 | T140: 0 | U140: 0 | V140: 0 | W140: 0 | X140: 0 | Y140: 0 | Z140: 0 | AA140: 0 | AB140: 0 | AC140: 0 | AD140: 0 | AE140: 0 | AF140: 0 | AG140: 0 | AH140: 0 | AI140: 0 | AJ140: 0 | AK140: 0 | AL140: 19.29 | AM140: 23.97 | AN140: Sat | AO140: 1500 | AP140: 1 | AQ140: 4 | AR140: 61 | AS140: 53 | AT140: 3 | AU140: 0 | AV140: 0 | AW140: 1 | AX140: 0 | AY140: 0 | AZ140: 0 | BA140: 0 | BB140: 0 | BC140: 27 | BD140: 59 | BE140: 31 | BF140: 5 | BG140: 1 | BH140: 0 | BI140: 0 | BJ140: 0 | BK140: 0 | BL140: 0 | BM140: 0 | BN140: 0 | BO140: 0 | BP140: 0 | BQ140: 0 | BR140: 0 | BS140: 0 | BT140: 0 | BU140: 0 | BV140: 0 | BW140: 0 | BX140: 0 | BY140: 18.22 | BZ140: 22.17 | CA140: Sat | CB140: 1500 | CC140: 1 | CD140: 7 | CE140: 107 | CF140: 109 | CG140: 3 | CH140: 0 | CI140: 0 | CJ140: 2 | CK140: 0 | CL140: 0 | CM140: 0 | CN140: 0 | CO140: 5 | CP140: 38 | CQ140: 94 | CR140: 76 | CS140: 15 | CT140: 1 | CU140: 0 | CV140: 0 | CW140: 0 | CX140: 0 | CY140: 0 | CZ140: 0 | DA140: 0 | DB140: 0 | DC140: 0 | DD140: 0 | DE140: 0 | DF140: 0 | DG140: 0 | DH140: 0 | DI140: 0 | DJ140: 0 | DK140: 0 | DL140: 18.71 | DM140: 23.22 | DN140: 0 | DO140: 3 | DP140: 46 | DQ140: 56 | DR140: 0 | DS140: 0 | DT140: 0 | DU140: 1 | DV140: 0 | DW140: 0 | DX140: 0 | DY140: 0 | DZ140: 106 | EA140: 1 | EB140: 4 | EC140: 61 | ED140: 53 | EE140: 3 | EF140: 0 | EG140: 0 | EH140: 1 | EI140: 0 | EJ140: 0 | EK140: 0 | EL140: 0 | EM140: 123 | EN140: 1 | EO140: 7 | EP140: 107 | EQ140: 109 | ER140: 3 | ES140: 0 | ET140: 0 | EU140: 2 | EV140: 0 | EW140: 0 | EX140: 0 | EY140: 0 | EZ140: 229
A141: Sat | B141: 1600 | C141: 0 | D141: 4 | E141: 34 | F141: 78 | G141: 6 | H141: 0 | I141: 0 | J141: 1 | K141: 0 | L141: 0 | M141: 0 | N141: 0 | O141: 1 | P141: 12 | Q141: 40 | R141: 56 | S141: 11 | T141: 3 | U141: 0 | V141: 0 | W141: 0 | X141: 0 | Y141: 0 | Z141: 0 | AA141: 0 | AB141: 0 | AC141: 0 | AD141: 0 | AE141: 0 | AF141: 0 | AG141: 0 | AH141: 0 | AI141: 0 | AJ141: 0 | AK141: 0 | AL141: 20.35 | AM141: 24.04 | AN141: Sat | AO141: 1600 | AP141: 0 | AQ141: 2 | AR141: 70 | AS141: 67 | AT141: 0 | AU141: 0 | AV141: 0 | AW141: 2 | AX141: 0 | AY141: 0 | AZ141: 0 | BA141: 0 | BB141: 1 | BC141: 23 | BD141: 64 | BE141: 46 | BF141: 7 | BG141: 0 | BH141: 0 | BI141: 0 | BJ141: 0 | BK141: 0 | BL141: 0 | BM141: 0 | BN141: 0 | BO141: 0 | BP141: 0 | BQ141: 0 | BR141: 0 | BS141: 0 | BT141: 0 | BU141: 0 | BV141: 0 | BW141: 0 | BX141: 0 | BY141: 18.82 | BZ141: 22.98 | CA141: Sat | CB141: 1600 | CC141: 0 | CD141: 6 | CE141: 104 | CF141: 145 | CG141: 6 | CH141: 0 | CI141: 0 | CJ141: 3 | CK141: 0 | CL141: 0 | CM141: 0 | CN141: 0 | CO141: 2 | CP141: 35 | CQ141: 104 | CR141: 102 | CS141: 18 | CT141: 3 | CU141: 0 | CV141: 0 | CW141: 0 | CX141: 0 | CY141: 0 | CZ141: 0 | DA141: 0 | DB141: 0 | DC141: 0 | DD141: 0 | DE141: 0 | DF141: 0 | DG141: 0 | DH141: 0 | DI141: 0 | DJ141: 0 | DK141: 0 | DL141: 19.54 | DM141: 23.6 | DN141: 0 | DO141: 4 | DP141: 34 | DQ141: 78 | DR141: 6 | DS141: 0 | DT141: 0 | DU141: 1 | DV141: 0 | DW141: 0 | DX141: 0 | DY141: 0 | DZ141: 123 | EA141: 0 | EB141: 2 | EC141: 70 | ED141: 67 | EE141: 0 | EF141: 0 | EG141: 0 | EH141: 2 | EI141: 0 | EJ141: 0 | EK141: 0 | EL141: 0 | EM141: 141 | EN141: 0 | EO141: 6 | EP141: 104 | EQ141: 145 | ER141: 6 | ES141: 0 | ET141: 0 | EU141: 3 | EV141: 0 | EW141: 0 | EX141: 0 | EY141: 0 | EZ141: 264
A142: Sat | B142: 1700 | C142: 0 | D142: 1 | E142: 46 | F142: 72 | G142: 0 | H142: 0 | I142: 0 | J142: 1 | K142: 0 | L142: 0 | M142: 0 | N142: 1 | O142: 2 | P142: 7 | Q142: 44 | R142: 58 | S142: 10 | T142: 0 | U142: 0 | V142: 0 | W142: 0 | X142: 0 | Y142: 0 | Z142: 0 | AA142: 0 | AB142: 0 | AC142: 0 | AD142: 0 | AE142: 0 | AF142: 0 | AG142: 0 | AH142: 0 | AI142: 0 | AJ142: 0 | AK142: 0 | AL142: 20.32 | AM142: 24 | AN142: Sat | AO142: 1700 | AP142: 0 | AQ142: 5 | AR142: 63 | AS142: 46 | AT142: 1 | AU142: 0 | AV142: 0 | AW142: 0 | AX142: 0 | AY142: 0 | AZ142: 0 | BA142: 1 | BB142: 8 | BC142: 18 | BD142: 42 | BE142: 40 | BF142: 8 | BG142: 0 | BH142: 0 | BI142: 0 | BJ142: 0 | BK142: 0 | BL142: 0 | BM142: 0 | BN142: 0 | BO142: 0 | BP142: 0 | BQ142: 0 | BR142: 0 | BS142: 0 | BT142: 0 | BU142: 0 | BV142: 0 | BW142: 0 | BX142: 0 | BY142: 18.52 | BZ142: 22.9 | CA142: Sat | CB142: 1700 | CC142: 0 | CD142: 6 | CE142: 109 | CF142: 118 | CG142: 1 | CH142: 0 | CI142: 0 | CJ142: 1 | CK142: 0 | CL142: 0 | CM142: 0 | CN142: 2 | CO142: 10 | CP142: 25 | CQ142: 86 | CR142: 98 | CS142: 18 | CT142: 0 | CU142: 0 | CV142: 0 | CW142: 0 | CX142: 0 | CY142: 0 | CZ142: 0 | DA142: 0 | DB142: 0 | DC142: 0 | DD142: 0 | DE142: 0 | DF142: 0 | DG142: 0 | DH142: 0 | DI142: 0 | DJ142: 0 | DK142: 0 | DL142: 19.44 | DM142: 23.64 | DN142: 0 | DO142: 1 | DP142: 46 | DQ142: 72 | DR142: 0 | DS142: 0 | DT142: 0 | DU142: 1 | DV142: 0 | DW142: 0 | DX142: 0 | DY142: 1 | DZ142: 121 | EA142: 0 | EB142: 5 | EC142: 63 | ED142: 46 | EE142: 1 | EF142: 0 | EG142: 0 | EH142: 0 | EI142: 0 | EJ142: 0 | EK142: 0 | EL142: 1 | EM142: 116 | EN142: 0 | EO142: 6 | EP142: 109 | EQ142: 118 | ER142: 1 | ES142: 0 | ET142: 0 | EU142: 1 | EV142: 0 | EW142: 0 | EX142: 0 | EY142: 2 | EZ142: 237
A143: Sat | B143: 1800 | C143: 0 | D143: 1 | E143: 27 | F143: 40 | G143: 4 | H143: 0 | I143: 0 | J143: 0 | K143: 0 | L143: 1 | M143: 0 | N143: 0 | O143: 0 | P143: 4 | Q143: 22 | R143: 34 | S143: 12 | T143: 1 | U143: 0 | V143: 0 | W143: 0 | X143: 0 | Y143: 0 | Z143: 0 | AA143: 0 | AB143: 0 | AC143: 0 | AD143: 0 | AE143: 0 | AF143: 0 | AG143: 0 | AH143: 0 | AI143: 0 | AJ143: 0 | AK143: 0 | AL143: 21.36 | AM143: 25.86 | AN143: Sat | AO143: 1800 | AP143: 0 | AQ143: 1 | AR143: 42 | AS143: 48 | AT143: 2 | AU143: 0 | AV143: 0 | AW143: 0 | AX143: 0 | AY143: 0 | AZ143: 0 | BA143: 0 | BB143: 3 | BC143: 17 | BD143: 47 | BE143: 20 | BF143: 6 | BG143: 0 | BH143: 0 | BI143: 0 | BJ143: 0 | BK143: 0 | BL143: 0 | BM143: 0 | BN143: 0 | BO143: 0 | BP143: 0 | BQ143: 0 | BR143: 0 | BS143: 0 | BT143: 0 | BU143: 0 | BV143: 0 | BW143: 0 | BX143: 0 | BY143: 18.04 | BZ143: 22.26 | CA143: Sat | CB143: 1800 | CC143: 0 | CD143: 2 | CE143: 69 | CF143: 88 | CG143: 6 | CH143: 0 | CI143: 0 | CJ143: 0 | CK143: 0 | CL143: 1 | CM143: 0 | CN143: 0 | CO143: 3 | CP143: 21 | CQ143: 69 | CR143: 54 | CS143: 18 | CT143: 1 | CU143: 0 | CV143: 0 | CW143: 0 | CX143: 0 | CY143: 0 | CZ143: 0 | DA143: 0 | DB143: 0 | DC143: 0 | DD143: 0 | DE143: 0 | DF143: 0 | DG143: 0 | DH143: 0 | DI143: 0 | DJ143: 0 | DK143: 0 | DL143: 19.5 | DM143: 24.09 | DN143: 0 | DO143: 1 | DP143: 27 | DQ143: 40 | DR143: 4 | DS143: 0 | DT143: 0 | DU143: 0 | DV143: 0 | DW143: 1 | DX143: 0 | DY143: 0 | DZ143: 73 | EA143: 0 | EB143: 1 | EC143: 42 | ED143: 48 | EE143: 2 | EF143: 0 | EG143: 0 | EH143: 0 | EI143: 0 | EJ143: 0 | EK143: 0 | EL143: 0 | EM143: 93 | EN143: 0 | EO143: 2 | EP143: 69 | EQ143: 88 | ER143: 6 | ES143: 0 | ET143: 0 | EU143: 0 | EV143: 0 | EW143: 1 | EX143: 0 | EY143: 0 | EZ143: 166
A144: Sat | B144: 1900 | C144: 0 | D144: 1 | E144: 35 | F144: 50 | G144: 3 | H144: 0 | I144: 0 | J144: 0 | K144: 0 | L144: 0 | M144: 0 | N144: 0 | O144: 0 | P144: 8 | Q144: 26 | R144: 38 | S144: 16 | T144: 1 | U144: 0 | V144: 0 | W144: 0 | X144: 0 | Y144: 0 | Z144: 0 | AA144: 0 | AB144: 0 | AC144: 0 | AD144: 0 | AE144: 0 | AF144: 0 | AG144: 0 | AH144: 0 | AI144: 0 | AJ144: 0 | AK144: 0 | AL144: 21.16 | AM144: 25.48 | AN144: Sat | AO144: 1900 | AP144: 0 | AQ144: 1 | AR144: 50 | AS144: 34 | AT144: 1 | AU144: 0 | AV144: 0 | AW144: 0 | AX144: 0 | AY144: 0 | AZ144: 0 | BA144: 0 | BB144: 1 | BC144: 12 | BD144: 46 | BE144: 22 | BF144: 5 | BG144: 0 | BH144: 0 | BI144: 0 | BJ144: 0 | BK144: 0 | BL144: 0 | BM144: 0 | BN144: 0 | BO144: 0 | BP144: 0 | BQ144: 0 | BR144: 0 | BS144: 0 | BT144: 0 | BU144: 0 | BV144: 0 | BW144: 0 | BX144: 0 | BY144: 18.66 | BZ144: 22.53 | CA144: Sat | CB144: 1900 | CC144: 0 | CD144: 2 | CE144: 85 | CF144: 84 | CG144: 4 | CH144: 0 | CI144: 0 | CJ144: 0 | CK144: 0 | CL144: 0 | CM144: 0 | CN144: 0 | CO144: 1 | CP144: 20 | CQ144: 72 | CR144: 60 | CS144: 21 | CT144: 1 | CU144: 0 | CV144: 0 | CW144: 0 | CX144: 0 | CY144: 0 | CZ144: 0 | DA144: 0 | DB144: 0 | DC144: 0 | DD144: 0 | DE144: 0 | DF144: 0 | DG144: 0 | DH144: 0 | DI144: 0 | DJ144: 0 | DK144: 0 | DL144: 19.93 | DM144: 24.55 | DN144: 0 | DO144: 1 | DP144: 35 | DQ144: 50 | DR144: 3 | DS144: 0 | DT144: 0 | DU144: 0 | DV144: 0 | DW144: 0 | DX144: 0 | DY144: 0 | DZ144: 89 | EA144: 0 | EB144: 1 | EC144: 50 | ED144: 34 | EE144: 1 | EF144: 0 | EG144: 0 | EH144: 0 | EI144: 0 | EJ144: 0 | EK144: 0 | EL144: 0 | EM144: 86 | EN144: 0 | EO144: 2 | EP144: 85 | EQ144: 84 | ER144: 4 | ES144: 0 | ET144: 0 | EU144: 0 | EV144: 0 | EW144: 0 | EX144: 0 | EY144: 0 | EZ144: 175
A145: Sat | B145: 2000 | C145: 0 | D145: 4 | E145: 31 | F145: 32 | G145: 2 | H145: 0 | I145: 0 | J145: 0 | K145: 0 | L145: 0 | M145: 0 | N145: 0 | O145: 3 | P145: 1 | Q145: 25 | R145: 30 | S145: 10 | T145: 0 | U145: 0 | V145: 0 | W145: 0 | X145: 0 | Y145: 0 | Z145: 0 | AA145: 0 | AB145: 0 | AC145: 0 | AD145: 0 | AE145: 0 | AF145: 0 | AG145: 0 | AH145: 0 | AI145: 0 | AJ145: 0 | AK145: 0 | AL145: 20.63 | AM145: 24.88 | AN145: Sat | AO145: 2000 | AP145: 0 | AQ145: 2 | AR145: 39 | AS145: 22 | AT145: 0 | AU145: 0 | AV145: 0 | AW145: 0 | AX145: 0 | AY145: 0 | AZ145: 0 | BA145: 0 | BB145: 0 | BC145: 12 | BD145: 23 | BE145: 21 | BF145: 7 | BG145: 0 | BH145: 0 | BI145: 0 | BJ145: 0 | BK145: 0 | BL145: 0 | BM145: 0 | BN145: 0 | BO145: 0 | BP145: 0 | BQ145: 0 | BR145: 0 | BS145: 0 | BT145: 0 | BU145: 0 | BV145: 0 | BW145: 0 | BX145: 0 | BY145: 19.07 | BZ145: 23 | CA145: Sat | CB145: 2000 | CC145: 0 | CD145: 6 | CE145: 70 | CF145: 54 | CG145: 2 | CH145: 0 | CI145: 0 | CJ145: 0 | CK145: 0 | CL145: 0 | CM145: 0 | CN145: 0 | CO145: 3 | CP145: 13 | CQ145: 48 | CR145: 51 | CS145: 17 | CT145: 0 | CU145: 0 | CV145: 0 | CW145: 0 | CX145: 0 | CY145: 0 | CZ145: 0 | DA145: 0 | DB145: 0 | DC145: 0 | DD145: 0 | DE145: 0 | DF145: 0 | DG145: 0 | DH145: 0 | DI145: 0 | DJ145: 0 | DK145: 0 | DL145: 19.88 | DM145: 24.72 | DN145: 0 | DO145: 4 | DP145: 31 | DQ145: 32 | DR145: 2 | DS145: 0 | DT145: 0 | DU145: 0 | DV145: 0 | DW145: 0 | DX145: 0 | DY145: 0 | DZ145: 69 | EA145: 0 | EB145: 2 | EC145: 39 | ED145: 22 | EE145: 0 | EF145: 0 | EG145: 0 | EH145: 0 | EI145: 0 | EJ145: 0 | EK145: 0 | EL145: 0 | EM145: 63 | EN145: 0 | EO145: 6 | EP145: 70 | EQ145: 54 | ER145: 2 | ES145: 0 | ET145: 0 | EU145: 0 | EV145: 0 | EW145: 0 | EX145: 0 | EY145: 0 | EZ145: 132
A146: Sat | B146: 2100 | C146: 0 | D146: 0 | E146: 11 | F146: 28 | G146: 0 | H146: 0 | I146: 0 | J146: 0 | K146: 0 | L146: 0 | M146: 0 | N146: 0 | O146: 1 | P146: 1 | Q146: 11 | R146: 17 | S146: 7 | T146: 2 | U146: 0 | V146: 0 | W146: 0 | X146: 0 | Y146: 0 | Z146: 0 | AA146: 0 | AB146: 0 | AC146: 0 | AD146: 0 | AE146: 0 | AF146: 0 | AG146: 0 | AH146: 0 | AI146: 0 | AJ146: 0 | AK146: 0 | AL146: 21.72 | AM146: 26.18 | AN146: Sat | AO146: 2100 | AP146: 0 | AQ146: 1 | AR146: 31 | AS146: 22 | AT146: 0 | AU146: 0 | AV146: 0 | AW146: 0 | AX146: 0 | AY146: 0 | AZ146: 0 | BA146: 0 | BB146: 0 | BC146: 3 | BD146: 20 | BE146: 27 | BF146: 3 | BG146: 1 | BH146: 0 | BI146: 0 | BJ146: 0 | BK146: 0 | BL146: 0 | BM146: 0 | BN146: 0 | BO146: 0 | BP146: 0 | BQ146: 0 | BR146: 0 | BS146: 0 | BT146: 0 | BU146: 0 | BV146: 0 | BW146: 0 | BX146: 0 | BY146: 20.36 | BZ146: 23.38 | CA146: Sat | CB146: 2100 | CC146: 0 | CD146: 1 | CE146: 42 | CF146: 50 | CG146: 0 | CH146: 0 | CI146: 0 | CJ146: 0 | CK146: 0 | CL146: 0 | CM146: 0 | CN146: 0 | CO146: 1 | CP146: 4 | CQ146: 31 | CR146: 44 | CS146: 10 | CT146: 3 | CU146: 0 | CV146: 0 | CW146: 0 | CX146: 0 | CY146: 0 | CZ146: 0 | DA146: 0 | DB146: 0 | DC146: 0 | DD146: 0 | DE146: 0 | DF146: 0 | DG146: 0 | DH146: 0 | DI146: 0 | DJ146: 0 | DK146: 0 | DL146: 20.93 | DM146: 24.68 | DN146: 0 | DO146: 0 | DP146: 11 | DQ146: 28 | DR146: 0 | DS146: 0 | DT146: 0 | DU146: 0 | DV146: 0 | DW146: 0 | DX146: 0 | DY146: 0 | DZ146: 39 | EA146: 0 | EB146: 1 | EC146: 31 | ED146: 22 | EE146: 0 | EF146: 0 | EG146: 0 | EH146: 0 | EI146: 0 | EJ146: 0 | EK146: 0 | EL146: 0 | EM146: 54 | EN146: 0 | EO146: 1 | EP146: 42 | EQ146: 50 | ER146: 0 | ES146: 0 | ET146: 0 | EU146: 0 | EV146: 0 | EW146: 0 | EX146: 0 | EY146: 0 | EZ146: 93
A147: Sat | B147: 2200 | C147: 0 | D147: 0 | E147: 10 | F147: 9 | G147: 0 | H147: 0 | I147: 0 | J147: 0 | K147: 0 | L147: 0 | M147: 0 | N147: 0 | O147: 0 | P147: 0 | Q147: 5 | R147: 9 | S147: 5 | T147: 0 | U147: 0 | V147: 0 | W147: 0 | X147: 0 | Y147: 0 | Z147: 0 | AA147: 0 | AB147: 0 | AC147: 0 | AD147: 0 | AE147: 0 | AF147: 0 | AG147: 0 | AH147: 0 | AI147: 0 | AJ147: 0 | AK147: 0 | AL147: 21.97 | AM147: 26.09 | AN147: Sat | AO147: 2200 | AP147: 0 | AQ147: 2 | AR147: 17 | AS147: 7 | AT147: 0 | AU147: 0 | AV147: 0 | AW147: 0 | AX147: 0 | AY147: 0 | AZ147: 0 | BA147: 0 | BB147: 0 | BC147: 1 | BD147: 6 | BE147: 11 | BF147: 7 | BG147: 1 | BH147: 0 | BI147: 0 | BJ147: 0 | BK147: 0 | BL147: 0 | BM147: 0 | BN147: 0 | BO147: 0 | BP147: 0 | BQ147: 0 | BR147: 0 | BS147: 0 | BT147: 0 | BU147: 0 | BV147: 0 | BW147: 0 | BX147: 0 | BY147: 22.45 | BZ147: 26.38 | CA147: Sat | CB147: 2200 | CC147: 0 | CD147: 2 | CE147: 27 | CF147: 16 | CG147: 0 | CH147: 0 | CI147: 0 | CJ147: 0 | CK147: 0 | CL147: 0 | CM147: 0 | CN147: 0 | CO147: 0 | CP147: 1 | CQ147: 11 | CR147: 20 | CS147: 12 | CT147: 1 | CU147: 0 | CV147: 0 | CW147: 0 | CX147: 0 | CY147: 0 | CZ147: 0 | DA147: 0 | DB147: 0 | DC147: 0 | DD147: 0 | DE147: 0 | DF147: 0 | DG147: 0 | DH147: 0 | DI147: 0 | DJ147: 0 | DK147: 0 | DL147: 22.25 | DM147: 26.43 | DN147: 0 | DO147: 0 | DP147: 10 | DQ147: 9 | DR147: 0 | DS147: 0 | DT147: 0 | DU147: 0 | DV147: 0 | DW147: 0 | DX147: 0 | DY147: 0 | DZ147: 19 | EA147: 0 | EB147: 2 | EC147: 17 | ED147: 7 | EE147: 0 | EF147: 0 | EG147: 0 | EH147: 0 | EI147: 0 | EJ147: 0 | EK147: 0 | EL147: 0 | EM147: 26 | EN147: 0 | EO147: 2 | EP147: 27 | EQ147: 16 | ER147: 0 | ES147: 0 | ET147: 0 | EU147: 0 | EV147: 0 | EW147: 0 | EX147: 0 | EY147: 0 | EZ147: 45
A148: Sat | B148: 2300 | C148: 0 | D148: 0 | E148: 2 | F148: 4 | G148: 0 | H148: 0 | I148: 0 | J148: 0 | K148: 0 | L148: 0 | M148: 0 | N148: 0 | O148: 0 | P148: 0 | Q148: 2 | R148: 1 | S148: 3 | T148: 0 | U148: 0 | V148: 0 | W148: 0 | X148: 0 | Y148: 0 | Z148: 0 | AA148: 0 | AB148: 0 | AC148: 0 | AD148: 0 | AE148: 0 | AF148: 0 | AG148: 0 | AH148: 0 | AI148: 0 | AJ148: 0 | AK148: 0 | AL148: 23.11 | AM148: - | AN148: Sat | AO148: 2300 | AP148: 0 | AQ148: 0 | AR148: 6 | AS148: 10 | AT148: 0 | AU148: 0 | AV148: 0 | AW148: 0 | AX148: 0 | AY148: 0 | AZ148: 0 | BA148: 0 | BB148: 0 | BC148: 0 | BD148: 4 | BE148: 11 | BF148: 1 | BG148: 0 | BH148: 0 | BI148: 0 | BJ148: 0 | BK148: 0 | BL148: 0 | BM148: 0 | BN148: 0 | BO148: 0 | BP148: 0 | BQ148: 0 | BR148: 0 | BS148: 0 | BT148: 0 | BU148: 0 | BV148: 0 | BW148: 0 | BX148: 0 | BY148: 21.59 | BZ148: 24.19 | CA148: Sat | CB148: 2300 | CC148: 0 | CD148: 0 | CE148: 8 | CF148: 14 | CG148: 0 | CH148: 0 | CI148: 0 | CJ148: 0 | CK148: 0 | CL148: 0 | CM148: 0 | CN148: 0 | CO148: 0 | CP148: 0 | CQ148: 6 | CR148: 12 | CS148: 4 | CT148: 0 | CU148: 0 | CV148: 0 | CW148: 0 | CX148: 0 | CY148: 0 | CZ148: 0 | DA148: 0 | DB148: 0 | DC148: 0 | DD148: 0 | DE148: 0 | DF148: 0 | DG148: 0 | DH148: 0 | DI148: 0 | DJ148: 0 | DK148: 0 | DL148: 22 | DM148: 26.5 | DN148: 0 | DO148: 0 | DP148: 2 | DQ148: 4 | DR148: 0 | DS148: 0 | DT148: 0 | DU148: 0 | DV148: 0 | DW148: 0 | DX148: 0 | DY148: 0 | DZ148: 6 | EA148: 0 | EB148: 0 | EC148: 6 | ED148: 10 | EE148: 0 | EF148: 0 | EG148: 0 | EH148: 0 | EI148: 0 | EJ148: 0 | EK148: 0 | EL148: 0 | EM148: 16 | EN148: 0 | EO148: 0 | EP148: 8 | EQ148: 14 | ER148: 0 | ES148: 0 | ET148: 0 | EU148: 0 | EV148: 0 | EW148: 0 | EX148: 0 | EY148: 0 | EZ148: 22
A149: Sun | B149: 0 | C149: 0 | D149: 0 | E149: 4 | F149: 4 | G149: 0 | H149: 0 | I149: 0 | J149: 0 | K149: 0 | L149: 0 | M149: 0 | N149: 0 | O149: 0 | P149: 0 | Q149: 2 | R149: 3 | S149: 3 | T149: 0 | U149: 0 | V149: 0 | W149: 0 | X149: 0 | Y149: 0 | Z149: 0 | AA149: 0 | AB149: 0 | AC149: 0 | AD149: 0 | AE149: 0 | AF149: 0 | AG149: 0 | AH149: 0 | AI149: 0 | AJ149: 0 | AK149: 0 | AL149: 23.17 | AM149: - | AN149: Sun | AO149: 0 | AP149: 0 | AQ149: 0 | AR149: 5 | AS149: 4 | AT149: 0 | AU149: 0 | AV149: 0 | AW149: 0 | AX149: 0 | AY149: 0 | AZ149: 0 | BA149: 0 | BB149: 0 | BC149: 0 | BD149: 1 | BE149: 6 | BF149: 2 | BG149: 0 | BH149: 0 | BI149: 0 | BJ149: 0 | BK149: 0 | BL149: 0 | BM149: 0 | BN149: 0 | BO149: 0 | BP149: 0 | BQ149: 0 | BR149: 0 | BS149: 0 | BT149: 0 | BU149: 0 | BV149: 0 | BW149: 0 | BX149: 0 | BY149: 23.04 | BZ149: - | CA149: Sun | CB149: 0 | CC149: 0 | CD149: 0 | CE149: 9 | CF149: 8 | CG149: 0 | CH149: 0 | CI149: 0 | CJ149: 0 | CK149: 0 | CL149: 0 | CM149: 0 | CN149: 0 | CO149: 0 | CP149: 0 | CQ149: 3 | CR149: 9 | CS149: 5 | CT149: 0 | CU149: 0 | CV149: 0 | CW149: 0 | CX149: 0 | CY149: 0 | CZ149: 0 | DA149: 0 | DB149: 0 | DC149: 0 | DD149: 0 | DE149: 0 | DF149: 0 | DG149: 0 | DH149: 0 | DI149: 0 | DJ149: 0 | DK149: 0 | DL149: 23.1 | DM149: 25.76 | DN149: 0 | DO149: 0 | DP149: 4 | DQ149: 4 | DR149: 0 | DS149: 0 | DT149: 0 | DU149: 0 | DV149: 0 | DW149: 0 | DX149: 0 | DY149: 0 | DZ149: 8 | EA149: 0 | EB149: 0 | EC149: 5 | ED149: 4 | EE149: 0 | EF149: 0 | EG149: 0 | EH149: 0 | EI149: 0 | EJ149: 0 | EK149: 0 | EL149: 0 | EM149: 9 | EN149: 0 | EO149: 0 | EP149: 9 | EQ149: 8 | ER149: 0 | ES149: 0 | ET149: 0 | EU149: 0 | EV149: 0 | EW149: 0 | EX149: 0 | EY149: 0 | EZ149: 17
A150: Sun | B150: 100 | C150: 0 | D150: 1 | E150: 4 | F150: 2 | G150: 0 | H150: 0 | I150: 0 | J150: 0 | K150: 0 | L150: 0 | M150: 0 | N150: 0 | O150: 0 | P150: 0 | Q150: 1 | R150: 5 | S150: 1 | T150: 0 | U150: 0 | V150: 0 | W150: 0 | X150: 0 | Y150: 0 | Z150: 0 | AA150: 0 | AB150: 0 | AC150: 0 | AD150: 0 | AE150: 0 | AF150: 0 | AG150: 0 | AH150: 0 | AI150: 0 | AJ150: 0 | AK150: 0 | AL150: 22.28 | AM150: - | AN150: Sun | AO150: 100 | AP150: 0 | AQ150: 0 | AR150: 3 | AS150: 3 | AT150: 0 | AU150: 0 | AV150: 0 | AW150: 0 | AX150: 0 | AY150: 0 | AZ150: 0 | BA150: 0 | BB150: 0 | BC150: 0 | BD150: 0 | BE150: 4 | BF150: 2 | BG150: 0 | BH150: 0 | BI150: 0 | BJ150: 0 | BK150: 0 | BL150: 0 | BM150: 0 | BN150: 0 | BO150: 0 | BP150: 0 | BQ150: 0 | BR150: 0 | BS150: 0 | BT150: 0 | BU150: 0 | BV150: 0 | BW150: 0 | BX150: 0 | BY150: 24.15 | BZ150: - | CA150: Sun | CB150: 100 | CC150: 0 | CD150: 1 | CE150: 7 | CF150: 5 | CG150: 0 | CH150: 0 | CI150: 0 | CJ150: 0 | CK150: 0 | CL150: 0 | CM150: 0 | CN150: 0 | CO150: 0 | CP150: 0 | CQ150: 1 | CR150: 9 | CS150: 3 | CT150: 0 | CU150: 0 | CV150: 0 | CW150: 0 | CX150: 0 | CY150: 0 | CZ150: 0 | DA150: 0 | DB150: 0 | DC150: 0 | DD150: 0 | DE150: 0 | DF150: 0 | DG150: 0 | DH150: 0 | DI150: 0 | DJ150: 0 | DK150: 0 | DL150: 23.15 | DM150: 25.96 | DN150: 0 | DO150: 1 | DP150: 4 | DQ150: 2 | DR150: 0 | DS150: 0 | DT150: 0 | DU150: 0 | DV150: 0 | DW150: 0 | DX150: 0 | DY150: 0 | DZ150: 7 | EA150: 0 | EB150: 0 | EC150: 3 | ED150: 3 | EE150: 0 | EF150: 0 | EG150: 0 | EH150: 0 | EI150: 0 | EJ150: 0 | EK150: 0 | EL150: 0 | EM150: 6 | EN150: 0 | EO150: 1 | EP150: 7 | EQ150: 5 | ER150: 0 | ES150: 0 | ET150: 0 | EU150: 0 | EV150: 0 | EW150: 0 | EX150: 0 | EY150: 0 | EZ150: 13
A151: Sun | B151: 200 | C151: 0 | D151: 0 | E151: 0 | F151: 0 | G151: 0 | H151: 0 | I151: 0 | J151: 0 | K151: 0 | L151: 0 | M151: 0 | N151: 0 | O151: 0 | P151: 0 | Q151: 0 | R151: 0 | S151: 0 | T151: 0 | U151: 0 | V151: 0 | W151: 0 | X151: 0 | Y151: 0 | Z151: 0 | AA151: 0 | AB151: 0 | AC151: 0 | AD151: 0 | AE151: 0 | AF151: 0 | AG151: 0 | AH151: 0 | AI151: 0 | AJ151: 0 | AK151: 0 | AL151: - | AM151: - | AN151: Sun | AO151: 200 | AP151: 0 | AQ151: 0 | AR151: 1 | AS151: 1 | AT151: 0 | AU151: 0 | AV151: 0 | AW151: 0 | AX151: 0 | AY151: 0 | AZ151: 0 | BA151: 0 | BB151: 0 | BC151: 0 | BD151: 0 | BE151: 1 | BF151: 0 | BG151: 1 | BH151: 0 | BI151: 0 | BJ151: 0 | BK151: 0 | BL151: 0 | BM151: 0 | BN151: 0 | BO151: 0 | BP151: 0 | BQ151: 0 | BR151: 0 | BS151: 0 | BT151: 0 | BU151: 0 | BV151: 0 | BW151: 0 | BX151: 0 | BY151: 26.37 | BZ151: - | CA151: Sun | CB151: 200 | CC151: 0 | CD151: 0 | CE151: 1 | CF151: 1 | CG151: 0 | CH151: 0 | CI151: 0 | CJ151: 0 | CK151: 0 | CL151: 0 | CM151: 0 | CN151: 0 | CO151: 0 | CP151: 0 | CQ151: 0 | CR151: 1 | CS151: 0 | CT151: 1 | CU151: 0 | CV151: 0 | CW151: 0 | CX151: 0 | CY151: 0 | CZ151: 0 | DA151: 0 | DB151: 0 | DC151: 0 | DD151: 0 | DE151: 0 | DF151: 0 | DG151: 0 | DH151: 0 | DI151: 0 | DJ151: 0 | DK151: 0 | DL151: 26.37 | DM151: - | DN151: 0 | DO151: 0 | DP151: 0 | DQ151: 0 | DR151: 0 | DS151: 0 | DT151: 0 | DU151: 0 | DV151: 0 | DW151: 0 | DX151: 0 | DY151: 0 | DZ151: 0 | EA151: 0 | EB151: 0 | EC151: 1 | ED151: 1 | EE151: 0 | EF151: 0 | EG151: 0 | EH151: 0 | EI151: 0 | EJ151: 0 | EK151: 0 | EL151: 0 | EM151: 2 | EN151: 0 | EO151: 0 | EP151: 1 | EQ151: 1 | ER151: 0 | ES151: 0 | ET151: 0 | EU151: 0 | EV151: 0 | EW151: 0 | EX151: 0 | EY151: 0 | EZ151: 2
A152: Sun | B152: 300 | C152: 0 | D152: 0 | E152: 0 | F152: 0 | G152: 0 | H152: 0 | I152: 0 | J152: 0 | K152: 0 | L152: 0 | M152: 0 | N152: 0 | O152: 0 | P152: 0 | Q152: 0 | R152: 0 | S152: 0 | T152: 0 | U152: 0 | V152: 0 | W152: 0 | X152: 0 | Y152: 0 | Z152: 0 | AA152: 0 | AB152: 0 | AC152: 0 | AD152: 0 | AE152: 0 | AF152: 0 | AG152: 0 | AH152: 0 | AI152: 0 | AJ152: 0 | AK152: 0 | AL152: - | AM152: - | AN152: Sun | AO152: 300 | AP152: 0 | AQ152: 0 | AR152: 0 | AS152: 0 | AT152: 0 | AU152: 0 | AV152: 0 | AW152: 0 | AX152: 0 | AY152: 0 | AZ152: 0 | BA152: 0 | BB152: 0 | BC152: 0 | BD152: 0 | BE152: 0 | BF152: 0 | BG152: 0 | BH152: 0 | BI152: 0 | BJ152: 0 | BK152: 0 | BL152: 0 | BM152: 0 | BN152: 0 | BO152: 0 | BP152: 0 | BQ152: 0 | BR152: 0 | BS152: 0 | BT152: 0 | BU152: 0 | BV152: 0 | BW152: 0 | BX152: 0 | BY152: - | BZ152: - | CA152: Sun | CB152: 300 | CC152: 0 | CD152: 0 | CE152: 0 | CF152: 0 | CG152: 0 | CH152: 0 | CI152: 0 | CJ152: 0 | CK152: 0 | CL152: 0 | CM152: 0 | CN152: 0 | CO152: 0 | CP152: 0 | CQ152: 0 | CR152: 0 | CS152: 0 | CT152: 0 | CU152: 0 | CV152: 0 | CW152: 0 | CX152: 0 | CY152: 0 | CZ152: 0 | DA152: 0 | DB152: 0 | DC152: 0 | DD152: 0 | DE152: 0 | DF152: 0 | DG152: 0 | DH152: 0 | DI152: 0 | DJ152: 0 | DK152: 0 | DL152: - | DM152: - | DN152: 0 | DO152: 0 | DP152: 0 | DQ152: 0 | DR152: 0 | DS152: 0 | DT152: 0 | DU152: 0 | DV152: 0 | DW152: 0 | DX152: 0 | DY152: 0 | DZ152: 0 | EA152: 0 | EB152: 0 | EC152: 0 | ED152: 0 | EE152: 0 | EF152: 0 | EG152: 0 | EH152: 0 | EI152: 0 | EJ152: 0 | EK152: 0 | EL152: 0 | EM152: 0 | EN152: 0 | EO152: 0 | EP152: 0 | EQ152: 0 | ER152: 0 | ES152: 0 | ET152: 0 | EU152: 0 | EV152: 0 | EW152: 0 | EX152: 0 | EY152: 0 | EZ152: 0
A153: Sun | B153: 400 | C153: 0 | D153: 0 | E153: 0 | F153: 1 | G153: 0 | H153: 0 | I153: 0 | J153: 0 | K153: 0 | L153: 0 | M153: 0 | N153: 0 | O153: 0 | P153: 0 | Q153: 0 | R153: 1 | S153: 0 | T153: 0 | U153: 0 | V153: 0 | W153: 0 | X153: 0 | Y153: 0 | Z153: 0 | AA153: 0 | AB153: 0 | AC153: 0 | AD153: 0 | AE153: 0 | AF153: 0 | AG153: 0 | AH153: 0 | AI153: 0 | AJ153: 0 | AK153: 0 | AL153: 23.37 | AM153: - | AN153: Sun | AO153: 400 | AP153: 0 | AQ153: 0 | AR153: 0 | AS153: 1 | AT153: 0 | AU153: 0 | AV153: 0 | AW153: 0 | AX153: 0 | AY153: 0 | AZ153: 0 | BA153: 0 | BB153: 0 | BC153: 0 | BD153: 1 | BE153: 0 | BF153: 0 | BG153: 0 | BH153: 0 | BI153: 0 | BJ153: 0 | BK153: 0 | BL153: 0 | BM153: 0 | BN153: 0 | BO153: 0 | BP153: 0 | BQ153: 0 | BR153: 0 | BS153: 0 | BT153: 0 | BU153: 0 | BV153: 0 | BW153: 0 | BX153: 0 | BY153: 15.94 | BZ153: - | CA153: Sun | CB153: 400 | CC153: 0 | CD153: 0 | CE153: 0 | CF153: 2 | CG153: 0 | CH153: 0 | CI153: 0 | CJ153: 0 | CK153: 0 | CL153: 0 | CM153: 0 | CN153: 0 | CO153: 0 | CP153: 0 | CQ153: 1 | CR153: 1 | CS153: 0 | CT153: 0 | CU153: 0 | CV153: 0 | CW153: 0 | CX153: 0 | CY153: 0 | CZ153: 0 | DA153: 0 | DB153: 0 | DC153: 0 | DD153: 0 | DE153: 0 | DF153: 0 | DG153: 0 | DH153: 0 | DI153: 0 | DJ153: 0 | DK153: 0 | DL153: 19.66 | DM153: - | DN153: 0 | DO153: 0 | DP153: 0 | DQ153: 1 | DR153: 0 | DS153: 0 | DT153: 0 | DU153: 0 | DV153: 0 | DW153: 0 | DX153: 0 | DY153: 0 | DZ153: 1 | EA153: 0 | EB153: 0 | EC153: 0 | ED153: 1 | EE153: 0 | EF153: 0 | EG153: 0 | EH153: 0 | EI153: 0 | EJ153: 0 | EK153: 0 | EL153: 0 | EM153: 1 | EN153: 0 | EO153: 0 | EP153: 0 | EQ153: 2 | ER153: 0 | ES153: 0 | ET153: 0 | EU153: 0 | EV153: 0 | EW153: 0 | EX153: 0 | EY153: 0 | EZ153: 2
A154: Sun | B154: 500 | C154: 0 | D154: 0 | E154: 0 | F154: 2 | G154: 0 | H154: 0 | I154: 0 | J154: 0 | K154: 0 | L154: 0 | M154: 0 | N154: 0 | O154: 0 | P154: 0 | Q154: 0 | R154: 0 | S154: 2 | T154: 0 | U154: 0 | V154: 0 | W154: 0 | X154: 0 | Y154: 0 | Z154: 0 | AA154: 0 | AB154: 0 | AC154: 0 | AD154: 0 | AE154: 0 | AF154: 0 | AG154: 0 | AH154: 0 | AI154: 0 | AJ154: 0 | AK154: 0 | AL154: 28.03 | AM154: - | AN154: Sun | AO154: 500 | AP154: 0 | AQ154: 0 | AR154: 0 | AS154: 1 | AT154: 0 | AU154: 0 | AV154: 0 | AW154: 0 | AX154: 0 | AY154: 0 | AZ154: 0 | BA154: 0 | BB154: 0 | BC154: 0 | BD154: 1 | BE154: 0 | BF154: 0 | BG154: 0 | BH154: 0 | BI154: 0 | BJ154: 0 | BK154: 0 | BL154: 0 | BM154: 0 | BN154: 0 | BO154: 0 | BP154: 0 | BQ154: 0 | BR154: 0 | BS154: 0 | BT154: 0 | BU154: 0 | BV154: 0 | BW154: 0 | BX154: 0 | BY154: 17.78 | BZ154: - | CA154: Sun | CB154: 500 | CC154: 0 | CD154: 0 | CE154: 0 | CF154: 3 | CG154: 0 | CH154: 0 | CI154: 0 | CJ154: 0 | CK154: 0 | CL154: 0 | CM154: 0 | CN154: 0 | CO154: 0 | CP154: 0 | CQ154: 1 | CR154: 0 | CS154: 2 | CT154: 0 | CU154: 0 | CV154: 0 | CW154: 0 | CX154: 0 | CY154: 0 | CZ154: 0 | DA154: 0 | DB154: 0 | DC154: 0 | DD154: 0 | DE154: 0 | DF154: 0 | DG154: 0 | DH154: 0 | DI154: 0 | DJ154: 0 | DK154: 0 | DL154: 24.61 | DM154: - | DN154: 0 | DO154: 0 | DP154: 0 | DQ154: 2 | DR154: 0 | DS154: 0 | DT154: 0 | DU154: 0 | DV154: 0 | DW154: 0 | DX154: 0 | DY154: 0 | DZ154: 2 | EA154: 0 | EB154: 0 | EC154: 0 | ED154: 1 | EE154: 0 | EF154: 0 | EG154: 0 | EH154: 0 | EI154: 0 | EJ154: 0 | EK154: 0 | EL154: 0 | EM154: 1 | EN154: 0 | EO154: 0 | EP154: 0 | EQ154: 3 | ER154: 0 | ES154: 0 | ET154: 0 | EU154: 0 | EV154: 0 | EW154: 0 | EX154: 0 | EY154: 0 | EZ154: 3
A155: Sun | B155: 600 | C155: 0 | D155: 0 | E155: 5 | F155: 3 | G155: 0 | H155: 0 | I155: 0 | J155: 0 | K155: 0 | L155: 0 | M155: 0 | N155: 0 | O155: 0 | P155: 0 | Q155: 3 | R155: 4 | S155: 1 | T155: 0 | U155: 0 | V155: 0 | W155: 0 | X155: 0 | Y155: 0 | Z155: 0 | AA155: 0 | AB155: 0 | AC155: 0 | AD155: 0 | AE155: 0 | AF155: 0 | AG155: 0 | AH155: 0 | AI155: 0 | AJ155: 0 | AK155: 0 | AL155: 21.78 | AM155: - | AN155: Sun | AO155: 600 | AP155: 0 | AQ155: 0 | AR155: 2 | AS155: 4 | AT155: 0 | AU155: 0 | AV155: 0 | AW155: 0 | AX155: 0 | AY155: 0 | AZ155: 0 | BA155: 0 | BB155: 0 | BC155: 0 | BD155: 2 | BE155: 3 | BF155: 1 | BG155: 0 | BH155: 0 | BI155: 0 | BJ155: 0 | BK155: 0 | BL155: 0 | BM155: 0 | BN155: 0 | BO155: 0 | BP155: 0 | BQ155: 0 | BR155: 0 | BS155: 0 | BT155: 0 | BU155: 0 | BV155: 0 | BW155: 0 | BX155: 0 | BY155: 20.38 | BZ155: - | CA155: Sun | CB155: 600 | CC155: 0 | CD155: 0 | CE155: 7 | CF155: 7 | CG155: 0 | CH155: 0 | CI155: 0 | CJ155: 0 | CK155: 0 | CL155: 0 | CM155: 0 | CN155: 0 | CO155: 0 | CP155: 0 | CQ155: 5 | CR155: 7 | CS155: 2 | CT155: 0 | CU155: 0 | CV155: 0 | CW155: 0 | CX155: 0 | CY155: 0 | CZ155: 0 | DA155: 0 | DB155: 0 | DC155: 0 | DD155: 0 | DE155: 0 | DF155: 0 | DG155: 0 | DH155: 0 | DI155: 0 | DJ155: 0 | DK155: 0 | DL155: 21.18 | DM155: 23.79 | DN155: 0 | DO155: 0 | DP155: 5 | DQ155: 3 | DR155: 0 | DS155: 0 | DT155: 0 | DU155: 0 | DV155: 0 | DW155: 0 | DX155: 0 | DY155: 0 | DZ155: 8 | EA155: 0 | EB155: 0 | EC155: 2 | ED155: 4 | EE155: 0 | EF155: 0 | EG155: 0 | EH155: 0 | EI155: 0 | EJ155: 0 | EK155: 0 | EL155: 0 | EM155: 6 | EN155: 0 | EO155: 0 | EP155: 7 | EQ155: 7 | ER155: 0 | ES155: 0 | ET155: 0 | EU155: 0 | EV155: 0 | EW155: 0 | EX155: 0 | EY155: 0 | EZ155: 14
A156: Sun | B156: 700 | C156: 0 | D156: 0 | E156: 11 | F156: 20 | G156: 0 | H156: 0 | I156: 0 | J156: 0 | K156: 0 | L156: 0 | M156: 0 | N156: 0 | O156: 0 | P156: 0 | Q156: 8 | R156: 13 | S156: 9 | T156: 1 | U156: 0 | V156: 0 | W156: 0 | X156: 0 | Y156: 0 | Z156: 0 | AA156: 0 | AB156: 0 | AC156: 0 | AD156: 0 | AE156: 0 | AF156: 0 | AG156: 0 | AH156: 0 | AI156: 0 | AJ156: 0 | AK156: 0 | AL156: 23.57 | AM156: 27.59 | AN156: Sun | AO156: 700 | AP156: 0 | AQ156: 0 | AR156: 10 | AS156: 16 | AT156: 0 | AU156: 0 | AV156: 0 | AW156: 0 | AX156: 0 | AY156: 0 | AZ156: 0 | BA156: 0 | BB156: 0 | BC156: 2 | BD156: 6 | BE156: 14 | BF156: 4 | BG156: 0 | BH156: 0 | BI156: 0 | BJ156: 0 | BK156: 0 | BL156: 0 | BM156: 0 | BN156: 0 | BO156: 0 | BP156: 0 | BQ156: 0 | BR156: 0 | BS156: 0 | BT156: 0 | BU156: 0 | BV156: 0 | BW156: 0 | BX156: 0 | BY156: 21.62 | BZ156: 24.72 | CA156: Sun | CB156: 700 | CC156: 0 | CD156: 0 | CE156: 21 | CF156: 36 | CG156: 0 | CH156: 0 | CI156: 0 | CJ156: 0 | CK156: 0 | CL156: 0 | CM156: 0 | CN156: 0 | CO156: 0 | CP156: 2 | CQ156: 14 | CR156: 27 | CS156: 13 | CT156: 1 | CU156: 0 | CV156: 0 | CW156: 0 | CX156: 0 | CY156: 0 | CZ156: 0 | DA156: 0 | DB156: 0 | DC156: 0 | DD156: 0 | DE156: 0 | DF156: 0 | DG156: 0 | DH156: 0 | DI156: 0 | DJ156: 0 | DK156: 0 | DL156: 22.68 | DM156: 26.96 | DN156: 0 | DO156: 0 | DP156: 11 | DQ156: 20 | DR156: 0 | DS156: 0 | DT156: 0 | DU156: 0 | DV156: 0 | DW156: 0 | DX156: 0 | DY156: 0 | DZ156: 31 | EA156: 0 | EB156: 0 | EC156: 10 | ED156: 16 | EE156: 0 | EF156: 0 | EG156: 0 | EH156: 0 | EI156: 0 | EJ156: 0 | EK156: 0 | EL156: 0 | EM156: 26 | EN156: 0 | EO156: 0 | EP156: 21 | EQ156: 36 | ER156: 0 | ES156: 0 | ET156: 0 | EU156: 0 | EV156: 0 | EW156: 0 | EX156: 0 | EY156: 0 | EZ156: 57
A157: Sun | B157: 800 | C157: 0 | D157: 3 | E157: 14 | F157: 50 | G157: 1 | H157: 0 | I157: 0 | J157: 0 | K157: 0 | L157: 0 | M157: 0 | N157: 0 | O157: 0 | P157: 1 | Q157: 12 | R157: 41 | S157: 12 | T157: 1 | U157: 1 | V157: 0 | W157: 0 | X157: 0 | Y157: 0 | Z157: 0 | AA157: 0 | AB157: 0 | AC157: 0 | AD157: 0 | AE157: 0 | AF157: 0 | AG157: 0 | AH157: 0 | AI157: 0 | AJ157: 0 | AK157: 0 | AL157: 22.97 | AM157: 25.36 | AN157: Sun | AO157: 800 | AP157: 0 | AQ157: 0 | AR157: 10 | AS157: 20 | AT157: 0 | AU157: 0 | AV157: 0 | AW157: 0 | AX157: 0 | AY157: 0 | AZ157: 0 | BA157: 0 | BB157: 0 | BC157: 3 | BD157: 9 | BE157: 17 | BF157: 1 | BG157: 0 | BH157: 0 | BI157: 0 | BJ157: 0 | BK157: 0 | BL157: 0 | BM157: 0 | BN157: 0 | BO157: 0 | BP157: 0 | BQ157: 0 | BR157: 0 | BS157: 0 | BT157: 0 | BU157: 0 | BV157: 0 | BW157: 0 | BX157: 0 | BY157: 20.41 | BZ157: 23.33 | CA157: Sun | CB157: 800 | CC157: 0 | CD157: 3 | CE157: 24 | CF157: 70 | CG157: 1 | CH157: 0 | CI157: 0 | CJ157: 0 | CK157: 0 | CL157: 0 | CM157: 0 | CN157: 0 | CO157: 0 | CP157: 4 | CQ157: 21 | CR157: 58 | CS157: 13 | CT157: 1 | CU157: 1 | CV157: 0 | CW157: 0 | CX157: 0 | CY157: 0 | CZ157: 0 | DA157: 0 | DB157: 0 | DC157: 0 | DD157: 0 | DE157: 0 | DF157: 0 | DG157: 0 | DH157: 0 | DI157: 0 | DJ157: 0 | DK157: 0 | DL157: 22.18 | DM157: 25.06 | DN157: 0 | DO157: 3 | DP157: 14 | DQ157: 50 | DR157: 1 | DS157: 0 | DT157: 0 | DU157: 0 | DV157: 0 | DW157: 0 | DX157: 0 | DY157: 0 | DZ157: 68 | EA157: 0 | EB157: 0 | EC157: 10 | ED157: 20 | EE157: 0 | EF157: 0 | EG157: 0 | EH157: 0 | EI157: 0 | EJ157: 0 | EK157: 0 | EL157: 0 | EM157: 30 | EN157: 0 | EO157: 3 | EP157: 24 | EQ157: 70 | ER157: 1 | ES157: 0 | ET157: 0 | EU157: 0 | EV157: 0 | EW157: 0 | EX157: 0 | EY157: 0 | EZ157: 98
A158: Sun | B158: 900 | C158: 0 | D158: 0 | E158: 38 | F158: 57 | G158: 1 | H158: 0 | I158: 0 | J158: 0 | K158: 0 | L158: 0 | M158: 0 | N158: 1 | O158: 0 | P158: 6 | Q158: 31 | R158: 49 | S158: 9 | T158: 2 | U158: 0 | V158: 0 | W158: 0 | X158: 0 | Y158: 0 | Z158: 0 | AA158: 0 | AB158: 0 | AC158: 0 | AD158: 0 | AE158: 0 | AF158: 0 | AG158: 0 | AH158: 0 | AI158: 0 | AJ158: 0 | AK158: 0 | AL158: 20.98 | AM158: 24.25 | AN158: Sun | AO158: 900 | AP158: 0 | AQ158: 0 | AR158: 31 | AS158: 40 | AT158: 1 | AU158: 1 | AV158: 0 | AW158: 1 | AX158: 0 | AY158: 0 | AZ158: 0 | BA158: 2 | BB158: 2 | BC158: 7 | BD158: 27 | BE158: 34 | BF158: 6 | BG158: 0 | BH158: 0 | BI158: 0 | BJ158: 0 | BK158: 0 | BL158: 0 | BM158: 0 | BN158: 0 | BO158: 0 | BP158: 0 | BQ158: 0 | BR158: 0 | BS158: 0 | BT158: 0 | BU158: 0 | BV158: 0 | BW158: 0 | BX158: 0 | BY158: 19.78 | BZ158: 23.69 | CA158: Sun | CB158: 900 | CC158: 0 | CD158: 0 | CE158: 69 | CF158: 97 | CG158: 2 | CH158: 1 | CI158: 0 | CJ158: 1 | CK158: 0 | CL158: 0 | CM158: 0 | CN158: 3 | CO158: 2 | CP158: 13 | CQ158: 58 | CR158: 83 | CS158: 15 | CT158: 2 | CU158: 0 | CV158: 0 | CW158: 0 | CX158: 0 | CY158: 0 | CZ158: 0 | DA158: 0 | DB158: 0 | DC158: 0 | DD158: 0 | DE158: 0 | DF158: 0 | DG158: 0 | DH158: 0 | DI158: 0 | DJ158: 0 | DK158: 0 | DL158: 20.45 | DM158: 24.12 | DN158: 0 | DO158: 0 | DP158: 38 | DQ158: 57 | DR158: 1 | DS158: 0 | DT158: 0 | DU158: 0 | DV158: 0 | DW158: 0 | DX158: 0 | DY158: 1 | DZ158: 97 | EA158: 0 | EB158: 0 | EC158: 31 | ED158: 40 | EE158: 1 | EF158: 1 | EG158: 0 | EH158: 1 | EI158: 0 | EJ158: 0 | EK158: 0 | EL158: 2 | EM158: 76 | EN158: 0 | EO158: 0 | EP158: 69 | EQ158: 97 | ER158: 2 | ES158: 1 | ET158: 0 | EU158: 1 | EV158: 0 | EW158: 0 | EX158: 0 | EY158: 3 | EZ158: 173
A159: Sun | B159: 1000 | C159: 0 | D159: 0 | E159: 63 | F159: 77 | G159: 2 | H159: 1 | I159: 0 | J159: 0 | K159: 0 | L159: 0 | M159: 0 | N159: 0 | O159: 1 | P159: 10 | Q159: 67 | R159: 53 | S159: 12 | T159: 0 | U159: 0 | V159: 0 | W159: 0 | X159: 0 | Y159: 0 | Z159: 0 | AA159: 0 | AB159: 0 | AC159: 0 | AD159: 0 | AE159: 0 | AF159: 0 | AG159: 0 | AH159: 0 | AI159: 0 | AJ159: 0 | AK159: 0 | AL159: 19.65 | AM159: 23.03 | AN159: Sun | AO159: 1000 | AP159: 0 | AQ159: 2 | AR159: 59 | AS159: 47 | AT159: 0 | AU159: 0 | AV159: 0 | AW159: 0 | AX159: 0 | AY159: 0 | AZ159: 0 | BA159: 0 | BB159: 1 | BC159: 20 | BD159: 50 | BE159: 33 | BF159: 4 | BG159: 0 | BH159: 0 | BI159: 0 | BJ159: 0 | BK159: 0 | BL159: 0 | BM159: 0 | BN159: 0 | BO159: 0 | BP159: 0 | BQ159: 0 | BR159: 0 | BS159: 0 | BT159: 0 | BU159: 0 | BV159: 0 | BW159: 0 | BX159: 0 | BY159: 18.36 | BZ159: 21.72 | CA159: Sun | CB159: 1000 | CC159: 0 | CD159: 2 | CE159: 122 | CF159: 124 | CG159: 2 | CH159: 1 | CI159: 0 | CJ159: 0 | CK159: 0 | CL159: 0 | CM159: 0 | CN159: 0 | CO159: 2 | CP159: 30 | CQ159: 117 | CR159: 86 | CS159: 16 | CT159: 0 | CU159: 0 | CV159: 0 | CW159: 0 | CX159: 0 | CY159: 0 | CZ159: 0 | DA159: 0 | DB159: 0 | DC159: 0 | DD159: 0 | DE159: 0 | DF159: 0 | DG159: 0 | DH159: 0 | DI159: 0 | DJ159: 0 | DK159: 0 | DL159: 19.1 | DM159: 22.83 | DN159: 0 | DO159: 0 | DP159: 63 | DQ159: 77 | DR159: 2 | DS159: 1 | DT159: 0 | DU159: 0 | DV159: 0 | DW159: 0 | DX159: 0 | DY159: 0 | DZ159: 143 | EA159: 0 | EB159: 2 | EC159: 59 | ED159: 47 | EE159: 0 | EF159: 0 | EG159: 0 | EH159: 0 | EI159: 0 | EJ159: 0 | EK159: 0 | EL159: 0 | EM159: 108 | EN159: 0 | EO159: 2 | EP159: 122 | EQ159: 124 | ER159: 2 | ES159: 1 | ET159: 0 | EU159: 0 | EV159: 0 | EW159: 0 | EX159: 0 | EY159: 0 | EZ159: 251
A160: Sun | B160: 1100 | C160: 1 | D160: 3 | E160: 75 | F160: 80 | G160: 1 | H160: 0 | I160: 0 | J160: 0 | K160: 0 | L160: 0 | M160: 0 | N160: 1 | O160: 2 | P160: 28 | Q160: 80 | R160: 46 | S160: 5 | T160: 0 | U160: 0 | V160: 0 | W160: 0 | X160: 0 | Y160: 0 | Z160: 0 | AA160: 0 | AB160: 0 | AC160: 0 | AD160: 0 | AE160: 0 | AF160: 0 | AG160: 0 | AH160: 0 | AI160: 0 | AJ160: 0 | AK160: 0 | AL160: 18.23 | AM160: 21.95 | AN160: Sun | AO160: 1100 | AP160: 1 | AQ160: 0 | AR160: 59 | AS160: 39 | AT160: 2 | AU160: 0 | AV160: 1 | AW160: 0 | AX160: 0 | AY160: 0 | AZ160: 0 | BA160: 0 | BB160: 5 | BC160: 21 | BD160: 41 | BE160: 34 | BF160: 1 | BG160: 0 | BH160: 0 | BI160: 0 | BJ160: 0 | BK160: 0 | BL160: 0 | BM160: 0 | BN160: 0 | BO160: 0 | BP160: 0 | BQ160: 0 | BR160: 0 | BS160: 0 | BT160: 0 | BU160: 0 | BV160: 0 | BW160: 0 | BX160: 0 | BY160: 17.81 | BZ160: 22.62 | CA160: Sun | CB160: 1100 | CC160: 2 | CD160: 3 | CE160: 134 | CF160: 119 | CG160: 3 | CH160: 0 | CI160: 1 | CJ160: 0 | CK160: 0 | CL160: 0 | CM160: 0 | CN160: 1 | CO160: 7 | CP160: 49 | CQ160: 121 | CR160: 80 | CS160: 6 | CT160: 0 | CU160: 0 | CV160: 0 | CW160: 0 | CX160: 0 | CY160: 0 | CZ160: 0 | DA160: 0 | DB160: 0 | DC160: 0 | DD160: 0 | DE160: 0 | DF160: 0 | DG160: 0 | DH160: 0 | DI160: 0 | DJ160: 0 | DK160: 0 | DL160: 18.06 | DM160: 22.12 | DN160: 1 | DO160: 3 | DP160: 75 | DQ160: 80 | DR160: 1 | DS160: 0 | DT160: 0 | DU160: 0 | DV160: 0 | DW160: 0 | DX160: 0 | DY160: 1 | DZ160: 161 | EA160: 1 | EB160: 0 | EC160: 59 | ED160: 39 | EE160: 2 | EF160: 0 | EG160: 1 | EH160: 0 | EI160: 0 | EJ160: 0 | EK160: 0 | EL160: 0 | EM160: 102 | EN160: 2 | EO160: 3 | EP160: 134 | EQ160: 119 | ER160: 3 | ES160: 0 | ET160: 1 | EU160: 0 | EV160: 0 | EW160: 0 | EX160: 0 | EY160: 1 | EZ160: 263
A161: Sun | B161: 1200 | C161: 0 | D161: 4 | E161: 61 | F161: 74 | G161: 2 | H161: 0 | I161: 0 | J161: 1 | K161: 0 | L161: 0 | M161: 0 | N161: 0 | O161: 0 | P161: 13 | Q161: 54 | R161: 65 | S161: 10 | T161: 0 | U161: 0 | V161: 0 | W161: 0 | X161: 0 | Y161: 0 | Z161: 0 | AA161: 0 | AB161: 0 | AC161: 0 | AD161: 0 | AE161: 0 | AF161: 0 | AG161: 0 | AH161: 0 | AI161: 0 | AJ161: 0 | AK161: 0 | AL161: 20.2 | AM161: 23.17 | AN161: Sun | AO161: 1200 | AP161: 0 | AQ161: 2 | AR161: 67 | AS161: 48 | AT161: 1 | AU161: 0 | AV161: 0 | AW161: 0 | AX161: 0 | AY161: 0 | AZ161: 0 | BA161: 0 | BB161: 2 | BC161: 25 | BD161: 48 | BE161: 38 | BF161: 5 | BG161: 0 | BH161: 0 | BI161: 0 | BJ161: 0 | BK161: 0 | BL161: 0 | BM161: 0 | BN161: 0 | BO161: 0 | BP161: 0 | BQ161: 0 | BR161: 0 | BS161: 0 | BT161: 0 | BU161: 0 | BV161: 0 | BW161: 0 | BX161: 0 | BY161: 18.05 | BZ161: 22.28 | CA161: Sun | CB161: 1200 | CC161: 0 | CD161: 6 | CE161: 128 | CF161: 122 | CG161: 3 | CH161: 0 | CI161: 0 | CJ161: 1 | CK161: 0 | CL161: 0 | CM161: 0 | CN161: 0 | CO161: 2 | CP161: 38 | CQ161: 102 | CR161: 103 | CS161: 15 | CT161: 0 | CU161: 0 | CV161: 0 | CW161: 0 | CX161: 0 | CY161: 0 | CZ161: 0 | DA161: 0 | DB161: 0 | DC161: 0 | DD161: 0 | DE161: 0 | DF161: 0 | DG161: 0 | DH161: 0 | DI161: 0 | DJ161: 0 | DK161: 0 | DL161: 19.22 | DM161: 22.66 | DN161: 0 | DO161: 4 | DP161: 61 | DQ161: 74 | DR161: 2 | DS161: 0 | DT161: 0 | DU161: 1 | DV161: 0 | DW161: 0 | DX161: 0 | DY161: 0 | DZ161: 142 | EA161: 0 | EB161: 2 | EC161: 67 | ED161: 48 | EE161: 1 | EF161: 0 | EG161: 0 | EH161: 0 | EI161: 0 | EJ161: 0 | EK161: 0 | EL161: 0 | EM161: 118 | EN161: 0 | EO161: 6 | EP161: 128 | EQ161: 122 | ER161: 3 | ES161: 0 | ET161: 0 | EU161: 1 | EV161: 0 | EW161: 0 | EX161: 0 | EY161: 0 | EZ161: 260
A162: Sun | B162: 1300 | C162: 0 | D162: 0 | E162: 45 | F162: 72 | G162: 1 | H162: 0 | I162: 0 | J162: 0 | K162: 0 | L162: 0 | M162: 0 | N162: 0 | O162: 0 | P162: 8 | Q162: 54 | R162: 46 | S162: 10 | T162: 0 | U162: 0 | V162: 0 | W162: 0 | X162: 0 | Y162: 0 | Z162: 0 | AA162: 0 | AB162: 0 | AC162: 0 | AD162: 0 | AE162: 0 | AF162: 0 | AG162: 0 | AH162: 0 | AI162: 0 | AJ162: 0 | AK162: 0 | AL162: 19.92 | AM162: 23.7 | AN162: Sun | AO162: 1300 | AP162: 0 | AQ162: 1 | AR162: 41 | AS162: 55 | AT162: 2 | AU162: 0 | AV162: 0 | AW162: 0 | AX162: 0 | AY162: 0 | AZ162: 0 | BA162: 0 | BB162: 1 | BC162: 18 | BD162: 46 | BE162: 32 | BF162: 1 | BG162: 0 | BH162: 1 | BI162: 0 | BJ162: 0 | BK162: 0 | BL162: 0 | BM162: 0 | BN162: 0 | BO162: 0 | BP162: 0 | BQ162: 0 | BR162: 0 | BS162: 0 | BT162: 0 | BU162: 0 | BV162: 0 | BW162: 0 | BX162: 0 | BY162: 18.45 | BZ162: 22.37 | CA162: Sun | CB162: 1300 | CC162: 0 | CD162: 1 | CE162: 86 | CF162: 127 | CG162: 3 | CH162: 0 | CI162: 0 | CJ162: 0 | CK162: 0 | CL162: 0 | CM162: 0 | CN162: 0 | CO162: 1 | CP162: 26 | CQ162: 100 | CR162: 78 | CS162: 11 | CT162: 0 | CU162: 1 | CV162: 0 | CW162: 0 | CX162: 0 | CY162: 0 | CZ162: 0 | DA162: 0 | DB162: 0 | DC162: 0 | DD162: 0 | DE162: 0 | DF162: 0 | DG162: 0 | DH162: 0 | DI162: 0 | DJ162: 0 | DK162: 0 | DL162: 19.25 | DM162: 22.93 | DN162: 0 | DO162: 0 | DP162: 45 | DQ162: 72 | DR162: 1 | DS162: 0 | DT162: 0 | DU162: 0 | DV162: 0 | DW162: 0 | DX162: 0 | DY162: 0 | DZ162: 118 | EA162: 0 | EB162: 1 | EC162: 41 | ED162: 55 | EE162: 2 | EF162: 0 | EG162: 0 | EH162: 0 | EI162: 0 | EJ162: 0 | EK162: 0 | EL162: 0 | EM162: 99 | EN162: 0 | EO162: 1 | EP162: 86 | EQ162: 127 | ER162: 3 | ES162: 0 | ET162: 0 | EU162: 0 | EV162: 0 | EW162: 0 | EX162: 0 | EY162: 0 | EZ162: 217
A163: Sun | B163: 1400 | C163: 0 | D163: 4 | E163: 40 | F163: 60 | G163: 2 | H163: 0 | I163: 0 | J163: 1 | K163: 0 | L163: 0 | M163: 0 | N163: 0 | O163: 0 | P163: 13 | Q163: 46 | R163: 36 | S163: 11 | T163: 1 | U163: 0 | V163: 0 | W163: 0 | X163: 0 | Y163: 0 | Z163: 0 | AA163: 0 | AB163: 0 | AC163: 0 | AD163: 0 | AE163: 0 | AF163: 0 | AG163: 0 | AH163: 0 | AI163: 0 | AJ163: 0 | AK163: 0 | AL163: 19.92 | AM163: 23.96 | AN163: Sun | AO163: 1400 | AP163: 0 | AQ163: 1 | AR163: 49 | AS163: 45 | AT163: 2 | AU163: 1 | AV163: 0 | AW163: 0 | AX163: 0 | AY163: 0 | AZ163: 0 | BA163: 0 | BB163: 0 | BC163: 18 | BD163: 50 | BE163: 27 | BF163: 3 | BG163: 0 | BH163: 0 | BI163: 0 | BJ163: 0 | BK163: 0 | BL163: 0 | BM163: 0 | BN163: 0 | BO163: 0 | BP163: 0 | BQ163: 0 | BR163: 0 | BS163: 0 | BT163: 0 | BU163: 0 | BV163: 0 | BW163: 0 | BX163: 0 | BY163: 18.51 | BZ163: 22.7 | CA163: Sun | CB163: 1400 | CC163: 0 | CD163: 5 | CE163: 89 | CF163: 105 | CG163: 4 | CH163: 1 | CI163: 0 | CJ163: 1 | CK163: 0 | CL163: 0 | CM163: 0 | CN163: 0 | CO163: 0 | CP163: 31 | CQ163: 96 | CR163: 63 | CS163: 14 | CT163: 1 | CU163: 0 | CV163: 0 | CW163: 0 | CX163: 0 | CY163: 0 | CZ163: 0 | DA163: 0 | DB163: 0 | DC163: 0 | DD163: 0 | DE163: 0 | DF163: 0 | DG163: 0 | DH163: 0 | DI163: 0 | DJ163: 0 | DK163: 0 | DL163: 19.25 | DM163: 23.56 | DN163: 0 | DO163: 4 | DP163: 40 | DQ163: 60 | DR163: 2 | DS163: 0 | DT163: 0 | DU163: 1 | DV163: 0 | DW163: 0 | DX163: 0 | DY163: 0 | DZ163: 107 | EA163: 0 | EB163: 1 | EC163: 49 | ED163: 45 | EE163: 2 | EF163: 1 | EG163: 0 | EH163: 0 | EI163: 0 | EJ163: 0 | EK163: 0 | EL163: 0 | EM163: 98 | EN163: 0 | EO163: 5 | EP163: 89 | EQ163: 105 | ER163: 4 | ES163: 1 | ET163: 0 | EU163: 1 | EV163: 0 | EW163: 0 | EX163: 0 | EY163: 0 | EZ163: 205
A164: Sun | B164: 1500 | C164: 0 | D164: 1 | E164: 36 | F164: 63 | G164: 0 | H164: 0 | I164: 1 | J164: 0 | K164: 0 | L164: 0 | M164: 0 | N164: 0 | O164: 1 | P164: 8 | Q164: 36 | R164: 47 | S164: 6 | T164: 3 | U164: 0 | V164: 0 | W164: 0 | X164: 0 | Y164: 0 | Z164: 0 | AA164: 0 | AB164: 0 | AC164: 0 | AD164: 0 | AE164: 0 | AF164: 0 | AG164: 0 | AH164: 0 | AI164: 0 | AJ164: 0 | AK164: 0 | AL164: 20.27 | AM164: 23.61 | AN164: Sun | AO164: 1500 | AP164: 0 | AQ164: 3 | AR164: 54 | AS164: 50 | AT164: 0 | AU164: 0 | AV164: 1 | AW164: 1 | AX164: 0 | AY164: 0 | AZ164: 0 | BA164: 1 | BB164: 1 | BC164: 20 | BD164: 56 | BE164: 26 | BF164: 6 | BG164: 1 | BH164: 0 | BI164: 0 | BJ164: 0 | BK164: 0 | BL164: 0 | BM164: 0 | BN164: 0 | BO164: 0 | BP164: 0 | BQ164: 0 | BR164: 0 | BS164: 0 | BT164: 0 | BU164: 0 | BV164: 0 | BW164: 0 | BX164: 0 | BY164: 18.37 | BZ164: 22.22 | CA164: Sun | CB164: 1500 | CC164: 0 | CD164: 4 | CE164: 90 | CF164: 113 | CG164: 0 | CH164: 0 | CI164: 2 | CJ164: 1 | CK164: 0 | CL164: 0 | CM164: 0 | CN164: 1 | CO164: 2 | CP164: 28 | CQ164: 92 | CR164: 73 | CS164: 12 | CT164: 4 | CU164: 0 | CV164: 0 | CW164: 0 | CX164: 0 | CY164: 0 | CZ164: 0 | DA164: 0 | DB164: 0 | DC164: 0 | DD164: 0 | DE164: 0 | DF164: 0 | DG164: 0 | DH164: 0 | DI164: 0 | DJ164: 0 | DK164: 0 | DL164: 19.28 | DM164: 23.18 | DN164: 0 | DO164: 1 | DP164: 36 | DQ164: 63 | DR164: 0 | DS164: 0 | DT164: 1 | DU164: 0 | DV164: 0 | DW164: 0 | DX164: 0 | DY164: 0 | DZ164: 101 | EA164: 0 | EB164: 3 | EC164: 54 | ED164: 50 | EE164: 0 | EF164: 0 | EG164: 1 | EH164: 1 | EI164: 0 | EJ164: 0 | EK164: 0 | EL164: 1 | EM164: 110 | EN164: 0 | EO164: 4 | EP164: 90 | EQ164: 113 | ER164: 0 | ES164: 0 | ET164: 2 | EU164: 1 | EV164: 0 | EW164: 0 | EX164: 0 | EY164: 1 | EZ164: 211
A165: Sun | B165: 1600 | C165: 0 | D165: 3 | E165: 30 | F165: 57 | G165: 1 | H165: 0 | I165: 0 | J165: 0 | K165: 0 | L165: 0 | M165: 0 | N165: 0 | O165: 0 | P165: 3 | Q165: 23 | R165: 50 | S165: 15 | T165: 0 | U165: 0 | V165: 0 | W165: 0 | X165: 0 | Y165: 0 | Z165: 0 | AA165: 0 | AB165: 0 | AC165: 0 | AD165: 0 | AE165: 0 | AF165: 0 | AG165: 0 | AH165: 0 | AI165: 0 | AJ165: 0 | AK165: 0 | AL165: 21.63 | AM165: 25.05 | AN165: Sun | AO165: 1600 | AP165: 0 | AQ165: 0 | AR165: 53 | AS165: 61 | AT165: 1 | AU165: 0 | AV165: 0 | AW165: 0 | AX165: 0 | AY165: 0 | AZ165: 0 | BA165: 0 | BB165: 3 | BC165: 12 | BD165: 48 | BE165: 47 | BF165: 5 | BG165: 0 | BH165: 0 | BI165: 0 | BJ165: 0 | BK165: 0 | BL165: 0 | BM165: 0 | BN165: 0 | BO165: 0 | BP165: 0 | BQ165: 0 | BR165: 0 | BS165: 0 | BT165: 0 | BU165: 0 | BV165: 0 | BW165: 0 | BX165: 0 | BY165: 19.17 | BZ165: 23.04 | CA165: Sun | CB165: 1600 | CC165: 0 | CD165: 3 | CE165: 83 | CF165: 118 | CG165: 2 | CH165: 0 | CI165: 0 | CJ165: 0 | CK165: 0 | CL165: 0 | CM165: 0 | CN165: 0 | CO165: 3 | CP165: 15 | CQ165: 71 | CR165: 97 | CS165: 20 | CT165: 0 | CU165: 0 | CV165: 0 | CW165: 0 | CX165: 0 | CY165: 0 | CZ165: 0 | DA165: 0 | DB165: 0 | DC165: 0 | DD165: 0 | DE165: 0 | DF165: 0 | DG165: 0 | DH165: 0 | DI165: 0 | DJ165: 0 | DK165: 0 | DL165: 20.26 | DM165: 24.17 | DN165: 0 | DO165: 3 | DP165: 30 | DQ165: 57 | DR165: 1 | DS165: 0 | DT165: 0 | DU165: 0 | DV165: 0 | DW165: 0 | DX165: 0 | DY165: 0 | DZ165: 91 | EA165: 0 | EB165: 0 | EC165: 53 | ED165: 61 | EE165: 1 | EF165: 0 | EG165: 0 | EH165: 0 | EI165: 0 | EJ165: 0 | EK165: 0 | EL165: 0 | EM165: 115 | EN165: 0 | EO165: 3 | EP165: 83 | EQ165: 118 | ER165: 2 | ES165: 0 | ET165: 0 | EU165: 0 | EV165: 0 | EW165: 0 | EX165: 0 | EY165: 0 | EZ165: 206
A166: Sun | B166: 1700 | C166: 0 | D166: 2 | E166: 32 | F166: 46 | G166: 1 | H166: 0 | I166: 0 | J166: 1 | K166: 0 | L166: 0 | M166: 0 | N166: 0 | O166: 0 | P166: 6 | Q166: 15 | R166: 50 | S166: 11 | T166: 0 | U166: 0 | V166: 0 | W166: 0 | X166: 0 | Y166: 0 | Z166: 0 | AA166: 0 | AB166: 0 | AC166: 0 | AD166: 0 | AE166: 0 | AF166: 0 | AG166: 0 | AH166: 0 | AI166: 0 | AJ166: 0 | AK166: 0 | AL166: 21.68 | AM166: 24.77 | AN166: Sun | AO166: 1700 | AP166: 0 | AQ166: 0 | AR166: 51 | AS166: 64 | AT166: 2 | AU166: 0 | AV166: 0 | AW166: 0 | AX166: 0 | AY166: 0 | AZ166: 0 | BA166: 0 | BB166: 0 | BC166: 19 | BD166: 48 | BE166: 45 | BF166: 4 | BG166: 1 | BH166: 0 | BI166: 0 | BJ166: 0 | BK166: 0 | BL166: 0 | BM166: 0 | BN166: 0 | BO166: 0 | BP166: 0 | BQ166: 0 | BR166: 0 | BS166: 0 | BT166: 0 | BU166: 0 | BV166: 0 | BW166: 0 | BX166: 0 | BY166: 19.18 | BZ166: 22.86 | CA166: Sun | CB166: 1700 | CC166: 0 | CD166: 2 | CE166: 83 | CF166: 110 | CG166: 3 | CH166: 0 | CI166: 0 | CJ166: 1 | CK166: 0 | CL166: 0 | CM166: 0 | CN166: 0 | CO166: 0 | CP166: 25 | CQ166: 63 | CR166: 95 | CS166: 15 | CT166: 1 | CU166: 0 | CV166: 0 | CW166: 0 | CX166: 0 | CY166: 0 | CZ166: 0 | DA166: 0 | DB166: 0 | DC166: 0 | DD166: 0 | DE166: 0 | DF166: 0 | DG166: 0 | DH166: 0 | DI166: 0 | DJ166: 0 | DK166: 0 | DL166: 20.21 | DM166: 23.82 | DN166: 0 | DO166: 2 | DP166: 32 | DQ166: 46 | DR166: 1 | DS166: 0 | DT166: 0 | DU166: 1 | DV166: 0 | DW166: 0 | DX166: 0 | DY166: 0 | DZ166: 82 | EA166: 0 | EB166: 0 | EC166: 51 | ED166: 64 | EE166: 2 | EF166: 0 | EG166: 0 | EH166: 0 | EI166: 0 | EJ166: 0 | EK166: 0 | EL166: 0 | EM166: 117 | EN166: 0 | EO166: 2 | EP166: 83 | EQ166: 110 | ER166: 3 | ES166: 0 | ET166: 0 | EU166: 1 | EV166: 0 | EW166: 0 | EX166: 0 | EY166: 0 | EZ166: 199
A167: Sun | B167: 1800 | C167: 0 | D167: 3 | E167: 27 | F167: 78 | G167: 4 | H167: 0 | I167: 0 | J167: 0 | K167: 0 | L167: 0 | M167: 0 | N167: 0 | O167: 1 | P167: 5 | Q167: 19 | R167: 73 | S167: 13 | T167: 1 | U167: 0 | V167: 0 | W167: 0 | X167: 0 | Y167: 0 | Z167: 0 | AA167: 0 | AB167: 0 | AC167: 0 | AD167: 0 | AE167: 0 | AF167: 0 | AG167: 0 | AH167: 0 | AI167: 0 | AJ167: 0 | AK167: 0 | AL167: 21.42 | AM167: 24.63 | AN167: Sun | AO167: 1800 | AP167: 0 | AQ167: 1 | AR167: 40 | AS167: 53 | AT167: 1 | AU167: 0 | AV167: 0 | AW167: 1 | AX167: 0 | AY167: 0 | AZ167: 0 | BA167: 0 | BB167: 3 | BC167: 13 | BD167: 37 | BE167: 40 | BF167: 3 | BG167: 0 | BH167: 0 | BI167: 0 | BJ167: 0 | BK167: 0 | BL167: 0 | BM167: 0 | BN167: 0 | BO167: 0 | BP167: 0 | BQ167: 0 | BR167: 0 | BS167: 0 | BT167: 0 | BU167: 0 | BV167: 0 | BW167: 0 | BX167: 0 | BY167: 19.06 | BZ167: 21.99 | CA167: Sun | CB167: 1800 | CC167: 0 | CD167: 4 | CE167: 67 | CF167: 131 | CG167: 5 | CH167: 0 | CI167: 0 | CJ167: 1 | CK167: 0 | CL167: 0 | CM167: 0 | CN167: 0 | CO167: 4 | CP167: 18 | CQ167: 56 | CR167: 113 | CS167: 16 | CT167: 1 | CU167: 0 | CV167: 0 | CW167: 0 | CX167: 0 | CY167: 0 | CZ167: 0 | DA167: 0 | DB167: 0 | DC167: 0 | DD167: 0 | DE167: 0 | DF167: 0 | DG167: 0 | DH167: 0 | DI167: 0 | DJ167: 0 | DK167: 0 | DL167: 20.33 | DM167: 23.73 | DN167: 0 | DO167: 3 | DP167: 27 | DQ167: 78 | DR167: 4 | DS167: 0 | DT167: 0 | DU167: 0 | DV167: 0 | DW167: 0 | DX167: 0 | DY167: 0 | DZ167: 112 | EA167: 0 | EB167: 1 | EC167: 40 | ED167: 53 | EE167: 1 | EF167: 0 | EG167: 0 | EH167: 1 | EI167: 0 | EJ167: 0 | EK167: 0 | EL167: 0 | EM167: 96 | EN167: 0 | EO167: 4 | EP167: 67 | EQ167: 131 | ER167: 5 | ES167: 0 | ET167: 0 | EU167: 1 | EV167: 0 | EW167: 0 | EX167: 0 | EY167: 0 | EZ167: 208
A168: Sun | B168: 1900 | C168: 0 | D168: 0 | E168: 26 | F168: 49 | G168: 1 | H168: 0 | I168: 0 | J168: 0 | K168: 0 | L168: 0 | M168: 0 | N168: 0 | O168: 0 | P168: 4 | Q168: 13 | R168: 42 | S168: 16 | T168: 1 | U168: 0 | V168: 0 | W168: 0 | X168: 0 | Y168: 0 | Z168: 0 | AA168: 0 | AB168: 0 | AC168: 0 | AD168: 0 | AE168: 0 | AF168: 0 | AG168: 0 | AH168: 0 | AI168: 0 | AJ168: 0 | AK168: 0 | AL168: 22.23 | AM168: 25.68 | AN168: Sun | AO168: 1900 | AP168: 0 | AQ168: 0 | AR168: 38 | AS168: 48 | AT168: 0 | AU168: 0 | AV168: 0 | AW168: 0 | AX168: 0 | AY168: 0 | AZ168: 0 | BA168: 1 | BB168: 1 | BC168: 8 | BD168: 26 | BE168: 46 | BF168: 5 | BG168: 1 | BH168: 0 | BI168: 0 | BJ168: 0 | BK168: 0 | BL168: 0 | BM168: 0 | BN168: 0 | BO168: 0 | BP168: 0 | BQ168: 0 | BR168: 0 | BS168: 0 | BT168: 0 | BU168: 0 | BV168: 0 | BW168: 0 | BX168: 0 | BY168: 20.06 | BZ168: 23.72 | CA168: Sun | CB168: 1900 | CC168: 0 | CD168: 0 | CE168: 64 | CF168: 97 | CG168: 1 | CH168: 0 | CI168: 0 | CJ168: 0 | CK168: 0 | CL168: 0 | CM168: 0 | CN168: 1 | CO168: 1 | CP168: 12 | CQ168: 39 | CR168: 88 | CS168: 21 | CT168: 2 | CU168: 0 | CV168: 0 | CW168: 0 | CX168: 0 | CY168: 0 | CZ168: 0 | DA168: 0 | DB168: 0 | DC168: 0 | DD168: 0 | DE168: 0 | DF168: 0 | DG168: 0 | DH168: 0 | DI168: 0 | DJ168: 0 | DK168: 0 | DL168: 21.07 | DM168: 24.89 | DN168: 0 | DO168: 0 | DP168: 26 | DQ168: 49 | DR168: 1 | DS168: 0 | DT168: 0 | DU168: 0 | DV168: 0 | DW168: 0 | DX168: 0 | DY168: 0 | DZ168: 76 | EA168: 0 | EB168: 0 | EC168: 38 | ED168: 48 | EE168: 0 | EF168: 0 | EG168: 0 | EH168: 0 | EI168: 0 | EJ168: 0 | EK168: 0 | EL168: 1 | EM168: 87 | EN168: 0 | EO168: 0 | EP168: 64 | EQ168: 97 | ER168: 1 | ES168: 0 | ET168: 0 | EU168: 0 | EV168: 0 | EW168: 0 | EX168: 0 | EY168: 1 | EZ168: 163
A169: Sun | B169: 2000 | C169: 0 | D169: 0 | E169: 8 | F169: 21 | G169: 0 | H169: 0 | I169: 0 | J169: 0 | K169: 0 | L169: 0 | M169: 0 | N169: 0 | O169: 1 | P169: 1 | Q169: 7 | R169: 15 | S169: 4 | T169: 1 | U169: 0 | V169: 0 | W169: 0 | X169: 0 | Y169: 0 | Z169: 0 | AA169: 0 | AB169: 0 | AC169: 0 | AD169: 0 | AE169: 0 | AF169: 0 | AG169: 0 | AH169: 0 | AI169: 0 | AJ169: 0 | AK169: 0 | AL169: 21.42 | AM169: 25.15 | AN169: Sun | AO169: 2000 | AP169: 0 | AQ169: 0 | AR169: 21 | AS169: 16 | AT169: 0 | AU169: 0 | AV169: 0 | AW169: 0 | AX169: 0 | AY169: 0 | AZ169: 0 | BA169: 0 | BB169: 0 | BC169: 4 | BD169: 8 | BE169: 20 | BF169: 5 | BG169: 0 | BH169: 0 | BI169: 0 | BJ169: 0 | BK169: 0 | BL169: 0 | BM169: 0 | BN169: 0 | BO169: 0 | BP169: 0 | BQ169: 0 | BR169: 0 | BS169: 0 | BT169: 0 | BU169: 0 | BV169: 0 | BW169: 0 | BX169: 0 | BY169: 20.77 | BZ169: 24.4 | CA169: Sun | CB169: 2000 | CC169: 0 | CD169: 0 | CE169: 29 | CF169: 37 | CG169: 0 | CH169: 0 | CI169: 0 | CJ169: 0 | CK169: 0 | CL169: 0 | CM169: 0 | CN169: 0 | CO169: 1 | CP169: 5 | CQ169: 15 | CR169: 35 | CS169: 9 | CT169: 1 | CU169: 0 | CV169: 0 | CW169: 0 | CX169: 0 | CY169: 0 | CZ169: 0 | DA169: 0 | DB169: 0 | DC169: 0 | DD169: 0 | DE169: 0 | DF169: 0 | DG169: 0 | DH169: 0 | DI169: 0 | DJ169: 0 | DK169: 0 | DL169: 21.06 | DM169: 24.81 | DN169: 0 | DO169: 0 | DP169: 8 | DQ169: 21 | DR169: 0 | DS169: 0 | DT169: 0 | DU169: 0 | DV169: 0 | DW169: 0 | DX169: 0 | DY169: 0 | DZ169: 29 | EA169: 0 | EB169: 0 | EC169: 21 | ED169: 16 | EE169: 0 | EF169: 0 | EG169: 0 | EH169: 0 | EI169: 0 | EJ169: 0 | EK169: 0 | EL169: 0 | EM169: 37 | EN169: 0 | EO169: 0 | EP169: 29 | EQ169: 37 | ER169: 0 | ES169: 0 | ET169: 0 | EU169: 0 | EV169: 0 | EW169: 0 | EX169: 0 | EY169: 0 | EZ169: 66
A170: Sun | B170: 2100 | C170: 0 | D170: 0 | E170: 15 | F170: 17 | G170: 0 | H170: 0 | I170: 0 | J170: 0 | K170: 0 | L170: 0 | M170: 0 | N170: 0 | O170: 0 | P170: 0 | Q170: 7 | R170: 15 | S170: 8 | T170: 2 | U170: 0 | V170: 0 | W170: 0 | X170: 0 | Y170: 0 | Z170: 0 | AA170: 0 | AB170: 0 | AC170: 0 | AD170: 0 | AE170: 0 | AF170: 0 | AG170: 0 | AH170: 0 | AI170: 0 | AJ170: 0 | AK170: 0 | AL170: 23.31 | AM170: 26.99 | AN170: Sun | AO170: 2100 | AP170: 0 | AQ170: 1 | AR170: 14 | AS170: 10 | AT170: 0 | AU170: 0 | AV170: 0 | AW170: 0 | AX170: 0 | AY170: 0 | AZ170: 0 | BA170: 1 | BB170: 1 | BC170: 0 | BD170: 4 | BE170: 15 | BF170: 4 | BG170: 1 | BH170: 0 | BI170: 1 | BJ170: 0 | BK170: 0 | BL170: 0 | BM170: 0 | BN170: 0 | BO170: 0 | BP170: 0 | BQ170: 0 | BR170: 0 | BS170: 0 | BT170: 0 | BU170: 0 | BV170: 0 | BW170: 0 | BX170: 0 | BY170: 22.69 | BZ170: 25.45 | CA170: Sun | CB170: 2100 | CC170: 0 | CD170: 1 | CE170: 29 | CF170: 27 | CG170: 0 | CH170: 0 | CI170: 0 | CJ170: 0 | CK170: 0 | CL170: 0 | CM170: 0 | CN170: 1 | CO170: 1 | CP170: 0 | CQ170: 11 | CR170: 30 | CS170: 12 | CT170: 3 | CU170: 0 | CV170: 1 | CW170: 0 | CX170: 0 | CY170: 0 | CZ170: 0 | DA170: 0 | DB170: 0 | DC170: 0 | DD170: 0 | DE170: 0 | DF170: 0 | DG170: 0 | DH170: 0 | DI170: 0 | DJ170: 0 | DK170: 0 | DL170: 23.03 | DM170: 26.63 | DN170: 0 | DO170: 0 | DP170: 15 | DQ170: 17 | DR170: 0 | DS170: 0 | DT170: 0 | DU170: 0 | DV170: 0 | DW170: 0 | DX170: 0 | DY170: 0 | DZ170: 32 | EA170: 0 | EB170: 1 | EC170: 14 | ED170: 10 | EE170: 0 | EF170: 0 | EG170: 0 | EH170: 0 | EI170: 0 | EJ170: 0 | EK170: 0 | EL170: 1 | EM170: 26 | EN170: 0 | EO170: 1 | EP170: 29 | EQ170: 27 | ER170: 0 | ES170: 0 | ET170: 0 | EU170: 0 | EV170: 0 | EW170: 0 | EX170: 0 | EY170: 1 | EZ170: 58
A171: Sun | B171: 2200 | C171: 0 | D171: 1 | E171: 5 | F171: 4 | G171: 0 | H171: 0 | I171: 0 | J171: 0 | K171: 0 | L171: 0 | M171: 0 | N171: 0 | O171: 0 | P171: 1 | Q171: 2 | R171: 4 | S171: 3 | T171: 0 | U171: 0 | V171: 0 | W171: 0 | X171: 0 | Y171: 0 | Z171: 0 | AA171: 0 | AB171: 0 | AC171: 0 | AD171: 0 | AE171: 0 | AF171: 0 | AG171: 0 | AH171: 0 | AI171: 0 | AJ171: 0 | AK171: 0 | AL171: 22.47 | AM171: 27.24 | AN171: Sun | AO171: 2200 | AP171: 0 | AQ171: 1 | AR171: 8 | AS171: 5 | AT171: 0 | AU171: 0 | AV171: 0 | AW171: 0 | AX171: 0 | AY171: 0 | AZ171: 0 | BA171: 0 | BB171: 0 | BC171: 0 | BD171: 6 | BE171: 7 | BF171: 1 | BG171: 0 | BH171: 0 | BI171: 0 | BJ171: 0 | BK171: 0 | BL171: 0 | BM171: 0 | BN171: 0 | BO171: 0 | BP171: 0 | BQ171: 0 | BR171: 0 | BS171: 0 | BT171: 0 | BU171: 0 | BV171: 0 | BW171: 0 | BX171: 0 | BY171: 21.44 | BZ171: 24.1 | CA171: Sun | CB171: 2200 | CC171: 0 | CD171: 2 | CE171: 13 | CF171: 9 | CG171: 0 | CH171: 0 | CI171: 0 | CJ171: 0 | CK171: 0 | CL171: 0 | CM171: 0 | CN171: 0 | CO171: 0 | CP171: 1 | CQ171: 8 | CR171: 11 | CS171: 4 | CT171: 0 | CU171: 0 | CV171: 0 | CW171: 0 | CX171: 0 | CY171: 0 | CZ171: 0 | DA171: 0 | DB171: 0 | DC171: 0 | DD171: 0 | DE171: 0 | DF171: 0 | DG171: 0 | DH171: 0 | DI171: 0 | DJ171: 0 | DK171: 0 | DL171: 21.87 | DM171: 25.91 | DN171: 0 | DO171: 1 | DP171: 5 | DQ171: 4 | DR171: 0 | DS171: 0 | DT171: 0 | DU171: 0 | DV171: 0 | DW171: 0 | DX171: 0 | DY171: 0 | DZ171: 10 | EA171: 0 | EB171: 1 | EC171: 8 | ED171: 5 | EE171: 0 | EF171: 0 | EG171: 0 | EH171: 0 | EI171: 0 | EJ171: 0 | EK171: 0 | EL171: 0 | EM171: 14 | EN171: 0 | EO171: 2 | EP171: 13 | EQ171: 9 | ER171: 0 | ES171: 0 | ET171: 0 | EU171: 0 | EV171: 0 | EW171: 0 | EX171: 0 | EY171: 0 | EZ171: 24
A172: Sun | B172: 2300 | C172: 0 | D172: 0 | E172: 0 | F172: 1 | G172: 0 | H172: 0 | I172: 0 | J172: 0 | K172: 0 | L172: 0 | M172: 0 | N172: 0 | O172: 0 | P172: 0 | Q172: 1 | R172: 0 | S172: 0 | T172: 0 | U172: 0 | V172: 0 | W172: 0 | X172: 0 | Y172: 0 | Z172: 0 | AA172: 0 | AB172: 0 | AC172: 0 | AD172: 0 | AE172: 0 | AF172: 0 | AG172: 0 | AH172: 0 | AI172: 0 | AJ172: 0 | AK172: 0 | AL172: 19.94 | AM172: - | AN172: Sun | AO172: 2300 | AP172: 0 | AQ172: 0 | AR172: 0 | AS172: 1 | AT172: 0 | AU172: 0 | AV172: 0 | AW172: 0 | AX172: 0 | AY172: 0 | AZ172: 0 | BA172: 0 | BB172: 0 | BC172: 0 | BD172: 1 | BE172: 0 | BF172: 0 | BG172: 0 | BH172: 0 | BI172: 0 | BJ172: 0 | BK172: 0 | BL172: 0 | BM172: 0 | BN172: 0 | BO172: 0 | BP172: 0 | BQ172: 0 | BR172: 0 | BS172: 0 | BT172: 0 | BU172: 0 | BV172: 0 | BW172: 0 | BX172: 0 | BY172: 15.37 | BZ172: - | CA172: Sun | CB172: 2300 | CC172: 0 | CD172: 0 | CE172: 0 | CF172: 2 | CG172: 0 | CH172: 0 | CI172: 0 | CJ172: 0 | CK172: 0 | CL172: 0 | CM172: 0 | CN172: 0 | CO172: 0 | CP172: 0 | CQ172: 2 | CR172: 0 | CS172: 0 | CT172: 0 | CU172: 0 | CV172: 0 | CW172: 0 | CX172: 0 | CY172: 0 | CZ172: 0 | DA172: 0 | DB172: 0 | DC172: 0 | DD172: 0 | DE172: 0 | DF172: 0 | DG172: 0 | DH172: 0 | DI172: 0 | DJ172: 0 | DK172: 0 | DL172: 17.66 | DM172: - | DN172: 0 | DO172: 0 | DP172: 0 | DQ172: 1 | DR172: 0 | DS172: 0 | DT172: 0 | DU172: 0 | DV172: 0 | DW172: 0 | DX172: 0 | DY172: 0 | DZ172: 1 | EA172: 0 | EB172: 0 | EC172: 0 | ED172: 1 | EE172: 0 | EF172: 0 | EG172: 0 | EH172: 0 | EI172: 0 | EJ172: 0 | EK172: 0 | EL172: 0 | EM172: 1 | EN172: 0 | EO172: 0 | EP172: 0 | EQ172: 2 | ER172: 0 | ES172: 0 | ET172: 0 | EU172: 0 | EV172: 0 | EW172: 0 | EX172: 0 | EY172: 0 | EZ172: 2
A173: WD Ave | B173: 0 | C173: =SUM(C5+C29+C53+C77+C101)/5 -> 0 | D173: 0 | E173: 0.8 | F173: 1.4 | G173: 0 | H173: 0 | I173: 0 | J173: 0 | K173: 0 | L173: 0 | M173: 0 | N173: 0 | O173: =SUM(O5+O29+O53+O77+O101)/5 -> 0 | P173: 0 | Q173: 0.6 | R173: 0.4 | S173: 1.2 | T173: 0 | U173: =SUM(U5+U29+U53+U77+U101)/5 -> 0 | V173: =SUM(V5+V29+V53+V77+V101)/5 -> 0 | W173: 0 | X173: 0 | Y173: 0 | Z173: =SUM(Z5+Z29+Z53+Z77+Z101)/5 -> 0 | AA173: =SUM(AA5+AA29+AA53+AA77+AA101)/5 -> 0 | AB173: =SUM(AB5+AB29+AB53+AB77+AB101)/5 -> 0 | AC173: 0 | AD173: 0 | AE173: 0 | AF173: =SUM(AF5+AF29+AF53+AF77+AF101)/5 -> 0 | AG173: 0 | AH173: 0 | AI173: 0 | AJ173: 0 | AK173: 0 | AL173: 23.77 | AM173: 27.2 | AN173: WD Ave | AO173: 0 | AP173: =SUM(AP5+AP29+AP53+AP77+AP101)/5 -> 0 | AQ173: 0 | AR173: 0.4 | AS173: 1.2 | AT173: 0 | AU173: 0 | AV173: 0 | AW173: 0 | AX173: 0 | AY173: 0 | AZ173: 0 | BA173: 0 | BB173: 0 | BC173: 0 | BD173: 0.2 | BE173: 1 | BF173: 0.2 | BG173: =SUM(BG5+BG29+BG53+BG77+BG101)/5 -> 0.2 | BH173: 0 | BI173: 0 | BJ173: 0 | BK173: 0 | BL173: 0 | BM173: =SUM(BM5+BM29+BM53+BM77+BM101)/5 -> 0 | BN173: 0 | BO173: 0 | BP173: 0 | BQ173: 0 | BR173: 0 | BS173: =SUM(BS5+BS29+BS53+BS77+BS101)/5 -> 0 | BT173: 0 | BU173: 0 | BV173: 0 | BW173: 0 | BX173: 0 | BY173: 23.19 | BZ173: - | CA173: WD Ave | CB173: 0 | CC173: =SUM(CC5+CC29+CC53+CC77+CC101)/5 -> 0 | CD173: 0 | CE173: 1.2 | CF173: 2.6 | CG173: 0 | CH173: 0 | CI173: 0 | CJ173: 0 | CK173: 0 | CL173: 0 | CM173: 0 | CN173: 0 | CO173: 0 | CP173: 0 | CQ173: 0.8 | CR173: 1.4 | CS173: =SUM(CS5+CS29+CS53+CS77+CS101)/5 -> 1.4 | CT173: 0.2 | CU173: 0 | CV173: 0 | CW173: 0 | CX173: 0 | CY173: =SUM(CY5+CY29+CY53+CY77+CY101)/5 -> 0 | CZ173: 0 | DA173: 0 | DB173: 0 | DC173: 0 | DD173: 0 | DE173: 0 | DF173: 0 | DG173: 0 | DH173: 0 | DI173: 0 | DJ173: 0 | DK173: 0 | DL173: 23.53 | DM173: 28 | DN173: 0 | DO173: 0 | DP173: 0.8 | DQ173: 1.4 | DR173: 0 | DS173: 0 | DT173: 0 | DU173: 0 | DV173: 0 | DW173: 0 | DX173: 0 | DY173: 0 | DZ173: 2.2 | EA173: 0 | EB173: 0 | EC173: 0.4 | ED173: 1.2 | EE173: 0 | EF173: 0 | EG173: 0 | EH173: 0 | EI173: 0 | EJ173: 0 | EK173: 0 | EL173: 0 | EM173: 1.6 | EN173: 0 | EO173: 0 | EP173: 1.2 | EQ173: 2.6 | ER173: 0 | ES173: 0 | ET173: 0 | EU173: 0 | EV173: 0 | EW173: 0 | EX173: 0 | EY173: 0 | EZ173: 3.8
A174: WD Ave | B174: 100 | C174: =SUM(C6+C30+C54+C78+C102)/5 -> 0 | D174: 0 | E174: 0.4 | F174: 0.2 | G174: 0 | H174: 0 | I174: 0 | J174: 0 | K174: 0 | L174: 0 | M174: 0 | N174: 0 | O174: =SUM(O6+O30+O54+O78+O102)/5 -> 0 | P174: 0 | Q174: 0 | R174: 0 | S174: 0.4 | T174: 0.2 | U174: 0 | V174: 0 | W174: 0 | X174: 0 | Y174: 0 | Z174: =SUM(Z6+Z30+Z54+Z78+Z102)/5 -> 0 | AA174: 0 | AB174: =SUM(AB6+AB30+AB54+AB78+AB102)/5 -> 0 | AC174: 0 | AD174: 0 | AE174: 0 | AF174: =SUM(AF6+AF30+AF54+AF78+AF102)/5 -> 0 | AG174: 0 | AH174: 0 | AI174: 0 | AJ174: 0 | AK174: 0 | AL174: 28.55 | AM174: - | AN174: WD Ave | AO174: 100 | AP174: =SUM(AP6+AP30+AP54+AP78+AP102)/5 -> 0 | AQ174: 0 | AR174: 0 | AS174: 0.2 | AT174: 0.2 | AU174: 0 | AV174: 0 | AW174: 0 | AX174: 0 | AY174: 0 | AZ174: 0 | BA174: 0 | BB174: 0 | BC174: 0 | BD174: 0 | BE174: 0.2 | BF174: 0 | BG174: 0.2 | BH174: 0 | BI174: 0 | BJ174: 0 | BK174: 0 | BL174: 0 | BM174: =SUM(BM6+BM30+BM54+BM78+BM102)/5 -> 0 | BN174: 0 | BO174: 0 | BP174: 0 | BQ174: 0 | BR174: 0 | BS174: =SUM(BS6+BS30+BS54+BS78+BS102)/5 -> 0 | BT174: 0 | BU174: 0 | BV174: 0 | BW174: 0 | BX174: 0 | BY174: 27.05 | BZ174: - | CA174: WD Ave | CB174: 100 | CC174: =SUM(CC6+CC30+CC54+CC78+CC102)/5 -> 0 | CD174: 0 | CE174: 0.4 | CF174: 0.4 | CG174: 0.2 | CH174: 0 | CI174: 0 | CJ174: 0 | CK174: 0 | CL174: 0 | CM174: 0 | CN174: 0 | CO174: 0 | CP174: 0 | CQ174: 0 | CR174: 0.2 | CS174: 0.4 | CT174: 0.4 | CU174: 0 | CV174: 0 | CW174: 0 | CX174: 0 | CY174: =SUM(CY6+CY30+CY54+CY78+CY102)/5 -> 0 | CZ174: 0 | DA174: 0 | DB174: 0 | DC174: 0 | DD174: 0 | DE174: 0 | DF174: 0 | DG174: 0 | DH174: 0 | DI174: 0 | DJ174: 0 | DK174: 0 | DL174: 27.95 | DM174: - | DN174: 0 | DO174: 0 | DP174: 0.4 | DQ174: 0.2 | DR174: 0 | DS174: 0 | DT174: 0 | DU174: 0 | DV174: 0 | DW174: 0 | DX174: 0 | DY174: 0 | DZ174: 0.6 | EA174: 0 | EB174: 0 | EC174: 0 | ED174: 0.2 | EE174: 0.2 | EF174: 0 | EG174: 0 | EH174: 0 | EI174: 0 | EJ174: 0 | EK174: 0 | EL174: 0 | EM174: 0.4 | EN174: 0 | EO174: 0 | EP174: 0.4 | EQ174: 0.4 | ER174: 0.2 | ES174: 0 | ET174: 0 | EU174: 0 | EV174: 0 | EW174: 0 | EX174: 0 | EY174: 0 | EZ174: 1
A175: WD Ave | B175: 200 | C175: =SUM(C7+C31+C55+C79+C103)/5 -> 0 | D175: 0 | E175: 0 | F175: 0.4 | G175: 0 | H175: 0 | I175: 0 | J175: 0 | K175: 0 | L175: 0 | M175: 0 | N175: 0 | O175: 0 | P175: 0 | Q175: 0 | R175: 0.2 | S175: 0.2 | T175: 0 | U175: 0 | V175: 0 | W175: 0 | X175: 0 | Y175: 0 | Z175: =SUM(Z7+Z31+Z55+Z79+Z103)/5 -> 0 | AA175: 0 | AB175: =SUM(AB7+AB31+AB55+AB79+AB103)/5 -> 0 | AC175: 0 | AD175: 0 | AE175: 0 | AF175: =SUM(AF7+AF31+AF55+AF79+AF103)/5 -> 0 | AG175: 0 | AH175: 0 | AI175: 0 | AJ175: 0 | AK175: 0 | AL175: 23.6 | AM175: - | AN175: WD Ave | AO175: 200 | AP175: =SUM(AP7+AP31+AP55+AP79+AP103)/5 -> 0 | AQ175: 0 | AR175: 0.4 | AS175: 0.6 | AT175: 0 | AU175: 0 | AV175: 0 | AW175: 0 | AX175: 0 | AY175: 0 | AZ175: 0 | BA175: 0 | BB175: 0 | BC175: 0 | BD175: 0.2 | BE175: 0.8 | BF175: 0 | BG175: 0 | BH175: 0 | BI175: 0 | BJ175: 0 | BK175: 0 | BL175: 0 | BM175: =SUM(BM7+BM31+BM55+BM79+BM103)/5 -> 0 | BN175: 0 | BO175: 0 | BP175: 0 | BQ175: 0 | BR175: 0 | BS175: =SUM(BS7+BS31+BS55+BS79+BS103)/5 -> 0 | BT175: 0 | BU175: 0 | BV175: 0 | BW175: 0 | BX175: 0 | BY175: 21.11 | BZ175: - | CA175: WD Ave | CB175: 200 | CC175: =SUM(CC7+CC31+CC55+CC79+CC103)/5 -> 0 | CD175: 0 | CE175: 0.4 | CF175: 1 | CG175: 0 | CH175: 0 | CI175: 0 | CJ175: 0 | CK175: 0 | CL175: 0 | CM175: 0 | CN175: 0 | CO175: 0 | CP175: 0 | CQ175: 0.2 | CR175: 1 | CS175: 0.2 | CT175: 0 | CU175: 0 | CV175: 0 | CW175: 0 | CX175: 0 | CY175: =SUM(CY7+CY31+CY55+CY79+CY103)/5 -> 0 | CZ175: 0 | DA175: 0 | DB175: 0 | DC175: 0 | DD175: 0 | DE175: 0 | DF175: 0 | DG175: 0 | DH175: 0 | DI175: 0 | DJ175: 0 | DK175: 0 | DL175: 21.82 | DM175: - | DN175: 0 | DO175: 0 | DP175: 0 | DQ175: 0.4 | DR175: 0 | DS175: 0 | DT175: 0 | DU175: 0 | DV175: 0 | DW175: 0 | DX175: 0 | DY175: 0 | DZ175: 0.4 | EA175: 0 | EB175: 0 | EC175: 0.4 | ED175: 0.6 | EE175: 0 | EF175: 0 | EG175: 0 | EH175: 0 | EI175: 0 | EJ175: 0 | EK175: 0 | EL175: 0 | EM175: 1 | EN175: 0 | EO175: 0 | EP175: 0.4 | EQ175: 1 | ER175: 0 | ES175: 0 | ET175: 0 | EU175: 0 | EV175: 0 | EW175: 0 | EX175: 0 | EY175: 0 | EZ175: 1.4
